Workbook

Sheet AppQt.Data (hidden)
M1: 76 | N1: 77 | O1: 78 | P1: 79 | Q1: 80 | R1: 81 | S1: 82 | T1: 83 | U1: 84 | V1: 85 | W1: 86 | X1: 87 | Y1: 88 | Z1: 89 | AA1: 90 | AB1: 91 | AC1: 92 | AD1: 93 | AE1: 94 | AF1: 95 | AG1: 96 | AH1: 97 | AI1: 98 | AJ1: 99 | AK1: 100 | AL1: 101 | AM1: 102 | AN1: 103 | AO1: 104 | AP1: 105 | AQ1: 106 | AR1: 107 | AS1: 108 | AT1: 109 | AU1: 110 | AV1: 111 | AW1: 112 | AX1: 113 | AY1: 114 | AZ1: 115 | BA1: 116 | BB1: 117 | BC1: 118 | BD1: 119 | BE1: 120 | BF1: 121 | BG1: 122 | BH1: 123 | BI1: 124 | BJ1: 125 | BK1: 126 | BL1: 127
A2: トン | B2: Tonnes | C2: 吨 | F2: Dates | J2: Active quarter | L2: Dates | M2: Q1'10 | N2: Q2'10 | O2: Q3'10 | P2: Q4'10 | Q2: Q1'11 | R2: Q2'11 | S2: Q3'11 | T2: Q4'11 | U2: Q1'12 | V2: Q2'12 | W2: Q3'12 | X2: Q4'12 | Y2: Q1'13 | Z2: Q2'13 | AA2: Q3'13 | AB2: Q4'13 | AC2: Q1'14 | AD2: Q2'14 | AE2: Q3'14 | AF2: Q4'14 | AG2: Q1'15 | AH2: Q2'15 | AI2: Q3'15 | AJ2: Q4'15 | AK2: Q1'16 | AL2: Q2'16 | AM2: Q3'16 | AN2: Q4'16 | AO2: Q1'17 | AP2: Q2'17 | AQ2: Q3'17 | AR2: Q4'17 | AS2: Q1'18 | AT2: Q2'18 | AU2: Q3'18 | AV2: Q4'18 | AW2: Q1'19 | AX2: Q2'19 | AY2: Q3'19 | AZ2: Q4'19 | BA2: Q1'20 | BB2: Q2'20 | BC2: Q3'20 | BD2: Q4'20 | BE2: Q1'21 | BF2: Q2'21 | BG2: Q3'21 | BH2: Q4'21 | BI2: Q1'22 | BJ2: Q2'22 | BK2: Q3'22 | BL2: Q4'22
A3: 百万米ドル | B3: US$mn | C3: 美元$百万 | E3: Current | F3: Q4'22 | G3: 64 | J3: 4 | L3: Quarter | M3: 1 | N3: 2 | O3: 3 | P3: 4 | Q3: 1 | R3: 2 | S3: 3 | T3: 4 | U3: 1 | V3: 2 | W3: 3 | X3: 4 | Y3: 1 | Z3: 2 | AA3: 3 | AB3: 4 | AC3: 1 | AD3: 2 | AE3: 3 | AF3: 4 | AG3: 1 | AH3: 2 | AI3: 3 | AJ3: 4 | AK3: 1 | AL3: 2 | AM3: 3 | AN3: 4 | AO3: 1 | AP3: 2 | AQ3: 3 | AR3: 4 | AS3: 1 | AT3: 2 | AU3: 3 | AV3: 4 | AW3: 1 | AX3: 2 | AY3: 3 | AZ3: 4 | BA3: 1 | BB3: 2 | BC3: 3 | BD3: 4 | BE3: 1 | BF3: 2 | BG3: 3 | BH3: 4 | BI3: 1 | BJ3: 2 | BK3: 3 | BL3: 4
B4: 31.1035 | E4: Last qtr | F4: Q3'22 | G4: 63 | L4: Year | M4: 2010 | N4: 2010 | O4: 2010 | P4: 2010 | Q4: 2011 | R4: 2011 | S4: 2011 | T4: 2011 | U4: 2012 | V4: 2012 | W4: 2012 | X4: 2012 | Y4: 2013 | Z4: 2013 | AA4: 2013 | AB4: 2013 | AC4: 2014 | AD4: 2014 | AE4: 2014 | AF4: 2014 | AG4: 2015 | AH4: 2015 | AI4: 2015 | AJ4: 2015 | AK4: 2016 | AL4: 2016 | AM4: 2016 | AN4: 2016 | AO4: 2017 | AP4: 2017 | AQ4: 2017 | AR4: 2017 | AS4: 2018 | AT4: 2018 | AU4: 2018 | AV4: 2018 | AW4: 2019 | AX4: 2019 | AY4: 2019 | AZ4: 2019 | BA4: 2020 | BB4: 2020 | BC4: 2020 | BD4: 2020 | BE4: 2021 | BF4: 2021 | BG4: 2021 | BH4: 2021 | BI4: 2022 | BJ4: 2022 | BK4: 2022 | BL4: 2022
B5: 32150.7466 | E5: Year ago | F5: Q4'21 | G5: 60 | M5: 77 | N5: 78 | O5: 79 | P5: 80 | Q5: 81 | R5: 82 | S5: 83 | T5: 84 | U5: 85 | V5: 86 | W5: 87 | X5: 88 | Y5: 89 | Z5: 90 | AA5: 91 | AB5: 92 | AC5: 93 | AD5: 94 | AE5: 95 | AF5: 96 | AG5: 97 | AH5: 98 | AI5: 99 | AJ5: 100 | AK5: 101 | AL5: 102 | AM5: 103 | AN5: 104 | AO5: 105 | AP5: 106 | AQ5: 107 | AR5: 108 | AS5: 109 | AT5: 110 | AU5: 111 | AV5: 112 | AW5: 113 | AX5: 114 | AY5: 115 | AZ5: 116 | BA5: 117 | BB5: 118 | BC5: 119 | BD5: 120 | BE5: 121 | BF5: 122 | BG5: 123 | BH5: 124 | BI5: 125 | BJ5: 126 | BK5: 127 | BL5: 128
M6: 75 | N6: 76 | O6: 77 | P6: 78 | Q6: 79 | R6: 80 | S6: 81 | T6: 82 | U6: 83 | V6: 84 | W6: 85 | X6: 86 | Y6: 87 | Z6: 88 | AA6: 89 | AB6: 90 | AC6: 91 | AD6: 92 | AE6: 93 | AF6: 94 | AG6: 95 | AH6: 96 | AI6: 97 | AJ6: 98 | AK6: 99 | AL6: 100 | AM6: 101 | AN6: 102 | AO6: 103 | AP6: 104 | AQ6: 105 | AR6: 106 | AS6: 107 | AT6: 108 | AU6: 109 | AV6: 110 | AW6: 111 | AX6: 112 | AY6: 113 | AZ6: 114 | BA6: 115 | BB6: 116 | BC6: 117 | BD6: 118 | BE6: 119 | BF6: 120 | BG6: 121 | BH6: 122 | BI6: 123 | BJ6: 124 | BK6: 125 | BL6: 126
F7: LBMA Gold Price (US$/oz) | K7: LBMA Gold Price (US$/oz) | L7: Gold | M7: 1109.12 | N7: 1196.74 | O7: 1226.75 | P7: 1366.78 | Q7: 1386.27 | R7: 1506.13 | S7: 1702.12 | T7: 1688.01 | U7: 1690.57 | V7: 1609.49 | W7: 1652 | X7: 1721.79 | Y7: 1631.77 | Z7: 1414.8 | AA7: 1326.28 | AB7: 1276.16 | AC7: 1293.06 | AD7: 1288.39 | AE7: 1281.94 | AF7: 1201.4 | AG7: 1218.45 | AH7: 1192.35 | AI7: 1124.31 | AJ7: 1106.45 | AK7: 1182.56 | AL7: 1259.62 | AM7: 1334.78 | AN7: 1221.55 | AO7: 1219.49 | AP7: 1256.59 | AQ7: 1277.91 | AR7: 1275.42 | AS7: 1329.28 | AT7: 1305.99 | AU7: 1213.19 | AV7: 1226.28 | AW7: 1303.79 | AX7: 1309.39 | AY7: 1472.47 | AZ7: 1480.96 | BA7: 1582.8 | BB7: 1711.13 | BC7: 1908.56 | BD7: 1874.23 | BE7: 1794.01 | BF7: 1816.48 | BG7: 1789.52 | BH7: 1795.25 | BI7: 1877.16 | BJ7: 1870.58 | BK7: 1728.91 | BL7: 1725.85
M8: 13 | N8: 14 | O8: 15 | P8: 16 | Q8: 17 | R8: 18 | S8: 19 | T8: 20 | U8: 21 | V8: 22 | W8: 23 | X8: 24 | Y8: 25 | Z8: 26 | AA8: 27 | AB8: 28 | AC8: 29 | AD8: 30 | AE8: 31 | AF8: 32 | AG8: 33 | AH8: 34 | AI8: 35 | AJ8: 36 | AK8: 37 | AL8: 38 | AM8: 39 | AN8: 40 | AO8: 41 | AP8: 42 | AQ8: 43 | AR8: 44 | AS8: 45 | AT8: 46 | AU8: 47 | AV8: 48 | AW8: 49 | AX8: 50 | AY8: 51 | AZ8: 52 | BA8: 53 | BB8: 54 | BC8: 55 | BD8: 56 | BE8: 57 | BF8: 58 | BG8: 59 | BH8: 60 | BI8: 61 | BJ8: 62 | BK8: 63 | BL8: 64
D9: Match row | E9: Check col | F9: Lookup | G9: Chart Number | H9: Ser.no | I9: axis | J9: Series | K9: Legend
B10: YoY | E10: Cover | G10: Cover
D11: 10 | E11: Mine production | F11: Table1.ton | H11: 1 | J11: Mine production | K11: Mine production | M11: 631.9995309 | N11: 674.5983056 | O11: 729.7025334 | P11: 718.1647316 | Q11: 667.5529702 | R11: 719.6800371 | S11: 752.6789246 | T11: 736.9499912 | U11: 685.8421402 | V11: 729.4583714 | W11: 769.4946995 | X11: 772.4060832 | Y11: 720.5543294 | Z11: 770.1035741 | AA11: 838.8175517 | AB11: 837.2915145 | AC11: 749.2325753 | AD11: 792.2973963 | AE11: 862.359941 | AF11: 866.6051511 | AG11: 787.6707524 | AH11: 838.2291333 | AI11: 867.4561613 | AJ11: 867.9542451 | AK11: 853.7671091 | AL11: 859.2153874 | AM11: 881.1584278 | AN11: 915.4196439 | AO11: 830.0629723 | AP11: 883.0335497 | AQ11: 924.3562619 | AR11: 935.686535 | AS11: 851.3320975 | AT11: 898.819934 | AU11: 955.3895051 | AV11: 949.736937 | AW11: 845.0849474 | AX11: 878.093107 | AY11: 933.1392786 | AZ11: 938.2089305 | BA11: 838.1515647 | BB11: 787.8993505 | BC11: 920.9429063 | BD11: 925.4019544 | BE11: 830.1708471 | BF11: 873.0335073 | BG11: 927.7195758 | BH11: 938.0001731 | BI11: 844.2347307 | BJ11: 892.0715368 | BK11: 945.5653728 | BL11: 930.0240581
D12: 11 | E12: Net producer hedging | F12: Table1.ton | H12: 2 | J12: Net producer hedging | K12: Net producer hedging | M12: -11.73901626 | N12: 14.82156442 | O12: -55.95272859 | P12: -55.93822875 | Q12: 9.872867523 | R12: 18.42860096 | S12: 5.019843173 | T12: -10.79581505 | U12: -0.3817194797 | V12: -10.45147582 | W12: 1.255354893 | X12: -35.7375235 | Y12: -5.420979316 | Z12: -5.818767442 | AA12: -2.108968158 | AB12: -14.59072743 | AC12: 12.36847941 | AD12: 50.26501227 | AE12: -8.10679239 | AF12: 50.38059888 | AG12: -2.917822185 | AH12: -15.06639679 | AI12: 14.20321196 | AJ12: 16.672952 | AK12: 56.06741962 | AL12: 23.81943492 | AM12: -17.82193841 | AN12: -24.43061076 | AO12: -15.57933 | AP12: -8.520134056 | AQ12: 7.914539723 | AR12: -9.335131682 | AS12: 37.5212084 | AT12: -37.67940719 | AU12: -24.10221891 | AV12: 12.62282286 | AW12: -7.009812032 | AX12: 50.90594518 | AY12: -4.446010598 | AZ12: -33.29413339 | BA12: 40.41948551 | BB12: -35.39382963 | BC12: -21.87692441 | BD12: -22.22320578 | BE12: 4.837887358 | BF12: -17.31827846 | BG12: -12.3759973 | BH12: 2.201888937 | BI12: 10.91283961 | BJ12: 3.690209471 | BK12: -10.86559665 | BL12: -5.23839811
D13: 13 | E13: Recycled gold | F13: Table1.ton | H13: 3 | J13: Recycled gold | K13: Recycled gold | M13: 376.2845824 | N13: 455.2341927 | O13: 382.2473897 | P13: 457.3976824 | Q13: 356.9758996 | R13: 402.8233865 | S13: 454.3603743 | T13: 412.17166 | U13: 400.9522029 | V13: 400.7925327 | W13: 443.8556208 | X13: 391.1623989 | Y13: 341.7573447 | Z13: 271.3794002 | AA13: 299.738761 | AB13: 282.4328254 | AC13: 358.7249854 | AD13: 260.6745902 | AE13: 254.1407833 | AF13: 256.0482111 | AG13: 337.5011512 | AH13: 253.6270061 | AI13: 248.8234295 | AJ13: 227.1233937 | AK13: 341.5595184 | AL13: 328.2826246 | AM13: 318.4675097 | AN13: 243.8329355 | AO13: 273.2475737 | AP13: 270.2518386 | AQ13: 303.5078144 | AR13: 265.3855543 | AS13: 265.4683283 | AT13: 280.0920037 | AU13: 309.0560003 | AV13: 277.0812419 | AW13: 281.876187 | AX13: 305.6634489 | AY13: 355.7605275 | AZ13: 332.3573447 | BA13: 301.0033979 | BB13: 285.1946041 | BC13: 377.9561964 | BD13: 328.9012222 | BE13: 269.6774382 | BF13: 278.551693 | BG13: 292.8573244 | BH13: 295.0736449 | BI13: 295.9839286 | BJ13: 286.0561552 | BK13: 269.8159976 | BL13: 292.2569332
D14: 14 | E14: Total supply | F14: Table1.ton | H14: 4 | J14: Total supply | K14: Total supply | M14: 996.5450971 | N14: 1144.654063 | O14: 1055.997195 | P14: 1119.624185 | Q14: 1034.401737 | R14: 1140.932025 | S14: 1212.059142 | T14: 1138.325836 | U14: 1086.412624 | V14: 1119.799428 | W14: 1214.605675 | X14: 1127.830959 | Y14: 1056.890695 | Z14: 1035.664207 | AA14: 1136.447345 | AB14: 1105.133612 | AC14: 1120.32604 | AD14: 1103.236999 | AE14: 1108.393932 | AF14: 1173.033961 | AG14: 1122.254081 | AH14: 1076.789743 | AI14: 1130.482803 | AJ14: 1111.750591 | AK14: 1251.394047 | AL14: 1211.317447 | AM14: 1181.803999 | AN14: 1134.821969 | AO14: 1087.731216 | AP14: 1144.765254 | AQ14: 1235.778616 | AR14: 1191.736958 | AS14: 1154.321634 | AT14: 1141.232531 | AU14: 1240.343286 | AV14: 1239.441002 | AW14: 1119.951322 | AX14: 1234.662501 | AY14: 1284.453796 | AZ14: 1237.272142 | BA14: 1179.574448 | BB14: 1037.700125 | BC14: 1277.022178 | BD14: 1232.079971 | BE14: 1104.686173 | BF14: 1134.266922 | BG14: 1208.200903 | BH14: 1235.275707 | BI14: 1151.131499 | BJ14: 1181.817901 | BK14: 1204.515774 | BL14: 1217.042593
D15: 17 | E15: Jewellery fabrication | F15: Table1.ton | H15: 5 | J15: Jewellery fabrication | K15: Jewellery fabrication | M15: 550.6065719 | N15: 423.122472 | O15: 548.8440309 | P15: 521.1842432 | Q15: 596.4666985 | R15: 528.1916142 | S15: 501.1970074 | T15: 466.2710139 | U15: 553.0292457 | V15: 491.7597644 | W15: 546.5024662 | X15: 549.5747849 | Y15: 598.740098 | Z15: 803.817076 | AA15: 692.3415771 | AB15: 640.3974297 | AC15: 615.9472486 | AD15: 620.3369529 | AE15: 651.2942435 | AF15: 656.8021396 | AG15: 623.4942018 | AH15: 552.3717473 | AI15: 673.1031077 | AJ15: 630.2708797 | AK15: 482.9100342 | AL15: 454.2614083 | AM15: 515.3823947 | AN15: 566.2161478 | AO15: 548.6025678 | AP15: 546.6763024 | AQ15: 539.7805674 | AR15: 622.4106655 | AS15: 530.6026831 | AT15: 532.9499432 | AU15: 590.6129497 | AV15: 635.8503439 | AW15: 543.3608851 | AX15: 557.2059805 | AY15: 486.0096928 | AZ15: 565.500094 | BA15: 329.3997598 | BB15: 196.1715097 | BC15: 314.6987552 | BD15: 483.6945852 | BE15: 538.9580382 | BF15: 456.5826381 | BG15: 515.2473608 | BH15: 719.8477454 | BI15: 515.4690035 | BJ15: 491.5721686 | BK15: 580.2050361 | BL15: 602.5123395
D16: 18 | E16: Jewellery consumption | F16: Table1.ton | H16: 6 | J16: Jewellery consumption | K16: Jewellery consumption | M16: 534.9943697 | N16: 422.8172164 | O16: 523.1510808 | P16: 576.2849431 | Q16: 580.0592542 | R16: 522.947297 | S16: 484.0945815 | T16: 517.3445609 | U16: 540.7493488 | V16: 499.8028891 | W16: 519.1721406 | X16: 597.4806038 | Y16: 616.1412165 | Z16: 834.2615901 | AA16: 648.936614 | AB16: 628.6349399 | AC16: 627.0372323 | AD16: 603.0903361 | AE16: 610.233681 | AF16: 693.8572579 | AG16: 615.9677452 | AH16: 533.1343238 | AI16: 641.4396404 | AJ16: 670.2995641 | AK16: 491.6803224 | AL16: 461.9641442 | AM16: 508.1649283 | AN16: 643.4187973 | AO16: 529.0854547 | AP16: 532.490513 | AQ16: 514.7938535 | AR16: 665.6409302 | AS16: 529.5108308 | AT16: 522.5966223 | AU16: 548.3755977 | AV16: 649.737086 | AW16: 536.1250146 | AX16: 530.5782996 | AY16: 469.7727449 | AZ16: 590.2440947 | BA16: 311.6118418 | BB16: 243.0878023 | BC16: 333.0436927 | BD16: 510.2430027 | BE16: 512.1968863 | BF16: 437.5579732 | BG16: 477.1037405 | BH16: 720.8797106 | BI16: 474.6612783 | BJ16: 457.8027112 | BK16: 524.9492502 | BL16: 628.7551336
D17: 19 | E17: Jewellery inventory | F17: Table1.ton | H17: 7 | J17: Jewellery inventory | K17: Jewellery inventory | M17: 15.61220221 | N17: 0.3052555664 | O17: 25.69295011 | P17: -55.10069995 | Q17: 16.40744424 | R17: 5.244317211 | S17: 17.10242586 | T17: -51.07354693 | U17: 12.27989692 | V17: -8.043124727 | W17: 27.33032552 | X17: -47.90581889 | Y17: -17.40111851 | Z17: -30.44451406 | AA17: 43.40496303 | AB17: 11.7624898 | AC17: -11.08998369 | AD17: 17.2466168 | AE17: 41.06056251 | AF17: -37.0551183 | AG17: 7.526456649 | AH17: 19.23742347 | AI17: 31.66346732 | AJ17: -40.02868438 | AK17: -8.770288119 | AL17: -7.702735871 | AM17: 7.217466387 | AN17: -77.20264951 | AO17: 19.51711311 | AP17: 14.18578947 | AQ17: 24.98671394 | AR17: -43.23026468 | AS17: 1.091852319 | AT17: 10.35332088 | AU17: 42.23735199 | AV17: -13.8867421 | AW17: 7.235870474 | AX17: 26.62768083 | AY17: 16.2369479 | AZ17: -24.74400071 | BA17: 17.78791799 | BB17: -46.9162926 | BC17: -18.34493748 | BD17: -26.54841749 | BE17: 26.76115194 | BF17: 19.0246649 | BG17: 38.14362025 | BH17: -1.031965148 | BI17: 40.80772515 | BJ17: 33.76945737 | BK17: 55.2557859 | BL17: -26.24279415
D18: 20 | E18: Technology | F18: Table1.ton | H18: 8 | J18: Technology | K18: Technology | M18: 114.3553116 | N18: 115.01673 | O18: 118.1482361 | P18: 113.1454592 | Q18: 110.6110539 | R18: 112.4850751 | S18: 109.34356 | T18: 96.69780716 | U18: 100.7741159 | V18: 97.36544113 | W18: 95.42756568 | X18: 88.70695153 | Y18: 89.85782165 | Z18: 92.88357407 | AA18: 89.55025326 | AB18: 83.47599898 | AC18: 83.29070957 | AD18: 86.46635248 | AE18: 89.44834851 | AF18: 89.18145713 | AG18: 83.60708127 | AH18: 83.67693119 | AI18: 82.86578255 | AJ18: 81.52395124 | AK18: 76.29001234 | AL18: 79.96859358 | AM18: 82.43494518 | AN18: 84.30001662 | AO18: 78.76887973 | AP18: 81.3564869 | AQ18: 84.15714542 | AR18: 88.30245392 | AS18: 81.79780341 | AT18: 83.29820355 | AU18: 85.38372895 | AV18: 84.31448343 | AW18: 79.90615995 | AX18: 80.69681693 | AY18: 82.01487621 | AZ18: 83.34634369 | BA18: 72.84021863 | BB18: 68.71910536 | BC18: 77.17467662 | BD18: 84.02231032 | BE18: 81.03618207 | BF18: 79.84524967 | BG18: 83.42022044 | BH18: 85.88972317 | BI18: 80.95597086 | BJ18: 78.52648231 | BK18: 76.99468489 | BL18: 72.04730417
D19: 21 | E19: Electronics | F19: Table1.ton | H19: 9 | J19: Electronics | K19: Electronics | M19: 79.02997365 | N19: 80.42565732 | O19: 85.8495706 | P19: 81.42278093 | Q19: 80.09760067 | R19: 83.17678499 | S19: 81.49612577 | T19: 71.80098786 | U19: 75.16651191 | V19: 73.0563143 | W19: 72.93488438 | X19: 67.96780098 | Y19: 69.0752003 | Z19: 71.6498486 | AA19: 71.76336557 | AB19: 66.7477455 | AC19: 65.76352322 | AD19: 68.69307013 | AE19: 71.56889943 | AF19: 71.50457393 | AG19: 66.24384886 | AH19: 65.80887634 | AI19: 65.4581185 | AJ19: 64.63011057 | AK19: 59.87109786 | AL19: 62.96315831 | AM19: 65.30199456 | AN19: 67.47743267 | AO19: 62.35641186 | AP19: 64.3633647 | AQ19: 67.35257957 | AR19: 71.50963721 | AS19: 65.33038193 | AT19: 66.48645454 | AU19: 68.76714799 | AV19: 67.77894769 | AW19: 63.54281696 | AX19: 64.47381988 | AY19: 66.44184486 | AZ19: 67.79784896 | BA19: 58.78472141 | BB19: 58.02966704 | BC19: 63.27219491 | BD19: 69.24333037 | BE19: 66.21394613 | BF19: 66.24046193 | BG19: 68.99578781 | BH19: 70.62500202 | BI19: 66.22569989 | BJ19: 64.55281161 | BK19: 63.17944666 | BL19: 57.737447
D20: 22 | E20: Other Industrial | F20: Table1.ton | H20: 10 | J20: Other Industrial | K20: Other Industrial | M20: 22.86268518 | N20: 22.79755282 | O20: 21.33628986 | P20: 21.32957176 | Q20: 20.70036307 | R20: 20.00362863 | S20: 19.09227135 | T20: 16.59679791 | U20: 17.81914676 | V20: 16.84840897 | W20: 15.75889253 | X20: 14.3005292 | Y20: 14.65203463 | Z20: 15.20686766 | AA20: 12.25355316 | AB20: 11.57241598 | AC20: 12.2838726 | AD20: 12.9263986 | AE20: 13.06949532 | AF20: 12.94335945 | AG20: 12.68969564 | AH20: 13.18005467 | AI20: 12.76083667 | AJ20: 12.34401409 | AK20: 11.95157617 | AL20: 12.51812466 | AM20: 12.7608699 | AN20: 12.52407312 | AO20: 12.18970348 | AP20: 12.75810112 | AQ20: 12.77370546 | AR20: 12.93973801 | AS20: 12.48571314 | AT20: 12.82650598 | AU20: 12.88224699 | AV20: 12.96510738 | AW20: 12.83420969 | AX20: 12.51740905 | AY20: 12.08581973 | AZ20: 12.34058271 | BA20: 10.85474234 | BB20: 8.11592716 | BC20: 10.76563595 | BD20: 11.83402087 | BE20: 11.92401338 | BF20: 10.71995125 | BG20: 11.5809981 | BH20: 12.53815127 | BI20: 12.00621391 | BJ20: 11.32931824 | BK20: 11.34407409 | BL20: 11.87097027
D21: 23 | E21: Dentistry | F21: Table1.ton | H21: 11 | J21: Dentistry | K21: Dentistry | M21: 12.46265279 | N21: 11.79351984 | O21: 10.96237567 | P21: 10.39310648 | Q21: 9.813090197 | R21: 9.304661529 | S21: 8.755162902 | T21: 8.300021391 | U21: 7.788457239 | V21: 7.460717859 | W21: 6.733788768 | X21: 6.438621354 | Y21: 6.130586719 | Z21: 6.026857813 | AA21: 5.533334531 | AB21: 5.1558375 | AC21: 5.24331375 | AD21: 4.84688375 | AE21: 4.80995375 | AF21: 4.73352375 | AG21: 4.673536775 | AH21: 4.688000175 | AI21: 4.646827375 | AJ21: 4.549826575 | AK21: 4.467338304 | AL21: 4.487310608 | AM21: 4.37208072 | AN21: 4.298510832 | AO21: 4.22276439 | AP21: 4.23502108 | AQ21: 4.030860387 | AR21: 3.853078695 | AS21: 3.981708338 | AT21: 3.985243036 | AU21: 3.734333972 | AV21: 3.570428361 | AW21: 3.529133297 | AX21: 3.705588012 | AY21: 3.487211622 | AZ21: 3.20791202 | BA21: 3.200754888 | BB21: 2.573511167 | BC21: 3.136845764 | BD21: 2.944959073 | BE21: 2.898222553 | BF21: 2.884836492 | BG21: 2.84343454 | BH21: 2.726569881 | BI21: 2.72405706 | BJ21: 2.644352463 | BK21: 2.47116414 | BL21: 2.438886898
D22: 24 | E22: Investment | F22: Table1.ton | H22: 12 | J22: Investment | K22: Investment | M22: 273.9843862 | N22: 609.7920971 | O22: 371.6926223 | P22: 361.177878 | Q22: 342.9955721 | R22: 392.7019284 | S22: 531.5446803 | T22: 477.07172 | U22: 411.5607804 | V22: 294.9090498 | W22: 451.2092164 | X22: 463.3351164 | Y22: 251.5130444 | Z22: 177.147825 | AA22: 203.2890503 | AB22: 165.7497153 | AC22: 284.6726669 | AD22: 225.9405714 | AE22: 190.4282227 | AF22: 199.6796176 | AG22: 294.5129206 | AH22: 198.4831736 | AI22: 239.7817121 | AJ22: 234.2032553 | AK22: 614.6835254 | AL22: 459.8054129 | AM22: 345.1748561 | AN22: 194.5595791 | AO22: 413.966499 | AP22: 311.294189 | AQ22: 264.8810022 | AR22: 324.8658513 | AS22: 290.4047512 | AT22: 277.9039776 | AU22: 196.6361198 | AV22: 399.0548613 | AW22: 301.1878122 | AX22: 292.7254048 | AY22: 412.063794 | AZ22: 265.0839733 | BA22: 553.7529147 | BB22: 592.8120174 | BC22: 505.4755696 | BD22: 144.2204728 | BE22: 178.2453377 | BF22: 288.905602 | BG22: 231.3267749 | BH22: 303.4005216 | BI22: 553.8546515 | BJ22: 210.1529513 | BK22: 97.04617619 | BL22: 245.6989623
D23: 25 | E23: Total bar and coin | F23: Table1.ton | H23: 13 | J23: Total bar and coin | K23: Total bar and coin | M23: 252.0179354 | N23: 306.1577879 | O23: 317.7976655 | P23: 328.3209244 | Q23: 396.3523846 | R23: 333.6403885 | S23: 418.6142342 | T23: 353.3655973 | U23: 346.8752777 | V23: 296.1658981 | W23: 303.5808719 | X23: 375.7282578 | Y23: 443.1692489 | Z23: 599.4035 | AA23: 326.9927743 | AB23: 360.1456256 | AC23: 293.2162371 | AD23: 248.757908 | AE23: 240.9058171 | AF23: 283.7684826 | AG23: 266.7272914 | AH23: 218.4717047 | AI23: 305.0138615 | AJ23: 300.5036919 | AK23: 272.2029614 | AL23: 220.9868778 | AM23: 199.9666148 | AN23: 379.7253045 | AO23: 304.0532841 | AP23: 248.3712466 | AQ23: 232.9273166 | AR23: 258.7074186 | AS23: 261.2543342 | AT23: 247.9954031 | AU23: 297.4102061 | AV23: 283.7894903 | AW23: 258.2465526 | AX23: 219.7440228 | AY23: 150.3612741 | AZ23: 242.5209701 | BA23: 253.3334915 | BB23: 159.2906082 | BC23: 221.4557274 | BD23: 269.7506104 | BE23: 354.5682895 | BF23: 248.2139272 | BG23: 261.7102278 | BH23: 326.3913326 | BI23: 283.1882955 | BJ23: 257.5180114 | BK23: 341.1421257 | BL23: 335.2688153
D24: 26 | E24: Bars | F24: Table1.ton | H24: 14 | J24: Bars | K24: Bars | M24: 189.7984811 | N24: 226.8639077 | O24: 239.6236053 | P24: 264.8964034 | Q24: 316.5910324 | R24: 262.6383022 | S24: 330.0522229 | T24: 280.2240002 | U24: 273.0742678 | V24: 225.3350717 | W24: 231.4205603 | X24: 293.3655716 | Y24: 341.8796544 | Z24: 476.4226464 | AA24: 267.3467628 | AB24: 271.7281238 | AC24: 210.6055083 | AD24: 179.65595 | AE24: 183.061309 | AF24: 207.2209354 | AG24: 199.5216225 | AH24: 157.4787893 | AI24: 207.6274149 | AJ24: 225.7633869 | AK24: 210.2080036 | AL24: 161.1437271 | AM24: 147.2699279 | AN24: 278.7383577 | AO24: 245.5725494 | AP24: 181.2442225 | AQ24: 165.0465785 | AR24: 187.9870166 | AS24: 195.2995159 | AT24: 179.1725751 | AU24: 207.595175 | AV24: 193.5220109 | AW24: 186.0966896 | AX24: 151.0309092 | AY24: 92.67891014 | AZ24: 153.6475823 | BA24: 160.0756073 | BB24: 96.20181973 | BC24: 114.7404459 | BD24: 170.8242008 | BE24: 233.9669075 | BF24: 172.5807411 | BG24: 180.3163594 | BH24: 223.9428048 | BI24: 180.5603378 | BJ24: 170.589728 | BK24: 221.1972441 | BL24: 218.5713406
D25: 27 | E25: Official Coins | F25: Table1.ton | H25: 15 | J25: Official Coins | K25: Official Coins | M25: 39.59748175 | N25: 63.68245027 | O25: 53.68420736 | P25: 38.93866215 | Q25: 55.80304448 | R25: 46.85711494 | S25: 69.60612033 | T25: 56.02801769 | U25: 47.72384705 | V25: 48.38245729 | W25: 42.86455858 | X25: 48.50077222 | Y25: 71.67945228 | Z25: 86.56782192 | AA25: 42.95112873 | AB25: 69.69594224 | AC25: 64.83592234 | AD25: 49.30238386 | AE25: 36.00618668 | AF25: 55.31766574 | AG25: 51.05986182 | AH25: 45.97813949 | AI25: 74.6898659 | AJ25: 52.61470584 | AK25: 49.25559314 | AL25: 46.12797693 | AM25: 34.57163601 | AN25: 77.91614329 | AO25: 41.70616022 | AP25: 47.9670571 | AQ25: 50.21186395 | AR25: 48.23352872 | AS25: 50.52999972 | AT25: 51.55397229 | AU25: 71.52692385 | AV25: 68.27289925 | AW25: 55.60446138 | AX25: 50.30259226 | AY25: 44.86971931 | AZ25: 69.87557095 | BA25: 78.74308594 | BB25: 51.55835673 | BC25: 84.13732038 | BD25: 78.43025022 | BE25: 101.952575 | BF25: 62.28137229 | BG25: 57.46296831 | BH25: 73.54730934 | BI25: 84.58064092 | BJ25: 70.79079605 | BK25: 89.41013989 | BL25: 90.04176066
D26: 28 | E26: Medals/Imitation Coins | F26: Table1.ton | H26: 16 | J26: Medals/Imitation Coins | K26: Medals/Imitation Coins | M26: 22.62197254 | N26: 15.61142996 | O26: 24.48985288 | P26: 24.48585886 | Q26: 23.95830772 | R26: 24.14497141 | S26: 18.95589098 | T26: 17.11357938 | U26: 26.07716285 | V26: 22.44836908 | W26: 29.29575301 | X26: 33.86191393 | Y26: 29.61014219 | Z26: 36.41303171 | AA26: 16.69488276 | AB26: 18.72155952 | AC26: 17.77480645 | AD26: 19.79957423 | AE26: 21.83832137 | AF26: 21.22988145 | AG26: 16.14580704 | AH26: 15.01477593 | AI26: 22.69658075 | AJ26: 22.12559923 | AK26: 12.73936475 | AL26: 13.7151737 | AM26: 18.12505085 | AN26: 23.07080355 | AO26: 16.77457447 | AP26: 19.15996706 | AQ26: 17.66887418 | AR26: 22.48687336 | AS26: 15.4248186 | AT26: 17.26885566 | AU26: 18.28810726 | AV26: 21.9945801 | AW26: 16.54540154 | AX26: 18.4105213 | AY26: 12.81264467 | AZ26: 18.99781691 | BA26: 14.51479819 | BB26: 11.53043175 | BC26: 22.57796108 | BD26: 20.49615944 | BE26: 18.64880693 | BF26: 13.35181387 | BG26: 23.93090017 | BH26: 28.90121846 | BI26: 18.04731674 | BJ26: 16.13748739 | BK26: 30.53474178 | BL26: 26.655714
D27: 29 | E27: ETFs & similar products | F27: Table1.ton | H27: 17 | J27: ETFs & similar products | K27: ETFs & similar products | M27: 21.96645074 | N27: 303.6343092 | O27: 53.89495683 | P27: 32.8569536 | Q27: -53.35681246 | R27: 59.06153985 | S27: 112.9304462 | T27: 123.7061228 | U27: 64.68550262 | V27: -1.25684831 | W27: 147.6283446 | X27: 87.6068586 | Y27: -191.6562045 | Z27: -422.255675 | AA27: -123.703724 | AB27: -194.3959103 | AC27: -8.54357027 | AD27: -22.81733669 | AE27: -50.4775944 | AF27: -84.08886505 | AG27: 27.78562923 | AH27: -19.9885311 | AI27: -65.23214941 | AJ27: -66.30043665 | AK27: 342.480564 | AL27: 238.8185351 | AM27: 145.2082413 | AN27: -185.1657255 | AO27: 109.9132149 | AP27: 62.9229424 | AQ27: 31.95368554 | AR27: 66.1584327 | AS27: 29.15041699 | AT27: 29.90857452 | AU27: -100.7740863 | AV27: 115.265371 | AW27: 42.94125961 | AX27: 72.98138205 | AY27: 261.7025199 | AZ27: 22.56300312 | BA27: 300.4194232 | BB27: 433.5214092 | BC27: 284.0198422 | BD27: -125.5301376 | BE27: -176.3229518 | BF27: 40.69167478 | BG27: -30.38345297 | BH27: -22.99081101 | BI27: 270.666356 | BJ27: -47.36506007 | BK27: -244.0959495 | BL27: -89.56985297
D28: 30 | E28: Central banks & other inst. | F28: Table1.ton | H28: 18 | J28: Central banks & other inst. | K28: Central banks & other inst. | M28: 59.71023066 | N28: 14.21425686 | O28: 24.03588048 | P28: -18.8098655 | Q28: 142.4637612 | R28: 69.44480529 | S28: 148.8080394 | T28: 120.0698916 | U28: 122.4740231 | V28: 170.6899965 | W28: 117.7558555 | X28: 158.2634133 | Y28: 170.5474859 | Z28: 181.4353685 | AA28: 126.881248 | AB28: 150.5862495 | AC28: 118.7979716 | AD28: 169.5963047 | AE28: 176.9810471 | AF28: 135.7567235 | AG28: 103.0653154 | AH28: 141.359566 | AI28: 172.4050255 | AJ28: 162.7203887 | AK28: 110.5879015 | AL28: 84.92437213 | AM28: 88.95064579 | AN28: 110.3969052 | AO28: 92.04288362 | AP28: 96.26125553 | AQ28: 96.59342875 | AR28: 93.6585248 | AS28: 84.79735209 | AT28: 152.7710056 | AU28: 240.5450959 | AV28: 178.1156614 | AW28: 146.2310673 | AX28: 227.810365 | AY28: 113.4577442 | AZ28: 117.9135249 | BA28: 140.7671603 | BB28: 63.73692304 | BC28: -10.5978059 | BD28: 61.03844296 | BE28: 115.6058809 | BF28: 209.6435914 | BG28: 90.56472303 | BH28: 34.29822836 | BI28: 88.4692319 | BJ28: 184.9989651 | BK28: 445.1238094 | BL28: 417.0973159
D29: 31 | E29: Gold demand | F29: Table1.ton | H29: 19 | J29: Gold demand | K29: Gold demand | M29: 998.6565003 | N29: 1162.145556 | O29: 1062.72077 | P29: 976.6977149 | Q29: 1192.537086 | R29: 1102.823423 | S29: 1290.893287 | T29: 1160.110433 | U29: 1187.838165 | V29: 1054.724252 | W29: 1210.895104 | X29: 1259.880266 | Y29: 1110.65845 | Z29: 1255.283844 | AA29: 1112.062129 | AB29: 1040.209394 | AC29: 1102.708597 | AD29: 1102.340181 | AE29: 1108.151862 | AF29: 1081.419938 | AG29: 1104.679519 | AH29: 975.8914181 | AI29: 1168.155628 | AJ29: 1108.718475 | AK29: 1284.471474 | AL29: 1078.959787 | AM29: 1031.942842 | AN29: 955.4726487 | AO29: 1133.38083 | AP29: 1035.588234 | AQ29: 985.4121438 | AR29: 1129.237496 | AS29: 987.6025898 | AT29: 1046.92313 | AU29: 1113.177894 | AV29: 1297.33535 | AW29: 1070.685925 | AX29: 1158.438567 | AY29: 1093.546107 | AZ29: 1031.843936 | BA29: 1096.760053 | BB29: 921.4395554 | BC29: 886.7511956 | BD29: 772.9758112 | BE29: 913.8454389 | BF29: 1034.977081 | BG29: 920.5590791 | BH29: 1143.436219 | BI29: 1238.748858 | BJ29: 965.2505673 | BK29: 1199.369707 | BL29: 1337.355922
D30: 32 | E30: OTC and other | F30: Table1.ton | H30: 20 | J30: OTC and other | K30: OTC and other | M30: -2.11140328 | N30: -17.49149321 | O30: -6.7235753 | P30: 142.9264703 | Q30: -158.1353483 | R30: 38.10860153 | S30: -78.83414502 | T30: -21.78459666 | U30: -101.4255415 | V30: 65.07517653 | W30: 3.710571357 | X30: -132.0493076 | Y30: -53.76775512 | Z30: -219.6196367 | AA30: 24.38521598 | AB30: 64.92421889 | AC30: 17.6174435 | AD30: 0.8968172841 | AE30: 0.2420700951 | AF30: 91.61402329 | AG30: 17.57456226 | AH30: 100.8983245 | AI30: -37.67282508 | AJ30: 3.032115866 | AK30: -33.07742643 | AL30: 132.35766 | AM30: 149.8611573 | AN30: 179.3493201 | AO30: -45.64961414 | AP30: 109.1770204 | AQ30: 250.3664722 | AR30: 62.49946201 | AS30: 166.7190444 | AT30: 94.30940062 | AU30: 127.1653921 | AV30: -57.89434828 | AW30: 49.26539786 | AX30: 76.2239338 | AY30: 190.9076884 | AZ30: 205.428206 | BA30: 82.81439468 | BB30: 116.2605695 | BC30: 390.2709827 | BD30: 459.1041595 | BE30: 190.8407338 | BF30: 99.28984059 | BG30: 287.6418238 | BH30: 91.83948838 | BI30: -87.61735885 | BJ30: 216.5673342 | BK30: 5.146067176 | BL30: -120.3133287
D31: 33 | E31: Total demand | F31: Table1.ton | H31: 21 | J31: Total demand | K31: Total demand | M31: 996.5450971 | N31: 1144.654063 | O31: 1055.997195 | P31: 1119.624185 | Q31: 1034.401737 | R31: 1140.932025 | S31: 1212.059142 | T31: 1138.325836 | U31: 1086.412624 | V31: 1119.799428 | W31: 1214.605675 | X31: 1127.830959 | Y31: 1056.890695 | Z31: 1035.664207 | AA31: 1136.447345 | AB31: 1105.133612 | AC31: 1120.32604 | AD31: 1103.236999 | AE31: 1108.393932 | AF31: 1173.033961 | AG31: 1122.254081 | AH31: 1076.789743 | AI31: 1130.482803 | AJ31: 1111.750591 | AK31: 1251.394047 | AL31: 1211.317447 | AM31: 1181.803999 | AN31: 1134.821969 | AO31: 1087.731216 | AP31: 1144.765254 | AQ31: 1235.778616 | AR31: 1191.736958 | AS31: 1154.321634 | AT31: 1141.232531 | AU31: 1240.343286 | AV31: 1239.441002 | AW31: 1119.951322 | AX31: 1234.662501 | AY31: 1284.453796 | AZ31: 1237.272142 | BA31: 1179.574448 | BB31: 1037.700125 | BC31: 1277.022178 | BD31: 1232.079971 | BE31: 1104.686173 | BF31: 1134.266922 | BG31: 1208.200903 | BH31: 1235.275707 | BI31: 1151.131499 | BJ31: 1181.817901 | BK31: 1204.515774 | BL31: 1217.042593
B32: YoY | E32: Snapshot | G32: Snapshot
B33: 0.2059212065 | D33: 49 | E33: World total | F33: Table2.ton | H33: 1 | J33: World total | K33: World total | M33: 534.9943697 | N33: 422.8172164 | O33: 523.1510808 | P33: 576.2849431 | Q33: 580.0592542 | R33: 522.947297 | S33: 484.0945815 | T33: 517.3445609 | U33: 540.7493488 | V33: 499.8028891 | W33: 519.1721406 | X33: 597.4806038 | Y33: 616.1412165 | Z33: 834.2615901 | AA33: 648.936614 | AB33: 628.6349399 | AC33: 627.0372323 | AD33: 603.0903361 | AE33: 610.233681 | AF33: 693.8572579 | AG33: 615.9677452 | AH33: 533.1343238 | AI33: 641.4396404 | AJ33: 670.2995641 | AK33: 491.6803224 | AL33: 461.9641442 | AM33: 508.1649283 | AN33: 643.4187973 | AO33: 529.0854547 | AP33: 532.490513 | AQ33: 514.7938535 | AR33: 665.6409302 | AS33: 529.5108308 | AT33: 522.5966223 | AU33: 548.3755977 | AV33: 649.737086 | AW33: 536.1250146 | AX33: 530.5782996 | AY33: 469.7727449 | AZ33: 590.2440947 | BA33: 311.6118418 | BB33: 243.0878023 | BC33: 333.0436927 | BD33: 510.2430027 | BE33: 512.1968863 | BF33: 437.5579732 | BG33: 477.1037405 | BH33: 720.8797106 | BI33: 474.6612783 | BJ33: 457.8027112 | BK33: 524.9492502 | BL33: 628.7551336
B34: 0.4999428763 | D34: 9 | E34: India | F34: Table2.ton | H34: 2 | J34: India | K34: India | M34: 190.8651873 | N34: 117.2702453 | O34: 166.612321 | P34: 186.908953 | Q34: 198.7596769 | R34: 179.7817854 | S34: 127.032231 | T34: 113.7375684 | U34: 147.5260428 | V34: 133.8356787 | W34: 147.1968978 | X34: 166.6089134 | Y34: 144.650521 | Z34: 188.5339017 | AA34: 146.1623325 | AB34: 138.083026 | AC34: 123.6884994 | AD34: 151.5665769 | AE34: 183.0834795 | AF34: 169.1527748 | AG34: 150.7048213 | AH34: 121.470159 | AI34: 214.1387987 | AJ34: 175.9832613 | AK34: 79.77711714 | AL34: 89.83851882 | AM34: 152.694843 | AN34: 182.1982997 | AO34: 123.7251102 | AP34: 160.9500528 | AQ34: 134.7982142 | AR34: 182.4278168 | AS34: 119.2095931 | AT34: 149.9435607 | AU34: 148.7877438 | AV34: 180.0700077 | AW34: 125.4283783 | AX34: 168.6431313 | AY34: 101.5663042 | AZ34: 148.9983843 | BA34: 73.86100833 | BB34: 43.97482656 | BC34: 60.79573274 | BD34: 137.3011241 | BE34: 126.5226774 | BF34: 94.26520661 | BG34: 125.0874955 | BH34: 264.9881626 | BI34: 94.19622134 | BJ34: 140.285779 | BK34: 146.2244027 | BL34: 219.6926744
B35: -0.03190236759 | D35: 13 | E35: China | F35: Table2.ton | H35: 3 | J35: China | K35: China | M35: 121.0143497 | N35: 91.09008471 | O35: 118.7517802 | P35: 131.0918392 | Q35: 154.3401107 | R35: 114.5603239 | S35: 140.3632363 | T35: 147.9158642 | U35: 168.5501921 | V35: 132.1372349 | W35: 143.3372102 | X35: 155.3333792 | Y35: 219.8454706 | Z35: 326.9375507 | AA35: 229.4365541 | AB35: 162.5759282 | AC35: 235.9562919 | AD35: 184.5652079 | AE35: 181.0422306 | AF35: 205.2698378 | AG35: 219.8150945 | AH35: 172.4877944 | AI35: 184.0912285 | AJ35: 191.0520249 | AK35: 183.1264104 | AL35: 149.1211502 | AM35: 144.1044817 | AN35: 168.4644336 | AO35: 179.0956676 | AP35: 141.0569391 | AQ35: 162.0405267 | AR35: 182.9738596 | AS35: 187.5498377 | AT35: 144.0910219 | AU35: 176.6455971 | AV35: 178.0258502 | AW35: 183.5868723 | AX35: 135.9638987 | AY35: 158.0591504 | AZ35: 160.3971246 | BA35: 61.29510922 | BB35: 90.66433139 | BC35: 118.5389221 | BD35: 143.2814656 | BE35: 193.7621452 | BF35: 146.6674736 | BG35: 156.0464614 | BH35: 176.8698495 | BI35: 177.4414183 | BJ35: 103.1759984 | BK35: 163.1502668 | BL35: 127.1679232
B36: 1.369378784 | D36: 37 | E36: Europe ex CIS | F36: Table2.ton | H36: 4 | J36: Europe ex CIS | K36: Europe ex CIS | M36: 4.067987947 | N36: 7.678198044 | O36: 6.152432246 | P36: 10.85020977 | Q36: 3.966891081 | R36: 7.434364814 | S36: 5.066432908 | T36: 8.550514869 | U36: 3.798564304 | V36: 8.013676445 | W36: 5.993387358 | X36: 9.257132504 | Y36: 4.656818541 | Z36: 5.578818064 | AA36: 5.844711585 | AB36: 8.158032059 | AC36: 4.253606255 | AD36: 6.406259866 | AE36: 5.221930507 | AF36: 6.344574325 | AG36: 3.862795804 | AH36: 5.775233875 | AI36: 4.656065711 | AJ36: 5.675676592 | AK36: 3.598547333 | AL36: 5.268141806 | AM36: 4.600288 | AN36: 5.466368 | AO36: 3.611 | AP36: 5.305933 | AQ36: 4.660788 | AR36: 5.586868 | AS36: 3.60821 | AT36: 5.24582459 | AU36: 4.73914376 | AV36: 5.5971996 | AW36: 3.5052995 | AX36: 5.01353336 | AY36: 4.52993151 | AZ36: 5.697615588 | BA36: 3.330034525 | BB36: 3.64638844 | BC36: 3.105020507 | BD36: 4.466291166 | BE36: 2.850202813 | BF36: 3.765547512 | BG36: 3.305499567 | BH36: 4.681818112 | BI36: 3.024335397 | BJ36: 4.020968422 | BK36: 3.500288359 | BL36: 4.915909017
B37: 0.7629495179 | D37: 49 | E37: World total | F37: Table3.ton | H37: 5 | J37: World total | K37: World total | M37: 252.0179354 | N37: 306.1577879 | O37: 317.7976655 | P37: 328.3209244 | Q37: 396.3523846 | R37: 333.6403885 | S37: 418.6142342 | T37: 353.3655973 | U37: 346.8752777 | V37: 296.1658981 | W37: 303.5808719 | X37: 375.7282578 | Y37: 443.1692489 | Z37: 599.4035 | AA37: 326.9927743 | AB37: 360.1456256 | AC37: 293.2162371 | AD37: 248.757908 | AE37: 240.9058171 | AF37: 283.7684826 | AG37: 266.7272914 | AH37: 218.4717047 | AI37: 305.0138615 | AJ37: 300.5036919 | AK37: 272.2029614 | AL37: 220.9868778 | AM37: 199.9666148 | AN37: 379.7253045 | AO37: 304.0532841 | AP37: 248.3712466 | AQ37: 232.9273166 | AR37: 258.7074186 | AS37: 261.2543342 | AT37: 247.9954031 | AU37: 297.4102061 | AV37: 283.7894903 | AW37: 258.2465526 | AX37: 219.7440228 | AY37: 150.3612741 | AZ37: 242.5209701 | BA37: 253.3334915 | BB37: 159.2906082 | BC37: 221.4557274 | BD37: 269.7506104 | BE37: 354.5682895 | BF37: 248.2139272 | BG37: 261.7102278 | BH37: 326.3913326 | BI37: 283.1882955 | BJ37: 257.5180114 | BK37: 341.1421257 | BL37: 335.2688153
B38: 0.6387909569 | D38: 9 | E38: India | F38: Table3.ton | H38: 6 | J38: India | K38: India | M38: 78.55400183 | N38: 59.85231051 | O38: 92.80481116 | P38: 108.8441416 | Q38: 100.0589695 | R38: 111.0595902 | S38: 74.88193659 | T38: 68.71061443 | U38: 64.95962009 | V38: 57.64104032 | W38: 84.84384038 | X38: 111.5391354 | Y38: 90.63491783 | Z38: 133.1395751 | AA38: 51.48225032 | AB38: 65.89469135 | AC38: 42.68893607 | AD38: 52.34952005 | AE38: 53.97672438 | AF38: 56.94704485 | AG38: 40.04222204 | AH38: 37.69445453 | AI38: 57.03871991 | AJ38: 60.16609918 | AK38: 27.46179258 | AL38: 32.25669965 | AM38: 40.08439782 | AN38: 61.77333121 | AO38: 37.07341998 | AP38: 41.5571504 | AQ38: 31.03684958 | AR38: 59.64832473 | AS38: 32.32366539 | AT38: 39.30095364 | AU38: 34.36862368 | AV38: 56.40843348 | AW38: 33.616612 | AX38: 44.5239491 | AY38: 22.33960539 | AZ38: 45.28947073 | BA38: 28.05870688 | BB38: 19.75678208 | BC38: 33.76618097 | BD38: 48.85515289 | BE38: 39.29827842 | BF38: 25.37260541 | BG38: 42.91343402 | BH38: 78.89317983 | BI38: 41.26319234 | BJ38: 30.44712649 | BK38: 45.42607377 | BL38: 56.42136897
B39: 1.704426147 | D39: 13 | E39: China | F39: Table3.ton | H39: 7 | J39: China | K39: China | M39: 39.37138809 | N39: 36.54489039 | O39: 47.67237178 | P39: 60.20514144 | Q39: 84.75833271 | R39: 53.27271307 | S39: 59.08190893 | T39: 61.98270344 | U39: 91.2375549 | V39: 50.63672939 | W39: 52.17363859 | X39: 62.91604067 | Y39: 116.2214491 | Z39: 155.1690562 | AA39: 81.949618 | AB39: 53.37068046 | AC39: 62.29575627 | AD39: 43.43171642 | AE39: 40.48746269 | AF39: 52.2372697 | AG39: 63.9501175 | AH39: 45.1445125 | AI39: 53.2089575 | AJ39: 65.7999775 | AK39: 81.2639423 | AL39: 40.18062574 | AM39: 41.02 | AN39: 122.09 | AO39: 105.9 | AP39: 62.626 | AQ39: 69.28537 | AR39: 68.574463 | AS39: 77.31725 | AT39: 69.45177 | AU39: 87.99875 | AV39: 73.26790355 | AW39: 71.189 | AX39: 49.4555 | AY39: 42.83543 | AZ39: 47.641 | BA39: 37.0748 | BB39: 40.667 | BC39: 57.56 | BD39: 63.5722 | BE39: 86.46361 | BF39: 57.4319 | BG39: 64.701685 | BH39: 76.89 | BI39: 49.3313296 | BJ39: 37.43868 | BK39: 70.106924 | BL39: 61.349814
B40: 0.5652288895 | D40: 37 | E40: Europe ex CIS | F40: Table3.ton | H40: 8 | J40: Europe ex CIS | K40: Europe ex CIS | M40: 0.06153866667 | N40: 0.07307733333 | O40: 0.169232 | P40: 0.1923093333 | Q40: 0.08679305556 | R40: 0.1883033333 | S40: 0.2030205556 | T40: 0.4354755556 | U40: 0.18152875 | V40: 0.09529375 | W40: 0.19964625 | X40: 0.5217625 | Y40: 0.2729197656 | Z40: 0.3904598437 | AA40: 0.3982174219 | AB40: 0.32369 | AC40: 0.41439 | AD40: 0.26169 | AE40: 0.31169 | AF40: 0.31169 | AG40: 0.35 | AH40: 0.35 | AI40: 0.35 | AJ40: 0.3675 | AK40: 0.315 | AL40: 0.315 | AM40: 0.315 | AN40: 0.33075 | AO40: 0.2835 | AP40: 0.231 | AQ40: 0.231 | AR40: 0.28505 | AS40: 0.25515 | AT40: 0.2079 | AU40: 0.2079 | AV40: 0.256545 | AW40: 0.2423925 | AX40: 0.197505 | AY40: 0.197505 | AZ40: 0.24371775 | BA40: 0.230272875 | BB40: 0.4 | BC40: 0.4 | BD40: 0.4 | BE40: 0.4 | BF40: 0.4 | BG40: 0.42 | BH40: 0.42 | BI40: 0.42 | BJ40: 0.399 | BK40: 0.37905 | BL40: 0.380323125
B41: YoY | E41: Jewellery | G41: Jewellery
B42: 0.4999428763 | D42: 9 | E42: India | F42: Table2.ton | H42: 1 | J42: India | K42: India | M42: 190.8651873 | N42: 117.2702453 | O42: 166.612321 | P42: 186.908953 | Q42: 198.7596769 | R42: 179.7817854 | S42: 127.032231 | T42: 113.7375684 | U42: 147.5260428 | V42: 133.8356787 | W42: 147.1968978 | X42: 166.6089134 | Y42: 144.650521 | Z42: 188.5339017 | AA42: 146.1623325 | AB42: 138.083026 | AC42: 123.6884994 | AD42: 151.5665769 | AE42: 183.0834795 | AF42: 169.1527748 | AG42: 150.7048213 | AH42: 121.470159 | AI42: 214.1387987 | AJ42: 175.9832613 | AK42: 79.77711714 | AL42: 89.83851882 | AM42: 152.694843 | AN42: 182.1982997 | AO42: 123.7251102 | AP42: 160.9500528 | AQ42: 134.7982142 | AR42: 182.4278168 | AS42: 119.2095931 | AT42: 149.9435607 | AU42: 148.7877438 | AV42: 180.0700077 | AW42: 125.4283783 | AX42: 168.6431313 | AY42: 101.5663042 | AZ42: 148.9983843 | BA42: 73.86100833 | BB42: 43.97482656 | BC42: 60.79573274 | BD42: 137.3011241 | BE42: 126.5226774 | BF42: 94.26520661 | BG42: 125.0874955 | BH42: 264.9881626 | BI42: 94.19622134 | BJ42: 140.285779 | BK42: 146.2244027 | BL42: 219.6926744
B43: 0.3505556558 | D43: 10 | E43: Pakistan | F43: Table2.ton | H43: 2 | J43: Pakistan | K43: Pakistan | M43: 9.271081168 | N43: 6.049388269 | O43: 6.616104273 | P43: 4.536676428 | Q43: 9.486261953 | R43: 5.697762929 | S43: 5.233598542 | T43: 3.786394779 | U43: 8.862170273 | V43: 5.772131818 | W43: 5.949716455 | X43: 5.562329447 | Y43: 6.016551132 | Z43: 6.807646221 | AA43: 5.150091183 | AB43: 5.357602668 | AC43: 4.174851738 | AD43: 6.073719464 | AE43: 5.514184216 | AF43: 6.086572777 | AG43: 5.316739976 | AH43: 5.362623603 | AI43: 5.916898532 | AJ43: 6.577251461 | AK43: 6.433479018 | AL43: 6.176072885 | AM43: 6.366932057 | AN43: 7.242521637 | AO43: 6.589148599 | AP43: 6.806735086 | AQ43: 6.441848245 | AR43: 8.228455685 | AS43: 6.906389001 | AT43: 6.006061578 | AU43: 5.72766342 | AV43: 6.749448642 | AW43: 7.853027901 | AX43: 5.53245542 | AY43: 4.546630736 | AZ43: 5.859085842 | BA43: 7.066276506 | BB43: 1.265463855 | BC43: 3.579911126 | BD43: 4.912889222 | BE43: 6.633535052 | BF43: 5.312752042 | BG43: 5.405647444 | BH43: 5.780929816 | BI43: 5.377251323 | BJ43: 6.284021631 | BK43: 6.522767076 | BL43: 5.268466419
B44: -0.2590734635 | D44: 11 | E44: Sri Lanka | F44: Table2.ton | H44: 3 | J44: Sri Lanka | K44: Sri Lanka | M44: 0 | N44: 0 | O44: 0 | P44: 0 | Q44: 0 | R44: 0 | S44: 0 | T44: 0 | U44: 0 | V44: 0 | W44: 0 | X44: 0 | Y44: 0 | Z44: 0 | AA44: 0 | AB44: 0 | AC44: 2.6825 | AD44: 2.768 | AE44: 1.911 | AF44: 1.761 | AG44: 3.12575 | AH44: 3.02544 | AI44: 2.15395 | AJ44: 2.35571 | AK44: 2.58866 | AL44: 3.265712 | AM44: 2.2862355 | AN44: 2.3304898 | AO44: 2.700593 | AP44: 2.8108552 | AQ44: 2.4388052 | AR44: 3.23116123 | AS44: 2.14350405 | AT44: 2.2556414 | AU44: 2.505581304 | AV44: 2.700045107 | AW44: 2.038658767 | AX44: 1.83107726 | AY44: 2.013774352 | AZ44: 2.003538341 | BA44: 1.349311137 | BB44: 0.5212317533 | BC44: 0.6841323056 | BD44: 1.717653756 | BE44: 1.769173364 | BF44: 0.9806280137 | BG44: 0.5789082089 | BH44: 0.7657444403 | BI44: 2.234383238 | BJ44: 0.4453140069 | BK44: 0.3007826062 | BL44: 0.9320422164
B45: -0.009602507334 | D45: 12 | E45: Greater China | F45: Table2.ton | H45: 4 | J45: Greater China | K45: Greater China | M45: 128.8565831 | N45: 98.50340775 | O45: 126.0100641 | P45: 139.3156444 | Q45: 166.8534323 | R45: 126.726613 | S45: 151.6546622 | T45: 161.3167589 | U45: 181.8658015 | V45: 146.9480549 | W45: 155.4584705 | X45: 169.9351602 | Y45: 239.8189665 | Z45: 358.4159638 | AA45: 246.5813808 | AB45: 186.4915643 | AC45: 256.2356893 | AD45: 199.7547201 | AE45: 194.1720846 | AF45: 225.113111 | AG45: 235.2470721 | AH45: 184.5429753 | AI45: 199.4649839 | AJ45: 206.5950875 | AK45: 195.2629518 | AL45: 159.7731502 | AM45: 153.654096 | AN45: 184.1722588 | AO45: 192.0628206 | AP45: 152.061034 | AQ45: 173.0655713 | AR45: 198.5280819 | AS45: 201.6954462 | AT45: 156.8917042 | AU45: 191.7003369 | AV45: 192.6758502 | AW45: 197.8748531 | AX45: 147.0438987 | AY45: 166.1321504 | AZ45: 170.7371246 | BA45: 67.12910922 | BB45: 94.27833139 | BC45: 122.8209221 | BD45: 149.0544656 | BE45: 200.2521452 | BF45: 151.8084736 | BG45: 162.2324614 | BH45: 185.0218495 | BI45: 183.0354183 | BJ45: 108.9759984 | BK45: 170.8432668 | BL45: 135.4459232
B46: -0.03190236759 | D46: 13 | E46: China | F46: Table2.ton | H46: 5 | J46: China | K46: China | M46: 121.0143497 | N46: 91.09008471 | O46: 118.7517802 | P46: 131.0918392 | Q46: 154.3401107 | R46: 114.5603239 | S46: 140.3632363 | T46: 147.9158642 | U46: 168.5501921 | V46: 132.1372349 | W46: 143.3372102 | X46: 155.3333792 | Y46: 219.8454706 | Z46: 326.9375507 | AA46: 229.4365541 | AB46: 162.5759282 | AC46: 235.9562919 | AD46: 184.5652079 | AE46: 181.0422306 | AF46: 205.2698378 | AG46: 219.8150945 | AH46: 172.4877944 | AI46: 184.0912285 | AJ46: 191.0520249 | AK46: 183.1264104 | AL46: 149.1211502 | AM46: 144.1044817 | AN46: 168.4644336 | AO46: 179.0956676 | AP46: 141.0569391 | AQ46: 162.0405267 | AR46: 182.9738596 | AS46: 187.5498377 | AT46: 144.0910219 | AU46: 176.6455971 | AV46: 178.0258502 | AW46: 183.5868723 | AX46: 135.9638987 | AY46: 158.0591504 | AZ46: 160.3971246 | BA46: 61.29510922 | BB46: 90.66433139 | BC46: 118.5389221 | BD46: 143.2814656 | BE46: 193.7621452 | BF46: 146.6674736 | BG46: 156.0464614 | BH46: 176.8698495 | BI46: 177.4414183 | BJ46: 103.1759984 | BK46: 163.1502668 | BL46: 127.1679232
B47: 0.3492165365 | D47: 14 | E47: Hong Kong | F47: Table2.ton | H47: 6 | J47: Hong Kong | K47: Hong Kong | M47: 5.811129352 | N47: 5.361093271 | O47: 5.705755006 | P47: 6.119236875 | Q47: 10.60470383 | R47: 10.22305271 | S47: 10.04981903 | T47: 11.38752613 | U47: 11.21665182 | V47: 12.76492883 | W47: 11.06716779 | X47: 12.58966204 | Y47: 17.3895625 | Z47: 28.844625 | AA47: 14.9828125 | AB47: 21.39 | AC47: 18.351 | AD47: 12.867 | AE47: 11.224 | AF47: 17.6 | AG47: 13.6 | AH47: 10.498 | AI47: 13.692 | AJ47: 13.567 | AK47: 10.2 | AL47: 8.752 | AM47: 8.3146143 | AN47: 14.1640752 | AO47: 11.1918405 | AP47: 9.539462 | AQ47: 9.66293603 | AR47: 13.87922228 | AS47: 12.34560852 | AT47: 11.42068237 | AU47: 13.6247398 | AV47: 13.25 | AW47: 12.68798085 | AX47: 9.78 | AY47: 6.873 | AZ47: 9 | BA47: 4.604 | BB47: 2.784 | BC47: 3.302 | BD47: 4.673 | BE47: 5.04 | BF47: 4.351 | BG47: 5.466 | BH47: 6.952 | BI47: 4.094 | BJ47: 4.62 | BK47: 6.803 | BL47: 6.898
B48: -0.008625178203 | D48: 15 | E48: Taiwan | F48: Table2.ton | H48: 7 | J48: Taiwan | K48: Taiwan | M48: 2.031104005 | N48: 2.052229763 | O48: 1.552528877 | P48: 2.104568295 | Q48: 1.908617831 | R48: 1.943236412 | S48: 1.241606879 | T48: 2.01336859 | U48: 2.098957534 | V48: 2.045891206 | W48: 1.054092475 | X48: 2.012118948 | Y48: 2.583933373 | Z48: 2.633788064 | AA48: 2.162014233 | AB48: 2.525636152 | AC48: 1.928397478 | AD48: 2.322512147 | AE48: 1.905854018 | AF48: 2.243273164 | AG48: 1.831977604 | AH48: 1.557180963 | AI48: 1.68175544 | AJ48: 1.976062642 | AK48: 1.93654139 | AL48: 1.9 | AM48: 1.235 | AN48: 1.54375 | AO48: 1.7753125 | AP48: 1.464632812 | AQ48: 1.362108516 | AR48: 1.675 | AS48: 1.8 | AT48: 1.38 | AU48: 1.43 | AV48: 1.4 | AW48: 1.6 | AX48: 1.3 | AY48: 1.2 | AZ48: 1.34 | BA48: 1.23 | BB48: 0.83 | BC48: 0.98 | BD48: 1.1 | BE48: 1.45 | BF48: 0.79 | BG48: 0.72 | BH48: 1.2 | BI48: 1.5 | BJ48: 1.18 | BK48: 0.89 | BL48: 1.38
B49: 0.3682298618 | D49: 16 | E49: Japan | F49: Table2.ton | H49: 8 | J49: Japan | K49: Japan | M49: 4.753646273 | N49: 4.80536114 | O49: 4.223975804 | P49: 6.969946231 | Q49: 3.972034617 | R49: 3.94644154 | S49: 4.112109365 | T49: 3.895255387 | U49: 3.986043877 | V49: 4.361029118 | W49: 4.105624695 | X49: 3.659176173 | Y49: 3.355163846 | Z49: 3.88322877 | AA49: 4.678761389 | AB49: 5.035013232 | AC49: 3.757349923 | AD49: 3.695023113 | AE49: 4.151921951 | AF49: 4.845430323 | AG49: 3.195795707 | AH49: 3.86902095 | AI49: 4.375341666 | AJ49: 5.066782801 | AK49: 3.554196714 | AL49: 4.039403576 | AM49: 4.161855784 | AN49: 5.170615836 | AO49: 3.266963152 | AP49: 4.109116729 | AQ49: 4.120237226 | AR49: 5.118909677 | AS49: 3.332302415 | AT49: 4.109116729 | AU49: 3.996630109 | AV49: 5.016531484 | AW49: 3.398948464 | AX49: 4.191299063 | AY49: 4.196461615 | AZ49: 5.217192743 | BA49: 3.059053617 | BB49: 2.514779438 | BC49: 3.566992372 | BD49: 4.695473469 | BE49: 2.753148256 | BF49: 3.520691213 | BG49: 4.1 | BH49: 5.1 | BI49: 2.9 | BJ49: 3.696725774 | BK49: 4.51 | BL49: 4.335
B50: 0.119393547 | D50: 17 | E50: Indonesia | F50: Table2.ton | H50: 9 | J50: Indonesia | K50: Indonesia | M50: 9.62872694 | N50: 6.302221368 | O50: 11.01585799 | P50: 6.456091467 | Q50: 10.80054305 | R50: 6.065094573 | S50: 9.619445808 | T50: 6.90372525 | U50: 11.58338314 | V50: 7.064325675 | W50: 8.986822123 | X50: 7.585582717 | Y50: 12.2869873 | Z50: 10.27591231 | AA50: 9.630347244 | AB50: 8.980435182 | AC50: 11.51439439 | AD50: 9.050564033 | AE50: 8.20835751 | AF50: 7.709388917 | AG50: 12.09011411 | AH50: 8.463079875 | AI50: 9.309387863 | AJ50: 9.030106227 | AK50: 10.8 | AL50: 9.396 | AM50: 8.6913 | AN50: 9.473517 | AO50: 9.236679075 | AP50: 10.16034698 | AQ50: 9.257 | AR50: 9.90499 | AS50: 9.49068775 | AT50: 11.19901154 | AU50: 10.3 | AV50: 10.895489 | AW50: 10.06012901 | AX50: 11.75896212 | AY50: 8.755 | AZ50: 9.8059401 | BA50: 4.527058057 | BB50: 4.115636743 | BC50: 4.3775 | BD50: 7.84475208 | BE50: 5.975716635 | BF50: 4.295665142 | BG50: 6.8289 | BH50: 9.884387621 | BI50: 5.55741647 | BJ50: 5.240711473 | BK50: 7.375212 | BL50: 10.08207537
B51: 0.124110493 | D51: 18 | E51: Malaysia | F51: Table2.ton | H51: 10 | J51: Malaysia | K51: Malaysia | M51: 2.70173281 | N51: 3.087963476 | O51: 4.013065951 | P51: 1.694978568 | Q51: 3.525049057 | R51: 3.083399183 | S51: 2.680654254 | T51: 1.351584253 | U51: 2.740537608 | V51: 3.170837207 | W51: 3.36583031 | X51: 3.683650358 | Y51: 3.293326615 | Z51: 5.711210014 | AA51: 5.203680227 | AB51: 4.11496956 | AC51: 4.87882553 | AD51: 3.697145301 | AE51: 5.001170627 | AF51: 5.049453283 | AG51: 5.122766807 | AH51: 3.073660084 | AI51: 3.611550599 | AJ51: 3.503204081 | AK51: 3.958620611 | AL51: 3.463793035 | AM51: 3.290603383 | AN51: 3.455133552 | AO51: 3.282376875 | AP51: 3.706258547 | AQ51: 2.961543045 | AR51: 3.351479546 | AS51: 3.15 | AT51: 3.04 | AU51: 3.28 | AV51: 3.45 | AW51: 3.16 | AX51: 3 | AY51: 2.9 | AZ51: 3.15 | BA51: 2.2365 | BB51: 1.78 | BC51: 2.45 | BD51: 2.695 | BE51: 2.9046 | BF51: 2.3175 | BG51: 1.5744 | BH51: 3.712 | BI51: 3.572658 | BJ51: 3.13 | BK51: 2.5 | BL51: 3.8
B52: 0.1752766719 | D52: 19 | E52: Singapore | F52: Table2.ton | H52: 11 | J52: Singapore | K52: Singapore | M52: 1.930678307 | N52: 2.2015464 | O52: 2.302425037 | P52: 2.102952219 | Q52: 1.929632408 | R52: 2.499428613 | S52: 1.869501369 | T52: 2.569216818 | U52: 1.969919458 | V52: 2.185866001 | W52: 2.110854407 | X52: 3.40946543 | Y52: 2.789724973 | Z52: 4.550414593 | AA52: 3.782127748 | AB52: 3.227673611 | AC52: 3.610355093 | AD52: 3.81959473 | AE52: 3.457023738 | AF52: 3.120990405 | AG52: 3.429837338 | AH52: 2.658123937 | AI52: 2.990389429 | AJ52: 3.080101112 | AK52: 3.311108696 | AL52: 3.062775543 | AM52: 2.603359212 | AN52: 3.124031054 | AO52: 3.186511675 | AP52: 2.995320975 | AQ52: 2.620905853 | AR52: 3.014689967 | AS52: 3.125 | AT52: 2.734375 | AU52: 2.78 | AV52: 2.88 | AW52: 2.85 | AX52: 2.55 | AY52: 2.45 | AZ52: 2.69 | BA52: 1.89 | BB52: 0.76 | BC52: 1.368 | BD52: 1.68 | BE52: 2.19 | BF52: 1.66 | BG52: 1.18 | BH52: 1.95 | BI52: 2.5842 | BJ52: 2.38 | BK52: 1.9 | BL52: 2.2
B53: 0.2853447591 | D53: 20 | E53: S Korea | F53: Table2.ton | H53: 12 | J53: S Korea | K53: S Korea | M53: 5.435325939 | N53: 3.363053816 | O53: 3.923467037 | P53: 5.122445061 | Q53: 6.94821004 | R53: 3.074908044 | S53: 3.653628925 | T53: 4.954107057 | U53: 5.897233559 | V53: 3.206986007 | W53: 3.807639552 | X53: 3.703267724 | Y53: 6.25396875 | Z53: 5.46659375 | AA53: 5.585273437 | AB53: 5.598 | AC53: 6.39 | AD53: 5.513625 | AE53: 5.55075 | AF53: 5.47875 | AG53: 6.602625 | AH53: 5.529375 | AI53: 6.602625 | AJ53: 6.870375 | AK53: 7.005375 | AL53: 4.987125 | AM53: 5.3235 | AN53: 6.7545 | AO53: 6.534 | AP53: 5.26275 | AQ53: 5.142375 | AR53: 5.7285 | AS53: 6.17463 | AT53: 4.939704 | AU53: 5.39 | AV53: 5.2 | AW53: 4.98 | AX53: 4.75 | AY53: 4.91 | AZ53: 4.82 | BA53: 3.98 | BB53: 3.65 | BC53: 4.215 | BD53: 4.53 | BE53: 5.09625 | BF53: 4.38 | BG53: 4.47 | BH53: 4.75 | BI53: 4.4175 | BJ53: 4.05 | BK53: 3.32 | BL53: 3.635
B54: 0.11020868 | D54: 21 | E54: Thailand | F54: Table2.ton | H54: 13 | J54: Thailand | K54: Thailand | M54: 2.665612261 | N54: 1.450234873 | O54: 1.713087978 | P54: 1.231130573 | Q54: 3.1975 | R54: 1.393016484 | S54: 1.029807692 | T54: 1.304483516 | U54: 4.80832392 | V54: 2.068986711 | W54: 1.219832226 | X54: 1.051694352 | Y54: 4.255375 | Z54: 4.731125 | AA54: 2.128125 | AB54: 3.76 | AC54: 3.22 | AD54: 3.072 | AE54: 2.88 | AF54: 3.197 | AG54: 3.381 | AH54: 2.80623 | AI54: 2.9465415 | AJ54: 3.093868575 | AK54: 3.248562004 | AL54: 2.598849603 | AM54: 2.884723059 | AN54: 3.115500904 | AO54: 3.084345895 | AP54: 2.544585363 | AQ54: 2.748152192 | AR54: 3.064189695 | AS54: 3.22314146 | AT54: 2.514050339 | AU54: 3.077930456 | AV54: 3.278682973 | AW54: 3.28760429 | AX54: 2.212364298 | AY54: 2.708578801 | AZ54: 2.885241016 | BA54: 1.808182359 | BB54: 0.6637092895 | BC54: 1.3542894 | BD54: 2.019668712 | BE54: 2.025164242 | BF54: 1.721389606 | BG54: 1.880509654 | BH54: 2.423602454 | BI54: 2.187177382 | BJ54: 1.893528567 | BK54: 2.538688032 | BL54: 2.787142822
B55: 0.0445484295 | D55: 22 | E55: Vietnam | F55: Table2.ton | H55: 14 | J55: Vietnam | K55: Vietnam | M55: 5.089784805 | N55: 3.112821146 | O55: 2.887949605 | P55: 3.075642292 | Q55: 5.447134258 | R55: 2.91245349 | S55: 2.04737251 | T55: 2.429267839 | U55: 4.607956689 | V55: 2.391146538 | W55: 1.647980751 | X55: 1.824812915 | Y55: 3.370625 | Z55: 3.1 | AA55: 2.66875 | AB55: 2.634782609 | AC55: 3.74 | AD55: 3.06 | AE55: 2.7 | AF55: 3 | AG55: 4.44 | AH55: 3.719 | AI55: 3.54305 | AJ55: 3.92808375 | AK55: 4.7137005 | AL55: 3.5209604 | AM55: 3.292097974 | AN55: 3.884675609 | AO55: 4.564493841 | AP55: 3.879819765 | AQ55: 3.744026073 | AR55: 4.305629984 | AS55: 5.093975127 | AT55: 4.43175836 | AU55: 4.121535275 | AV55: 4.563967783 | AW55: 5.399613634 | AX55: 4.520393527 | AY55: 3.626951042 | AZ55: 3.742453582 | BA55: 4.535675453 | BB55: 1.582137735 | BC55: 1.813475521 | BD55: 2.806840187 | BE55: 5.079956507 | BF55: 3.480703016 | BG55: 0.9067377605 | BH55: 2.470019364 | BI55: 5.587952158 | BJ55: 4.45529986 | BK55: 3.536277266 | BL55: 4.495435243
D56: 23 | E56: Australia | F56: Table2.ton | H56: 15 | J56: Australia | K56: Australia | M56: 0 | N56: 0 | O56: 0 | P56: 0 | Q56: 0 | R56: 0 | S56: 0 | T56: 0 | U56: 0 | V56: 0 | W56: 0 | X56: 0 | Y56: 0 | Z56: 0 | AA56: 0 | AB56: 0 | AC56: 0 | AD56: 0 | AE56: 0 | AF56: 0 | AG56: 0 | AH56: 0 | AI56: 0 | AJ56: 0 | AK56: 0 | AL56: 0 | AM56: 0 | AN56: 0 | AO56: 0 | AP56: 0 | AQ56: 0 | AR56: 0 | AS56: 0 | AT56: 0 | AU56: 0 | AV56: 0 | AW56: 0 | AX56: 0 | AY56: 0 | AZ56: 0 | BA56: 0 | BB56: 0 | BC56: 0 | BD56: 0 | BE56: 1.964857725 | BF56: 2.359622241 | BG56: 1.373709075 | BH56: 2.723628841 | BI56: 2.357471417 | BJ56: 2.555522328 | BK56: 2.725525256 | BL56: 3.320523157
B57: -0.2292743359 | D57: 24 | E57: Middle East* | F57: Table2.ton | H57: 16 | J57: Middle East* | K57: Middle East* | M57: 71.45416197 | N57: 65.78235264 | O57: 69.184626 | P57: 47.8404017 | Q57: 60.65118969 | R57: 59.99158242 | S57: 51.37549589 | T57: 40.98055291 | U57: 55.2650261 | V57: 55.88204032 | W57: 51.01602553 | X57: 47.48883663 | Y57: 63.47087244 | Z57: 91.23714563 | AA57: 65.55690049 | AB57: 57.38704143 | AC57: 71.43645141 | AD57: 69.89819497 | AE57: 54.87091878 | AF57: 57.77877675 | AG57: 63.81751269 | AH57: 62.07470989 | AI57: 56.64866553 | AJ57: 55.41753789 | AK57: 57.16138141 | AL57: 49.8543821 | AM57: 43.480257 | AN57: 48.36391912 | AO57: 55.10687427 | AP57: 50.45566089 | AQ57: 42.31195097 | AR57: 50.91277075 | AS57: 44.56932356 | AT57: 44.74830907 | AU57: 40.12327314 | AV57: 43.17685844 | AW57: 47.54279479 | AX57: 44.19922852 | AY57: 37.41348596 | AZ57: 41.23425231 | BA57: 41.06938906 | BB57: 12.64321857 | BC57: 27.47129377 | BD57: 33.60161289 | BE57: 40.44363936 | BF57: 37.99727734 | BG57: 40.9704392 | BH57: 45.72151043 | BI57: 47.66482334 | BJ57: 47.55409074 | BK57: 48.67282611 | BL57: 46.47236311
B58: -0.3288913463 | D58: 25 | E58: Saudi Arabia | F58: Table2.ton | H58: 17 | J58: Saudi Arabia | K58: Saudi Arabia | M58: 16.97971349 | N58: 25.38566522 | O58: 17.65786335 | P58: 9.890915198 | Q58: 13.51337879 | R58: 19.57470697 | S58: 12.9482657 | T58: 8.706022919 | U58: 11.83196245 | V58: 15.88246168 | W58: 11.51273345 | X58: 9.777138567 | Y58: 12.28715621 | Z58: 24.10414134 | AA58: 16.72123775 | AB58: 13.30849169 | AC58: 16.46132484 | AD58: 18.92730884 | AE58: 14.98496123 | AF58: 18.00235355 | AG58: 17.37839033 | AH58: 18.77476875 | AI58: 15.95573254 | AJ58: 17.40064026 | AK58: 12.92901024 | AL58: 13.09015129 | AM58: 10.78562534 | AN58: 12.59990978 | AO58: 10.41750636 | AP58: 11.98641908 | AQ58: 9.482923305 | AR58: 12.56040709 | AS58: 7.486131443 | AT58: 10.52307699 | AU58: 11.87458018 | AV58: 9.494988015 | AW58: 9.430759068 | AX58: 9.476764655 | AY58: 9.485577122 | AZ58: 8.766882565 | BA58: 6.94789525 | BB58: 1.869302965 | BC58: 7.218971581 | BD58: 6.662468671 | BE58: 7.835428696 | BF58: 7.666677588 | BG58: 8.469737565 | BH58: 9.367860736 | BI58: 9.05950962 | BJ58: 9.391336423 | BK58: 10.17066226 | BL58: 9.272764331
B59: -0.4129101339 | D59: 26 | E59: UAE | F59: Table2.ton | H59: 18 | J59: UAE | K59: UAE | M59: 20.55908656 | N59: 17.60625602 | O59: 15.59746693 | P59: 13.18002306 | Q59: 21.26134289 | R59: 16.49593555 | S59: 9.847154887 | T59: 8.740236355 | U59: 16.66399452 | V59: 14.07226999 | W59: 9.356496234 | X59: 9.268859419 | Y59: 16.74040016 | Z59: 22.72352901 | AA59: 12.7218551 | AB59: 12.17542801 | AC59: 17.97180169 | AD59: 17.02917784 | AE59: 10.37582931 | AF59: 10.63545867 | AG59: 16.28940415 | AH59: 14.87727788 | AI59: 10.00626091 | AJ59: 10.23672679 | AK59: 16.72828112 | AL59: 11.71734436 | AM59: 7.787687721 | AN59: 8.95047107 | AO59: 15.53220946 | AP59: 12.62321697 | AQ59: 7.40031957 | AR59: 11.13506947 | AS59: 10.05242896 | AT59: 9.785574649 | AU59: 6.867211198 | AV59: 9.470160584 | AW59: 10.67935257 | AX59: 9.263781104 | AY59: 5.449824778 | AZ59: 8.620370101 | BA59: 9.514900633 | BB59: 1.283511303 | BC59: 3.803409015 | BD59: 6.894857881 | BE59: 8.3308959 | BF59: 7.326263894 | BG59: 8.23705215 | BH59: 9.954904106 | BI59: 12.4917757 | BJ59: 13.18130548 | BK59: 10.73806 | BL59: 10.45731567
B60: 0.005387135616 | D60: 27 | E60: Kuwait | F60: Table2.ton | H60: 19 | J60: Kuwait | K60: Kuwait | M60: 2.680995758 | N60: 1.852139438 | O60: 2.727931802 | P60: 1.709297367 | Q60: 2.540016453 | R60: 1.819013985 | S60: 2.325603969 | T60: 1.683750226 | U60: 2.18111809 | V60: 1.80425095 | W60: 2.094423173 | X60: 1.598285394 | Y60: 4.127338955 | Z60: 3.457019385 | AA60: 1.887265602 | AB60: 2.203289027 | AC60: 4.042008822 | AD60: 3.651266023 | AE60: 2.617563479 | AF60: 3.876967227 | AG60: 3.770707006 | AH60: 3.416098032 | AI60: 2.318269877 | AJ60: 3.665894172 | AK60: 3.432251005 | AL60: 3.343609677 | AM60: 2.349284948 | AN60: 3.434501015 | AO60: 3.932080486 | AP60: 3.72444769 | AQ60: 2.444425805 | AR60: 3.78348468 | AS60: 3.600779377 | AT60: 4.127944066 | AU60: 2.64735627 | AV60: 3.67010735 | AW60: 3.791358454 | AX60: 3.80514966 | AY60: 2.27173186 | AZ60: 3.425160263 | BA60: 3.333069658 | BB60: 2.456752732 | BC60: 1.812802318 | BD60: 2.707779015 | BE60: 3.447223141 | BF60: 3.674815378 | BG60: 2.896948006 | BH60: 2.961838382 | BI60: 3.109930301 | BJ60: 3.767427335 | BK60: 3.959290699 | BL60: 3.845967397
B61: -0.3286302439 | D61: 28 | E61: Egypt | F61: Table2.ton | H61: 20 | J61: Egypt | K61: Egypt | M61: 17.73857219 | N61: 8.937881992 | O61: 15.36921789 | P61: 10.94677558 | Q61: 8.566923352 | R61: 7.851549598 | S61: 8.867851608 | T61: 8.776663505 | U61: 9.837149949 | V61: 8.833387056 | W61: 11.1154532 | X61: 12.29889118 | Y61: 11.88217042 | Z61: 13.29953997 | AA61: 10.58466264 | AB61: 9.880514878 | AC61: 13.03921258 | AD61: 11.42364798 | AE61: 11.10825425 | AF61: 9.54257566 | AG61: 9.315703373 | AH61: 8.909558066 | AI61: 11.84221613 | AJ61: 8.16357621 | AK61: 6.557097236 | AL61: 5.771426442 | AM61: 7.06008809 | AN61: 6.004393522 | AO61: 5.684690918 | AP61: 4.675184684 | AQ61: 6.34761786 | AR61: 5.305462079 | AS61: 6.045683751 | AT61: 5.180656673 | AU61: 7.433834702 | AV61: 6.077865327 | AW61: 6.949218264 | AX61: 5.562688324 | AY61: 7.058392444 | AZ61: 7.114118226 | BA61: 7.138728062 | BB61: 1.695058704 | BC61: 5.696786965 | BD61: 6.646199541 | BE61: 8.146651513 | BF61: 7.27257755 | BG61: 8.324481729 | BH61: 7.965858322 | BI61: 8.71314489 | BJ61: 7.045536281 | BK61: 9.033606922 | BL61: 8.770210286
B62: 0.3784003357 | D62: 29 | E62: Iran | F62: Table2.ton | H62: 21 | J62: Iran | K62: Iran | M62: 10.02234099 | N62: 8.323105959 | O62: 13.81017504 | P62: 9.372524051 | Q62: 11.08316147 | R62: 10.25612344 | S62: 13.44254817 | T62: 10.18259236 | U62: 10.88243606 | V62: 10.98752446 | W62: 12.63442686 | X62: 10.65571698 | Y62: 12.70501459 | Z62: 20.65000178 | AA62: 16.87693584 | AB62: 13.42778761 | AC62: 11.28592623 | AD62: 10.36440564 | AE62: 9.1134219 | AF62: 8.534443532 | AG62: 9.315842971 | AH62: 7.939454038 | AI62: 10.44613195 | AJ62: 9.515844183 | AK62: 10.19844931 | AL62: 8.84310786 | AM62: 10.52644971 | AN62: 10.94374611 | AO62: 12.70162111 | AP62: 10.16077093 | AQ62: 11.37088073 | AR62: 11.14202006 | AS62: 10.66493922 | AT62: 6.557909756 | AU62: 4.613308634 | AV62: 7.537097618 | AW62: 9.678279329 | AX62: 7.383337125 | AY62: 6.662369404 | AZ62: 6.817905554 | BA62: 7.713664964 | BB62: 2.477595376 | BC62: 4.405370817 | BD62: 5.413100295 | BE62: 5.943742293 | BF62: 6.259621474 | BG62: 7.0655189 | BH62: 7.066574443 | BI62: 8.379741645 | BJ62: 7.133060803 | BK62: 7.851912177 | BL62: 6.525122175
B63: -0.2578741768 | D63: 30 | E63: Other Middle East | F63: Table2.ton | H63: 22 | J63: Other Middle East | K63: Other Middle East | M63: 3.473452982 | N63: 3.677304003 | O63: 4.021971002 | P63: 2.740866446 | Q63: 3.686366727 | R63: 3.994252877 | S63: 3.944071553 | T63: 2.891287538 | U63: 3.868365026 | V63: 4.302146185 | W63: 4.302492616 | X63: 3.889945087 | Y63: 5.728792118 | Z63: 7.002914139 | AA63: 6.764943559 | AB63: 6.391530206 | AC63: 8.636177247 | AD63: 8.502388649 | AE63: 6.670888605 | AF63: 7.186978101 | AG63: 7.747464862 | AH63: 8.157553125 | AI63: 6.080054139 | AJ63: 6.434856273 | AK63: 7.316292501 | AL63: 7.088742478 | AM63: 4.971121189 | AN63: 6.430897618 | AO63: 6.83876593 | AP63: 7.285621549 | AQ63: 5.265783694 | AR63: 6.986327363 | AS63: 6.719360809 | AT63: 8.573146941 | AU63: 6.686982158 | AV63: 6.92663955 | AW63: 7.013827108 | AX63: 8.707507654 | AY63: 6.485590352 | AZ63: 6.489815599 | BA63: 6.421130493 | BB63: 2.860997491 | BC63: 4.533953075 | BD63: 5.277207491 | BE63: 6.739697821 | BF63: 5.797321456 | BG63: 5.976700849 | BH63: 8.404474441 | BI63: 5.910721184 | BJ63: 7.035424419 | BK63: 6.919294056 | BL63: 7.600983256
B64: 0.1732346063 | D64: 31 | E64: Turkey | F64: Table2.ton | H64: 23 | J64: Turkey | K64: Turkey | M64: 17.48444902 | N64: 16.3049431 | O64: 27.48954407 | P64: 6.604472718 | Q64: 19.74975884 | R64: 23.249492 | S64: 23.67041637 | T64: 6.909711592 | U64: 16.34985236 | V64: 20.40489887 | W64: 22.07624176 | X64: 7.032890638 | Y64: 16.70579329 | Z64: 27.16242056 | AA64: 23.401398 | AB64: 12.59410807 | AC64: 14.43645288 | AD64: 16.55946956 | AE64: 16.8857006 | AF64: 20.19808552 | AG64: 10.41296913 | AH64: 11.55152864 | AI64: 12.05544307 | AJ64: 14.98970531 | AK64: 8.655051544 | AL64: 9.243503971 | AM64: 9.31992478 | AN64: 13.55265315 | AO64: 8.296200598 | AP64: 11.10064433 | AQ64: 10.31385668 | AR64: 11.49042053 | AS64: 10.05796918 | AT64: 9.916922506 | AU64: 7.203926958 | AV64: 9.193527866 | AW64: 9.569522506 | AX64: 9.527066309 | AY64: 8.265405749 | AZ64: 9.096251487 | BA64: 8.609767854 | BB64: 3.956971346 | BC64: 6.524713967 | BD64: 6.806280865 | BE64: 8.981007861 | BF64: 8.092149045 | BG64: 9.289951242 | BH64: 7.504698397 | BI64: 7.500771748 | BJ64: 8.266709834 | BK64: 11.01783066 | BL64: 9.906576774
B65: 0.03045303867 | D65: 32 | E65: Russia | F65: Table2.ton | H65: 24 | J65: Russia | K65: Russia | M65: 14.21858466 | N65: 15.34004863 | O65: 13.68351597 | P65: 17.08899696 | Q65: 14.9385626 | R65: 15.32430912 | S65: 15.70940031 | T65: 18.37876352 | U65: 16.30319504 | V65: 15.38286638 | W65: 16.70049569 | X65: 19.26954741 | Y65: 17.84110281 | Z65: 18.2364225 | AA65: 21.34929687 | AB65: 22.2774 | AC65: 19.55553123 | AD65: 16.99305004 | AE65: 16.82072984 | AF65: 14.22031 | AG65: 11.93260825 | AH65: 8.904978422 | AI65: 13.38251518 | AJ65: 8.927940294 | AK65: 9.780146321 | AL65: 8.693414016 | AM65: 9.653250262 | AN65: 10.18664592 | AO65: 9.421522629 | AP65: 8.135913111 | AQ65: 10.60706806 | AR65: 11.64397511 | AS65: 10.07259876 | AT65: 8.879504423 | AU65: 11.47777487 | AV65: 12.53949312 | AW65: 10.50650271 | AX65: 9.181684599 | AY65: 11.79988613 | AZ65: 12.96267791 | BA65: 9.572802439 | BB65: 3.63892384 | BC65: 7.75069768 | BD65: 8.861208769 | BE65: 9.03011125 | BF65: 9.3940442 | BG65: 11.43656987 | BH65: 11.68110836 | BI65: 8.435512186 | BJ65: 7.53248161 | BK65: 9.593412932 | BL65: 10.1223775
B66: 0.5190858082 | D66: 33 | E66: Americas | F66: Table2.ton | H66: 25 | J66: Americas | K66: Americas | M66: 34.7008582 | N66: 42.03466437 | O66: 44.98546693 | P66: 68.8676141 | Q66: 31.15254768 | R66: 38.98319365 | S66: 42.20094537 | T66: 62.09183745 | U66: 28.27469177 | V66: 35.94026574 | W66: 40.86544575 | X66: 57.48879263 | Y66: 31.36599798 | Z66: 36.63881 | AA66: 37.8884166 | AB66: 59.91800662 | AC66: 32.16086947 | AD66: 38.60373455 | AE66: 38.23979598 | AF66: 59.51371069 | AG66: 32.72920182 | AH66: 39.04808544 | AI66: 38.15780172 | AJ66: 60.33606837 | AK66: 32.42173046 | AL66: 38.51414796 | AM66: 37.31512502 | AN66: 59.19961548 | AO66: 32.99951936 | AP66: 39.84546204 | AQ66: 38.82164057 | AR66: 61.8733542 | AS66: 34.11794131 | AT66: 41.28055976 | AU66: 40.10605342 | AV66: 63.17155818 | AW66: 34.38699498 | AX66: 41.4725212 | AY66: 40.73309769 | AZ66: 64.34092986 | BA66: 32.23262569 | BB66: 27.15788573 | BC66: 36.86283834 | BD66: 61.95427687 | BE66: 34.80487574 | BF66: 48.0232029 | BG66: 40.82618919 | BH66: 67.94180096 | BI66: 35.53524943 | BJ66: 47.58721892 | BK66: 39.27315178 | BL66: 65.37993118
B67: 0.7424447432 | D67: 34 | E67: United States | F67: Table2.ton | H67: 26 | J67: United States | K67: United States | M67: 22.95214258 | N67: 23.88368492 | O67: 31.0699805 | P67: 44.42700411 | Q67: 21.07322524 | R67: 22.6235726 | S67: 30.248503 | T67: 41.93630665 | U67: 19.34998145 | V67: 20.08022849 | W67: 27.69974411 | X67: 39.92391524 | Y67: 20.65041248 | Z67: 24.02891217 | AA67: 25.30611249 | AB67: 42.51709068 | AC67: 21.51954834 | AD67: 25.0200663 | AE67: 26.21419806 | AF67: 43.80370475 | AG67: 22.18532253 | AH67: 25.64094238 | AI67: 26.48724153 | AJ67: 45.18306874 | AK67: 22.30050554 | AL67: 25.80936993 | AM67: 25.98219227 | AN67: 44.68417559 | AO67: 22.69649541 | AP67: 26.824141 | AQ67: 27.19635207 | AR67: 46.94058572 | AS67: 23.67562351 | AT67: 28.26721883 | AU67: 28.2879221 | AV67: 48.14574787 | AW67: 23.98 | AX67: 28.67 | AY67: 29.25 | AZ67: 49.2 | BA67: 22.8 | BB67: 18.55 | BC67: 28.17 | BD67: 48.68 | BE67: 26.522 | BF67: 37.6726 | BG67: 31.68 | BH67: 53.223 | BI67: 26.65 | BJ67: 36.7 | BK67: 29.795 | BL67: 50.55
B68: 0.4761870389 | D68: 35 | E68: Canada | F68: Table2.ton | H68: 27 | J68: Canada | K68: Canada | M68: 2.861445607 | N68: 4.477047204 | O68: 3.743523031 | P68: 5.65842378 | Q68: 2.548486004 | R68: 3.85912314 | S68: 3.281633984 | T68: 4.922740462 | U68: 2.276884186 | V68: 3.533993061 | W68: 2.975288047 | X68: 4.405147058 | Y68: 2.558381569 | Z68: 3.128491008 | AA68: 2.49152405 | AB68: 5.019817337 | AC68: 2.603 | AD68: 3.2834 | AE68: 2.634 | AF68: 5.436 | AG68: 2.7022 | AH68: 3.46345 | AI68: 2.6569 | AJ68: 5.3443 | AK68: 2.6572 | AL68: 3.4216 | AM68: 2.59793 | AN68: 5.1127 | AO68: 2.717 | AP68: 3.5237 | AQ68: 2.61805 | AR68: 5.25786 | AS68: 2.7255 | AT68: 3.5555 | AU68: 2.6375 | AV68: 5.3555 | AW68: 2.761 | AX68: 3.598 | AY68: 2.615 | AZ68: 5.47 | BA68: 2.583 | BB68: 2.016 | BC68: 2.629 | BD68: 5.828 | BE68: 2.617 | BF68: 3.4103 | BG68: 2.682 | BH68: 6.461 | BI68: 2.851 | BJ68: 3.628 | BK68: 2.756 | BL68: 6.195
B69: -0.02571252636 | D69: 36 | E69: Mexico | F69: Table2.ton | H69: 28 | J69: Mexico | K69: Mexico | M69: 4.819282064 | N69: 5.995734202 | O69: 4.019531147 | P69: 7.931976444 | Q69: 3.563945352 | R69: 5.066133092 | S69: 3.60437548 | T69: 6.68227546 | U69: 2.849261833 | V69: 4.312367744 | W69: 4.197026226 | X69: 3.902597827 | Y69: 3.50038539 | Z69: 3.902588765 | AA69: 4.246068477 | AB69: 4.223066536 | AC69: 3.78471487 | AD69: 3.894008387 | AE69: 4.16966741 | AF69: 3.929431622 | AG69: 3.978883484 | AH69: 4.168459189 | AI69: 4.357594478 | AJ69: 4.133023044 | AK69: 3.865477581 | AL69: 4.01503623 | AM69: 4.134714754 | AN69: 3.936371892 | AO69: 3.975023954 | AP69: 4.191688041 | AQ69: 4.346450492 | AR69: 4.088040486 | AS69: 4.1086078 | AT69: 4.212016334 | AU69: 4.441487556 | AV69: 4.073110702 | AW69: 4.140695485 | AX69: 4.190987838 | AY69: 4.338166185 | AZ69: 3.973314274 | BA69: 3.519591162 | BB69: 2.945497287 | BC69: 2.958817831 | BD69: 2.979985705 | BE69: 2.81567293 | BF69: 3.174755392 | BG69: 3.158689625 | BH69: 3.575982846 | BI69: 3.009914035 | BJ69: 3.238250499 | BK69: 3.221863417 | BL69: 3.71902216
B70: -0.05348110259 | D70: 37 | E70: Brazil | F70: Table2.ton | H70: 29 | J70: Brazil | K70: Brazil | M70: 4.067987947 | N70: 7.678198044 | O70: 6.152432246 | P70: 10.85020977 | Q70: 3.966891081 | R70: 7.434364814 | S70: 5.066432908 | T70: 8.550514869 | U70: 3.798564304 | V70: 8.013676445 | W70: 5.993387358 | X70: 9.257132504 | Y70: 4.656818541 | Z70: 5.578818064 | AA70: 5.844711585 | AB70: 8.158032059 | AC70: 4.253606255 | AD70: 6.406259866 | AE70: 5.221930507 | AF70: 6.344574325 | AG70: 3.862795804 | AH70: 5.775233875 | AI70: 4.656065711 | AJ70: 5.675676592 | AK70: 3.598547333 | AL70: 5.268141806 | AM70: 4.600288 | AN70: 5.466368 | AO70: 3.611 | AP70: 5.305933 | AQ70: 4.660788 | AR70: 5.586868 | AS70: 3.60821 | AT70: 5.24582459 | AU70: 4.73914376 | AV70: 5.5971996 | AW70: 3.5052995 | AX70: 5.01353336 | AY70: 4.52993151 | AZ70: 5.697615588 | BA70: 3.330034525 | BB70: 3.64638844 | BC70: 3.105020507 | BD70: 4.466291166 | BE70: 2.850202813 | BF70: 3.765547512 | BG70: 3.305499567 | BH70: 4.681818112 | BI70: 3.024335397 | BJ70: 4.020968422 | BK70: 3.500288359 | BL70: 4.915909017
B71: 1.369378784 | D71: 38 | E71: Europe ex CIS | F71: Table2.ton | H71: 30 | J71: Europe ex CIS | K71: Europe ex CIS | M71: 17.97317983 | N71: 21.08575655 | O71: 16.03555642 | P71: 51.12288702 | Q71: 14.57680053 | R71: 17.99948269 | S71: 13.00847785 | T71: 42.18226108 | U71: 12.69418056 | V71: 15.56304146 | W71: 11.61789038 | X71: 37.54638791 | Y71: 12.2698188 | Z71: 14.19708313 | AA71: 12.53296743 | AB71: 36.05572589 | AC71: 13.19142965 | AD71: 15.05722743 | AE71: 13.04095501 | AF71: 36.74603661 | AG71: 13.08063073 | AH71: 14.84411751 | AI71: 13.05710724 | AJ71: 36.3923084 | AK71: 13.08369473 | AL71: 14.84520674 | AM71: 12.80414607 | AN71: 35.39207645 | AO71: 12.72573482 | AP71: 14.39927279 | AQ71: 12.55913344 | AR71: 34.33349943 | AS71: 12.84181976 | AT71: 14.43111832 | AU71: 12.58769049 | AV71: 33.53138151 | AW71: 12.65891199 | AX71: 14.20361156 | AY71: 12.37608149 | AZ71: 32.82657963 | BA71: 10.60737919 | BB71: 7.645125973 | BC71: 10.29447539 | BD71: 27.39462907 | BE71: 9.774951547 | BF71: 13.0700227 | BG71: 12.76288283 | BH71: 32.19971233 | BI71: 10.99049142 | BJ71: 15.59172909 | BK71: 13.22351732 | BL71: 30.74510301
B72: 1.320674696 | D72: 39 | E72: France | F72: Table2.ton | H72: 31 | J72: France | K72: France | M72: 4.087235591 | N72: 3.798587039 | O72: 2.568954797 | P72: 10.26408133 | Q72: 3.701794895 | R72: 4.100112707 | S72: 2.437684384 | T72: 8.974682645 | U72: 3.056812281 | V72: 3.305728906 | W72: 2.001781078 | X72: 7.351009735 | Y72: 2.782894039 | Z72: 2.920254398 | AA72: 2.13951416 | AB72: 7.038331224 | AC72: 2.855 | AD72: 2.6968 | AE72: 2.055 | AF72: 6.5525 | AG72: 2.76 | AH72: 2.578345 | AI72: 1.972 | AJ72: 6.263 | AK72: 2.807 | AL72: 2.525195 | AM72: 1.94 | AN72: 6.1035 | AO72: 2.749 | AP72: 2.5035 | AQ72: 1.931 | AR72: 6.128 | AS72: 2.782 | AT72: 2.4135 | AU72: 1.868 | AV72: 5.93385 | AW72: 2.689 | AX72: 2.329 | AY72: 1.891 | AZ72: 5.74085 | BA72: 2.297 | BB72: 1.244 | BC72: 1.915 | BD72: 5.044 | BE72: 2.338 | BF72: 2.1715 | BG72: 1.887 | BH72: 6.00275 | BI72: 3.01 | BJ72: 2.948 | BK72: 2.09 | BL72: 6.17825
B73: 1.565040107 | D73: 40 | E73: Germany | F73: Table2.ton | H73: 32 | J73: Germany | K73: Germany | M73: 2.4811653 | N73: 2.560823823 | O73: 1.466097539 | P73: 7.196394437 | Q73: 2.049766566 | R73: 1.99115512 | S73: 1.449766566 | T73: 6.539742972 | U73: 1.69754358 | V73: 1.788384523 | W73: 1.348709278 | X73: 5.904204205 | Y73: 1.768834188 | Z73: 1.984689063 | AA73: 1.267166524 | AB73: 5.074556827 | AC73: 1.716680412 | AD73: 2.012195149 | AE73: 1.167441167 | AF73: 5.103780935 | AG73: 1.733112516 | AH73: 2.065659708 | AI73: 1.1950655 | AJ73: 5.1915 | AK73: 1.7395 | AL73: 2.10375 | AM73: 1.18375 | AN73: 5.2985 | AO73: 1.7385 | AP73: 2.115 | AQ73: 1.212 | AR73: 5.36 | AS73: 1.78 | AT73: 2.15 | AU73: 1.25 | AV73: 5.45 | AW73: 1.8 | AX73: 2.169 | AY73: 1.23 | AZ73: 5.42 | BA73: 1.657 | BB73: 1.06 | BC73: 1.2075 | BD73: 5.12 | BE73: 1.55815 | BF73: 2.13 | BG73: 2.11 | BH73: 5.31 | BI73: 1.14 | BJ73: 2.62 | BK73: 2.156 | BL73: 5.176
B74: 1.308270677 | D74: 41 | E74: Italy | F74: Table2.ton | H74: 33 | J74: Italy | K74: Italy | M74: 5.166159026 | N74: 6.514095989 | O74: 5.196524713 | P74: 17.33663897 | Q74: 3.929800725 | R74: 5.482065217 | S74: 3.755406476 | T74: 13.7526721 | U74: 3.388110955 | V74: 4.607514045 | W74: 3.092408708 | X74: 11.47140449 | Y74: 3.23234375 | Z74: 4.3290625 | AA74: 3.18515625 | AB74: 10.3675 | AC74: 3.045 | AD74: 4.145 | AE74: 3.025 | AF74: 9.675 | AG74: 2.87 | AH74: 3.99 | AI74: 2.97 | AJ74: 9.4 | AK74: 2.81 | AL74: 3.99 | AM74: 2.95 | AN74: 9.207 | AO74: 2.755 | AP74: 3.935 | AQ74: 2.93 | AR74: 9.205 | AS74: 2.69175 | AT74: 3.91175 | AU74: 2.86175 | AV74: 9.07675 | AW74: 2.6573375 | AX74: 3.8173375 | AY74: 2.8073375 | AZ74: 8.8873375 | BA74: 2 | BB74: 1.756 | BC74: 2.43 | BD74: 7.60935 | BE74: 2.23 | BF74: 3.444 | BG74: 2.71 | BH74: 8.9 | BI74: 2.404 | BJ74: 3.725 | BK74: 2.759 | BL74: 8.95
B75: 0.2071813118 | D75: 42 | E75: Spain | F75: Table2.ton | H75: 34 | J75: Spain | K75: Spain | M75: 2.519753997 | N75: 3.190125839 | O75: 2.450002838 | P75: 3.418523985 | Q75: 1.865736424 | R75: 2.265919364 | S75: 1.67398586 | T75: 2.36192418 | U75: 1.810510747 | V75: 2.301297361 | W75: 1.733884594 | X75: 2.532943653 | Y75: 1.552002678 | Z75: 1.875198606 | AA75: 2.011404966 | AB75: 2.333470612 | AC75: 1.75558475 | AD75: 2.17506775 | AE75: 1.854187083 | AF75: 2.522419647 | AG75: 1.744713812 | AH75: 2.069089109 | AI75: 2.032116244 | AJ75: 2.645692036 | AK75: 1.726588881 | AL75: 2.059971437 | AM75: 1.888421271 | AN75: 2.586316374 | AO75: 1.747671374 | AP75: 2.088426034 | AQ75: 1.906841788 | AR75: 2.64344148 | AS75: 1.807060819 | AT75: 2.1823725 | AU75: 1.983165096 | AV75: 2.715634048 | AW75: 1.844995812 | AX75: 2.227983115 | AY75: 2.020545362 | AZ75: 2.755468559 | BA75: 1.719316247 | BB75: 1.571965954 | BC75: 1.501082196 | BD75: 2.104086395 | BE75: 1.594957488 | BF75: 1.902150666 | BG75: 1.792867118 | BH75: 2.464871851 | BI75: 1.703885331 | BJ75: 1.987076552 | BK75: 1.850009249 | BL75: 2.535992151
B76: 1.94534902 | D76: 43 | E76: United Kingdom | F76: Table2.ton | H76: 35 | J76: United Kingdom | K76: United Kingdom | M76: 3.718865916 | N76: 5.022123865 | O76: 4.353976533 | P76: 12.9072483 | Q76: 3.029701919 | R76: 4.160230285 | S76: 3.69163456 | T76: 10.55323919 | U76: 2.741202994 | V76: 3.560116621 | W76: 3.441106721 | X76: 10.28682583 | Y76: 2.933744148 | Z76: 3.087878558 | AA76: 3.929725534 | AB76: 11.24186723 | AC76: 3.81916449 | AD76: 4.028164527 | AE76: 4.93932676 | AF76: 12.89233602 | AG76: 3.972804404 | AH76: 4.141023691 | AI76: 4.887925493 | AJ76: 12.89211636 | AK76: 4.000605852 | AL76: 4.166290307 | AM76: 4.841974803 | AN76: 12.19676007 | AO76: 3.735563443 | AP76: 3.757346761 | AQ76: 4.57929165 | AR76: 10.99705795 | AS76: 3.781008945 | AT76: 3.773495818 | AU76: 4.624775391 | AV76: 10.35514747 | AW76: 3.667578677 | AX76: 3.660290944 | AY76: 4.427198633 | AZ76: 10.02292357 | BA76: 2.934062941 | BB76: 2.013160019 | BC76: 3.240893191 | BD76: 7.517192676 | BE76: 2.053844059 | BF76: 3.422372032 | BG76: 4.263015716 | BH76: 9.522090479 | BI76: 2.732606088 | BJ76: 4.311652541 | BK76: 4.368508068 | BL76: 7.904860859
D77: 44 | E77: Switzerland | F77: Table2.ton | H77: 36 | J77: Switzerland | K77: Switzerland | M77: 0 | N77: 0 | O77: 0 | P77: 0 | Q77: 0 | R77: 0 | S77: 0 | T77: 0 | U77: 0 | V77: 0 | W77: 0 | X77: 0 | Y77: 0 | Z77: 0 | AA77: 0 | AB77: 0 | AC77: 0 | AD77: 0 | AE77: 0 | AF77: 0 | AG77: 0 | AH77: 0 | AI77: 0 | AJ77: 0 | AK77: 0 | AL77: 0 | AM77: 0 | AN77: 0 | AO77: 0 | AP77: 0 | AQ77: 0 | AR77: 0 | AS77: 0 | AT77: 0 | AU77: 0 | AV77: 0 | AW77: 0 | AX77: 0 | AY77: 0 | AZ77: 0 | BA77: 0 | BB77: 0 | BC77: 0 | BD77: 0 | BE77: 0 | BF77: 0 | BG77: 0 | BH77: 0 | BI77: 0 | BJ77: 0 | BK77: 0 | BL77: 0
D78: 45 | E78: Austria | F78: Table2.ton | H78: 37 | J78: Austria | K78: Austria | M78: 0 | N78: 0 | O78: 0 | P78: 0 | Q78: 0 | R78: 0 | S78: 0 | T78: 0 | U78: 0 | V78: 0 | W78: 0 | X78: 0 | Y78: 0 | Z78: 0 | AA78: 0 | AB78: 0 | AC78: 0 | AD78: 0 | AE78: 0 | AF78: 0 | AG78: 0 | AH78: 0 | AI78: 0 | AJ78: 0 | AK78: 0 | AL78: 0 | AM78: 0 | AN78: 0 | AO78: 0 | AP78: 0 | AQ78: 0 | AR78: 0 | AS78: 0 | AT78: 0 | AU78: 0 | AV78: 0 | AW78: 0 | AX78: 0 | AY78: 0 | AZ78: 0 | BA78: 0 | BB78: 0 | BC78: 0 | BD78: 0 | BE78: 0 | BF78: 0 | BG78: 0 | BH78: 0 | BI78: 0 | BJ78: 0 | BK78: 0 | BL78: 0
D79: 46 | E79: Other Europe | F79: Table2.ton | H79: 38 | J79: Other Europe | K79: Other Europe | M79: 0 | N79: 0 | O79: 0 | P79: 0 | Q79: 0 | R79: 0 | S79: 0 | T79: 0 | U79: 0 | V79: 0 | W79: 0 | X79: 0 | Y79: 0 | Z79: 0 | AA79: 0 | AB79: 0 | AC79: 0 | AD79: 0 | AE79: 0 | AF79: 0 | AG79: 0 | AH79: 0 | AI79: 0 | AJ79: 0 | AK79: 0 | AL79: 0 | AM79: 0 | AN79: 0 | AO79: 0 | AP79: 0 | AQ79: 0 | AR79: 0 | AS79: 0 | AT79: 0 | AU79: 0 | AV79: 0 | AW79: 0 | AX79: 0 | AY79: 0 | AZ79: 0 | BA79: 0 | BB79: 0 | BC79: 0 | BD79: 0 | BE79: 0 | BF79: 0 | BG79: 0 | BH79: 0 | BI79: 0 | BJ79: 0 | BK79: 0 | BL79: 0
B80: 0.2000484364 | D80: 47 | E80: Total above | F80: Table2.ton | H80: 39 | J80: Total above | K80: Total above | M80: 517.0295925 | N80: 406.6940088 | O80: 500.6970282 | P80: 548.9388327 | Q80: 551.988334 | R80: 490.7289632 | S80: 454.8977475 | T80: 472.7914888 | U80: 502.7343586 | V80: 454.1781555 | W80: 476.1257678 | X80: 535.8505079 | Y80: 567.7447955 | Z80: 778.947878 | AA80: 592.2998489 | AB80: 551.5153492 | AC80: 574.6732 | AD80: 549.1826452 | AE80: 556.4880724 | AF80: 622.9713911 | AG80: 564.629445 | AH80: 480.9431077 | AI80: 588.3550499 | AJ80: 602.147392 | AK80: 441.7557759 | AL80: 411.2730159 | AM80: 457.8222492 | AN80: 577.6164541 | AO80: 476.7828946 | AP80: 479.2238286 | AQ80: 461.9523281 | AR80: 597.1579244 | AS80: 475.2043217 | AT80: 467.321398 | AU80: 493.1661402 | AV80: 579.092842 | AW80: 480.9959405 | AX80: 474.6176939 | AY80: 414.3938081 | AZ80: 520.3696518 | BA80: 273.5341389 | BB80: 210.1482422 | BC80: 295.9299747 | BD80: 457.8758756 | BE80: 466.2018101 | BF80: 392.6793277 | BG80: 430.9048014 | BH80: 654.6191551 | BI80: 424.1344977 | BJ80: 409.9251313 | BK80: 474.0776606 | BL80: 558.6206345
B81: 0.2637098506 | D81: 48 | E81: Other & stock change | F81: Table2.ton | H81: 40 | J81: Other & stock change | K81: Other & stock change | M81: 17.96477716 | N81: 16.12320761 | O81: 22.45405266 | P81: 27.34611043 | Q81: 28.07092025 | R81: 32.21833379 | S81: 29.19683406 | T81: 44.55307209 | U81: 38.01499017 | V81: 45.62473363 | W81: 43.0463728 | X81: 61.63009587 | Y81: 48.39642102 | Z81: 55.31371212 | AA81: 56.63676517 | AB81: 77.11959069 | AC81: 52.36403226 | AD81: 53.90769093 | AE81: 53.74560864 | AF81: 70.88586679 | AG81: 51.33830022 | AH81: 52.19121605 | AI81: 53.08459043 | AJ81: 68.15217203 | AK81: 49.92454643 | AL81: 50.6911283 | AM81: 50.34267912 | AN81: 65.80234316 | AO81: 52.30256011 | AP81: 53.26668441 | AQ81: 52.84152545 | AR81: 68.48300579 | AS81: 54.30650912 | AT81: 55.27522433 | AU81: 55.20945752 | AV81: 70.64424401 | AW81: 55.12907411 | AX81: 55.96060579 | AY81: 55.37893671 | AZ81: 69.8744429 | BA81: 38.07770289 | BB81: 32.93956003 | BC81: 37.11371799 | BD81: 52.36712709 | BE81: 45.99507612 | BF81: 44.87864556 | BG81: 46.19893915 | BH81: 66.26055544 | BI81: 50.52678061 | BJ81: 47.87757994 | BK81: 50.87158964 | BL81: 70.13449918
B82: 0.2059212065 | D82: 49 | E82: World Total | F82: Table2.ton | H82: 41 | J82: World Total | K82: World Total | M82: 534.9943697 | N82: 422.8172164 | O82: 523.1510808 | P82: 576.2849431 | Q82: 580.0592542 | R82: 522.947297 | S82: 484.0945815 | T82: 517.3445609 | U82: 540.7493488 | V82: 499.8028891 | W82: 519.1721406 | X82: 597.4806038 | Y82: 616.1412165 | Z82: 834.2615901 | AA82: 648.936614 | AB82: 628.6349399 | AC82: 627.0372323 | AD82: 603.0903361 | AE82: 610.233681 | AF82: 693.8572579 | AG82: 615.9677452 | AH82: 533.1343238 | AI82: 641.4396404 | AJ82: 670.2995641 | AK82: 491.6803224 | AL82: 461.9641442 | AM82: 508.1649283 | AN82: 643.4187973 | AO82: 529.0854547 | AP82: 532.490513 | AQ82: 514.7938535 | AR82: 665.6409302 | AS82: 529.5108308 | AT82: 522.5966223 | AU82: 548.3755977 | AV82: 649.737086 | AW82: 536.1250146 | AX82: 530.5782996 | AY82: 469.7727449 | AZ82: 590.2440947 | BA82: 311.6118418 | BB82: 243.0878023 | BC82: 333.0436927 | BD82: 510.2430027 | BE82: 512.1968863 | BF82: 437.5579732 | BG82: 477.1037405 | BH82: 720.8797106 | BI82: 474.6612783 | BJ82: 457.8027112 | BK82: 524.9492502 | BL82: 628.7551336
B83: YoY | E83: Investment | G83: Investment
B84: 0.6387909569 | D84: 9 | E84: India | F84: Table3.ton | H84: 1 | J84: India | K84: India | M84: 78.55400183 | N84: 59.85231051 | O84: 92.80481116 | P84: 108.8441416 | Q84: 100.0589695 | R84: 111.0595902 | S84: 74.88193659 | T84: 68.71061443 | U84: 64.95962009 | V84: 57.64104032 | W84: 84.84384038 | X84: 111.5391354 | Y84: 90.63491783 | Z84: 133.1395751 | AA84: 51.48225032 | AB84: 65.89469135 | AC84: 42.68893607 | AD84: 52.34952005 | AE84: 53.97672438 | AF84: 56.94704485 | AG84: 40.04222204 | AH84: 37.69445453 | AI84: 57.03871991 | AJ84: 60.16609918 | AK84: 27.46179258 | AL84: 32.25669965 | AM84: 40.08439782 | AN84: 61.77333121 | AO84: 37.07341998 | AP84: 41.5571504 | AQ84: 31.03684958 | AR84: 59.64832473 | AS84: 32.32366539 | AT84: 39.30095364 | AU84: 34.36862368 | AV84: 56.40843348 | AW84: 33.616612 | AX84: 44.5239491 | AY84: 22.33960539 | AZ84: 45.28947073 | BA84: 28.05870688 | BB84: 19.75678208 | BC84: 33.76618097 | BD84: 48.85515289 | BE84: 39.29827842 | BF84: 25.37260541 | BG84: 42.91343402 | BH84: 78.89317983 | BI84: 41.26319234 | BJ84: 30.44712649 | BK84: 45.42607377 | BL84: 56.42136897
B85: 0.1889864216 | D85: 10 | E85: Pakistan | F85: Table3.ton | H85: 2 | J85: Pakistan | K85: Pakistan | M85: 7.5375 | N85: -2.734375 | O85: 4.334375 | P85: -1.78125 | Q85: 5.310359589 | R85: 3.653253425 | S85: 3.260702055 | T85: 3.517808219 | U85: 4.478506098 | V85: 2.147357724 | W85: 3.135035569 | X85: 3.482926829 | Y85: 3.670446872 | Z85: 6.517616977 | AA85: 5.687566315 | AB85: 5.038401778 | AC85: 2.929099596 | AD85: 4.152970574 | AE85: 3.190962409 | AF85: 3.657415578 | AG85: 3.057054999 | AH85: 3.789585649 | AI85: 3.66960677 | AJ85: 3.950008824 | AK85: 3.393331049 | AL85: 4.20644007 | AM85: 3.919140031 | AN85: 4.50576588 | AO85: 3.46119767 | AP85: 4.272129682 | AQ85: 3.723183029 | AR85: 5.406919056 | AS85: 3.634257554 | AT85: 3.854136309 | AU85: 3.239169235 | AV85: 4.055189292 | AW85: 3.997683309 | AX85: 4.008301761 | AY85: 2.591335388 | AZ85: 3.649670363 | BA85: 4.197567474 | BB85: 1.00207544 | BC85: 2.720902158 | BD85: 4.014637399 | BE85: 5.246959343 | BF85: 3.935219507 | BG85: 4.328741458 | BH85: 4.545178531 | BI85: 4.317919604 | BJ85: 5.181503525 | BK85: 6.476879406 | BL85: 4.857659555
D86: 11 | E86: Sri Lanka | F86: Table3.ton | H86: 3 | J86: Sri Lanka | K86: Sri Lanka | M86: 0 | N86: 0 | O86: 0 | P86: 0 | Q86: 0 | R86: 0 | S86: 0 | T86: 0 | U86: 0 | V86: 0 | W86: 0 | X86: 0 | Y86: 0 | Z86: 0 | AA86: 0 | AB86: 0 | AC86: 0 | AD86: 0 | AE86: 0 | AF86: 0 | AG86: 0 | AH86: 0 | AI86: 0 | AJ86: 0 | AK86: 0 | AL86: 0 | AM86: 0 | AN86: 0 | AO86: 0 | AP86: 0 | AQ86: 0 | AR86: 0 | AS86: 0 | AT86: 0 | AU86: 0 | AV86: 0 | AW86: 0 | AX86: 0 | AY86: 0 | AZ86: 0 | BA86: 0 | BB86: 0 | BC86: 0 | BD86: 0 | BE86: 0 | BF86: 0 | BG86: 0 | BH86: 0 | BI86: 0 | BJ86: 0 | BK86: 0 | BL86: 0
B87: 1.658875595 | D87: 12 | E87: Greater China | F87: Table3.ton | H87: 4 | J87: Greater China | K87: Greater China | M87: 39.63263225 | N87: 35.26752084 | O87: 48.15469031 | P87: 60.52089586 | Q87: 86.55041945 | R87: 54.91035851 | S87: 61.1529334 | T87: 63.87049991 | U87: 93.15110151 | V87: 52.37636213 | W87: 53.55371795 | X87: 65.0529766 | Y87: 119.6216366 | Z87: 158.8960562 | AA87: 84.273993 | AB87: 55.68768046 | AC87: 64.51475627 | AD87: 46.44571642 | AE87: 42.55046269 | AF87: 54.8912697 | AG87: 66.0961175 | AH87: 46.8875125 | AI87: 55.3004575 | AJ87: 68.0206025 | AK87: 83.19120792 | AL87: 41.78532808 | AM87: 42.52352676 | AN87: 124.6845535 | AO87: 107.8992901 | AP87: 64.09392486 | AQ87: 71.14680884 | AR87: 70.84840422 | AS87: 79.34810884 | AT87: 70.81284719 | AU87: 90.14875 | AV87: 75.11790355 | AW87: 72.94 | AX87: 50.7005 | AY87: 44.49643 | AZ87: 49.595 | BA87: 39.3338 | BB87: 42.722 | BC87: 60.27 | BD87: 65.6922 | BE87: 88.99861 | BF87: 59.7169 | BG87: 66.516685 | BH87: 79.15 | BI87: 51.8263296 | BJ87: 39.41368 | BK87: 71.821924 | BL87: 63.574814
B88: 1.704426147 | D88: 13 | E88: China | F88: Table3.ton | H88: 5 | J88: China | K88: China | M88: 39.37138809 | N88: 36.54489039 | O88: 47.67237178 | P88: 60.20514144 | Q88: 84.75833271 | R88: 53.27271307 | S88: 59.08190893 | T88: 61.98270344 | U88: 91.2375549 | V88: 50.63672939 | W88: 52.17363859 | X88: 62.91604067 | Y88: 116.2214491 | Z88: 155.1690562 | AA88: 81.949618 | AB88: 53.37068046 | AC88: 62.29575627 | AD88: 43.43171642 | AE88: 40.48746269 | AF88: 52.2372697 | AG88: 63.9501175 | AH88: 45.1445125 | AI88: 53.2089575 | AJ88: 65.7999775 | AK88: 81.2639423 | AL88: 40.18062574 | AM88: 41.02 | AN88: 122.09 | AO88: 105.9 | AP88: 62.626 | AQ88: 69.28537 | AR88: 68.574463 | AS88: 77.31725 | AT88: 69.45177 | AU88: 87.99875 | AV88: 73.26790355 | AW88: 71.189 | AX88: 49.4555 | AY88: 42.83543 | AZ88: 47.641 | BA88: 37.0748 | BB88: 40.667 | BC88: 57.56 | BD88: 63.5722 | BE88: 86.46361 | BF88: 57.4319 | BG88: 64.701685 | BH88: 76.89 | BI88: 49.3313296 | BJ88: 37.43868 | BK88: 70.106924 | BL88: 61.349814
B89: 0.265 | D89: 14 | E89: Hong Kong | F89: Table3.ton | H89: 6 | J89: Hong Kong | K89: Hong Kong | M89: 0.2612441589 | N89: 0.261588785 | O89: 0.3745268692 | P89: 0.2949766355 | Q89: 0.39921875 | R89: 0.3890625 | S89: 0.4210069444 | T89: 0.3277777778 | U89: 0.504946608 | V89: 0.5257160804 | W89: 0.5262876884 | X89: 0.4559359296 | Y89: 0.68 | Z89: 1.08125 | AA89: 0.553125 | AB89: 0.6 | AC89: 0.49 | AD89: 0.29 | AE89: 0.28 | AF89: 0.33 | AG89: 0.37 | AH89: 0.3 | AI89: 0.49 | AJ89: 0.33 | AK89: 0.36 | AL89: 0.22 | AM89: 0.465 | AN89: 0.3795 | AO89: 0.432 | AP89: 0.264 | AQ89: 0.558 | AR89: 0.4554 | AS89: 0.32832 | AT89: 0.2376 | AU89: 0.58 | AV89: 0.33 | AW89: 0.28 | AX89: 0.23 | AY89: 0.34 | AZ89: 0.385 | BA89: 0.28 | BB89: 0.46 | BC89: 1 | BD89: 0.7 | BE89: 0.73 | BF89: 0.8 | BG89: 0.71 | BH89: 0.6 | BI89: 0.5 | BJ89: 0.62 | BK89: 0.57 | BL89: 0.44
B90: 0.4717779099 | D90: 15 | E90: Taiwan | F90: Table3.ton | H90: 7 | J90: Taiwan | K90: Taiwan | M90: 0 | N90: -1.538958333 | O90: 0.1077916667 | P90: 0.02077777778 | Q90: 1.392867991 | R90: 1.248582944 | S90: 1.650017523 | T90: 1.560018692 | U90: 1.4086 | V90: 1.213916667 | W90: 0.8537916667 | X90: 1.681 | Y90: 2.7201875 | Z90: 2.64575 | AA90: 1.77125 | AB90: 1.717 | AC90: 1.729 | AD90: 2.724 | AE90: 1.783 | AF90: 2.324 | AG90: 1.776 | AH90: 1.443 | AI90: 1.6015 | AJ90: 1.890625 | AK90: 1.567265625 | AL90: 1.384702344 | AM90: 1.038526758 | AN90: 2.215053516 | AO90: 1.567290137 | AP90: 1.203924856 | AQ90: 1.303438844 | AR90: 1.818541217 | AS90: 1.702538841 | AT90: 1.123477189 | AU90: 1.57 | AV90: 1.52 | AW90: 1.471 | AX90: 1.015 | AY90: 1.321 | AZ90: 1.569 | BA90: 1.979 | BB90: 1.595 | BC90: 1.71 | BD90: 1.42 | BE90: 1.805 | BF90: 1.485 | BG90: 1.105 | BH90: 1.66 | BI90: 1.995 | BJ90: 1.355 | BK90: 1.145 | BL90: 1.785
B91: -20.80768361 | D91: 16 | E91: Japan | F91: Table3.ton | H91: 8 | J91: Japan | K91: Japan | M91: -11.80671983 | N91: -7.776149015 | O91: -9.667191502 | P91: -10.55823399 | Q91: -6.081474359 | R91: -10.36982692 | S91: -22.29533494 | T91: -13.53701282 | U91: -3.641997525 | V91: 2.266076733 | W91: -5.326263614 | X91: -4.270113861 | Y91: -9.89428125 | Z91: 8.1369375 | AA91: -0.8959375 | AB91: 6.5745 | AC91: 7.608 | AD91: -1.11 | AE91: -1.044846 | AF91: -8.193946755 | AG91: -3.1723965 | AH91: -0.2322735 | AI91: 10.7645985 | AJ91: 8.805 | AK91: 3.5936 | AL91: 5.7244 | AM91: 3.182 | AN91: 4.6008 | AO91: -1.84 | AP91: 1.102 | AQ91: -4.158 | AR91: 1.6096 | AS91: 1.4556 | AT91: 2.7162 | AU91: 7.9656 | AV91: 0.3736 | AW91: -6.1526 | AX91: -3.172 | AY91: -7.8148 | AZ91: -2.98 | BA91: -6.5332 | BB91: -2.4028 | BC91: 0.0404 | BD91: -0.4324 | BE91: 5.4432 | BF91: -3.2824 | BG91: 1.816 | BH91: -3.862 | BI91: -9.748 | BJ91: -3.6016 | BK91: 2.8444 | BL91: -0.6672
B92: 0.1727529118 | D92: 17 | E92: Indonesia | F92: Table3.ton | H92: 9 | J92: Indonesia | K92: Indonesia | M92: 3.341045752 | N92: 3.046830065 | O92: 4.30247549 | P92: 6.469689542 | Q92: 5.724080141 | R92: 6.7953125 | S92: 6.560924899 | T92: 8.347379032 | U92: 10.44491516 | V92: 5.725791855 | W92: 4.242562217 | X92: 6.034095023 | Y92: 14.246375 | Z92: 15.175375 | AA92: 8.606875 | AB92: 8.91 | AC92: 5.54 | AD92: 6.74 | AE92: 6.76 | AF92: 7.86 | AG92: 5.685 | AH92: 4.528 | AI92: 4.6454 | AJ92: 5.26721 | AK92: 5.2288495 | AL92: 5.958176925 | AM92: 4.617587117 | AN92: 5.310225184 | AO92: 5.003 | AP92: 5.615875 | AQ92: 4.398214 | AR92: 5.2126 | AS92: 5.115575 | AT92: 5.98869 | AU92: 5.08 | AV92: 5.97889 | AW92: 5.36635375 | AX92: 6.2282376 | AY92: -0.8266 | AZ92: 3.40076 | BA92: 3.472529938 | BB92: 3.16976632 | BC92: 5.48748 | BD92: 4.624624 | BE92: 5.5399279 | BF92: 3.774888572 | BG92: 6.30936 | BH92: 4.1621616 | BI92: 4.98593511 | BJ92: 4.152377429 | BK92: 7.571232 | BL92: 4.75824276
B93: 0.3746651188 | D93: 18 | E93: Malaysia | F93: Table3.ton | H93: 10 | J93: Malaysia | K93: Malaysia | M93: 1.737307197 | N93: 1.772627529 | O93: 1.172618062 | P93: 0.7757805298 | Q93: 2.160109094 | R93: 2.367407022 | S93: 2.51396738 | T93: 2.717577457 | U93: 2.581456845 | V93: 1.843861726 | W93: 1.298923424 | X93: 1.963062359 | Y93: 1.73171636 | Z93: 3.426560906 | AA93: 2.797030453 | AB93: 2.32 | AC93: 2.27 | AD93: 2.07 | AE93: 2.07 | AF93: 1.82 | AG93: 2.5 | AH93: 1 | AI93: 1.7181 | AJ93: 1.580652 | AK93: 1.5016194 | AL93: 1.22192455 | AM93: 1.099732095 | AN93: 1.374665119 | AO93: 1.477765003 | AP93: 1.390751723 | AQ93: 1.438088328 | AR93: 1.45 | AS93: 1.58 | AT93: 1.357 | AU93: 1.65 | AV93: 1.41 | AW93: 1.39 | AX93: 1.3 | AY93: 1.42 | AZ93: 1.285 | BA93: 1.05 | BB93: 0.5316 | BC93: 1.22 | BD93: 1.11 | BE93: 1.32825 | BF93: 1.02 | BG93: 0.585 | BH93: 1.42 | BI93: 1.5851325 | BJ93: 1.355 | BK93: 1.15 | BL93: 1.44
B94: 0.3140273129 | D94: 19 | E94: Singapore | F94: Table3.ton | H94: 11 | J94: Singapore | K94: Singapore | M94: 1.121410843 | N94: -0.1602507344 | O94: 0.6951503488 | P94: -0.2956409056 | Q94: 1.348729133 | R94: 1.084580769 | S94: 0.9281114454 | T94: 0.8254816415 | U94: 1.499169593 | V94: 1.275321793 | W94: 1.105870034 | X94: 1.265547028 | Y94: 1.383770496 | Z94: 1.872513664 | AA94: 1.595631832 | AB94: 1.65 | AC94: 1.42 | AD94: 1.745 | AE94: 1.72 | AF94: 1.63 | AG94: 1.6 | AH94: 1.2 | AI94: 1.512 | AJ94: 1.59095 | AK94: 1.1638675 | AL94: 1.1969769 | AM94: 1.05827921 | AN94: 1.576832776 | AO94: 1.350307859 | AP94: 1.105503984 | AQ94: 1.013091185 | AR94: 1.3456731 | AS94: 1.397120174 | AT94: 1.069353735 | AU94: 1.23 | AV94: 1.17 | AW94: 1.21 | AX94: 1 | AY94: 1.08 | AZ94: 1.15 | BA94: 1.05 | BB94: 0.44 | BC94: 1.2 | BD94: 1.05 | BE94: 1.315 | BF94: 1.0227 | BG94: 0.925 | BH94: 1.21 | BI94: 1.53182 | BJ94: 1.46 | BK94: 1.43 | BL94: 1.5
B95: 0.7184803711 | D95: 20 | E95: S Korea | F95: Table3.ton | H95: 12 | J95: S Korea | K95: S Korea | M95: 2.74115625 | N95: -5.2765625 | O95: 7.5814375 | P95: -3.72125 | Q95: 2.345233051 | R95: 2.352851695 | S95: 0.8649978814 | T95: 2.364279661 | U95: 3.43996875 | V95: 3.308611111 | W95: 2.224670139 | X95: 2.381458333 | Y95: 3.835875 | Z95: 5.158625 | AA95: 4.35890625 | AB95: 4.5475 | AC95: 4.371 | AD95: 4.2135 | AE95: 4.0985 | AF95: 4.0535 | AG95: 4.6115 | AH95: 4.203 | AI95: 5.4185 | AJ95: 5.7025 | AK95: 3.5025 | AL95: 3.2735 | AM95: 3.40175 | AN95: 4.90175 | AO95: 4.5685 | AP95: 4.1615 | AQ95: 4.4625 | AR95: 5.33775 | AS95: 5.053 | AT95: 4.034 | AU95: 4.982 | AV95: 5.209 | AW95: 4.39 | AX95: 5.485 | AY95: 4.913 | AZ95: 4.693 | BA95: 3.963 | BB95: 4.05 | BC95: 5.71 | BD95: 5.29 | BE95: 5.775 | BF95: 5.05 | BG95: 4.625 | BH95: 5.49 | BI95: 4.714 | BJ95: 4.375 | BK95: 3.725 | BL95: 4.155
B96: 0.06669202678 | D96: 21 | E96: Thailand | F96: Table3.ton | H96: 13 | J96: Thailand | K96: Thailand | M96: 15.655638 | N96: 19.82776938 | O96: 20.47957771 | P96: 8.272055624 | Q96: 30.07011737 | R96: 17.99109048 | S96: 34.54382183 | T96: 24.03328566 | U96: 31.02764346 | V96: 15.9621085 | W96: 19.20465324 | X96: 34.6730265 | Y96: 55.53875 | Z96: 35.849375 | AA96: 24.9434375 | AB96: 22.6 | AC96: 24.5 | AD96: 17.95 | AE96: 25.6 | AF96: 28.3 | AG96: 19.5 | AH96: 16.43 | AI96: 20.525 | AJ96: 21.52375 | AK96: 22.42 | AL96: 15.684 | AM96: 14.0506 | AN96: 17.52575 | AO96: 20.2296125 | AP96: 15.18470937 | AQ96: 13.3491207 | AR96: 15.21224321 | AS96: 21.11069506 | AT96: 15.13170044 | AU96: 16.24592726 | AV96: 15.97285537 | AW96: 21.32180201 | AX96: 12.85944538 | AY96: -9.73085092 | AZ96: 10.95453429 | BA96: 5.662281208 | BB96: -40.57027731 | BC96: -45.1570763 | BD96: -7.276875 | BE96: 6.225277329 | BF96: 5.732490982 | BG96: 6.736 | BH96: 9.960975 | BI96: 1.618501397 | BJ96: 6.59236463 | BK96: 9.552625 | BL96: 10.757853
B97: 0.2456641832 | D97: 22 | E97: Vietnam | F97: Table3.ton | H97: 14 | J97: Vietnam | K97: Vietnam | M97: 14.19009795 | N97: 12.65974813 | O97: 19.36422575 | P97: 21.94697761 | Q97: 14.53104356 | R97: 14.39165718 | S97: 34.90316771 | T97: 26.76235763 | U97: 19.35653283 | V97: 18.20987574 | W97: 17.59124629 | X97: 18.6227003 | Y97: 19.425 | Z97: 26.73125 | AA97: 22.01875 | AB97: 19.7 | AC97: 16 | AD97: 12.25 | AE97: 13.15 | AF97: 12.75 | AG97: 14.44 | AH97: 10.805 | AI97: 11.4554 | AJ97: 11.081238 | AK97: 11.472 | AL97: 8.8508 | AM97: 9.13434 | AN97: 13.4594015 | AO97: 12.11346135 | AP97: 8.865776786 | AQ97: 8.196672411 | AR97: 8.2 | AS97: 12.69490749 | AT97: 9.448663313 | AU97: 10.21195638 | AV97: 8.9215 | AW97: 13.32962864 | AX97: 8.976230147 | AY97: 9.19076074 | AZ97: 7.583275 | BA97: 12.25086835 | BB97: 5.21605 | BC97: 4.771869585 | BD97: 6.8249475 | BE97: 13.47595518 | BF97: 9.115785 | BG97: 2.385934792 | BH97: 6.074203275 | BI97: 14.01499339 | BJ97: 9.57157425 | BK97: 8.456332263 | BL97: 8.989820847
D98: 23 | E98: Australia | F98: Table3.ton | H98: 15 | J98: Australia | K98: Australia | M98: 0 | N98: 0 | O98: 0 | P98: 0 | Q98: 0 | R98: 0 | S98: 0 | T98: 0 | U98: 0 | V98: 0 | W98: 0 | X98: 0 | Y98: 0 | Z98: 0 | AA98: 0 | AB98: 0 | AC98: 0 | AD98: 0 | AE98: 0 | AF98: 0 | AG98: 0 | AH98: 0 | AI98: 0 | AJ98: 0 | AK98: 0 | AL98: 0 | AM98: 0 | AN98: 0 | AO98: 0 | AP98: 0 | AQ98: 0 | AR98: 0 | AS98: 0 | AT98: 0 | AU98: 0 | AV98: 0 | AW98: 0 | AX98: 0 | AY98: 0 | AZ98: 0 | BA98: 0 | BB98: 0 | BC98: 0 | BD98: 0 | BE98: 5.200059625 | BF98: 5.177171502 | BG98: 4.733400037 | BH98: 5.169893502 | BI98: 6.259564695 | BJ98: 4.860705789 | BK98: 4.709538695 | BL98: 4.092927092
B99: -0.6099178583 | D99: 24 | E99: Middle East* | F99: Table3.ton | H99: 16 | J99: Middle East* | K99: Middle East* | M99: 18.74620591 | N99: 19.33502306 | O99: 20.77287166 | P99: 14.07871314 | Q99: 18.53248892 | R99: 19.60715971 | S99: 26.45239712 | T99: 23.84779032 | U99: 20.26417025 | V99: 20.99759811 | W99: 22.94132933 | X99: 26.37259886 | Y99: 23.08172239 | Z99: 37.27087155 | AA99: 24.44132493 | AB99: 26.45130328 | AC99: 31.27690163 | AD99: 18.36802235 | AE99: 13.31048613 | AF99: 11.89833827 | AG99: 24.66440635 | AH99: 15.4170562 | AI99: 13.59689356 | AJ99: 11.20243928 | AK99: 8.732000734 | AL99: 7.264965715 | AM99: 6.545558748 | AN99: 7.481238077 | AO99: 9.623026359 | AP99: 10.92759513 | AQ99: 11.32461656 | AR99: 11.02651161 | AS99: 15.57193961 | AT99: 21.49401996 | AU99: 27.49976962 | AV99: 21.80916205 | AW99: 17.21435455 | AX99: 15.81376984 | AY99: 14.42072981 | AZ99: 13.32122134 | BA99: 15.2451423 | BB99: 10.53707266 | BC99: 17.57807367 | BD99: 13.82535556 | BE99: 14.45595815 | BF99: 9.197086217 | BG99: 15.61522306 | BH99: 15.48389476 | BI99: 17.05596301 | BJ99: 15.77853044 | BK99: 24.94245374 | BL99: 20.02130209
B100: -0.2419352499 | D100: 25 | E100: Saudi Arabia | F100: Table3.ton | H100: 17 | J100: Saudi Arabia | K100: Saudi Arabia | M100: 3.50440183 | N100: 2.305785262 | O100: 4.818110385 | P100: 3.919619583 | Q100: 3.749677679 | R100: 3.962835551 | S100: 4.890225406 | T100: 5.107411198 | U100: 3.924058241 | V100: 4.041469924 | W100: 4.055616916 | X100: 4.904587274 | Y100: 3.873327317 | Z100: 6.115867874 | AA100: 4.43921047 | AB100: 3.874345346 | AC100: 4.958686624 | AD100: 3.663017153 | AE100: 3.185912375 | AF100: 3.840911292 | AG100: 4.748517276 | AH100: 3.230265142 | AI100: 3.251220839 | AJ100: 3.68791229 | AK100: 3.416660198 | AL100: 2.62942272 | AM100: 2.316147317 | AN100: 2.448750138 | AO100: 2.904161168 | AP100: 2.497951584 | AQ100: 2.200339951 | AR100: 2.326312631 | AS100: 2.468536993 | AT100: 2.747746742 | AU100: 2.750424939 | AV100: 2.209996999 | AW100: 2.345110143 | AX100: 2.198197394 | AY100: 2.200339951 | AZ100: 2.099497149 | BA100: 2.462365651 | BB100: 1.099098697 | BC100: 2.420373946 | BD100: 2.414421722 | BE100: 3.201075346 | BF100: 2.400806509 | BG100: 2.520846835 | BH100: 2.772931518 | BI100: 2.634284942 | BJ100: 2.76599919 | BK100: 3.319199027 | BL100: 3.485158979
B101: -0.3722045095 | D101: 26 | E101: UAE | F101: Table3.ton | H101: 18 | J101: UAE | K101: UAE | M101: 2.71402329 | N101: 2.737914742 | O101: 2.831212917 | P101: 1.685058226 | Q101: 3.028558962 | R101: 2.674520921 | S101: 3.104439522 | T101: 3.069808623 | U101: 2.943311352 | V101: 2.492713157 | W101: 2.298534915 | X101: 2.930635892 | Y101: 3.669009553 | Z101: 4.706478475 | AA101: 3.46553136 | AB101: 2.27457283 | AC101: 3.220087965 | AD101: 2.696546832 | AE101: 2.070512902 | AF101: 1.955092323 | AG101: 2.898079168 | AH101: 2.292064807 | AI101: 1.759935967 | AJ101: 1.798684937 | AK101: 2.173559376 | AL101: 1.375238884 | AM101: 1.05596158 | AN101: 1.43894795 | AO101: 1.956203439 | AP101: 1.30647694 | AQ101: 0.9825722502 | AR101: 1.295053155 | AS101: 1.721459026 | AT101: 1.489383712 | AU101: 1.419766743 | AV101: 1.13899925 | AW101: 1.635386075 | AX101: 1.336721881 | AY101: 0.9938367203 | AZ101: 1.082049287 | BA101: 1.798924682 | BB101: 0.8459401606 | BC101: 1.391371408 | BD101: 1.201074709 | BE101: 2.338602087 | BF101: 1.449933294 | BG101: 1.884913282 | BH101: 2.07340461 | BI101: 1.96973438 | BJ101: 2.206102505 | BK101: 2.117858405 | BL101: 2.107269113
B102: -0.2679031388 | D102: 27 | E102: Kuwait | F102: Table3.ton | H102: 19 | J102: Kuwait | K102: Kuwait | M102: 0.3799675056 | N102: 0.2699512584 | O102: 0.4248781459 | P102: 0.2798862695 | Q102: 0.38332071 | R102: 0.2519893964 | S102: 0.4039787929 | T102: 0.2506505089 | U102: 0.4940486771 | V102: 0.3157679481 | W102: 0.4434535448 | X102: 0.3739693261 | Y102: 0.6543228625 | Z102: 1.281220475 | AA102: 0.9683539063 | AB102: 0.9141264 | AC102: 0.90256052 | AD102: 1.03425872 | AE102: 0.783662 | AF102: 0.85595472 | AG102: 0.816118104 | AH102: 0.827406976 | AI102: 0.6269296 | AJ102: 0.724237416 | AK102: 0.682640844 | AL102: 0.6619255808 | AM102: 0.50154368 | AN102: 0.6156018036 | AO102: 0.7150338682 | AP102: 0.7251093862 | AQ102: 0.53573984 | AR102: 0.6463818938 | AS102: 0.7835809244 | AT102: 0.7976203249 | AU102: 0.696461792 | AV102: 0.6787009885 | AW102: 0.7835809244 | AX102: 0.6779772761 | AY102: 0.4875232544 | AZ102: 0.6108308896 | BA102: 0.8227599706 | BB102: 0.5084829571 | BC102: 0.7069087189 | BD102: 0.6841305964 | BE102: 1.069587962 | BF102: 0.7627244357 | BG102: 0.8482904627 | BH102: 0.925539041 | BI102: 1.010512477 | BJ102: 1.061038101 | BK102: 1.167141911 | BL102: 0.9407178812
B103: -0.3125931389 | D103: 28 | E103: Egypt | F103: Table3.ton | H103: 20 | J103: Egypt | K103: Egypt | M103: 0.5769001103 | N103: 0.593586435 | O103: 0.4919830438 | P103: 0.6850350151 | Q103: 0.4350061679 | R103: 0.4829349528 | S103: 0.6512321489 | T103: 0.7683095318 | U103: 0.4725888705 | V103: 0.5048998709 | W103: 0.5890657532 | X103: 0.559704319 | Y103: 0.7730245904 | Z103: 2.543485769 | AA103: 2.124979823 | AB103: 1.677668357 | AC103: 1.674906777 | AD103: 1.57168062 | AE103: 1.426052703 | AF103: 1.349519978 | AG103: 1.115465925 | AH103: 1.157445875 | AI103: 1.419140525 | AJ103: 1.224055748 | AK103: 0.613506259 | AL103: 0.5787229376 | AM103: 0.7095702624 | AN103: 0.7956362361 | AO103: 0.5521556331 | AP103: 0.5052251246 | AQ103: 0.6769300303 | AR103: 0.7399416995 | AS103: 0.5245478514 | AT103: 0.5304863808 | AU103: 0.7446230333 | AV103: 0.8139358695 | AW103: 0.550775244 | AX103: 0.4933523341 | AY103: 0.5956984267 | AZ103: 0.8220752282 | BA103: 0.5918941643 | BB103: 0.2959470822 | BC103: 0.536128584 | BD103: 0.7398677054 | BE103: 0.7102729972 | BF103: 0.497191098 | BG103: 0.6214888725 | BH103: 0.5904144289 | BI103: 0.797059479 | BJ103: 0.7572065051 | BK103: 1.51441301 | BL103: 1.362971709
B104: -0.9574907928 | D104: 29 | E104: Iran | F104: Table3.ton | H104: 21 | J104: Iran | K104: Iran | M104: 11.22830901 | N104: 13.16622286 | O104: 11.78871841 | P104: 7.27279459 | Q104: 10.48022097 | R104: 11.84541698 | S104: 16.75552569 | T104: 14.10654315 | U104: 11.83417029 | V104: 13.18013012 | W104: 14.96887128 | X104: 16.99284412 | Y104: 13.17850659 | Z104: 21.56728139 | AA104: 12.4210225 | AB104: 16.86543804 | AC104: 19.52166883 | AD104: 8.520244163 | AE104: 5.035125813 | AF104: 2.984006015 | AG104: 14.15172756 | AH104: 7.019669877 | AI104: 5.790394685 | AJ104: 3.133206316 | AK104: 1.024315518 | AL104: 1.13651798 | AM104: 1.213225553 | AN104: 1.253282526 | AO104: 2.663220348 | AP104: 5.015115347 | AQ104: 6.220562377 | AR104: 5.258534568 | AS104: 9.312796618 | AT104: 15.16209228 | AU104: 21.1315905 | AV104: 16.1714613 | AW104: 11.17843645 | AX104: 10.42088305 | AY104: 9.528954298 | AZ104: 7.960730648 | BA104: 8.866779255 | BB104: 7.437173404 | BC104: 11.8526576 | BD104: 8.094798591 | BE104: 6.206745478 | BF104: 3.103372739 | BG104: 8.350104144 | BH104: 7.78981708 | BI104: 9.347780496 | BJ104: 7.374846046 | BK104: 14.74969209 | BL104: 10.32478446
B105: -0.1088175793 | D105: 30 | E105: Other Middle East | F105: Table3.ton | H105: 22 | J105: Other Middle East | K105: Other Middle East | M105: 0.3426041707 | N105: 0.261562506 | O105: 0.4179687639 | P105: 0.2363194546 | Q105: 0.4557044358 | R105: 0.3894619092 | S105: 0.6469955639 | T105: 0.5450673094 | U105: 0.5959928228 | V105: 0.4626170973 | W105: 0.5857869247 | X105: 0.6108579304 | Y105: 0.9335314827 | Z105: 1.056537573 | AA105: 1.022226876 | AB105: 0.8451523132 | AC105: 0.9989909135 | AD105: 0.8822748661 | AE105: 0.8092203388 | AF105: 0.9128539462 | AG105: 0.9344983161 | AH105: 0.8902035208 | AI105: 0.74927194 | AJ105: 0.6343425708 | AK105: 0.8213185384 | AL105: 0.8831376127 | AM105: 0.7491103558 | AN105: 0.9290194236 | AO105: 0.8322519026 | AP105: 0.8777167516 | AQ105: 0.7084721078 | AR105: 0.7602876601 | AS105: 0.7610181984 | AT105: 0.766690524 | AU105: 0.7569026178 | AV105: 0.7960676424 | AW105: 0.7210657113 | AX105: 0.6866379014 | AY105: 0.6143771564 | AZ105: 0.7460381382 | BA105: 0.7024185821 | BB105: 0.350430358 | BC105: 0.6706334166 | BD105: 0.6910622406 | BE105: 0.9296742811 | BF105: 0.9830581415 | BG105: 1.389579466 | BH105: 1.331788084 | BI105: 1.296591238 | BJ105: 1.613338096 | BK105: 2.074149293 | BL105: 1.800399947
B106: 2.220423016 | D106: 31 | E106: Turkey | F106: Table3.ton | H106: 23 | J106: Turkey | K106: Turkey | M106: 9.13391476 | N106: 7.205309531 | O106: 16.41247378 | P106: 8.119260695 | Q106: 17.11248596 | R106: 14.54579832 | S106: 23.22841268 | T106: 17.061202 | U106: 15.19671882 | V106: 18.33238167 | W106: 7.837610833 | X106: 6.719728849 | Y106: 31.43589941 | Z106: 37.52965073 | AA106: 8.220978511 | AB106: 27.03401792 | AC106: 12.569352 | AD106: 15.5119104 | AE106: 5.4509328 | AF106: 15.0777264 | AG106: 5.226696 | AH106: 4.5001248 | AI106: 9.176894246 | AJ106: 4.210210159 | AK106: 5.049974373 | AL106: 4.480711884 | AM106: 5.328973125 | AN106: 14.49230548 | AO106: 8.937570877 | AP106: 23.3342266 | AQ106: 15.0397001 | AR106: 5.057596594 | AS106: 13.13052027 | AT106: 11.6215521 | AU106: 4.634471392 | AV106: 8.38112193 | AW106: 16.58683196 | AX106: 9.584706331 | AY106: 6.704536178 | AZ106: 19.99055783 | BA106: 23.29581221 | BB106: 19.90987801 | BC106: 49.02199201 | BD106: 28.86698785 | BE106: 44.25578116 | BF106: 4.118076551 | BG106: 9.248962462 | BH106: 3.813803865 | BI106: 10.14128354 | BJ106: 9.534817403 | BK106: 35.94697384 | BL106: 29.2266082
B107: -0.34 | D107: 32 | E107: Russia | F107: Table3.ton | H107: 24 | J107: Russia | K107: Russia | M107: 0 | N107: 0 | O107: 0 | P107: 0 | Q107: 0 | R107: 0 | S107: 0 | T107: 0 | U107: 0 | V107: 0 | W107: 0 | X107: 0 | Y107: 0 | Z107: 0 | AA107: 0 | AB107: 0 | AC107: 2.18815 | AD107: 2.18025 | AE107: 2.08025 | AF107: 1.45675 | AG107: 1.25 | AH107: 1.25 | AI107: 1.2 | AJ107: 1.1 | AK107: 0.98 | AL107: 0.98 | AM107: 0.9 | AN107: 0.825 | AO107: 0.66 | AP107: 0.66 | AQ107: 0.6 | AR107: 0.54375 | AS107: 0.81195 | AT107: 0.64875 | AU107: 0.60675 | AV107: 0.567375 | AW107: 1.05168 | AX107: 0.9048 | AY107: 0.867 | AZ107: 0.8315625 | BA107: 1.2225 | BB107: 1.2225 | BC107: 1.2725 | BD107: 1.2725 | BE107: 1.2725 | BF107: 1.4 | BG107: 1.3 | BH107: 1.3 | BI107: 5.5 | BJ107: 7.5 | BK107: 6.5 | BL107: 5.5
B108: 1.237326091 | D108: 33 | E108: Americas | F108: Table3.ton | H108: 25 | J108: Americas | K108: Americas | M108: 18.53240675 | N108: 35.58805917 | O108: 26.15616463 | P108: 32.96961887 | Q108: 23.30674828 | R108: 22.27809126 | S108: 24.50778755 | T108: 22.3259901 | U108: 16.1482737 | V108: 13.82799478 | W108: 12.27676754 | X108: 19.36816469 | Y108: 25.04370845 | Z108: 29.72265738 | AA108: 12.94342581 | AB108: 17.910406 | AC108: 13.75252273 | AD108: 13.3151733 | AE108: 12.11528223 | AF108: 16.91585908 | AG108: 13.46284029 | AH108: 13.71760816 | AI108: 32.76567532 | AJ108: 18.27141222 | AK108: 22.99703507 | AL108: 29.00467573 | AM108: 18.70069336 | AN108: 28.3147176 | AO108: 17.95418768 | AP108: 5.875991749 | AQ108: 7.623204289 | AR108: 10.39026372 | AS108: 7.251777583 | AT108: 6.102827739 | AU108: 8.971860043 | AV108: 8.902923046 | AW108: 8.855009278 | AX108: 4.28331359 | AY108: 5.8262419 | AZ108: 5.997764537 | BA108: 17.05816397 | BB108: 16.87341254 | BC108: 24.80886947 | BD108: 20.39234598 | BE108: 35.1616191 | BF108: 33.97681302 | BG108: 27.26062993 | BH108: 33.29725791 | BI108: 34.95696185 | BJ108: 32.92536933 | BK108: 28.4145694 | BL108: 31.70462995
B109: 1.306382268 | D109: 34 | E109: United States | F109: Table3.ton | H109: 26 | J109: United States | K109: United States | M109: 16.46678254 | N109: 32.78596318 | O109: 24.09003111 | P109: 31.0073811 | Q109: 20.80598053 | R109: 20.40863445 | S109: 21.68886942 | T109: 19.71042359 | U109: 14.05085166 | V109: 12.39798986 | W109: 10.29236922 | X109: 16.39130337 | Y109: 23.25597926 | Z109: 26.80215048 | AA109: 10.03661899 | AB109: 15.17827074 | AC109: 11.38829958 | AD109: 11.6829101 | AE109: 10.59156435 | AF109: 14.52579593 | AG109: 11.6991143 | AH109: 12.30961873 | AI109: 30.58541028 | AJ109: 16.45947862 | AK109: 20.94439237 | AL109: 27.07825515 | AM109: 17.08604067 | AN109: 26.21208685 | AO109: 15.50660518 | AP109: 4.844076489 | AQ109: 6.041877598 | AR109: 8.815066411 | AS109: 5.540399908 | AT109: 5.18405452 | AU109: 7.635274411 | AV109: 7.706522983 | AW109: 7.308997046 | AX109: 3.33950586 | AY109: 4.565043703 | AZ109: 4.4862309 | BA109: 14.89412541 | BB109: 14.21077858 | BC109: 21.89122369 | BD109: 18.12451034 | BE109: 31.68098204 | BF109: 29.74308549 | BG109: 24.53949559 | BH109: 29.88107237 | BI109: 30.98634135 | BJ109: 28.74449931 | BK109: 25.13417067 | BL109: 27.9981459
B110: 0.9711583216 | D110: 35 | E110: Canada | F110: Table3.ton | H110: 27 | J110: Canada | K110: Canada | M110: 0.9677917333 | N110: 1.253191233 | O110: 0.6493699658 | P110: 0.827295985 | Q110: 1.786757353 | R110: 0.6824780785 | S110: 1.907495658 | T110: 1.571296296 | U110: 1.095006787 | V110: 0.7095301347 | W110: 1.013816634 | X110: 1.577154493 | Y110: 0.9581739841 | Z110: 1.984823391 | AA110: 1.83908115 | AB110: 1.666305265 | AC110: 1.262870981 | AD110: 1.000880321 | AE110: 0.7520215183 | AF110: 1.387916004 | AG110: 0.8773640385 | AH110: 0.6372125724 | AI110: 1.021600959 | AJ110: 0.8326109801 | AK110: 1.107296338 | AL110: 1.285948064 | AM110: 0.639587136 | AN110: 1.1118152 | AO110: 1.322510571 | AP110: 0.3071680173 | AQ110: 0.579891726 | AR110: 0.6869003054 | AS110: 0.6241533022 | AT110: 0.4282752823 | AU110: 0.6280739234 | AV110: 0.5106234324 | AW110: 0.9416124469 | AX110: 0.4990666831 | AY110: 0.6693554743 | AZ110: 0.8471035988 | BA110: 1.700012195 | BB110: 2.076840185 | BC110: 2.276869841 | BD110: 1.660215053 | BE110: 2.737215249 | BF110: 3.48726205 | BG110: 1.935759488 | BH110: 2.65588888 | BI110: 3.200114951 | BJ110: 3.42647713 | BK110: 2.526668288 | BL110: 2.951834606
B111: 0.5478948839 | D111: 36 | E111: Mexico | F111: Table3.ton | H111: 28 | J111: Mexico | K111: Mexico | M111: 1.03629381 | N111: 1.47582742 | O111: 1.247531559 | P111: 0.9426324475 | Q111: 0.6272173393 | R111: 0.9986754001 | S111: 0.7084019186 | T111: 0.6087946669 | U111: 0.820886497 | V111: 0.6251810395 | W111: 0.7709354378 | X111: 0.8779443288 | Y111: 0.5566354355 | Z111: 0.5452236608 | AA111: 0.6695082557 | AB111: 0.74214 | AC111: 0.6869621661 | AD111: 0.3696928784 | AE111: 0.4600063631 | AF111: 0.690457144 | AG111: 0.5363619595 | AH111: 0.4207768642 | AI111: 0.8086640851 | AJ111: 0.6118226183 | AK111: 0.6303463606 | AL111: 0.3254725203 | AM111: 0.6600655553 | AN111: 0.6600655553 | AO111: 0.8415719287 | AP111: 0.4937472427 | AQ111: 0.7704349655 | AR111: 0.6032470007 | AS111: 0.8320743731 | AT111: 0.2825979371 | AU111: 0.5006117085 | AV111: 0.429231631 | AW111: 0.3620072849 | AX111: 0.2472360467 | AY111: 0.3943377227 | AZ111: 0.4207122877 | BA111: 0.2337534863 | BB111: 0.1857937737 | BC111: 0.2407759404 | BD111: 0.2076205873 | BE111: 0.3434218142 | BF111: 0.3464654816 | BG111: 0.3653748487 | BH111: 0.340296654 | BI111: 0.3505055536 | BJ111: 0.3553928873 | BK111: 0.3746804417 | BL111: 0.3743263194
B112: -0.055 | D112: 37 | E112: Brazil | F112: Table3.ton | H112: 29 | J112: Brazil | K112: Brazil | M112: 0.06153866667 | N112: 0.07307733333 | O112: 0.169232 | P112: 0.1923093333 | Q112: 0.08679305556 | R112: 0.1883033333 | S112: 0.2030205556 | T112: 0.4354755556 | U112: 0.18152875 | V112: 0.09529375 | W112: 0.19964625 | X112: 0.5217625 | Y112: 0.2729197656 | Z112: 0.3904598437 | AA112: 0.3982174219 | AB112: 0.32369 | AC112: 0.41439 | AD112: 0.26169 | AE112: 0.31169 | AF112: 0.31169 | AG112: 0.35 | AH112: 0.35 | AI112: 0.35 | AJ112: 0.3675 | AK112: 0.315 | AL112: 0.315 | AM112: 0.315 | AN112: 0.33075 | AO112: 0.2835 | AP112: 0.231 | AQ112: 0.231 | AR112: 0.28505 | AS112: 0.25515 | AT112: 0.2079 | AU112: 0.2079 | AV112: 0.256545 | AW112: 0.2423925 | AX112: 0.197505 | AY112: 0.197505 | AZ112: 0.24371775 | BA112: 0.230272875 | BB112: 0.4 | BC112: 0.4 | BD112: 0.4 | BE112: 0.4 | BF112: 0.4 | BG112: 0.42 | BH112: 0.42 | BI112: 0.42 | BJ112: 0.399 | BK112: 0.37905 | BL112: 0.380323125
B113: 0.5652288895 | D113: 38 | E113: Europe ex CIS | F113: Table3.ton | H113: 30 | J113: Europe ex CIS | K113: Europe ex CIS | M113: 47.38499475 | N113: 111.9920111 | O113: 53.50970408 | P113: 75.37057475 | Q113: 77.48132623 | R113: 57.74387595 | S113: 117.9966233 | T113: 80.60049287 | U113: 57.01322161 | V113: 66.26749539 | W113: 59.28516785 | X113: 57.34200138 | Y113: 45.93139664 | Z113: 80.41858457 | AA113: 58.57692363 | AB113: 76.48938563 | AC113: 51.86476463 | AD113: 38.95499572 | AE113: 44.84316581 | AF113: 60.74086089 | AG113: 58.11085433 | AH113: 45.68772212 | AI113: 58.59602248 | AJ113: 57.79003856 | AK113: 55.85081928 | AL113: 41.10803285 | AM113: 33.47222011 | AN113: 71.48983825 | AO113: 64.79316864 | AP113: 39.63353848 | AQ113: 46.57441739 | AR113: 41.4998335 | AS113: 40.24759872 | AT113: 33.51083484 | AU113: 51.87401365 | AV113: 46.16183254 | AW113: 43.54038025 | AX113: 30.32360914 | AY113: 32.54709458 | AZ113: 46.56164473 | BA113: 74.88441083 | BB113: 71.8527866 | BC113: 49.10406946 | BD113: 60.5719867 | BE113: 76.39835655 | BF113: 74.1910264 | BG113: 58.78304064 | BH113: 66.84292605 | BI113: 81.54516043 | BJ113: 79.10273494 | BK113: 72.66524199 | BL113: 80.9099938
B114: -1.241935484 | D114: 39 | E114: France | F114: Table3.ton | H114: 31 | J114: France | K114: France | M114: 0.1307617188 | N114: 0.4046875 | O114: 0.3052734375 | P114: 0.460546875 | Q114: 0.6795226597 | R114: 0.5113948737 | S114: 3.740276746 | T114: 1.525111441 | U114: 0.7645100256 | V114: 0.5473976109 | W114: 0.542137372 | X114: 0.8053156997 | Y114: 0.60475 | Z114: 0.615 | AA114: 0.4078125 | AB114: 0.2975 | AC114: 0.055 | AD114: 0.15 | AE114: 0.15 | AF114: 0.62 | AG114: 0.8 | AH114: -0.31 | AI114: -1.07 | AJ114: 0.06 | AK114: -0.12 | AL114: -3.25 | AM114: -0.8 | AN114: -0.045 | AO114: 1.12 | AP114: 0.82 | AQ114: -0.15 | AR114: -1.9 | AS114: -0.29 | AT114: -0.7 | AU114: -0.35 | AV114: 0.15 | AW114: 0.4 | AX114: -0.55 | AY114: 0.55 | AZ114: -0.1 | BA114: 0.95 | BB114: 1.21165 | BC114: 1.28 | BD114: 0.1 | BE114: 1.45 | BF114: 0.75 | BG114: 1.3 | BH114: 1.15 | BI114: 1.43 | BJ114: 1.31 | BK114: 1.37 | BL114: 1.52
B115: 0.7853425769 | D115: 40 | E115: Germany | F115: Table3.ton | H115: 32 | J115: Germany | K115: Germany | M115: 18.37492023 | N115: 48.39957454 | O115: 23.22509314 | P115: 32.92521287 | Q115: 34.69001484 | R115: 20.45113068 | S115: 52.64328769 | T115: 34.60683732 | U115: 20.86997352 | V115: 32.93853713 | W115: 28.32420723 | X115: 26.05352546 | Y115: 21.30033634 | Z115: 40.41083277 | AA115: 31.04757792 | AB115: 40.52962924 | AC115: 26.80297601 | AD115: 19.47075192 | AE115: 23.88113598 | AF115: 31.10132914 | AG115: 30.92730295 | AH115: 23.12046926 | AI115: 30.21240816 | AJ115: 31.69078636 | AK115: 30.26608076 | AL115: 21.93048519 | AM115: 17.31514922 | AN115: 41.27795816 | AO115: 36.23469252 | AP115: 20.45365151 | AQ115: 25.75742954 | AR115: 24.1 | AS115: 23.4553792 | AT115: 18.84 | AU115: 28.87257539 | AV115: 25.09 | AW115: 22.8 | AX115: 16.4 | AY115: 17.8 | AZ115: 28.6 | BA115: 46 | BB115: 44 | BC115: 29.5 | BD115: 37.5 | BE115: 44.02397611 | BF115: 44.72223384 | BG115: 33.72493588 | BH115: 40.10743942 | BI115: 47.45791042 | BJ115: 48.87315894 | BK115: 41.99696989 | BL115: 46.9856315
D116: 41 | E116: Italy | F116: Table3.ton | H116: 33 | J116: Italy | K116: Italy | M116: 0 | N116: 0 | O116: 0 | P116: 0 | Q116: 0 | R116: 0 | S116: 0 | T116: 0 | U116: 0 | V116: 0 | W116: 0 | X116: 0 | Y116: 0 | Z116: 0 | AA116: 0 | AB116: 0 | AC116: 0 | AD116: 0 | AE116: 0 | AF116: 0 | AG116: 0 | AH116: 0 | AI116: 0 | AJ116: 0 | AK116: 0 | AL116: 0 | AM116: 0 | AN116: 0 | AO116: 0 | AP116: 0 | AQ116: 0 | AR116: 0 | AS116: 0 | AT116: 0 | AU116: 0 | AV116: 0 | AW116: 0 | AX116: 0 | AY116: 0 | AZ116: 0 | BA116: 0 | BB116: 0 | BC116: 0 | BD116: 0 | BE116: 0 | BF116: 0 | BG116: 0 | BH116: 0 | BI116: 0 | BJ116: 0 | BK116: 0 | BL116: 0
D117: 42 | E117: Spain | F117: Table3.ton | H117: 34 | J117: Spain | K117: Spain | M117: 0 | N117: 0 | O117: 0 | P117: 0 | Q117: 0 | R117: 0 | S117: 0 | T117: 0 | U117: 0 | V117: 0 | W117: 0 | X117: 0 | Y117: 0 | Z117: 0 | AA117: 0 | AB117: 0 | AC117: 0 | AD117: 0 | AE117: 0 | AF117: 0 | AG117: 0 | AH117: 0 | AI117: 0 | AJ117: 0 | AK117: 0 | AL117: 0 | AM117: 0 | AN117: 0 | AO117: 0 | AP117: 0 | AQ117: 0 | AR117: 0 | AS117: 0 | AT117: 0 | AU117: 0 | AV117: 0 | AW117: 0 | AX117: 0 | AY117: 0 | AZ117: 0 | BA117: 0 | BB117: 0 | BC117: 0 | BD117: 0 | BE117: 0 | BF117: 0 | BG117: 0 | BH117: 0 | BI117: 0 | BJ117: 0 | BK117: 0 | BL117: 0
B118: 0.5447752027 | D118: 43 | E118: United Kingdom | F118: Table3.ton | H118: 35 | J118: United Kingdom | K118: United Kingdom | M118: 3.072607745 | N118: 5.766228398 | O118: 2.14521549 | P118: 3.838836143 | Q118: 3.889645075 | R118: 4.351020851 | S118: 5.768254657 | T118: 3.345503105 | U118: 4.217366116 | V118: 5.69400222 | W118: 2.037986802 | X118: 3.019295685 | Y118: 2.987763658 | Z118: 3.301231187 | AA118: 2.458587166 | AB118: 2.719174112 | AC118: 2.540512415 | AD118: 1.606996296 | AE118: 1.503858473 | AF118: 1.992168225 | AG118: 1.913475335 | AH118: 1.960399833 | AI118: 2.596379359 | AJ118: 2.017110802 | AK118: 3.049951922 | AL118: 3.161097554 | AM118: 2.583632264 | AN118: 3.129614374 | AO118: 3.349131757 | AP118: 2.184344074 | AQ118: 2.590157775 | AR118: 2.358145681 | AS118: 2.250761606 | AT118: 2.850964197 | AU118: 3.736618079 | AV118: 3.253578883 | AW118: 3.789944596 | AX118: 2.285453141 | AY118: 2.381332443 | AZ118: 1.994444968 | BA118: 3.868203239 | BB118: 3.790432311 | BC118: 3.186480675 | BD118: 3.052522344 | BE118: 3.942424946 | BF118: 4.14113214 | BG118: 4.079980963 | BH118: 3.33415779 | BI118: 4.321859248 | BJ118: 3.836201248 | BK118: 4.240641792 | BL118: 3.893051132
B119: 0.3599785587 | D119: 44 | E119: Switzerland | F119: Table3.ton | H119: 36 | J119: Switzerland | K119: Switzerland | M119: 13.66136084 | N119: 33.97294029 | O119: 15.58089903 | P119: 23.66504401 | Q119: 24.59727375 | R119: 17.40718043 | S119: 30.27384143 | T119: 24.47785503 | U119: 21.42434633 | V119: 13.50188063 | W119: 13.1979188 | X119: 14.06804069 | Y119: 11.63559202 | Z119: 19.52112579 | AA119: 12.45013618 | AB119: 18.12914703 | AC119: 12.48865 | AD119: 9.789777778 | AE119: 10.44760556 | AF119: 15.00133333 | AG119: 13.8409 | AH119: 10.98605556 | AI119: 13.62072222 | AJ119: 11.9 | AK119: 11.68 | AL119: 10.7 | AM119: 8.3 | AN119: 14.9408 | AO119: 13.4 | AP119: 9 | AQ119: 10.45 | AR119: 9.63 | AS119: 8.23 | AT119: 7.05 | AU119: 11.14 | AV119: 10.13 | AW119: 8.91 | AX119: 6.74 | AY119: 6.485 | AZ119: 7.685 | BA119: 14 | BB119: 11.8 | BC119: 7.5 | BD119: 9.6 | BE119: 13 | BF119: 12 | BG119: 9.1 | BH119: 9.7 | BI119: 13.5 | BJ119: 11.6 | BK119: 11 | BL119: 12.625
B120: 0.4912647356 | D120: 45 | E120: Austria | F120: Table3.ton | H120: 37 | J120: Austria | K120: Austria | M120: 2.381454472 | N120: 6.005726899 | O120: 2.539727034 | P120: 2.810363281 | Q120: 2.333328601 | R120: 1.739995741 | S120: 6.439425948 | T120: 4.586651523 | U120: 1.500549026 | V120: 2.501016715 | W120: 3.257612969 | X120: 3.157207545 | Y120: 1.966619986 | Z120: 4.071481148 | AA120: 2.931389683 | AB120: 4.017485953 | AC120: 2.855650402 | AD120: 1.936683103 | AE120: 2.324250115 | AF120: 3.11456922 | AG120: 2.950066932 | AH120: 2.471355211 | AI120: 3.529181654 | AJ120: 3.249727332 | AK120: 2.919824829 | AL120: 2.338677443 | AM120: 1.893066668 | AN120: 3.685444876 | AO120: 2.979733019 | AP120: 2.01467411 | AQ120: 2.585582648 | AR120: 2.102907294 | AS120: 1.794514968 | AT120: 1.388475882 | AU120: 2.761873941 | AV120: 2.236375332 | AW120: 1.747259375 | AX120: 1.170896016 | AY120: 1.053697684 | AZ120: 2.267475762 | BA120: 2.785812238 | BB120: 3.250852817 | BC120: 2.405820829 | BD120: 3.124706954 | BE120: 3.166558771 | BF120: 2.934395785 | BG120: 2.542369428 | BH120: 3.601879484 | BI120: 3.712774849 | BJ120: 2.992264258 | BK120: 3.277318079 | BL120: 4.236767953
B121: 0.1396322319 | D121: 46 | E121: Other Europe | F121: Table3.ton | H121: 38 | J121: Other Europe | K121: Other Europe | M121: 9.763889751 | N121: 17.44285344 | O121: 9.713495952 | P121: 11.67057157 | Q121: 11.29154131 | R121: 13.28315337 | S121: 19.1315368 | T121: 12.05853446 | U121: 8.236476591 | V121: 11.08466108 | W121: 11.92530468 | X121: 10.23861629 | Y121: 7.436334634 | Z121: 12.49891367 | AA121: 9.281420184 | AB121: 10.7964493 | AC121: 7.121975805 | AD121: 6.000786616 | AE121: 6.536315685 | AF121: 8.911460972 | AG121: 7.679109111 | AH121: 7.459442265 | AI121: 9.70733108 | AJ121: 8.872414063 | AK121: 8.054961771 | AL121: 6.227772661 | AM121: 4.180371958 | AN121: 8.501020837 | AO121: 7.709611343 | AP121: 5.160868789 | AQ121: 5.341247429 | AR121: 5.208780521 | AS121: 4.806942951 | AT121: 4.081394759 | AU121: 5.712946247 | AV121: 5.301878321 | AW121: 5.893176281 | AX121: 4.27725998 | AY121: 4.277064456 | AZ121: 6.114724 | BA121: 7.280395356 | BB121: 7.799851473 | BC121: 5.231767954 | BD121: 7.194757405 | BE121: 10.81539672 | BF121: 9.643264637 | BG121: 8.035754369 | BH121: 8.949449356 | BI121: 11.12261591 | BJ121: 10.4911105 | BK121: 10.78031223 | BL121: 11.64954321
B122: 0.7735223503 | D122: 47 | E122: Total above | F122: Table3.ton | H122: 39 | J122: Total above | K122: Total above | M122: 246.5015924 | N122: 290.599872 | O122: 306.073384 | P122: 321.0113333 | Q122: 378.4506359 | R122: 318.4112001 | S122: 389.5004489 | T122: 331.4477461 | U122: 335.9193012 | V122: 280.1818776 | W122: 284.2151312 | X122: 350.5473083 | Y122: 425.6869338 | Z122: 579.8456496 | AA122: 309.0511561 | AB122: 340.8078864 | AC122: 283.4934829 | AD122: 235.1370588 | AE122: 229.8719205 | AF122: 269.804818 | AG122: 257.074295 | AH122: 206.8777905 | AI122: 287.3832683 | AJ122: 280.2621107 | AK122: 256.5385974 | AL122: 202.9966324 | AM122: 188.0187984 | AN122: 362.3161746 | AO122: 293.304508 | AP122: 227.7806738 | AQ122: 215.7684664 | AR122: 242.7894697 | AS122: 240.7267157 | AT122: 227.0915293 | AU122: 268.7088913 | AV122: 260.4397862 | AW122: 238.6577357 | AX122: 192.8198629 | AY122: 128.0244831 | AZ122: 211.3234613 | BA122: 224.2115832 | BB122: 154.3108463 | BC122: 211.815261 | BD122: 254.6814629 | BE122: 349.3907328 | BF122: 239.5183632 | BG122: 254.0824114 | BH122: 312.9514743 | BI122: 271.5687575 | BJ122: 248.6491842 | BK122: 331.6332441 | BL122: 327.2430203
B123: 0.5486370553 | D123: 48 | E123: Other & stock change | F123: Table3.ton | H123: 40 | J123: Other & stock change | K123: Other & stock change | M123: 5.516343004 | N123: 15.55791587 | O123: 11.72428152 | P123: 7.309591104 | Q123: 17.90174863 | R123: 15.22918843 | S123: 29.1137853 | T123: 21.91785118 | U123: 10.95597654 | V123: 15.98402051 | W123: 19.36574067 | X123: 25.18094951 | Y123: 17.48231509 | Z123: 19.55785042 | AA123: 17.94161826 | AB123: 19.33773913 | AC123: 9.722754192 | AD123: 13.62084924 | AE123: 11.03389663 | AF123: 13.96366461 | AG123: 9.65299641 | AH123: 11.59391424 | AI123: 17.63059322 | AJ123: 20.24158121 | AK123: 15.66436404 | AL123: 17.9902454 | AM123: 11.94781642 | AN123: 17.40912992 | AO123: 10.74877604 | AP123: 20.59057286 | AQ123: 17.15885021 | AR123: 15.91794892 | AS123: 20.5276185 | AT123: 20.90387383 | AU123: 28.70131484 | AV123: 23.34970401 | AW123: 19.58881681 | AX123: 26.92415989 | AY123: 22.33679104 | AZ123: 31.19750881 | BA123: 29.12190831 | BB123: 4.979761874 | BC123: 9.640466365 | BD123: 15.06914754 | BE123: 5.177556746 | BF123: 8.695564065 | BG123: 7.627816437 | BH123: 13.43985829 | BI123: 11.61953799 | BJ123: 8.868827162 | BK123: 9.508881621 | BL123: 8.025794989
B124: 0.7629495179 | D124: 49 | E124: World Total | F124: Table3.ton | H124: 41 | J124: World Total | K124: World Total | M124: 252.0179354 | N124: 306.1577879 | O124: 317.7976655 | P124: 328.3209244 | Q124: 396.3523846 | R124: 333.6403885 | S124: 418.6142342 | T124: 353.3655973 | U124: 346.8752777 | V124: 296.1658981 | W124: 303.5808719 | X124: 375.7282578 | Y124: 443.1692489 | Z124: 599.4035 | AA124: 326.9927743 | AB124: 360.1456256 | AC124: 293.2162371 | AD124: 248.757908 | AE124: 240.9058171 | AF124: 283.7684826 | AG124: 266.7272914 | AH124: 218.4717047 | AI124: 305.0138615 | AJ124: 300.5036919 | AK124: 272.2029614 | AL124: 220.9868778 | AM124: 199.9666148 | AN124: 379.7253045 | AO124: 304.0532841 | AP124: 248.3712466 | AQ124: 232.9273166 | AR124: 258.7074186 | AS124: 261.2543342 | AT124: 247.9954031 | AU124: 297.4102061 | AV124: 283.7894903 | AW124: 258.2465526 | AX124: 219.7440228 | AY124: 150.3612741 | AZ124: 242.5209701 | BA124: 253.3334915 | BB124: 159.2906082 | BC124: 221.4557274 | BD124: 269.7506104 | BE124: 354.5682895 | BF124: 248.2139272 | BG124: 261.7102278 | BH124: 326.3913326 | BI124: 283.1882955 | BJ124: 257.5180114 | BK124: 341.1421257 | BL124: 335.2688153
B125: YoY | E125: Consumer | G125: Consumer
B126: 0.5328258303 | D126: 9 | E126: India | F126: Table4.ton | H126: 1 | J126: India | K126: India | M126: 269.4191891 | N126: 177.1225558 | O126: 259.4171322 | P126: 295.7530946 | Q126: 298.8186464 | R126: 290.8413756 | S126: 201.9141676 | T126: 182.4481828 | U126: 212.4856629 | V126: 191.476719 | W126: 232.0407381 | X126: 278.1480488 | Y126: 235.2854389 | Z126: 321.6734768 | AA126: 197.6445828 | AB126: 203.9777173 | AC126: 166.3774354 | AD126: 203.916097 | AE126: 237.0602039 | AF126: 226.0998197 | AG126: 190.7470434 | AH126: 159.1646136 | AI126: 271.1775186 | AJ126: 236.1493604 | AK126: 107.2389097 | AL126: 122.0952185 | AM126: 192.7792409 | AN126: 243.971631 | AO126: 160.7985302 | AP126: 202.5072032 | AQ126: 165.8350638 | AR126: 242.0761415 | AS126: 151.5332585 | AT126: 189.2445143 | AU126: 183.1563675 | AV126: 236.4784412 | AW126: 159.0449903 | AX126: 213.1670804 | AY126: 123.9059096 | AZ126: 194.2878551 | BA126: 101.9197152 | BB126: 63.73160864 | BC126: 94.56191371 | BD126: 186.156277 | BE126: 165.8209558 | BF126: 119.637812 | BG126: 168.0009295 | BH126: 343.8813424 | BI126: 135.4594137 | BJ126: 170.7329055 | BK126: 191.6504765 | BL126: 276.1140434
B127: 0.2836559123 | D127: 10 | E127: Pakistan | F127: Table4.ton | H127: 2 | J127: Pakistan | K127: Pakistan | M127: 16.80858117 | N127: 3.315013269 | O127: 10.95047927 | P127: 2.755426428 | Q127: 14.79662154 | R127: 9.351016354 | S127: 8.494300596 | T127: 7.304202998 | U127: 13.34067637 | V127: 7.919489542 | W127: 9.084752025 | X127: 9.045256277 | Y127: 9.686998004 | Z127: 13.3252632 | AA127: 10.8376575 | AB127: 10.39600445 | AC127: 7.103951334 | AD127: 10.22669004 | AE127: 8.705146625 | AF127: 9.743988355 | AG127: 8.373794975 | AH127: 9.152209252 | AI127: 9.586505302 | AJ127: 10.52726029 | AK127: 9.826810067 | AL127: 10.38251296 | AM127: 10.28607209 | AN127: 11.74828752 | AO127: 10.05034627 | AP127: 11.07886477 | AQ127: 10.16503127 | AR127: 13.63537474 | AS127: 10.54064655 | AT127: 9.860197886 | AU127: 8.966832656 | AV127: 10.80463793 | AW127: 11.85071121 | AX127: 9.540757181 | AY127: 7.137966125 | AZ127: 9.508756205 | BA127: 11.26384398 | BB127: 2.267539295 | BC127: 6.300813284 | BD127: 8.927526621 | BE127: 11.8804944 | BF127: 9.247971549 | BG127: 9.734388902 | BH127: 10.32610835 | BI127: 9.695170928 | BJ127: 11.46552516 | BK127: 12.99964648 | BL127: 10.12612597
B128: -0.2590734635 | D128: 11 | E128: Sri Lanka | F128: Table4.ton | H128: 3 | J128: Sri Lanka | K128: Sri Lanka | M128: 0 | N128: 0 | O128: 0 | P128: 0 | Q128: 0 | R128: 0 | S128: 0 | T128: 0 | U128: 0 | V128: 0 | W128: 0 | X128: 0 | Y128: 0 | Z128: 0 | AA128: 0 | AB128: 0 | AC128: 2.6825 | AD128: 2.768 | AE128: 1.911 | AF128: 1.761 | AG128: 3.12575 | AH128: 3.02544 | AI128: 2.15395 | AJ128: 2.35571 | AK128: 2.58866 | AL128: 3.265712 | AM128: 2.2862355 | AN128: 2.3304898 | AO128: 2.700593 | AP128: 2.8108552 | AQ128: 2.4388052 | AR128: 3.23116123 | AS128: 2.14350405 | AT128: 2.2556414 | AU128: 2.505581304 | AV128: 2.700045107 | AW128: 2.038658767 | AX128: 1.83107726 | AY128: 2.013774352 | AZ128: 2.003538341 | BA128: 1.349311137 | BB128: 0.5212317533 | BC128: 0.6841323056 | BD128: 1.717653756 | BE128: 1.769173364 | BF128: 0.9806280137 | BG128: 0.5789082089 | BH128: 0.7657444403 | BI128: 2.234383238 | BJ128: 0.4453140069 | BK128: 0.3007826062 | BL128: 0.9320422164
B129: 0.333253222 | D129: 12 | E129: Greater China | F129: Table4.ton | H129: 4 | J129: Greater China | K129: Greater China | M129: 168.4892153 | N129: 133.7709286 | O129: 174.1647544 | P129: 199.8365402 | Q129: 253.4038518 | R129: 181.6369716 | S129: 212.8075956 | T129: 225.1872588 | U129: 275.016903 | V129: 199.324417 | W129: 209.0121884 | X129: 234.9881368 | Y129: 359.4406031 | Z129: 517.31202 | AA129: 330.8553738 | AB129: 242.1792448 | AC129: 320.7504456 | AD129: 246.2004365 | AE129: 236.7225473 | AF129: 280.0043807 | AG129: 301.3431896 | AH129: 231.4304878 | AI129: 254.7654414 | AJ129: 274.61569 | AK129: 278.4541597 | AL129: 201.5584783 | AM129: 196.1776228 | AN129: 308.8568124 | AO129: 299.9621108 | AP129: 216.1549588 | AQ129: 244.2123801 | AR129: 269.3764861 | AS129: 281.043555 | AT129: 227.7045514 | AU129: 281.8490869 | AV129: 267.7937538 | AW129: 270.8148531 | AX129: 197.7443987 | AY129: 210.6285804 | AZ129: 220.3321246 | BA129: 106.4629092 | BB129: 137.0003314 | BC129: 183.0909221 | BD129: 214.7466656 | BE129: 289.2507552 | BF129: 211.5253736 | BG129: 228.7491464 | BH129: 264.1718495 | BI129: 234.8617479 | BJ129: 148.3896784 | BK129: 242.6651908 | BL129: 199.0207372
B130: 0.3341596502 | D130: 13 | E130: China | F130: Table4.ton | H130: 5 | J130: China | K130: China | M130: 160.3857378 | N130: 127.6349751 | O130: 166.424152 | P130: 191.2969806 | Q130: 239.0984434 | R130: 167.833037 | S130: 199.4451453 | T130: 209.8985676 | U130: 259.787747 | V130: 182.7739642 | W130: 195.5108488 | X130: 218.2494198 | Y130: 336.0669197 | Z130: 482.1066069 | AA130: 311.3861721 | AB130: 215.9466087 | AC130: 298.2520481 | AD130: 227.9969244 | AE130: 221.5296933 | AF130: 257.5071075 | AG130: 283.765212 | AH130: 217.6323069 | AI130: 237.300186 | AJ130: 256.8520024 | AK130: 264.3903527 | AL130: 189.301776 | AM130: 185.1244817 | AN130: 290.5544336 | AO130: 284.9956676 | AP130: 203.6829391 | AQ130: 231.3258967 | AR130: 251.5483226 | AS130: 264.8670877 | AT130: 213.5427919 | AU130: 264.6443471 | AV130: 251.2937538 | AW130: 254.7758723 | AX130: 185.4193987 | AY130: 200.8945804 | AZ130: 208.0381246 | BA130: 98.36990922 | BB130: 131.3313314 | BC130: 176.0989221 | BD130: 206.8536656 | BE130: 280.2257552 | BF130: 204.0993736 | BG130: 220.7481464 | BH130: 253.7598495 | BI130: 226.7727479 | BJ130: 140.6146784 | BK130: 233.2571908 | BL130: 188.5177372
B131: 0.346876755 | D131: 14 | E131: Hong Kong | F131: Table4.ton | H131: 6 | J131: Hong Kong | K131: Hong Kong | M131: 6.072373511 | N131: 5.622682056 | O131: 6.080281875 | P131: 6.414213511 | Q131: 11.00392258 | R131: 10.61211521 | S131: 10.47082598 | T131: 11.7153039 | U131: 11.72159843 | V131: 13.29064491 | W131: 11.59345548 | X131: 13.04559797 | Y131: 18.0695625 | Z131: 29.925875 | AA131: 15.5359375 | AB131: 21.99 | AC131: 18.841 | AD131: 13.157 | AE131: 11.504 | AF131: 17.93 | AG131: 13.97 | AH131: 10.798 | AI131: 14.182 | AJ131: 13.897 | AK131: 10.56 | AL131: 8.972 | AM131: 8.7796143 | AN131: 14.5435752 | AO131: 11.6238405 | AP131: 9.803462 | AQ131: 10.22093603 | AR131: 14.33462228 | AS131: 12.67392852 | AT131: 11.65828237 | AU131: 14.2047398 | AV131: 13.58 | AW131: 12.96798085 | AX131: 10.01 | AY131: 7.213 | AZ131: 9.385 | BA131: 4.884 | BB131: 3.244 | BC131: 4.302 | BD131: 5.373 | BE131: 5.77 | BF131: 5.151 | BG131: 6.176 | BH131: 7.552 | BI131: 4.594 | BJ131: 5.24 | BK131: 7.373 | BL131: 7.338
B132: 0.2170865739 | D132: 15 | E132: Taiwan | F132: Table4.ton | H132: 7 | J132: Taiwan | K132: Taiwan | M132: 2.031104005 | N132: 0.5132714296 | O132: 1.660320544 | P132: 2.125346073 | Q132: 3.301485821 | R132: 3.191819356 | S132: 2.891624402 | T132: 3.573387282 | U132: 3.507557534 | V132: 3.259807872 | W132: 1.907884142 | X132: 3.693118948 | Y132: 5.304120873 | Z132: 5.279538064 | AA132: 3.933264233 | AB132: 4.242636152 | AC132: 3.657397478 | AD132: 5.046512147 | AE132: 3.688854018 | AF132: 4.567273164 | AG132: 3.607977604 | AH132: 3.000180963 | AI132: 3.28325544 | AJ132: 3.866687642 | AK132: 3.503807015 | AL132: 3.284702344 | AM132: 2.273526758 | AN132: 3.758803516 | AO132: 3.342602637 | AP132: 2.668557668 | AQ132: 2.66554736 | AR132: 3.493541217 | AS132: 3.502538841 | AT132: 2.503477189 | AU132: 3 | AV132: 2.92 | AW132: 3.071 | AX132: 2.315 | AY132: 2.521 | AZ132: 2.909 | BA132: 3.209 | BB132: 2.425 | BC132: 2.69 | BD132: 2.52 | BE132: 3.255 | BF132: 2.275 | BG132: 1.825 | BH132: 2.86 | BI132: 3.495 | BJ132: 2.535 | BK132: 2.035 | BL132: 3.165
B133: 1.720703083 | D133: 16 | E133: Japan | F133: Table4.ton | H133: 8 | J133: Japan | K133: Japan | M133: -7.053073555 | N133: -2.970787875 | O133: -5.443215698 | P133: -3.588287759 | Q133: -2.109439742 | R133: -6.423385383 | S133: -18.18322557 | T133: -9.641757433 | U133: 0.344046352 | V133: 6.627105851 | W133: -1.220638919 | X133: -0.6109376884 | Y133: -6.539117404 | Z133: 12.02016627 | AA133: 3.782823889 | AB133: 11.60951323 | AC133: 11.36534992 | AD133: 2.585023113 | AE133: 3.107075951 | AF133: -3.348516432 | AG133: 0.02339920658 | AH133: 3.63674745 | AI133: 15.13994017 | AJ133: 13.8717828 | AK133: 7.147796714 | AL133: 9.763803576 | AM133: 7.343855784 | AN133: 9.771415836 | AO133: 1.426963152 | AP133: 5.211116729 | AQ133: -0.03776277415 | AR133: 6.728509677 | AS133: 4.787902415 | AT133: 6.825316729 | AU133: 11.96223011 | AV133: 5.390131484 | AW133: -2.753651536 | AX133: 1.019299063 | AY133: -3.618338385 | AZ133: 2.237192743 | BA133: -3.474146383 | BB133: 0.111979438 | BC133: 3.607392372 | BD133: 4.263073469 | BE133: 8.196348256 | BF133: 0.2382912132 | BG133: 5.916 | BH133: 1.238 | BI133: -6.848 | BJ133: 0.09512577383 | BK133: 7.3544 | BL133: 3.6678
B134: 0.1379917856 | D134: 17 | E134: Indonesia | F134: Table4.ton | H134: 9 | J134: Indonesia | K134: Indonesia | M134: 12.96977269 | N134: 9.349051433 | O134: 15.31833348 | P134: 12.92578101 | Q134: 16.52462319 | R134: 12.86040707 | S134: 16.18037071 | T134: 15.25110428 | U134: 22.0282983 | V134: 12.79011753 | W134: 13.22938434 | X134: 13.61967774 | Y134: 26.5333623 | Z134: 25.45128731 | AA134: 18.23722224 | AB134: 17.89043518 | AC134: 17.05439439 | AD134: 15.79056403 | AE134: 14.96835751 | AF134: 15.56938892 | AG134: 17.77511411 | AH134: 12.99107988 | AI134: 13.95478786 | AJ134: 14.29731623 | AK134: 16.0288495 | AL134: 15.35417693 | AM134: 13.30888712 | AN134: 14.78374218 | AO134: 14.23967908 | AP134: 15.77622198 | AQ134: 13.655214 | AR134: 15.11759 | AS134: 14.60626275 | AT134: 17.18770154 | AU134: 15.38 | AV134: 16.874379 | AW134: 15.42648276 | AX134: 17.98719972 | AY134: 7.9284 | AZ134: 13.2067001 | BA134: 7.999587994 | BB134: 7.285403063 | BC134: 9.86498 | BD134: 12.46937608 | BE134: 11.51564453 | BF134: 8.070553714 | BG134: 13.13826 | BH134: 14.04654922 | BI134: 10.54335158 | BJ134: 9.393088903 | BK134: 14.946444 | BL134: 14.84031813
B135: 0.2173922866 | D135: 18 | E135: Malaysia | F135: Table4.ton | H135: 10 | J135: Malaysia | K135: Malaysia | M135: 4.439040007 | N135: 4.860591005 | O135: 5.185684012 | P135: 2.470759098 | Q135: 5.685158151 | R135: 5.450806205 | S135: 5.194621633 | T135: 4.06916171 | U135: 5.321994454 | V135: 5.014698933 | W135: 4.664753734 | X135: 5.646712716 | Y135: 5.025042975 | Z135: 9.13777092 | AA135: 8.000710681 | AB135: 6.43496956 | AC135: 7.14882553 | AD135: 5.767145301 | AE135: 7.071170627 | AF135: 6.869453283 | AG135: 7.622766807 | AH135: 4.073660084 | AI135: 5.329650599 | AJ135: 5.083856081 | AK135: 5.460240011 | AL135: 4.685717585 | AM135: 4.390335478 | AN135: 4.829798671 | AO135: 4.760141877 | AP135: 5.097010271 | AQ135: 4.399631373 | AR135: 4.801479546 | AS135: 4.73 | AT135: 4.397 | AU135: 4.93 | AV135: 4.86 | AW135: 4.55 | AX135: 4.3 | AY135: 4.32 | AZ135: 4.435 | BA135: 3.2865 | BB135: 2.3116 | BC135: 3.67 | BD135: 3.805 | BE135: 4.23285 | BF135: 3.3375 | BG135: 2.1594 | BH135: 5.132 | BI135: 5.1577905 | BJ135: 4.485 | BK135: 3.65 | BL135: 5.24
B136: 0.2184325611 | D136: 19 | E136: Singapore | F136: Table4.ton | H136: 11 | J136: Singapore | K136: Singapore | M136: 3.05208915 | N136: 2.041295666 | O136: 2.997575386 | P136: 1.807311314 | Q136: 3.27836154 | R136: 3.584009382 | S136: 2.797612815 | T136: 3.39469846 | U136: 3.469089051 | V136: 3.461187794 | W136: 3.216724441 | X136: 4.675012458 | Y136: 4.173495469 | Z136: 6.422928257 | AA136: 5.37775958 | AB136: 4.877673611 | AC136: 5.030355093 | AD136: 5.56459473 | AE136: 5.177023738 | AF136: 4.750990405 | AG136: 5.029837338 | AH136: 3.858123937 | AI136: 4.502389429 | AJ136: 4.671051112 | AK136: 4.474976196 | AL136: 4.259752443 | AM136: 3.661638422 | AN136: 4.70086383 | AO136: 4.536819534 | AP136: 4.100824959 | AQ136: 3.633997038 | AR136: 4.360363067 | AS136: 4.522120174 | AT136: 3.803728735 | AU136: 4.01 | AV136: 4.05 | AW136: 4.06 | AX136: 3.55 | AY136: 3.53 | AZ136: 3.84 | BA136: 2.94 | BB136: 1.2 | BC136: 2.568 | BD136: 2.73 | BE136: 3.505 | BF136: 2.6827 | BG136: 2.105 | BH136: 3.16 | BI136: 4.11602 | BJ136: 3.84 | BK136: 3.33 | BL136: 3.7
B137: 0.3941557152 | D137: 20 | E137: S Korea | F137: Table4.ton | H137: 12 | J137: S Korea | K137: S Korea | M137: 8.176482189 | N137: -1.913508684 | O137: 11.50490454 | P137: 1.401195061 | Q137: 9.293443091 | R137: 5.427759739 | S137: 4.518626806 | T137: 7.318386718 | U137: 9.337202309 | V137: 6.515597119 | W137: 6.032309691 | X137: 6.084726057 | Y137: 10.08984375 | Z137: 10.62521875 | AA137: 9.944179688 | AB137: 10.1455 | AC137: 10.761 | AD137: 9.727125 | AE137: 9.64925 | AF137: 9.53225 | AG137: 11.214125 | AH137: 9.732375 | AI137: 12.021125 | AJ137: 12.572875 | AK137: 10.507875 | AL137: 8.260625 | AM137: 8.72525 | AN137: 11.65625 | AO137: 11.1025 | AP137: 9.42425 | AQ137: 9.604875 | AR137: 11.06625 | AS137: 11.22763 | AT137: 8.973704 | AU137: 10.372 | AV137: 10.409 | AW137: 9.37 | AX137: 10.235 | AY137: 9.823 | AZ137: 9.513 | BA137: 7.943 | BB137: 7.7 | BC137: 9.925 | BD137: 9.82 | BE137: 10.87125 | BF137: 9.43 | BG137: 9.095 | BH137: 10.24 | BI137: 9.1315 | BJ137: 8.425 | BK137: 7.045 | BL137: 7.79
B138: 0.07304034648 | D138: 21 | E138: Thailand | F138: Table4.ton | H138: 13 | J138: Thailand | K138: Thailand | M138: 18.32125026 | N138: 21.27800425 | O138: 22.19266568 | P138: 9.503186197 | Q138: 33.26761737 | R138: 19.38410697 | S138: 35.57362952 | T138: 25.33776918 | U138: 35.83596738 | V138: 18.03109521 | W138: 20.42448547 | X138: 35.72472085 | Y138: 59.794125 | Z138: 40.5805 | AA138: 27.0715625 | AB138: 26.36 | AC138: 27.72 | AD138: 21.022 | AE138: 28.48 | AF138: 31.497 | AG138: 22.881 | AH138: 19.23623 | AI138: 23.4715415 | AJ138: 24.61761858 | AK138: 25.668562 | AL138: 18.2828496 | AM138: 16.93532306 | AN138: 20.6412509 | AO138: 23.3139584 | AP138: 17.72929474 | AQ138: 16.0972729 | AR138: 18.2764329 | AS138: 24.33383652 | AT138: 17.64575078 | AU138: 19.32385771 | AV138: 19.25153834 | AW138: 24.6094063 | AX138: 15.07180968 | AY138: -7.022272119 | AZ138: 13.83977531 | BA138: 7.470463567 | BB138: -39.90656802 | BC138: -43.8027869 | BD138: -5.257206288 | BE138: 8.250441571 | BF138: 7.453880588 | BG138: 8.616509654 | BH138: 12.38457745 | BI138: 3.805678779 | BJ138: 8.485893196 | BK138: 12.09131303 | BL138: 13.54499582
B139: 0.1941666971 | D139: 22 | E139: Vietnam | F139: Table4.ton | H139: 14 | J139: Vietnam | K139: Vietnam | M139: 19.27988275 | N139: 15.77256928 | O139: 22.25217535 | P139: 25.0226199 | Q139: 19.97817782 | R139: 17.30411067 | S139: 36.95054022 | T139: 29.19162547 | U139: 23.96448952 | V139: 20.60102228 | W139: 19.23922704 | X139: 20.44751321 | Y139: 22.795625 | Z139: 29.83125 | AA139: 24.6875 | AB139: 22.33478261 | AC139: 19.74 | AD139: 15.31 | AE139: 15.85 | AF139: 15.75 | AG139: 18.88 | AH139: 14.524 | AI139: 14.99845 | AJ139: 15.00932175 | AK139: 16.1857005 | AL139: 12.3717604 | AM139: 12.42643797 | AN139: 17.34407711 | AO139: 16.67795519 | AP139: 12.74559655 | AQ139: 11.94069848 | AR139: 12.50562998 | AS139: 17.78888262 | AT139: 13.88042167 | AU139: 14.33349165 | AV139: 13.48546778 | AW139: 18.72924227 | AX139: 13.49662367 | AY139: 12.81771178 | AZ139: 11.32572858 | BA139: 16.7865438 | BB139: 6.798187735 | BC139: 6.585345106 | BD139: 9.631787687 | BE139: 18.55591169 | BF139: 12.59648802 | BG139: 3.292672553 | BH139: 8.544222639 | BI139: 19.60294555 | BJ139: 14.02687411 | BK139: 11.99260953 | BL139: 13.48525609
D140: 23 | E140: Australia | F140: Table4.ton | H140: 15 | J140: Australia | K140: Australia | M140: 0 | N140: 0 | O140: 0 | P140: 0 | Q140: 0 | R140: 0 | S140: 0 | T140: 0 | U140: 0 | V140: 0 | W140: 0 | X140: 0 | Y140: 0 | Z140: 0 | AA140: 0 | AB140: 0 | AC140: 0 | AD140: 0 | AE140: 0 | AF140: 0 | AG140: 0 | AH140: 0 | AI140: 0 | AJ140: 0 | AK140: 0 | AL140: 0 | AM140: 0 | AN140: 0 | AO140: 0 | AP140: 0 | AQ140: 0 | AR140: 0 | AS140: 0 | AT140: 0 | AU140: 0 | AV140: 0 | AW140: 0 | AX140: 0 | AY140: 0 | AZ140: 0 | BA140: 0 | BB140: 0 | BC140: 0 | BD140: 0 | BE140: 7.16491735 | BF140: 7.536793743 | BG140: 6.107109112 | BH140: 7.893522343 | BI140: 8.617036112 | BJ140: 7.416228116 | BK140: 7.43506395 | BL140: 7.413450249
B141: -0.3046199959 | D141: 24 | E141: Middle East* | F141: Table4.ton | H141: 16 | J141: Middle East* | K141: Middle East* | M141: 90.20036789 | N141: 85.11737569 | O141: 89.95749767 | P141: 61.91911484 | Q141: 79.18367861 | R141: 79.59874213 | S141: 77.82789301 | T141: 64.82834323 | U141: 75.52919635 | V141: 76.87963844 | W141: 73.95735486 | X141: 73.86143549 | Y141: 86.55259483 | Z141: 128.5080172 | AA141: 89.99822543 | AB141: 83.83834471 | AC141: 102.713353 | AD141: 88.26621732 | AE141: 68.18140491 | AF141: 69.67711502 | AG141: 88.48191904 | AH141: 77.49176609 | AI141: 70.24555909 | AJ141: 66.61997717 | AK141: 65.89338214 | AL141: 57.11934782 | AM141: 50.02581575 | AN141: 55.8451572 | AO141: 64.72990063 | AP141: 61.38325603 | AQ141: 53.63656752 | AR141: 61.93928236 | AS141: 60.14126317 | AT141: 66.24232903 | AU141: 67.62304276 | AV141: 64.98602049 | AW141: 64.75714934 | AX141: 60.01299836 | AY141: 51.83421577 | AZ141: 54.55547365 | BA141: 56.31453136 | BB141: 23.18029123 | BC141: 45.04936744 | BD141: 47.42696846 | BE141: 54.89959752 | BF141: 47.19436356 | BG141: 56.58566226 | BH141: 61.20540519 | BI141: 64.72078635 | BJ141: 63.33262119 | BK141: 73.61527985 | BL141: 66.49366521
B142: -0.3161264831 | D142: 25 | E142: Saudi Arabia | F142: Table4.ton | H142: 17 | J142: Saudi Arabia | K142: Saudi Arabia | M142: 20.48411532 | N142: 27.69145049 | O142: 22.47597373 | P142: 13.81053478 | Q142: 17.26305647 | R142: 23.53754253 | S142: 17.83849111 | T142: 13.81343412 | U142: 15.75602069 | V142: 19.92393161 | W142: 15.56835036 | X142: 14.68172584 | Y142: 16.16048352 | Z142: 30.22000922 | AA142: 21.16044822 | AB142: 17.18283703 | AC142: 21.42001147 | AD142: 22.59032599 | AE142: 18.17087361 | AF142: 21.84326484 | AG142: 22.12690761 | AH142: 22.0050339 | AI142: 19.20695338 | AJ142: 21.08855255 | AK142: 16.34567044 | AL142: 15.71957401 | AM142: 13.10177265 | AN142: 15.04865992 | AO142: 13.32166753 | AP142: 14.48437066 | AQ142: 11.68326326 | AR142: 14.88671972 | AS142: 9.954668436 | AT142: 13.27082373 | AU142: 14.62500512 | AV142: 11.70498501 | AW142: 11.77586921 | AX142: 11.67496205 | AY142: 11.68591707 | AZ142: 10.86637971 | BA142: 9.4102609 | BB142: 2.968401662 | BC142: 9.639345527 | BD142: 9.076890393 | BE142: 11.03650404 | BF142: 10.0674841 | BG142: 10.9905844 | BH142: 12.14079225 | BI142: 11.69379456 | BJ142: 12.15733561 | BK142: 13.48986128 | BL142: 12.75792331
B143: -0.4074760337 | D143: 26 | E143: UAE | F143: Table4.ton | H143: 18 | J143: UAE | K143: UAE | M143: 23.27310985 | N143: 20.34417076 | O143: 18.42867984 | P143: 14.86508129 | Q143: 24.28990186 | R143: 19.17045647 | S143: 12.95159441 | T143: 11.81004498 | U143: 19.60730587 | V143: 16.56498315 | W143: 11.65503115 | X143: 12.19949531 | Y143: 20.40940971 | Z143: 27.43000749 | AA143: 16.18738646 | AB143: 14.45000084 | AC143: 21.19188965 | AD143: 19.72572467 | AE143: 12.44634221 | AF143: 12.590551 | AG143: 19.18748332 | AH143: 17.16934268 | AI143: 11.76619687 | AJ143: 12.03541173 | AK143: 18.90184049 | AL143: 13.09258324 | AM143: 8.843649301 | AN143: 10.38941902 | AO143: 17.4884129 | AP143: 13.92969391 | AQ143: 8.38289182 | AR143: 12.43012263 | AS143: 11.77388799 | AT143: 11.27495836 | AU143: 8.286977941 | AV143: 10.60915983 | AW143: 12.31473864 | AX143: 10.60050299 | AY143: 6.443661498 | AZ143: 9.702419388 | BA143: 11.31382531 | BB143: 2.129451464 | BC143: 5.194780424 | BD143: 8.09593259 | BE143: 10.66949799 | BF143: 8.776197188 | BG143: 10.12196543 | BH143: 12.02830872 | BI143: 14.46151008 | BJ143: 15.38740799 | BK143: 12.85591841 | BL143: 12.56458478
B144: -0.0115469309 | D144: 27 | E144: Kuwait | F144: Table4.ton | H144: 19 | J144: Kuwait | K144: Kuwait | M144: 3.060963263 | N144: 2.122090697 | O144: 3.152809948 | P144: 1.989183636 | Q144: 2.923337164 | R144: 2.071003382 | S144: 2.729582762 | T144: 1.934400734 | U144: 2.675166767 | V144: 2.120018898 | W144: 2.537876718 | X144: 1.972254721 | Y144: 4.781661817 | Z144: 4.73823986 | AA144: 2.855619509 | AB144: 3.117415427 | AC144: 4.944569342 | AD144: 4.685524743 | AE144: 3.401225479 | AF144: 4.732921947 | AG144: 4.58682511 | AH144: 4.243505008 | AI144: 2.945199477 | AJ144: 4.390131589 | AK144: 4.114891849 | AL144: 4.005535258 | AM144: 2.850828628 | AN144: 4.050102819 | AO144: 4.647114354 | AP144: 4.449557076 | AQ144: 2.980165645 | AR144: 4.429866574 | AS144: 4.384360301 | AT144: 4.925564391 | AU144: 3.343818062 | AV144: 4.348808338 | AW144: 4.574939379 | AX144: 4.483126936 | AY144: 2.759255114 | AZ144: 4.035991153 | BA144: 4.155829629 | BB144: 2.965235689 | BC144: 2.519711037 | BD144: 3.391909611 | BE144: 4.516811103 | BF144: 4.437539814 | BG144: 3.745238469 | BH144: 3.887377423 | BI144: 4.120442779 | BJ144: 4.828465436 | BK144: 5.12643261 | BL144: 4.786685278
B145: -0.3267892928 | D145: 28 | E145: Egypt | F145: Table4.ton | H145: 20 | J145: Egypt | K145: Egypt | M145: 18.3154723 | N145: 9.531468427 | O145: 15.86120093 | P145: 11.6318106 | Q145: 9.00192952 | R145: 8.334484551 | S145: 9.519083757 | T145: 9.544973037 | U145: 10.30973882 | V145: 9.338286927 | W145: 11.70451895 | X145: 12.8585955 | Y145: 12.65519501 | Z145: 15.84302574 | AA145: 12.70964247 | AB145: 11.55818323 | AC145: 14.71411936 | AD145: 12.9953286 | AE145: 12.53430695 | AF145: 10.89209564 | AG145: 10.4311693 | AH145: 10.06700394 | AI145: 13.26135665 | AJ145: 9.387631958 | AK145: 7.170603495 | AL145: 6.350149379 | AM145: 7.769658353 | AN145: 6.800029758 | AO145: 6.236846551 | AP145: 5.180409809 | AQ145: 7.02454789 | AR145: 6.045403779 | AS145: 6.570231603 | AT145: 5.711143054 | AU145: 8.178457736 | AV145: 6.891801196 | AW145: 7.499993508 | AX145: 6.056040658 | AY145: 7.654090871 | AZ145: 7.936193455 | BA145: 7.730622227 | BB145: 1.991005786 | BC145: 6.232915549 | BD145: 7.386067246 | BE145: 8.85692451 | BF145: 7.769768648 | BG145: 8.945970602 | BH145: 8.556272751 | BI145: 9.510204369 | BJ145: 7.802742786 | BK145: 10.54801993 | BL145: 10.13318199
B146: -0.2484755941 | D146: 29 | E146: Iran | F146: Table4.ton | H146: 21 | J146: Iran | K146: Iran | M146: 21.25065 | N146: 21.48932882 | O146: 25.59889345 | P146: 16.64531864 | Q146: 21.56338243 | R146: 22.10154042 | S146: 30.19807386 | T146: 24.28913551 | U146: 22.71660635 | V146: 24.16765458 | W146: 27.60329813 | X146: 27.6485611 | Y146: 25.88352117 | Z146: 42.21728317 | AA146: 29.29795834 | AB146: 30.29322565 | AC146: 30.80759507 | AD146: 18.8846498 | AE146: 14.14854771 | AF146: 11.51844955 | AG146: 23.46757053 | AH146: 14.95912392 | AI146: 16.23652663 | AJ146: 12.6490505 | AK146: 11.22276483 | AL146: 9.97962584 | AM146: 11.73967527 | AN146: 12.19702864 | AO146: 15.36484146 | AP146: 15.17588627 | AQ146: 17.59144311 | AR146: 16.40055463 | AS146: 19.97773583 | AT146: 21.72000203 | AU146: 25.74489913 | AV146: 23.70855891 | AW146: 20.85671578 | AX146: 17.80422017 | AY146: 16.1913237 | AZ146: 14.7786362 | BA146: 16.58044422 | BB146: 9.91476878 | BC146: 16.25802842 | BD146: 13.50789889 | BE146: 12.15048777 | BF146: 9.362994214 | BG146: 15.41562304 | BH146: 14.85639152 | BI146: 17.72752214 | BJ146: 14.50790685 | BK146: 22.60160427 | BL146: 16.84990664
B147: -0.2420705064 | D147: 30 | E147: Other Middle East | F147: Table4.ton | H147: 22 | J147: Other Middle East | K147: Other Middle East | M147: 3.816057153 | N147: 3.938866509 | O147: 4.439939766 | P147: 2.9771859 | Q147: 4.142071163 | R147: 4.383714786 | S147: 4.591067117 | T147: 3.436354847 | U147: 4.464357849 | V147: 4.764763282 | W147: 4.888279541 | X147: 4.500803017 | Y147: 6.6623236 | Z147: 8.059451711 | AA147: 7.787170435 | AB147: 7.23668252 | AC147: 9.635168161 | AD147: 9.384663515 | AE147: 7.480108944 | AF147: 8.099832048 | AG147: 8.681963178 | AH147: 9.047756646 | AI147: 6.829326079 | AJ147: 7.069198844 | AK147: 8.137611039 | AL147: 7.971880091 | AM147: 5.720231545 | AN147: 7.359917042 | AO147: 7.671017833 | AP147: 8.1633383 | AQ147: 5.974255802 | AR147: 7.746615023 | AS147: 7.480379007 | AT147: 9.339837465 | AU147: 7.443884776 | AV147: 7.722707193 | AW147: 7.73489282 | AX147: 9.394145555 | AY147: 7.099967509 | AZ147: 7.235853737 | BA147: 7.123549075 | BB147: 3.211427849 | BC147: 5.204586491 | BD147: 5.968269732 | BE147: 7.669372102 | BF147: 6.780379598 | BG147: 7.366280315 | BH147: 9.736262526 | BI147: 7.207312422 | BJ147: 8.648762515 | BK147: 8.993443348 | BL147: 9.401383203
B148: 0.7471694578 | D148: 31 | E148: Turkey | F148: Table4.ton | H148: 23 | J148: Turkey | M148: 26.61836378 | N148: 23.51025263 | O148: 43.90201785 | P148: 14.72373341 | Q148: 36.86224479 | R148: 37.79529032 | S148: 46.89882905 | T148: 23.97091359 | U148: 31.54657118 | V148: 38.73728054 | W148: 29.9138526 | X148: 13.75261949 | Y148: 48.14169271 | Z148: 64.69207129 | AA148: 31.62237651 | AB148: 39.62812599 | AC148: 27.00580488 | AD148: 32.07137996 | AE148: 22.3366334 | AF148: 35.27581192 | AG148: 15.63966513 | AH148: 16.05165344 | AI148: 21.23233732 | AJ148: 19.19991547 | AK148: 13.70502592 | AL148: 13.72421585 | AM148: 14.6488979 | AN148: 28.04495863 | AO148: 17.23377148 | AP148: 34.43487093 | AQ148: 25.35355678 | AR148: 16.54801712 | AS148: 23.18848946 | AT148: 21.5384746 | AU148: 11.83839835 | AV148: 17.5746498 | AW148: 26.15635446 | AX148: 19.11177264 | AY148: 14.96994193 | AZ148: 29.08680932 | BA148: 31.90558006 | BB148: 23.86684936 | BC148: 55.54670598 | BD148: 35.67326871 | BE148: 53.23678903 | BF148: 12.2102256 | BG148: 18.5389137 | BH148: 11.31850226 | BI148: 17.64205529 | BJ148: 17.80152724 | BK148: 46.9648045 | BL148: 39.13318498
B149: -0.01450485437 | D149: 32 | E149: Russia | F149: Table4.ton | H149: 24 | J149: Russia | K149: Russia | M149: 14.21858466 | N149: 15.34004863 | O149: 13.68351597 | P149: 17.08899696 | Q149: 14.9385626 | R149: 15.32430912 | S149: 15.70940031 | T149: 18.37876352 | U149: 16.30319504 | V149: 15.38286638 | W149: 16.70049569 | X149: 19.26954741 | Y149: 17.84110281 | Z149: 18.2364225 | AA149: 21.34929687 | AB149: 22.2774 | AC149: 21.74368123 | AD149: 19.17330004 | AE149: 18.90097984 | AF149: 15.67706 | AG149: 13.18260825 | AH149: 10.15497842 | AI149: 14.58251518 | AJ149: 10.02794029 | AK149: 10.76014632 | AL149: 9.673414016 | AM149: 10.55325026 | AN149: 11.01164592 | AO149: 10.08152263 | AP149: 8.795913111 | AQ149: 11.20706806 | AR149: 12.18772511 | AS149: 10.88454876 | AT149: 9.528254423 | AU149: 12.08452487 | AV149: 13.10686812 | AW149: 11.55818271 | AX149: 10.0864846 | AY149: 12.66688613 | AZ149: 13.79424041 | BA149: 10.79530244 | BB149: 4.86142384 | BC149: 9.02319768 | BD149: 10.13370877 | BE149: 10.30261125 | BF149: 10.7940442 | BG149: 12.73656987 | BH149: 12.98110836 | BI149: 13.93551219 | BJ149: 15.03248161 | BK149: 16.09341293 | BL149: 15.6223775
B150: 0.7044445096 | D150: 33 | E150: Americas | F150: Table4.ton | H150: 25 | J150: Americas | K150: Americas | M150: 53.23326495 | N150: 77.62272354 | O150: 71.14163156 | P150: 101.837233 | Q150: 54.45929596 | R150: 61.2612849 | S150: 66.70873293 | T150: 84.41782755 | U150: 44.42296547 | V150: 49.76826051 | W150: 53.14221329 | X150: 76.85695732 | Y150: 56.40970643 | Z150: 66.36146738 | AA150: 50.83184241 | AB150: 77.82841262 | AC150: 45.9133922 | AD150: 51.91890785 | AE150: 50.35507821 | AF150: 76.42956978 | AG150: 46.19204211 | AH150: 52.7656936 | AI150: 70.92347704 | AJ150: 78.60748059 | AK150: 55.41876553 | AL150: 67.5188237 | AM150: 56.01581839 | AN150: 87.51433308 | AO150: 50.95370704 | AP150: 45.72145379 | AQ150: 46.44484485 | AR150: 72.26361792 | AS150: 41.36971889 | AT150: 47.3833875 | AU150: 49.07791346 | AV150: 72.07448122 | AW150: 43.24200426 | AX150: 45.75583479 | AY150: 46.55933959 | AZ150: 70.3386944 | BA150: 49.29078965 | BB150: 44.03129827 | BC150: 61.67170781 | BD150: 82.34662285 | BE150: 69.96649485 | BF150: 82.00001593 | BG150: 68.08681912 | BH150: 101.2390589 | BI150: 70.49221129 | BJ150: 80.51258825 | BK150: 67.68772117 | BL150: 97.08456113
B151: 0.9255879797 | D151: 34 | E151: United States | F151: Table4.ton | H151: 26 | J151: United States | K151: United States | M151: 39.41892512 | N151: 56.6696481 | O151: 55.16001161 | P151: 75.43438521 | Q151: 41.87920577 | R151: 43.03220705 | S151: 51.93737242 | T151: 61.64673024 | U151: 33.40083311 | V151: 32.47821834 | W151: 37.99211334 | X151: 56.31521861 | Y151: 43.90639175 | Z151: 50.83106265 | AA151: 35.34273147 | AB151: 57.69536142 | AC151: 32.90784792 | AD151: 36.7029764 | AE151: 36.80576241 | AF151: 58.32950068 | AG151: 33.88443682 | AH151: 37.9505611 | AI151: 57.07265181 | AJ151: 61.64254736 | AK151: 43.24489792 | AL151: 52.88762508 | AM151: 43.06823294 | AN151: 70.89626244 | AO151: 38.20310058 | AP151: 31.66821749 | AQ151: 33.23822967 | AR151: 55.75565213 | AS151: 29.21602342 | AT151: 33.45127335 | AU151: 35.92319651 | AV151: 55.85227086 | AW151: 31.28899705 | AX151: 32.00950586 | AY151: 33.8150437 | AZ151: 53.6862309 | BA151: 37.69412541 | BB151: 32.76077858 | BC151: 50.06122369 | BD151: 66.80451034 | BE151: 58.20298204 | BF151: 67.41568549 | BG151: 56.21949559 | BH151: 83.10407237 | BI151: 57.63634135 | BJ151: 65.44449931 | BK151: 54.92917067 | BL151: 78.5481459
B152: 0.5413029764 | D152: 35 | E152: Canada | F152: Table4.ton | H152: 27 | J152: Canada | K152: Canada | M152: 3.829237341 | N152: 5.730238436 | O152: 4.392892996 | P152: 6.485719765 | Q152: 4.335243357 | R152: 4.541601219 | S152: 5.189129641 | T152: 6.494036757 | U152: 3.371890973 | V152: 4.243523195 | W152: 3.989104682 | X152: 5.982301551 | Y152: 3.516555553 | Z152: 5.113314399 | AA152: 4.3306052 | AB152: 6.686122602 | AC152: 3.865870981 | AD152: 4.284280321 | AE152: 3.386021518 | AF152: 6.823916004 | AG152: 3.579564038 | AH152: 4.100662572 | AI152: 3.678500959 | AJ152: 6.17691098 | AK152: 3.764496338 | AL152: 4.707548064 | AM152: 3.237517136 | AN152: 6.2245152 | AO152: 4.039510571 | AP152: 3.830868017 | AQ152: 3.197941726 | AR152: 5.944760305 | AS152: 3.349653302 | AT152: 3.983775282 | AU152: 3.265573923 | AV152: 5.866123432 | AW152: 3.702612447 | AX152: 4.097066683 | AY152: 3.284355474 | AZ152: 6.317103599 | BA152: 4.283012195 | BB152: 4.092840185 | BC152: 4.905869841 | BD152: 7.488215053 | BE152: 5.354215249 | BF152: 6.89756205 | BG152: 4.617759488 | BH152: 9.11688888 | BI152: 6.051114951 | BJ152: 7.05447713 | BK152: 5.282668288 | BL152: 9.146834606
B153: 0.02179460115 | D153: 36 | E153: Mexico | F153: Table4.ton | H153: 28 | J153: Mexico | K153: Mexico | M153: 5.855575874 | N153: 7.471561622 | O153: 5.267062706 | P153: 8.874608891 | Q153: 4.191162692 | R153: 6.064808492 | S153: 4.312777398 | T153: 7.291070127 | U153: 3.67014833 | V153: 4.937548783 | W153: 4.967961664 | X153: 4.780542156 | Y153: 4.057020825 | Z153: 4.447812426 | AA153: 4.915576733 | AB153: 4.965206536 | AC153: 4.471677036 | AD153: 4.263701265 | AE153: 4.629673773 | AF153: 4.619888766 | AG153: 4.515245444 | AH153: 4.589236053 | AI153: 5.166258563 | AJ153: 4.744845662 | AK153: 4.495823942 | AL153: 4.34050875 | AM153: 4.79478031 | AN153: 4.596437447 | AO153: 4.816595883 | AP153: 4.685435284 | AQ153: 5.116885458 | AR153: 4.691287487 | AS153: 4.940682173 | AT153: 4.494614271 | AU153: 4.942099265 | AV153: 4.502342333 | AW153: 4.50270277 | AX153: 4.438223885 | AY153: 4.732503907 | AZ153: 4.394026561 | BA153: 3.753344648 | BB153: 3.131291061 | BC153: 3.199593771 | BD153: 3.187606293 | BE153: 3.159094744 | BF153: 3.521220873 | BG153: 3.524064473 | BH153: 3.9162795 | BI153: 3.360419588 | BJ153: 3.593643387 | BK153: 3.596543859 | BL153: 4.093348479
B154: -0.05356789341 | D154: 37 | E154: Brazil | F154: Table4.ton | H154: 29 | J154: Brazil | K154: Brazil | M154: 4.129526614 | N154: 7.751275377 | O154: 6.321664246 | P154: 11.0425191 | Q154: 4.053684136 | R154: 7.622668148 | S154: 5.269453464 | T154: 8.985990425 | U154: 3.980093054 | V154: 8.108970195 | W154: 6.193033608 | X154: 9.778895004 | Y154: 4.929738306 | Z154: 5.969277907 | AA154: 6.242929007 | AB154: 8.481722059 | AC154: 4.667996255 | AD154: 6.667949866 | AE154: 5.533620507 | AF154: 6.656264325 | AG154: 4.212795804 | AH154: 6.125233875 | AI154: 5.006065711 | AJ154: 6.043176592 | AK154: 3.913547333 | AL154: 5.583141806 | AM154: 4.915288 | AN154: 5.797118 | AO154: 3.8945 | AP154: 5.536933 | AQ154: 4.891788 | AR154: 5.871918 | AS154: 3.86336 | AT154: 5.45372459 | AU154: 4.94704376 | AV154: 5.8537446 | AW154: 3.747692 | AX154: 5.21103836 | AY154: 4.72743651 | AZ154: 5.941333338 | BA154: 3.5603074 | BB154: 4.04638844 | BC154: 3.505020507 | BD154: 4.866291166 | BE154: 3.250202813 | BF154: 4.165547512 | BG154: 3.725499567 | BH154: 5.101818112 | BI154: 3.444335397 | BJ154: 4.419968422 | BK154: 3.879338359 | BL154: 5.296232142
B155: 0.7630620661 | D155: 38 | E155: Europe ex CIS | F155: Table4.ton | H155: 30 | J155: Europe ex CIS | K155: Europe ex CIS | M155: 65.35817458 | N155: 133.0777676 | O155: 69.5452605 | P155: 126.4934618 | Q155: 92.05812676 | R155: 75.74335864 | S155: 131.0051011 | T155: 122.7827539 | U155: 69.70740217 | V155: 81.83053685 | W155: 70.90305823 | X155: 94.88838929 | Y155: 58.20121544 | Z155: 94.61566769 | AA155: 71.10989106 | AB155: 112.5451115 | AC155: 65.05619428 | AD155: 54.01222314 | AE155: 57.88412082 | AF155: 97.48689749 | AG155: 71.19148506 | AH155: 60.53183963 | AI155: 71.65312972 | AJ155: 94.18234696 | AK155: 68.93451402 | AL155: 55.95323959 | AM155: 46.27636618 | AN155: 106.8819147 | AO155: 77.51890345 | AP155: 54.03281128 | AQ155: 59.13355083 | AR155: 75.83333292 | AS155: 53.08941849 | AT155: 47.94195316 | AU155: 64.46170414 | AV155: 79.69321405 | AW155: 56.19929224 | AX155: 44.5272207 | AY155: 44.92317608 | AZ155: 79.38822436 | BA155: 85.49179002 | BB155: 79.49791257 | BC155: 59.39854484 | BD155: 87.96661577 | BE155: 86.1733081 | BF155: 87.2610491 | BG155: 71.54592347 | BH155: 99.04263838 | BI155: 92.53565185 | BJ155: 94.69446403 | BK155: 85.88875931 | BL155: 111.6550968
B156: 1.67089001 | D156: 39 | E156: France | F156: Table4.ton | H156: 31 | J156: France | K156: France | M156: 4.217997309 | N156: 4.203274539 | O156: 2.874228235 | P156: 10.72462821 | Q156: 4.381317555 | R156: 4.61150758 | S156: 6.17796113 | T156: 10.49979409 | U156: 3.821322307 | V156: 3.853126517 | W156: 2.54391845 | X156: 8.156325435 | Y156: 3.387644039 | Z156: 3.535254398 | AA156: 2.54732666 | AB156: 7.335831224 | AC156: 2.91 | AD156: 2.8468 | AE156: 2.205 | AF156: 7.1725 | AG156: 3.56 | AH156: 2.268345 | AI156: 0.902 | AJ156: 6.323 | AK156: 2.687 | AL156: -0.724805 | AM156: 1.14 | AN156: 6.0585 | AO156: 3.869 | AP156: 3.3235 | AQ156: 1.781 | AR156: 4.228 | AS156: 2.492 | AT156: 1.7135 | AU156: 1.518 | AV156: 6.08385 | AW156: 3.089 | AX156: 1.779 | AY156: 2.441 | AZ156: 5.64085 | BA156: 3.247 | BB156: 2.45565 | BC156: 3.195 | BD156: 5.144 | BE156: 3.788 | BF156: 2.9215 | BG156: 3.187 | BH156: 7.15275 | BI156: 4.44 | BJ156: 4.258 | BK156: 3.46 | BL156: 7.69825
B157: 0.8492900686 | D157: 40 | E157: Germany | F157: Table4.ton | H157: 32 | J157: Germany | K157: Germany | M157: 20.85608553 | N157: 50.96039837 | O157: 24.69119068 | P157: 40.12160731 | Q157: 36.7397814 | R157: 22.4422858 | S157: 54.09305425 | T157: 41.14658029 | U157: 22.5675171 | V157: 34.72692166 | W157: 29.67291651 | X157: 31.95772967 | Y157: 23.06917052 | Z157: 42.39552183 | AA157: 32.31474444 | AB157: 45.60418607 | AC157: 28.51965642 | AD157: 21.48294707 | AE157: 25.04857715 | AF157: 36.20511007 | AG157: 32.66041547 | AH157: 25.18612896 | AI157: 31.40747366 | AJ157: 36.88228636 | AK157: 32.00558076 | AL157: 24.03423519 | AM157: 18.49889922 | AN157: 46.57645816 | AO157: 37.97319252 | AP157: 22.56865151 | AQ157: 26.96942954 | AR157: 29.46 | AS157: 25.2353792 | AT157: 20.99 | AU157: 30.12257539 | AV157: 30.54 | AW157: 24.6 | AX157: 18.569 | AY157: 19.03 | AZ157: 34.02 | BA157: 47.657 | BB157: 45.06 | BC157: 30.7075 | BD157: 42.62 | BE157: 45.58212611 | BF157: 46.85223384 | BG157: 35.83493588 | BH157: 45.41743942 | BI157: 48.59791042 | BJ157: 51.49315894 | BK157: 44.15296989 | BL157: 52.1616315
B158: 1.308270677 | D158: 41 | E158: Italy | F158: Table4.ton | H158: 33 | J158: Italy | K158: Italy | M158: 5.166159026 | N158: 6.514095989 | O158: 5.196524713 | P158: 17.33663897 | Q158: 3.929800725 | R158: 5.482065217 | S158: 3.755406476 | T158: 13.7526721 | U158: 3.388110955 | V158: 4.607514045 | W158: 3.092408708 | X158: 11.47140449 | Y158: 3.23234375 | Z158: 4.3290625 | AA158: 3.18515625 | AB158: 10.3675 | AC158: 3.045 | AD158: 4.145 | AE158: 3.025 | AF158: 9.675 | AG158: 2.87 | AH158: 3.99 | AI158: 2.97 | AJ158: 9.4 | AK158: 2.81 | AL158: 3.99 | AM158: 2.95 | AN158: 9.207 | AO158: 2.755 | AP158: 3.935 | AQ158: 2.93 | AR158: 9.205 | AS158: 2.69175 | AT158: 3.91175 | AU158: 2.86175 | AV158: 9.07675 | AW158: 2.6573375 | AX158: 3.8173375 | AY158: 2.8073375 | AZ158: 8.8873375 | BA158: 2 | BB158: 1.756 | BC158: 2.43 | BD158: 7.60935 | BE158: 2.23 | BF158: 3.444 | BG158: 2.71 | BH158: 8.9 | BI158: 2.404 | BJ158: 3.725 | BK158: 2.759 | BL158: 8.95
B159: 0.2071813118 | D159: 42 | E159: Spain | F159: Table4.ton | H159: 34 | J159: Spain | K159: Spain | M159: 2.519753997 | N159: 3.190125839 | O159: 2.450002838 | P159: 3.418523985 | Q159: 1.865736424 | R159: 2.265919364 | S159: 1.67398586 | T159: 2.36192418 | U159: 1.810510747 | V159: 2.301297361 | W159: 1.733884594 | X159: 2.532943653 | Y159: 1.552002678 | Z159: 1.875198606 | AA159: 2.011404966 | AB159: 2.333470612 | AC159: 1.75558475 | AD159: 2.17506775 | AE159: 1.854187083 | AF159: 2.522419647 | AG159: 1.744713812 | AH159: 2.069089109 | AI159: 2.032116244 | AJ159: 2.645692036 | AK159: 1.726588881 | AL159: 2.059971437 | AM159: 1.888421271 | AN159: 2.586316374 | AO159: 1.747671374 | AP159: 2.088426034 | AQ159: 1.906841788 | AR159: 2.64344148 | AS159: 1.807060819 | AT159: 2.1823725 | AU159: 1.983165096 | AV159: 2.715634048 | AW159: 1.844995812 | AX159: 2.227983115 | AY159: 2.020545362 | AZ159: 2.755468559 | BA159: 1.719316247 | BB159: 1.571965954 | BC159: 1.501082196 | BD159: 2.104086395 | BE159: 1.594957488 | BF159: 1.902150666 | BG159: 1.792867118 | BH159: 2.464871851 | BI159: 1.703885331 | BJ159: 1.987076552 | BK159: 1.850009249 | BL159: 2.535992151
B160: 1.519889356 | D160: 43 | E160: United Kingdom | F160: Table4.ton | H160: 35 | J160: United Kingdom | K160: United Kingdom | M160: 6.791473661 | N160: 10.78835226 | O160: 6.499192023 | P160: 16.74608444 | Q160: 6.919346994 | R160: 8.511251136 | S160: 9.459889218 | T160: 13.89874229 | U160: 6.95856911 | V160: 9.254118841 | W160: 5.479093523 | X160: 13.30612151 | Y160: 5.921507806 | Z160: 6.389109745 | AA160: 6.3883127 | AB160: 13.96104134 | AC160: 6.359676905 | AD160: 5.635160823 | AE160: 6.443185233 | AF160: 14.88450425 | AG160: 5.886279739 | AH160: 6.101423524 | AI160: 7.484304852 | AJ160: 14.90922716 | AK160: 7.050557775 | AL160: 7.327387861 | AM160: 7.425607067 | AN160: 15.32637445 | AO160: 7.084695199 | AP160: 5.941690835 | AQ160: 7.169449425 | AR160: 13.35520363 | AS160: 6.031770551 | AT160: 6.624460016 | AU160: 8.361393469 | AV160: 13.60872635 | AW160: 7.457523272 | AX160: 5.945744085 | AY160: 6.808531076 | AZ160: 12.01736854 | BA160: 6.802266181 | BB160: 5.80359233 | BC160: 6.427373866 | BD160: 10.56971502 | BE160: 5.996269005 | BF160: 7.563504172 | BG160: 8.342996679 | BH160: 12.85624827 | BI160: 7.054465336 | BJ160: 8.147853788 | BK160: 8.60914986 | BL160: 11.79791199
B161: 0.3599785587 | D161: 44 | E161: Switzerland | F161: Table4.ton | H161: 36 | J161: Switzerland | K161: Switzerland | M161: 13.66136084 | N161: 33.97294029 | O161: 15.58089903 | P161: 23.66504401 | Q161: 24.59727375 | R161: 17.40718043 | S161: 30.27384143 | T161: 24.47785503 | U161: 21.42434633 | V161: 13.50188063 | W161: 13.1979188 | X161: 14.06804069 | Y161: 11.63559202 | Z161: 19.52112579 | AA161: 12.45013618 | AB161: 18.12914703 | AC161: 12.48865 | AD161: 9.789777778 | AE161: 10.44760556 | AF161: 15.00133333 | AG161: 13.8409 | AH161: 10.98605556 | AI161: 13.62072222 | AJ161: 11.9 | AK161: 11.68 | AL161: 10.7 | AM161: 8.3 | AN161: 14.9408 | AO161: 13.4 | AP161: 9 | AQ161: 10.45 | AR161: 9.63 | AS161: 8.23 | AT161: 7.05 | AU161: 11.14 | AV161: 10.13 | AW161: 8.91 | AX161: 6.74 | AY161: 6.485 | AZ161: 7.685 | BA161: 14 | BB161: 11.8 | BC161: 7.5 | BD161: 9.6 | BE161: 13 | BF161: 12 | BG161: 9.1 | BH161: 9.7 | BI161: 13.5 | BJ161: 11.6 | BK161: 11 | BL161: 12.625
B162: 0.4912647356 | D162: 45 | E162: Austria | F162: Table4.ton | H162: 37 | J162: Austria | K162: Austria | M162: 2.381454472 | N162: 6.005726899 | O162: 2.539727034 | P162: 2.810363281 | Q162: 2.333328601 | R162: 1.739995741 | S162: 6.439425948 | T162: 4.586651523 | U162: 1.500549026 | V162: 2.501016715 | W162: 3.257612969 | X162: 3.157207545 | Y162: 1.966619986 | Z162: 4.071481148 | AA162: 2.931389683 | AB162: 4.017485953 | AC162: 2.855650402 | AD162: 1.936683103 | AE162: 2.324250115 | AF162: 3.11456922 | AG162: 2.950066932 | AH162: 2.471355211 | AI162: 3.529181654 | AJ162: 3.249727332 | AK162: 2.919824829 | AL162: 2.338677443 | AM162: 1.893066668 | AN162: 3.685444876 | AO162: 2.979733019 | AP162: 2.01467411 | AQ162: 2.585582648 | AR162: 2.102907294 | AS162: 1.794514968 | AT162: 1.388475882 | AU162: 2.761873941 | AV162: 2.236375332 | AW162: 1.747259375 | AX162: 1.170896016 | AY162: 1.053697684 | AZ162: 2.267475762 | BA162: 2.785812238 | BB162: 3.250852817 | BC162: 2.405820829 | BD162: 3.124706954 | BE162: 3.166558771 | BF162: 2.934395785 | BG162: 2.542369428 | BH162: 3.601879484 | BI162: 3.712774849 | BJ162: 2.992264258 | BK162: 3.277318079 | BL162: 4.236767953
B163: 0.1396322319 | D163: 46 | E163: Other Europe | F163: Table4.ton | H163: 38 | J163: Other Europe | K163: Other Europe | M163: 9.763889751 | N163: 17.44285344 | O163: 9.713495952 | P163: 11.67057157 | Q163: 11.29154131 | R163: 13.28315337 | S163: 19.1315368 | T163: 12.05853446 | U163: 8.236476591 | V163: 11.08466108 | W163: 11.92530468 | X163: 10.23861629 | Y163: 7.436334634 | Z163: 12.49891367 | AA163: 9.281420184 | AB163: 10.7964493 | AC163: 7.121975805 | AD163: 6.000786616 | AE163: 6.536315685 | AF163: 8.911460972 | AG163: 7.679109111 | AH163: 7.459442265 | AI163: 9.70733108 | AJ163: 8.872414063 | AK163: 8.054961771 | AL163: 6.227772661 | AM163: 4.180371958 | AN163: 8.501020837 | AO163: 7.709611343 | AP163: 5.160868789 | AQ163: 5.341247429 | AR163: 5.208780521 | AS163: 4.806942951 | AT163: 4.081394759 | AU163: 5.712946247 | AV163: 5.301878321 | AW163: 5.893176281 | AX163: 4.27725998 | AY163: 4.277064456 | AZ163: 6.114724 | BA163: 7.280395356 | BB163: 7.799851473 | BC163: 5.231767954 | BD163: 7.194757405 | BE163: 10.81539672 | BF163: 9.643264637 | BG163: 8.035754369 | BH163: 8.949449356 | BI163: 11.12261591 | BJ163: 10.4911105 | BK163: 10.78031223 | BL163: 11.64954321
B164: 0.3725802805 | D164: 47 | E164: Total above | F164: Table4.ton | H164: 39 | J164: Total above | K164: Total above | M164: 763.531185 | N164: 697.2938809 | O164: 806.7704122 | P164: 869.950166 | Q164: 930.4389699 | R164: 809.1401633 | S164: 844.3981963 | T164: 804.2392349 | U164: 838.6536598 | V164: 734.3600331 | W164: 760.340899 | X164: 886.3978162 | Y164: 993.4317293 | Z164: 1358.793528 | AA164: 901.3510049 | AB164: 892.3232356 | AC164: 858.1666829 | AD164: 784.319704 | AE164: 786.3599928 | AF164: 892.7762091 | AG164: 821.70374 | AH164: 687.8208982 | AI164: 875.7383182 | AJ164: 882.4095028 | AK164: 698.2943733 | AL164: 614.2696482 | AM164: 645.8410475 | AN164: 939.9326287 | AO164: 770.0874027 | AP164: 707.0045023 | AQ164: 677.7207945 | AR164: 839.9473942 | AS164: 715.9310374 | AT164: 694.4129272 | AU164: 761.8750314 | AV164: 839.5326282 | AW164: 719.6536763 | AX164: 667.4375567 | AY164: 542.4182912 | AZ164: 731.6931131 | BA164: 497.7457221 | BB164: 364.4590886 | BC164: 507.7452358 | BD164: 712.5573385 | BE164: 815.5925429 | BF164: 632.1976908 | BG164: 684.9872128 | BH164: 967.5706295 | BI164: 695.7032552 | BJ164: 658.5743155 | BK164: 805.7109047 | BL164: 885.8636547
B165: 0.3129450696 | D165: 48 | E165: Other & stock change | F165: Table4.ton | H165: 40 | J165: Other & stock change | K165: Other & stock change | M165: 23.48112017 | N165: 31.68112347 | O165: 34.17833417 | P165: 34.65570153 | Q165: 45.97266888 | R165: 47.44752222 | S165: 58.31061936 | T165: 66.47092327 | U165: 48.97096672 | V165: 61.60875414 | W165: 62.41211347 | X165: 86.81104538 | Y165: 65.8787361 | Z165: 74.87156254 | AA165: 74.57838343 | AB165: 96.45732982 | AC165: 62.08678646 | AD165: 67.52854017 | AE165: 64.77950528 | AF165: 84.84953141 | AG165: 60.99129663 | AH165: 63.78513029 | AI165: 70.71518365 | AJ165: 88.39375323 | AK165: 65.58891047 | AL165: 68.6813737 | AM165: 62.29049554 | AN165: 83.21147308 | AO165: 63.05133615 | AP165: 73.85725727 | AQ165: 70.00037566 | AR165: 84.40095471 | AS165: 74.83412763 | AT165: 76.17909816 | AU165: 83.91077236 | AV165: 93.99394802 | AW165: 74.71789091 | AX165: 82.88476568 | AY165: 77.71572775 | AZ165: 101.0719517 | BA165: 67.1996112 | BB165: 37.91932191 | BC165: 46.75418436 | BD165: 67.43627464 | BE165: 51.17263286 | BF165: 53.57420963 | BG165: 53.82675559 | BH165: 79.70041373 | BI165: 62.14631859 | BJ165: 56.7464071 | BK165: 60.38047126 | BL165: 78.16029416
B166: 0.3678631999 | D166: 49 | E166: World Total | F166: Table4.ton | H166: 41 | J166: World Total | K166: World Total | M166: 787.0123051 | N166: 728.9750044 | O166: 840.9487463 | P166: 904.6058676 | Q166: 976.4116388 | R166: 856.5876855 | S166: 902.7088157 | T166: 870.7101582 | U166: 887.6246265 | V166: 795.9687872 | W166: 822.7530125 | X166: 973.2088616 | Y166: 1059.310465 | Z166: 1433.66509 | AA166: 975.9293884 | AB166: 988.7805655 | AC166: 920.2534694 | AD166: 851.8482442 | AE166: 851.1394981 | AF166: 977.6257405 | AG166: 882.6950366 | AH166: 751.6060285 | AI166: 946.4535019 | AJ166: 970.803256 | AK166: 763.8832838 | AL166: 682.9510219 | AM166: 708.1315431 | AN166: 1023.144102 | AO166: 833.1387388 | AP166: 780.8617596 | AQ166: 747.7211701 | AR166: 924.3483489 | AS166: 790.765165 | AT166: 770.5920254 | AU166: 845.7858038 | AV166: 933.5265763 | AW166: 794.3715672 | AX166: 750.3223224 | AY166: 620.134019 | AZ166: 832.7650648 | BA166: 564.9453333 | BB166: 402.3784105 | BC166: 554.4994201 | BD166: 779.9936131 | BE166: 866.7651758 | BF166: 685.7719005 | BG166: 738.8139684 | BH166: 1047.271043 | BI166: 757.8495738 | BJ166: 715.3207226 | BK166: 866.091376 | BL166: 964.0239489
B167: YoY | E167: Prices | G167: Prices | M167: 135 | N167: 136 | O167: 137 | P167: 138 | Q167: 139 | R167: 140 | S167: 141 | T167: 142 | U167: 143 | V167: 144 | W167: 145 | X167: 146 | Y167: 147 | Z167: 148 | AA167: 149 | AB167: 150 | AC167: 151 | AD167: 152 | AE167: 153 | AF167: 154 | AG167: 155 | AH167: 156 | AI167: 157 | AJ167: 158 | AK167: 159 | AL167: 160 | AM167: 161 | AN167: 162 | AO167: 163 | AP167: 164 | AQ167: 165 | AR167: 166 | AS167: 167 | AT167: 168 | AU167: 169 | AV167: 170 | AW167: 171 | AX167: 172 | AY167: 173 | AZ167: 174 | BA167: 175 | BB167: 176 | BC167: 177 | BD167: 178 | BE167: 179 | BF167: 180 | BG167: 181 | BH167: 182 | BI167: 183 | BJ167: 184 | BK167: 185 | BL167: 186
B168: 0.0244894536 | D168: 5 | E168: USD | F168: Qtr.Avg | H168: 1 | J168: USD | K168: US$/oz | M168: 1109.12 | N168: 1196.74 | O168: 1226.75 | P168: 1366.78 | Q168: 1386.27 | R168: 1506.13 | S168: 1702.12 | T168: 1688.01 | U168: 1690.57 | V168: 1609.49 | W168: 1652 | X168: 1721.79 | Y168: 1631.77 | Z168: 1414.8 | AA168: 1326.28 | AB168: 1276.16 | AC168: 1293.06 | AD168: 1288.39 | AE168: 1281.94 | AF168: 1201.4 | AG168: 1218.45 | AH168: 1192.35 | AI168: 1124.31 | AJ168: 1106.45 | AK168: 1182.56 | AL168: 1259.62 | AM168: 1334.78 | AN168: 1221.55 | AO168: 1219.49 | AP168: 1256.59 | AQ168: 1277.91 | AR168: 1275.42 | AS168: 1329.28 | AT168: 1305.99 | AU168: 1213.19 | AV168: 1226.28 | AW168: 1303.79 | AX168: 1309.39 | AY168: 1472.47 | AZ168: 1480.96 | BA168: 1582.8 | BB168: 1711.13 | BC168: 1908.56 | BD168: 1874.23 | BE168: 1794.01 | BF168: 1816.48 | BG168: 1789.52 | BH168: 1795.25 | BI168: 1877.16 | BJ168: 1870.58 | BK168: 1728.91 | BL168: 1725.85
B169: 0.04914010227 | D169: 8 | E169: EUR | F169: Qtr.Avg | H169: 2 | J169: EUR | K169: €/oz | M169: 802.43462 | N169: 944.83171 | O169: 948.75428 | P169: 1005.89333 | Q169: 1012.33238 | R169: 1047.74657 | S169: 1206.76137 | T169: 1250.32785 | U169: 1289.2899 | V169: 1254.67682 | W169: 1320.24192 | X169: 1328.84483 | Y169: 1235.58765 | Z169: 1083.21709 | AA169: 1001.46777 | AB169: 937.81866 | AC169: 943.48691 | AD169: 939.72796 | AE169: 967.00122 | AF169: 960.34021 | AG169: 1083.09829 | AH169: 1077.98575 | AI169: 1011.54357 | AJ169: 1010.11151 | AK169: 1072.26653 | AL169: 1115.68652 | AM169: 1195.9324 | AN169: 1130.95808 | AO169: 1144.09176 | AP169: 1140.41615 | AQ169: 1087.68267 | AR169: 1083.86576 | AS169: 1081.52469 | AT169: 1096.37594 | AU169: 1043.01489 | AV169: 1074.73881 | AW169: 1148.24881 | AX169: 1165.02044 | AY169: 1324.63874 | AZ169: 1338.00318 | BA169: 1436.58929 | BB169: 1552.65717 | BC169: 1632.50733 | BD169: 1574.07241 | BE169: 1488.90113 | BF169: 1506.08956 | BG169: 1518.11751 | BH169: 1569.78052 | BI169: 1674.1819 | BJ169: 1757.59727 | BK169: 1716.36881 | BL169: 1693.57949
B170: 0.2652223835 | D170: 26 | E170: GBP | F170: Qtr.Avg | H170: 3 | J170: GBP | K170: £/oz | M170: 712.36563 | N170: 803.58327 | O170: 791.02654 | P170: 864.19196 | Q170: 864.57411 | R170: 924.8583 | S170: 1058.0663 | T170: 1073.35011 | U170: 1075.84794 | V170: 1016.55603 | W170: 1045.29573 | X170: 1072.55566 | Y170: 1051.59321 | Z170: 921.3535 | AA170: 855.48591 | AB170: 789.15532 | AC170: 781.13716 | AD170: 765.43371 | AE170: 767.5844 | AF170: 758.21543 | AG170: 804.88891 | AH170: 777.66747 | AI170: 725.96853 | AJ170: 728.56143 | AK170: 826.91449 | AL170: 879.06858 | AM170: 1016.82497 | AN170: 983.92229 | AO170: 984.03684 | AP170: 981.4076 | AQ170: 976.44748 | AR170: 961.93059 | AS170: 955.14935 | AT170: 960.34326 | AU170: 930.64621 | AV170: 952.80542 | AW170: 1001.04052 | AX170: 1019.25371 | AY170: 1194.75088 | AZ170: 1152.02402 | BA170: 1238.45907 | BB170: 1378.23343 | BC170: 1477.59342 | BD170: 1421.3874 | BE170: 1301.3777 | BF170: 1298.53796 | BG170: 1298.69565 | BH170: 1331.89741 | BI170: 1400.44878 | BJ170: 1491.27164 | BK170: 1468.76602 | BL170: 1471.64975
B171: 0.08811434932 | D171: 23 | E171: CHF | F171: Qtr.Avg | H171: 4 | J171: CHF | K171: CHF/kg | M171: 37726.94745 | N171: 42700.53724 | O171: 40639.19237 | P171: 42845.71479 | Q171: 41937.57101 | R171: 42088.45468 | S171: 45147.1291 | T171: 49439.27789 | U171: 50061.73614 | V171: 48464.65478 | W171: 51088.44374 | X171: 51603.64461 | Y171: 48792.45326 | Z171: 42865.67428 | AA171: 39744.18442 | AB171: 37072.26325 | AC171: 37107.48822 | AD171: 36831.48649 | AE171: 37668.27174 | AF171: 37189.49539 | AG171: 37292.44265 | AH171: 36082.71063 | AI171: 34875.89789 | AJ171: 35230.1503 | AK171: 37774.34147 | AL171: 39294.28907 | AM171: 41860.19194 | AN171: 39262.1152 | AO171: 39338.0073 | AP171: 39741.63229 | AQ171: 39560.85489 | AR171: 40478.70272 | AS171: 40520.08263 | AT171: 41381.09634 | AU171: 38388.62315 | AV171: 39276.59106 | AW171: 41790.59977 | AX171: 42177.15112 | AY171: 46679.18466 | AZ171: 47160.65909 | BA171: 49269.71177 | BB171: 52985.03159 | BC171: 56436.81644 | BD171: 54513.05995 | BE171: 52220.1061 | BF171: 53136.65697 | BG171: 52828.15857 | BH171: 53229.85516 | BI171: 55768.07208 | BJ171: 58044.80107 | BK171: 53725.48588 | BL171: 53531.32574
B172: -0.08155428187 | D172: 13 | E172: JPY | F172: Qtr.Avg | H172: 5 | J172: JPY | K172: ¥/g | M172: 3234.13232 | N172: 3538.514687 | O172: 3381.242651 | P172: 3628.571887 | Q172: 3667.28025 | R172: 3948.592531 | S172: 4246.952347 | T172: 4195.379798 | U172: 4312.843444 | V172: 4144.401076 | W172: 4174.75214 | X172: 4478.597547 | Y172: 4834.654016 | Z172: 4492.449635 | AA172: 4216.784014 | AB172: 4107.101372 | AC172: 4271.113628 | AD172: 4228.923816 | AE172: 4282.411634 | AF172: 4407.414046 | AG172: 4666.790209 | AH172: 4656.38827 | AI172: 4416.168818 | AJ172: 4320.412685 | AK172: 4374.449891 | AL172: 4367.267893 | AM172: 4392.309801 | AN172: 4276.639868 | AO172: 4451.336658 | AP172: 4490.767781 | AQ172: 4558.700278 | AR172: 4628.626844 | AS172: 4628.225388 | AT172: 4584.426224 | AU172: 4348.28579 | AV172: 4450.801865 | AW172: 4617.313253 | AX172: 4624.122129 | AY172: 5081.413602 | AZ172: 5174.722316 | BA172: 5544.872144 | BB172: 5915.758777 | BC172: 6511.757591 | BD172: 6299.008535 | BE172: 6115.265183 | BF172: 6388.632265 | BG172: 6333.605568 | BH172: 6560.349652 | BI172: 7023.269728 | BJ172: 7806.374615 | BK172: 7679.845334 | BL172: 7860.336317
B173: 0.08701306707 | D173: 11 | E173: INR | F173: Qtr.Avg | H173: 6 | J173: INR | K173: Rs/10g | M173: 16369.07756 | N173: 17590.66533 | O173: 18324.42056 | P173: 19708.94186 | Q173: 20176.2501 | R173: 21669.93772 | S173: 25100.09719 | T173: 27534.272 | U173: 27287.80388 | V173: 28004.73175 | W173: 29302.0779 | X173: 29964.66693 | Y173: 28420.7994 | Z173: 25380.94407 | AA173: 26503.47533 | AB173: 25452.33848 | AC173: 25671.55089 | AD173: 24777.90371 | AE173: 24970.78724 | AF173: 23899.0059 | AG173: 24377.9165 | AH173: 24332.81148 | AI173: 23476.09362 | AJ173: 23445.97692 | AK173: 25676.98606 | AL173: 27099.40135 | AM173: 28733.92422 | AN173: 26450.08404 | AO173: 26249.42161 | AP173: 26048.14259 | AQ173: 26414.107 | AR173: 26566.13082 | AS173: 27503.78147 | AT173: 28143.65033 | AU173: 27345.7407 | AV173: 28474.27846 | AW173: 29554.50223 | AX173: 29282.98587 | AY173: 33329.01108 | AZ173: 33912.63594 | BA173: 36874.378 | BB173: 41734.38365 | BC173: 45639.98328 | BD173: 44474.84486 | BE173: 42045.83831 | BF173: 43076.61498 | BG173: 42635.26394 | BH173: 43264.99696 | BI173: 45433.63091 | BJ173: 46430.33112 | BK173: 44354.47001 | BL173: 45601.17675
B174: 0.126424455 | D174: 25 | E174: CNY | F174: Qtr.Avg | H174: 7 | J174: CNY | K174: RMB/g | M174: 243.458895 | N174: 262.5540653 | O174: 266.9379163 | P174: 292.5648255 | Q174: 293.3801341 | R174: 314.7011041 | S174: 351.0674201 | T174: 345.2298925 | U174: 343.0115723 | V174: 327.6240745 | W174: 337.3037276 | X174: 345.729288 | Y174: 326.5013037 | Z174: 279.9666742 | AA174: 261.2003353 | AB174: 249.9697343 | AC174: 253.7095156 | AD174: 258.1208806 | AE174: 254.1228322 | AF174: 237.3444114 | AG174: 244.3121539 | AH174: 237.8372575 | AI174: 227.8183233 | AJ174: 227.1724886 | AK174: 248.6867533 | AL174: 264.6586185 | AM174: 286.0620766 | AN174: 267.9057032 | AO174: 270.0669198 | AP174: 277.1417259 | AQ174: 273.9928751 | AR174: 271.3544376 | AS174: 271.7581873 | AT174: 267.8236555 | AU174: 265.3892533 | AV174: 272.7799878 | AW174: 282.7544074 | AX174: 287.4096439 | AY174: 332.2196724 | AZ174: 335.5930995 | BA174: 355.1523568 | BB174: 389.956412 | BC174: 424.5132519 | BD174: 399.647468 | BE174: 373.6760291 | BF174: 376.9992084 | BG174: 372.1910512 | BH174: 369.0909007 | BI174: 383.1113437 | BJ174: 397.6438214 | BK174: 380.587196 | BL174: 395.0813876
B175: 0.2563572836 | D175: 20 | E175: TRY | F175: Qtr.Avg | H175: 8 | J175: TRY | K175: TL/g | M175: 53.84376003 | N175: 59.3642439 | O175: 59.68159693 | P175: 64.22023727 | Q175: 70.30279229 | R175: 76.04374363 | S175: 95.28821772 | T175: 99.51705949 | U175: 97.58825663 | V175: 93.4541161 | W175: 95.7684132 | X175: 99.34498304 | Y175: 93.62676998 | Z175: 83.61763949 | AA175: 84.00678284 | AB175: 82.79834263 | AC175: 92.04956806 | AD175: 87.476511 | AE175: 89.10173421 | AF175: 87.22374813 | AG175: 96.50440433 | AH175: 102.3359715 | AI175: 103.1450171 | AJ175: 103.439222 | AK175: 111.8971781 | AL175: 117.348662 | AM175: 127.2290482 | AN175: 128.5705432 | AO175: 144.9299571 | AP175: 144.3904184 | AQ175: 144.3565197 | AR175: 155.938087 | AS175: 163.0436858 | AT175: 183.9109155 | AU175: 220.0904734 | AV175: 217.6720311 | AW175: 225.3485344 | AX175: 247.0748401 | AY175: 268.5994271 | AZ175: 275.7151407 | BA175: 311.2093121 | BB175: 377.9036044 | BC175: 444.0867629 | BD175: 475.6818229 | BE175: 426.6814635 | BF175: 490.8566563 | BG175: 491.7814439 | BH175: 647.5337563 | BI175: 844.5766763 | BJ175: 950.0639426 | BK175: 996.9065022 | BL175: 1032.771259

Sheet AppAn.Data (hidden)
J1: 1 | L1: 18 | M1: 19 | N1: 20 | O1: 21 | P1: 22 | Q1: 23 | R1: 24 | S1: 25 | T1: 26 | U1: 27 | V1: 28 | W1: 29 | X1: 30
B2: Tonnes | G2: Dates | K2: Dates | L2: 2010 | M2: 2011 | N2: 2012 | O2: 2013 | P2: 2014 | Q2: 2015 | R2: 2016 | S2: 2017 | T2: 2018 | U2: 2019 | V2: 2020 | W2: 2021 | X2: 2022
B3: US$mn | F3: Current | G3: 2022 | H3: 24 | L3: 19 | M3: 20 | N3: 21 | O3: 22 | P3: 23 | Q3: 24 | R3: 25 | S3: 26 | T3: 27 | U3: 28 | V3: 29 | W3: 30 | X3: 31
B4: 31.1035 | F4: Last | G4: 2021 | H4: 23
G6: LBMA Gold Price (US$/oz) | J6: LBMA Gold Price (US$/oz) | K6: Gold | L6: 1224.52 | M6: 1571.52 | N6: 1668.98 | O6: 1411.23 | P6: 1266.4 | Q6: 1160.06 | R6: 1250.8 | S6: 1257.15 | T6: 1268.49 | U6: 1392.6 | V6: 1769.59 | W6: 1798.61 | X6: 1800.09
L7: 12 | M7: 13 | N7: 14 | O7: 15 | P7: 16 | Q7: 17 | R7: 18 | S7: 19 | T7: 20 | U7: 21 | V7: 22 | W7: 23 | X7: 24
E8: Match row | F8: Check col | G8: Lookup | H8: Chart Number | J8: Legend
B9: YoY | F9: Share of gold demand by category
E10: 10 | F10: Mine production | G10: Table1.ton | J10: Mine production | L10: 2754.465101 | M10: 2876.861923 | N10: 2957.201294 | O10: 3166.76697 | P10: 3270.495064 | Q10: 3361.310292 | R10: 3509.560568 | S10: 3573.139319 | T10: 3655.278473 | U10: 3594.526263 | V10: 3472.395776 | W10: 3568.924103 | X10: 3611.895698
E11: 11 | F11: Net producer hedging | G11: Table1.ton | J11: Net producer hedging | L11: -108.8084092 | M11: 22.52549661 | N11: -45.31536391 | O11: -27.93944234 | P11: 104.9072982 | Q11: 12.89194498 | R11: 37.63430537 | S11: -25.52005601 | T11: -11.63759484 | U11: 6.155989161 | V11: -39.0744743 | W11: -22.65449946 | X11: -1.500945678
E12: 13 | F12: Recycled gold | G12: Table1.ton | J12: Recycled gold | L12: 1671.163847 | M12: 1626.33132 | N12: 1636.762755 | O12: 1195.308331 | P12: 1129.58857 | Q12: 1067.074981 | R12: 1232.142588 | S12: 1112.392781 | T12: 1131.697574 | U12: 1275.657508 | V12: 1293.055421 | W12: 1136.160101 | X12: 1144.113015
E13: 14 | F13: Total supply | G13: Table1.ton | J13: Total supply | L13: 4316.82054 | M13: 4525.71874 | N13: 4548.648686 | O13: 4334.135859 | P13: 4504.990932 | Q13: 4441.277218 | R13: 4779.337462 | S13: 4660.012044 | T13: 4775.338453 | U13: 4876.339761 | V13: 4726.376722 | W13: 4682.429704 | X13: 4754.507767
E14: 17 | F14: Jewellery fabrication | G14: Table1.ton | J14: Jewellery fabrication | L14: 2043.757318 | M14: 2092.126334 | N14: 2140.866261 | O14: 2735.296181 | P14: 2544.380585 | Q14: 2479.239936 | R14: 2018.769985 | S14: 2257.470103 | T14: 2290.01592 | U14: 2152.076652 | V14: 1323.96461 | W14: 2230.635783 | X14: 2189.758548
E15: 18 | F15: Jewellery consumption | G15: Table1.ton | J15: Jewellery consumption | L15: 2057.24761 | M15: 2104.445694 | N15: 2157.204982 | O15: 2727.974361 | P15: 2534.218507 | Q15: 2460.841273 | R15: 2105.228192 | S15: 2242.010751 | T15: 2250.220137 | U15: 2126.720154 | V15: 1397.986339 | W15: 2147.738311 | X15: 2086.168373
E16: 19 | F16: Jewellery inventory | G16: Table1.ton | J16: Jewellery inventory | L16: -13.49029207 | M16: -12.31935962 | N16: -16.33872118 | O16: 7.321820259 | P16: 10.1620773 | Q16: 18.39866306 | R16: -86.45820712 | S16: 15.45935184 | T16: 39.79578309 | U16: 25.3564985 | V16: -74.02172959 | W16: 82.89747194 | X16: 103.5901743
E17: 20 | F17: Technology | G17: Table1.ton | J17: Technology | L17: 460.6657369 | M17: 429.1374963 | N17: 382.2740742 | O17: 355.767648 | P17: 348.3868677 | Q17: 331.6737462 | R17: 322.9935677 | S17: 332.584966 | T17: 334.7942193 | U17: 325.9641968 | V17: 302.7563109 | W17: 330.1913754 | X17: 308.5244422
E18: 21 | F18: Electronics | G18: Table1.ton | J18: Electronics | L18: 326.7279825 | M18: 316.5714993 | N18: 289.1255116 | O18: 279.23616 | P18: 277.5300667 | Q18: 262.1409543 | R18: 255.6136834 | S18: 265.5819933 | T18: 268.3629321 | U18: 262.2563307 | V18: 249.3299137 | W18: 272.0751979 | X18: 251.6954052
E19: 22 | F19: Other Industrial | G19: Table1.ton | J19: Other Industrial | L19: 88.32609962 | M19: 76.39306096 | N19: 64.72697745 | O19: 53.68487144 | P19: 51.22312597 | Q19: 50.97460107 | R19: 49.75464385 | S19: 50.66124807 | T19: 51.15957349 | U19: 49.77802118 | V19: 41.57032631 | W19: 46.763114 | X19: 46.55057651
E20: 23 | F20: Dentistry | G20: Table1.ton | J20: Dentistry | L20: 45.61165477 | M20: 36.17293602 | N20: 28.42158522 | O20: 22.84661656 | P20: 19.633675 | Q20: 18.5581909 | R20: 17.62524046 | S20: 16.34172455 | T20: 15.27171371 | U20: 13.92984495 | V20: 11.85607089 | W20: 11.35306347 | X20: 10.27846056
E21: 24 | F21: Investment | G21: Table1.ton | J21: Investment | L21: 1616.646984 | M21: 1744.313901 | N21: 1621.014163 | O21: 797.6996349 | P21: 900.7210785 | Q21: 966.9810616 | R21: 1614.223373 | S21: 1315.007542 | T21: 1163.99971 | U21: 1271.060984 | V21: 1796.260974 | W21: 1001.878236 | X21: 1106.752741
E22: 25 | F22: Total bar and coin | G22: Table1.ton | J22: Total bar and coin | L22: 1204.294313 | M22: 1501.972605 | N22: 1322.350305 | O22: 1729.711149 | P22: 1066.648445 | Q22: 1090.71655 | R22: 1072.881759 | S22: 1044.059266 | T22: 1090.449434 | U22: 870.8728196 | V22: 903.8304375 | W22: 1190.883777 | X22: 1217.117248
E23: 26 | F23: Bars | G23: Table1.ton | J23: Bars | L23: 921.1823975 | M23: 1189.505558 | N23: 1023.195471 | O23: 1357.377187 | P23: 780.5437028 | Q23: 790.3912135 | R23: 797.3600163 | S23: 779.8503669 | T23: 775.5892769 | U23: 583.4540913 | V23: 541.8420738 | W23: 810.8068128 | X23: 790.9186504
E24: 27 | F24: Official Coins | G24: Table1.ton | J24: Official Coins | L24: 195.9028015 | M24: 228.2942974 | N24: 187.4716351 | O24: 270.8943452 | P24: 205.4621586 | Q24: 224.3425731 | R24: 207.8713494 | S24: 188.11861 | T24: 241.8837951 | U24: 220.6523439 | V24: 292.8690133 | W24: 295.244225 | X24: 334.8233375
E25: 28 | F25: Medals/Imitation Coins | G25: Table1.ton | J25: Medals/Imitation Coins | L25: 87.20911424 | M25: 84.17274949 | N25: 111.6831989 | O25: 101.4396162 | P25: 80.64258349 | Q25: 75.98276296 | R25: 67.65039285 | S25: 76.09028907 | T25: 72.97636162 | U25: 66.76638442 | V25: 69.11935047 | W25: 84.83273943 | X25: 91.37525991
E26: 29 | F26: ETFs & similar products | G26: Table1.ton | J26: ETFs & similar products | L26: 412.3526704 | M26: 242.3412963 | N26: 298.6638575 | O26: -932.0115139 | P26: -165.9273664 | Q26: -123.7354879 | R26: 541.341615 | S26: 270.9482756 | T26: 73.5502762 | U26: 400.1881646 | V26: 892.430537 | W26: -189.005541 | X26: -110.3645065
E27: 30 | F27: Central banks & other inst. | G27: Table1.ton | J27: Central banks & other inst. | L27: 79.1505025 | M27: 480.7864974 | N27: 569.1832884 | O27: 629.4503519 | P27: 601.1320469 | Q27: 579.5502956 | R27: 394.8598246 | S27: 378.5560927 | T27: 656.229115 | U27: 605.4127013 | V27: 254.9447204 | W27: 450.1124237 | X27: 1135.689322
E28: 31 | F28: Gold demand | G28: Table1.ton | J28: Gold demand | L28: 4200.220541 | M28: 4746.364229 | N28: 4713.337787 | O28: 4518.213816 | P28: 4394.620578 | Q28: 4357.44504 | R28: 4350.846751 | S28: 4283.618703 | T28: 4445.038964 | U28: 4354.514535 | V28: 3677.926616 | W28: 4012.817818 | X28: 4740.725053
E29: 32 | F29: OTC and other | G29: Table1.ton | J29: OTC and other | L29: 116.5999986 | M29: -220.6454884 | N29: -164.6891012 | O29: -184.077957 | P29: 110.3703542 | Q29: 83.83217758 | R29: 428.4907109 | S29: 376.3933405 | T29: 330.2994888 | U29: 521.8252261 | V29: 1048.450106 | W29: 669.6118866 | X29: 13.78271378
E30: 33 | F30: Total demand | G30: Table1.ton | J30: Total demand | L30: 4316.82054 | M30: 4525.71874 | N30: 4548.648686 | O30: 4334.135859 | P30: 4504.990932 | Q30: 4441.277218 | R30: 4779.337462 | S30: 4660.012044 | T30: 4775.338453 | U30: 4876.339761 | V30: 4726.376722 | W30: 4682.429704 | X30: 4754.507767
B31: YoY | F31: Jewellery
B32: -0.2382439479 | E32: 9 | F32: India | G32: Table2.ton | J32: India | L32: 661.6567066 | M32: 619.3112618 | N32: 595.1675327 | O32: 617.4297812 | P32: 627.4913306 | Q32: 662.2970403 | R32: 504.5087787 | S32: 601.901194 | T32: 598.0109053 | U32: 544.6361982 | V32: 315.9326917 | W32: 610.8635421 | X32: 600.3990775
B33: 0.1314212459 | E33: 10 | F33: Pakistan | G33: Table2.ton | J33: Pakistan | L33: 26.47325014 | M33: 24.2040182 | N33: 26.14634799 | O33: 23.3318912 | P33: 21.8493282 | Q33: 23.17351357 | R33: 26.2190056 | S33: 28.06618761 | T33: 25.38956264 | U33: 23.7911999 | V33: 16.82454071 | W33: 23.13286435 | X33: 23.45250645
B34: -0.02419093216 | E34: 11 | F34: Sri Lanka | G34: Table2.ton | J34: Sri Lanka | L34: 0 | M34: 0 | N34: 0 | O34: 0 | P34: 9.1225 | Q34: 10.66085 | R34: 10.4710973 | S34: 11.18141463 | T34: 9.604771861 | U34: 7.887048719 | V34: 4.272328951 | W34: 4.094454027 | X34: 3.912522067
B35: -0.1659769475 | E35: 12 | F35: Greater China | G35: Table2.ton | J35: Greater China | L35: 492.6856993 | M35: 606.5514665 | N35: 654.207487 | O35: 1031.307875 | P35: 875.2756051 | Q35: 825.8501189 | R35: 692.8624569 | S35: 715.7175077 | T35: 742.9633376 | U35: 681.7880268 | V35: 433.2828283 | W35: 699.3149297 | X35: 598.3006067
B36: -0.1650952893 | E36: 13 | F36: China | G36: Table2.ton | J36: China | L36: 461.9480539 | M36: 557.1795351 | N36: 599.3580164 | O36: 938.7955036 | P36: 806.8335682 | Q36: 767.4461422 | R36: 644.816476 | S36: 665.1669931 | T36: 686.3123069 | U36: 638.007046 | V36: 413.7798283 | W36: 673.3459297 | X36: 570.9356067
B37: -0.1932805752 | E37: 14 | F37: Hong Kong | G37: Table2.ton | J37: Hong Kong | L37: 22.9972145 | M37: 42.2651017 | N37: 47.63841049 | O37: 82.607 | P37: 60.042 | Q37: 51.357 | R37: 41.4306895 | S37: 44.27346081 | T37: 50.64103068 | U37: 38.34098085 | V37: 15.363 | W37: 21.809 | X37: 22.415
B38: -0.06125822205 | E38: 15 | F38: Taiwan | G38: Table2.ton | J38: Taiwan | L38: 7.74043094 | M38: 7.106829711 | N38: 7.211060162 | O38: 9.905371822 | P38: 8.400036807 | Q38: 7.04697665 | R38: 6.61529139 | S38: 6.277053828 | T38: 6.01 | U38: 5.44 | V38: 4.14 | W38: 4.16 | X38: 4.95
B39: 0.03055802344 | E39: 16 | F39: Japan | G39: Table2.ton | J39: Japan | L39: 20.75292945 | M39: 15.92584091 | N39: 16.11187386 | O39: 16.95216724 | P39: 16.44972531 | Q39: 16.50694112 | R39: 16.92607191 | S39: 16.61522678 | T39: 16.45458074 | U39: 17.00390188 | V39: 13.8362989 | W39: 15.47383947 | X39: 15.44172577
B40: -0.01367534873 | E40: 17 | F40: Indonesia | G40: Table2.ton | J40: Indonesia | L40: 33.40289777 | M40: 33.38880868 | N40: 35.22011365 | O40: 41.17368204 | P40: 36.48270485 | Q40: 38.89268807 | R40: 38.360817 | S40: 38.55901606 | T40: 41.88518829 | U40: 40.38003124 | V40: 20.86494688 | W40: 26.9846694 | X40: 28.25541532
B41: -0.07465334948 | E41: 18 | F41: Malaysia | G41: Table2.ton | J41: Malaysia | L41: 11.4977408 | M41: 10.64068675 | N41: 12.96085548 | O41: 18.32318642 | P41: 18.62659474 | Q41: 15.31118157 | R41: 14.16815058 | S41: 13.30165801 | T41: 12.92 | U41: 12.21 | V41: 9.1615 | W41: 10.5085 | X41: 13.002658
B42: -0.004702680287 | E42: 19 | F42: Singapore | G42: Table2.ton | J42: Singapore | L42: 8.537601964 | M42: 8.867779208 | N42: 9.676105295 | O42: 14.34994093 | P42: 14.00796397 | Q42: 12.15845182 | R42: 12.1012745 | S42: 11.81742847 | T42: 11.519375 | U42: 10.54 | V42: 5.698 | W42: 6.98 | X42: 9.0642
B43: -0.07433141937 | E43: 20 | F43: S Korea | G43: Table2.ton | J43: S Korea | L43: 17.84429185 | M43: 18.63085407 | N43: 16.61512684 | O43: 22.90383594 | P43: 22.933125 | Q43: 25.605 | R43: 24.0705 | S43: 22.667625 | T43: 21.704334 | U43: 19.46 | V43: 16.375 | W43: 18.69625 | X43: 15.4225
B44: -0.03107750167 | E44: 21 | F44: Thailand | G44: Table2.ton | J44: Thailand | L44: 7.060065685 | M44: 6.924807692 | N44: 9.148837209 | O44: 14.874625 | P44: 12.369 | Q44: 12.22764008 | R44: 11.84763557 | S44: 11.44127315 | T44: 12.09380523 | U44: 11.09378841 | V44: 5.845849761 | W44: 8.050665956 | X44: 9.406536803
B45: -0.0139921558 | E45: 22 | F45: Vietnam | G45: Table2.ton | J45: Vietnam | L45: 14.16619785 | M45: 12.8362281 | N45: 10.47189689 | O45: 11.77415761 | P45: 12.5 | Q45: 15.63013375 | R45: 15.41143448 | S45: 16.49396966 | T45: 18.21123654 | U45: 17.28941179 | V45: 10.73812889 | W45: 11.93741665 | X45: 18.07496453
E46: 23 | F46: Australia | G46: Table2.ton | J46: Australia | W46: 8.421817882 | X46: 10.95904216
B47: -0.1789498745 | E47: 24 | F47: Middle East | G47: Table2.ton | J47: Middle East | L47: 254.2615423 | M47: 212.9988209 | N47: 209.6519286 | O47: 277.65196 | P47: 253.9843419 | Q47: 237.958426 | R47: 198.8599396 | S47: 198.7872569 | T47: 172.6177642 | U47: 170.3897616 | V47: 114.7855143 | W47: 165.1328663 | X47: 190.3641033
B48: -0.2892385359 | E48: 25 | F48: Saudi Arabia | G48: Table2.ton | J48: Saudi Arabia | L48: 69.91415725 | M48: 54.74237438 | N48: 49.00429615 | O48: 66.42102699 | P48: 68.37594847 | Q48: 69.50953188 | R48: 49.40469665 | S48: 44.44725584 | T48: 39.37877662 | U48: 37.15998341 | V48: 22.69863847 | W48: 33.33970459 | X48: 37.89427263
B49: -0.1636386076 | E49: 26 | F49: UAE | G49: Table2.ton | J49: UAE | L49: 66.94283256 | M49: 56.34466969 | N49: 49.36162016 | O49: 64.36121228 | P49: 56.01226751 | Q49: 51.40966973 | R49: 45.18378426 | S49: 46.69081547 | T49: 36.17537539 | U49: 34.01332855 | V49: 21.49667883 | W49: 33.84911605 | X49: 46.86845685
B50: -0.0464143859 | E50: 27 | F50: Kuwait | G50: Table2.ton | J50: Kuwait | L50: 8.970364365 | M50: 8.368384633 | N50: 7.678077607 | O50: 11.67491297 | P50: 14.18780555 | Q50: 13.17096909 | R50: 12.55964665 | S50: 13.88443866 | T50: 14.04618706 | U50: 13.29340024 | V50: 10.31040372 | W50: 12.98082491 | X50: 14.68261573
B51: -0.333233005 | E51: 28 | F51: Egypt | G51: Table2.ton | J51: Egypt | L51: 52.99244765 | M51: 34.06298806 | N51: 42.08488138 | O51: 45.64688791 | P51: 45.11369047 | Q51: 38.23105377 | R51: 25.39300529 | S51: 22.01295554 | T51: 24.73804045 | U51: 26.68441726 | V51: 21.17677327 | W51: 31.70956911 | X51: 33.56249838
B52: 0.1019548057 | E52: 29 | F52: Iran | G52: Table2.ton | J52: Iran | L52: 41.52814604 | M52: 44.96442544 | N52: 45.16010436 | O52: 63.65973982 | P52: 39.2981973 | Q52: 37.21727314 | R52: 40.51175299 | S52: 45.37529284 | T52: 29.37325522 | U52: 30.54189141 | V52: 20.00973145 | W52: 26.33545711 | X52: 29.8898368
B53: -0.149387497 | E53: 30 | F53: Other Middle East | G53: Table2.ton | J53: Other Middle East | L53: 13.91359443 | M53: 14.51597869 | N53: 16.36294891 | O53: 25.88818002 | P53: 30.9964326 | Q53: 28.4199284 | R53: 25.80705379 | S53: 26.37649854 | T53: 28.90612946 | U53: 28.69674071 | V53: 19.09328855 | W53: 26.91819457 | X53: 27.46642292
B54: -0.16809982 | E54: 31 | F54: Turkey | G54: Table2.ton | J54: Turkey | L54: 67.88340891 | M54: 73.5793788 | N54: 65.86388363 | O54: 79.86371993 | P54: 68.07970856 | Q54: 49.00964614 | R54: 40.77113345 | S54: 41.20112214 | T54: 36.37234651 | U54: 36.45824605 | V54: 25.89773403 | W54: 33.86780655 | X54: 36.69188902
B55: -0.1099052632 | E55: 32 | F55: Russia | G55: Table2.ton | J55: Russia | L55: 60.33114623 | M55: 64.35103555 | N55: 67.65610453 | O55: 79.70422219 | P55: 67.58962112 | Q55: 43.14804215 | R55: 38.31345652 | S55: 39.80847891 | T55: 42.96937117 | U55: 44.45075134 | V55: 29.82363273 | W55: 41.54183368 | X55: 35.68378423
B56: -0.01106261755 | E56: 33 | F56: Americas | G56: Table2.ton | J56: Americas | L56: 190.5886036 | M56: 174.4285241 | N56: 162.5691959 | O56: 165.8112312 | P56: 168.5181107 | Q56: 170.2711573 | R56: 167.4506189 | S56: 173.5399762 | T56: 178.6761127 | U56: 180.9335437 | V56: 158.2076266 | W56: 191.5960688 | X56: 187.7755513
B57: -0.006008748924 | E57: 34 | F57: United States | G57: Table2.ton | J57: United States | L57: 122.3328121 | M57: 115.8816075 | N57: 107.0538693 | O57: 112.5025278 | P57: 116.5575174 | Q57: 119.4965752 | R57: 118.7762433 | S57: 123.6575742 | T57: 128.3765123 | U57: 131.1 | V57: 118.2 | W57: 149.0976 | X57: 143.695
B58: -0.026641067 | E58: 35 | F58: Canada | G58: Table2.ton | J58: Canada | L58: 16.74043962 | M58: 14.61198359 | N58: 13.19131235 | O58: 13.19821396 | P58: 13.9564 | Q58: 14.16685 | R58: 13.78943 | S58: 14.11661 | T58: 14.274 | U58: 14.444 | V58: 13.056 | W58: 15.1703 | X58: 15.43
B59: 0.01492350593 | E59: 36 | F59: Mexico | G59: Table2.ton | J59: Mexico | L59: 22.76652386 | M59: 18.91672938 | N59: 15.26125363 | O59: 15.87210917 | P59: 15.77782229 | Q59: 16.6379602 | R59: 15.95160046 | S59: 16.60120297 | T59: 16.83522239 | U59: 16.64316378 | V59: 12.40389199 | W59: 12.72510079 | X59: 13.18905011
B60: -0.05190019275 | E60: 37 | F60: Brazil | G60: Table2.ton | J60: Brazil | L60: 28.748828 | M60: 25.01820367 | N60: 27.06276061 | O60: 24.23838025 | P60: 22.22637095 | Q60: 19.96977198 | R60: 18.93334514 | S60: 19.164589 | T60: 19.19037795 | U60: 18.74637996 | V60: 14.54773464 | W60: 14.603068 | X60: 15.4615012
B61: -0.01459340275 | E61: 38 | F61: Europe ex CIS | G61: Table2.ton | J61: Europe ex CIS | L61: 106.2173798 | M61: 87.76702215 | N61: 77.42150031 | O61: 75.05559526 | P61: 78.0356487 | Q61: 77.37416388 | R61: 76.125124 | S61: 74.01764048 | T61: 73.39201008 | U61: 72.06518467 | V61: 55.94160962 | W61: 67.80756941 | X61: 70.55084084
B62: -0.02782291322 | E62: 39 | F62: France | G62: Table2.ton | J62: France | L62: 20.71885876 | M62: 19.21427463 | N62: 15.715332 | O62: 14.88099382 | P62: 14.1593 | Q62: 13.573345 | R62: 13.375695 | S62: 13.3115 | T62: 12.99735 | U62: 12.64985 | V62: 10.5 | W62: 12.39925 | X62: 14.22625
B63: 0.01376118096 | E63: 40 | F63: Germany | G63: Table2.ton | J63: Germany | L63: 13.7044811 | M63: 12.03043122 | N63: 10.73884159 | O63: 10.0952466 | P63: 10.00009766 | Q63: 10.18533772 | R63: 10.3255 | S63: 10.4255 | T63: 10.63 | U63: 10.619 | V63: 9.0445 | W63: 11.10815 | X63: 11.092
B64: -0.01404056162 | E64: 41 | F64: Italy | G64: Table2.ton | J64: Italy | L64: 34.2134187 | M64: 26.91994452 | N64: 22.5594382 | O64: 21.1140625 | P64: 19.89 | Q64: 19.23 | R64: 18.957 | S64: 18.825 | T64: 18.542 | U64: 18.16935 | V64: 13.79535 | W64: 17.284 | X64: 17.838
B65: 0.008627851478 | E65: 42 | F65: Spain | G65: Table2.ton | J65: Spain | L65: 11.57840666 | M65: 8.167565828 | N65: 8.378636356 | O65: 7.772076863 | P65: 8.30725923 | Q65: 8.491611201 | R65: 8.261297962 | S65: 8.386380676 | T65: 8.688232463 | U65: 8.848992847 | V65: 6.896450791 | W65: 7.754847123 | X65: 8.076963282
B66: -0.0265792219 | E66: 43 | F66: United Kingdom | G66: Table2.ton | J66: United Kingdom | L66: 26.00221461 | M66: 21.43480595 | N66: 20.02925216 | O66: 21.19321547 | P66: 25.6789918 | Q66: 25.89386995 | R66: 25.20563103 | S66: 23.0692598 | T66: 22.53442762 | U66: 21.77799182 | V66: 15.70530883 | W66: 19.26132229 | X66: 19.31762756
E67: 44 | F67: Switzerland | G67: Table2.ton | J67: Switzerland | L67: 0 | M67: 0 | N67: 0 | O67: 0 | P67: 0 | Q67: 0 | R67: 0 | S67: 0 | T67: 0 | U67: 0 | V67: 0 | W67: 0 | X67: 0
E68: 45 | F68: Austria | G68: Table2.ton | J68: Austria | L68: 0 | M68: 0 | N68: 0 | O68: 0 | P68: 0 | Q68: 0 | R68: 0 | S68: 0 | T68: 0 | U68: 0 | V68: 0 | W68: 0 | X68: 0
E69: 46 | F69: Other Europe | G69: Table2.ton | J69: Other Europe | L69: 0 | M69: 0 | N69: 0 | O69: 0 | P69: 0 | Q69: 0 | R69: 0 | S69: 0 | T69: 0 | U69: 0 | V69: 0 | W69: 0 | X69: 0
B70: -0.1590752267 | E70: 47 | F70: Total above | G70: Table2.ton | J70: Total above | L70: 1973.359462 | M70: 1970.406533 | N70: 1968.88879 | O70: 2490.507872 | P70: 2303.315309 | Q70: 2236.074995 | R70: 1888.467495 | S70: 2015.116976 | T70: 2014.784702 | U70: 1890.377094 | V70: 1237.488231 | W70: 1944.405094 | X70: 1866.757924
B71: -0.05365936369 | E71: 48 | F71: Other & stock change | G71: Table2.ton | J71: Other & stock change | L71: 83.88814785 | M71: 134.0391602 | N71: 188.3161925 | O71: 237.466489 | P71: 230.9031986 | Q71: 224.7662787 | R71: 216.760697 | S71: 226.8937757 | T71: 235.435435 | U71: 236.3430595 | V71: 160.498108 | W71: 203.3332163 | X71: 219.4104494
B72: -0.1499730752 | E72: 49 | F72: World Total | G72: Table2.ton | J72: World Total | L72: 2057.24761 | M72: 2104.445694 | N72: 2157.204982 | O72: 2727.974361 | P72: 2534.218507 | Q72: 2460.841273 | R72: 2105.228192 | S72: 2242.010751 | T72: 2250.220137 | U72: 2126.720154 | V72: 1397.986339 | W72: 2147.738311 | X72: 2086.168373
B73: YoY | F73: Investment
B74: -0.1711553217 | E74: 9 | F74: India | G74: Table3.ton | J74: India | L74: 340.0552651 | M74: 354.7111107 | N74: 318.9836362 | O74: 341.1514346 | P74: 205.9622254 | Q74: 194.9414957 | R74: 161.5762213 | S74: 169.3157447 | T74: 162.4016762 | U74: 145.7696372 | V74: 130.4368228 | W74: 186.4774977 | X74: 173.5577616
B75: 0.1077279955 | E75: 10 | F75: Pakistan | G75: Table3.ton | J75: Pakistan | L75: 7.35625 | M75: 15.74212329 | N75: 13.24382622 | O75: 20.91403194 | P75: 13.93044816 | Q75: 14.46625624 | R75: 16.02467703 | S75: 16.86342944 | T75: 14.78275239 | U75: 14.24699082 | V75: 11.93518247 | W75: 18.05609884 | X75: 20.83396209
E76: 11 | F76: Sri Lanka | G76: Table3.ton | J76: Sri Lanka | L76: 0 | M76: 0 | N76: 0 | O76: 0 | P76: 0 | Q76: 0 | R76: 0 | S76: 0 | T76: 0 | U76: 0 | V76: 0 | W76: 0 | X76: 0
B77: 0.2368270477 | E77: 12 | F77: Greater China | G77: Table3.ton | J77: Greater China | L77: 183.5757393 | M77: 266.4842113 | N77: 264.1341582 | O77: 418.4793663 | P77: 208.4022051 | Q77: 236.30469 | R77: 292.1846163 | S77: 313.9884281 | T77: 315.4276096 | U77: 217.73193 | V77: 208.018 | W77: 294.382195 | X77: 226.6367476
B78: 0.2474797053 | E78: 13 | F78: China | G78: Table3.ton | J78: China | L78: 183.7937917 | M78: 259.0956582 | N78: 256.9639636 | O78: 406.7108038 | P78: 198.4522051 | Q78: 228.103565 | R78: 284.554568 | S78: 306.385833 | T78: 308.0356736 | U78: 211.12093 | V78: 198.874 | W78: 285.487195 | X78: 218.2267476
B79: -0.04395973154 | E79: 14 | F79: Hong Kong | G79: Table3.ton | J79: Hong Kong | L79: 1.192336449 | M79: 1.537065972 | N79: 2.012886307 | O79: 2.914375 | P79: 1.39 | Q79: 1.49 | R79: 1.4245 | S79: 1.7094 | T79: 1.47592 | U79: 1.235 | V79: 2.44 | W79: 2.84 | X79: 2.13
B80: -0.07929700545 | E80: 15 | F80: Taiwan | G80: Table3.ton | J80: Taiwan | L80: -1.410388889 | M80: 5.85148715 | N80: 5.157308333 | O80: 8.8541875 | P80: 8.56 | Q80: 6.711125 | R80: 6.205548242 | S80: 5.893195054 | T80: 5.916016029 | U80: 5.376 | V80: 6.704 | W80: 6.055 | X80: 6.28
B81: 0.05789518339 | E81: 16 | F81: Japan | G81: Table3.ton | J81: Japan | L81: -39.80829433 | M81: -52.28364904 | N81: -10.97229827 | O81: 3.92121875 | P81: -2.740792755 | Q81: 16.1649285 | R81: 17.1008 | S81: -3.2864 | T81: 12.511 | U81: -20.1194 | V81: -9.328 | W81: 0.1148 | X81: -11.1724
B82: 0.04915273258 | E82: 17 | F82: Indonesia | G82: Table3.ton | J82: Indonesia | L82: 17.16004085 | M82: 27.42769657 | N82: 26.44736425 | O82: 46.938625 | P82: 26.9 | Q82: 20.12561 | R82: 21.11483873 | S82: 20.229689 | T82: 22.163155 | U82: 14.16875135 | V82: 16.75440026 | W82: 19.78633807 | X82: 21.4677873
B83: -0.2354565715 | E83: 18 | F83: Malaysia | G83: Table3.ton | J83: Malaysia | L83: 5.458333318 | M83: 9.759060952 | N83: 7.687304355 | O83: 10.27530772 | P83: 8.23 | Q83: 6.798752 | R83: 5.197941164 | S83: 5.756605054 | T83: 5.997 | U83: 5.395 | V83: 3.9116 | W83: 4.35325 | X83: 5.5301325
B84: -0.1536509058 | E84: 19 | F84: Singapore | G84: Table3.ton | J84: Singapore | L84: 1.360669552 | M84: 4.186902989 | N84: 5.145908449 | O84: 6.501915992 | P84: 6.515 | Q84: 5.90295 | R84: 4.995956386 | S84: 4.814576128 | T84: 4.866473909 | U84: 4.44 | V84: 3.74 | W84: 4.4727 | X84: 5.92182
B85: -0.2681847412 | E85: 20 | F85: S Korea | G85: Table3.ton | J85: S Korea | L85: 1.32478125 | M85: 7.927362288 | N85: 11.35470833 | O85: 17.90090625 | P85: 16.7365 | Q85: 19.9355 | R85: 15.0795 | S85: 18.53025 | T85: 19.278 | U85: 19.481 | V85: 19.013 | W85: 20.94 | X85: 16.969
B86: -0.1064187359 | E86: 21 | F86: Thailand | G86: Table3.ton | J86: Thailand | L86: 64.23504071 | M86: 106.6383153 | N86: 100.8674317 | O86: 138.9315625 | P86: 96.35 | Q86: 77.97875 | R86: 69.68035 | S86: 63.97568578 | T86: 68.46117813 | U86: 35.40493076 | V86: -87.3419474 | W86: 28.65474331 | X86: 28.52134403
B87: -0.1018193746 | E87: 22 | F87: Vietnam | G87: Table3.ton | J87: Vietnam | L87: 68.16104944 | M87: 90.58822608 | N87: 73.78035516 | O87: 87.875 | P87: 54.15 | Q87: 47.781638 | R87: 42.9165415 | S87: 37.37591055 | T87: 41.27702719 | U87: 39.07989453 | V87: 29.06373543 | W87: 31.05187825 | X87: 41.03272075
E88: 23 | F88: Australia | G88: Table3.ton | J88: Australia | W88: 20.28052467 | X88: 19.92273627
B89: -0.7120834062 | E89: 24 | F89: Middle East | G89: Table3.ton | J89: Middle East | L89: 72.93281377 | M89: 88.43983607 | N89: 90.57569655 | O89: 111.2452222 | P89: 74.85374839 | Q89: 64.88079538 | R89: 30.02376327 | S89: 42.90174966 | T89: 86.37489124 | U89: 60.77007553 | V89: 57.1856442 | W89: 54.75216219 | X89: 77.79824929
B90: -0.2753022138 | E90: 25 | F90: Saudi Arabia | G90: Table3.ton | J90: Saudi Arabia | L90: 14.54791706 | M90: 17.71014983 | N90: 16.92573235 | O90: 18.30275101 | P90: 15.64852745 | Q90: 14.91791555 | R90: 10.81098037 | S90: 9.928765334 | T90: 10.17670567 | U90: 8.843144638 | V90: 8.396260015 | W90: 10.89566021 | X90: 12.20464214
B91: -0.3091930263 | E91: 26 | F91: UAE | G91: Table3.ton | J91: UAE | L91: 9.968209175 | M91: 11.87732803 | N91: 10.66519532 | O91: 14.11559222 | P91: 9.942240022 | Q91: 8.748764879 | R91: 6.04370779 | S91: 5.540305784 | T91: 5.769608731 | U91: 5.047993963 | V91: 5.23731096 | W91: 7.746853272 | X91: 8.400964402
B92: -0.1789034675 | E92: 27 | F92: Kuwait | G92: Table3.ton | J92: Kuwait | L92: 1.354683179 | M92: 1.289939408 | N92: 1.627239496 | O92: 3.818023644 | P92: 3.57643596 | Q92: 2.994692096 | R92: 2.461711908 | S92: 2.622264988 | T92: 2.95636403 | U92: 2.559912345 | V92: 2.722282243 | W92: 3.606141901 | X92: 4.17941037
B93: -0.4513066729 | E93: 28 | F93: Egypt | G93: Table3.ton | J93: Egypt | L93: 2.347504604 | M93: 2.337482801 | N93: 2.126258814 | O93: 7.11915854 | P93: 6.022160078 | Q93: 4.916108073 | R93: 2.697435695 | S93: 2.474252488 | T93: 2.613593135 | U93: 2.461901233 | V93: 2.163837536 | W93: 2.419367397 | X93: 4.431650703
B94: -1.144971337 | E94: 29 | F94: Iran | G94: Table3.ton | J94: Iran | L94: 43.45604486 | M94: 53.18770678 | N94: 56.9760158 | O94: 64.03224851 | P94: 36.06104482 | Q94: 30.09499844 | R94: 4.627341578 | S94: 19.15743264 | T94: 61.77794069 | U94: 39.08900444 | V94: 36.25140885 | W94: 25.45003944 | X94: 41.7971031
B95: -0.1976435402 | E95: 30 | F95: Other Middle East | G95: Table3.ton | J95: Other Middle East | L95: 1.258454895 | M95: 2.037229218 | N95: 2.255254775 | O95: 3.857448245 | P95: 3.603340065 | Q95: 3.208316348 | R95: 3.382585931 | S95: 3.178728422 | T95: 3.080678983 | U95: 2.768118907 | V95: 2.414544597 | W95: 4.634099973 | X95: 6.784478573
B96: 0.2698823156 | E96: 31 | F96: Turkey | G96: Table3.ton | J96: Turkey | L96: 40.87095877 | M96: 71.94789896 | N96: 48.08644018 | O96: 104.2205466 | P96: 48.6099216 | Q96: 23.1139252 | R96: 29.35196486 | S96: 52.36909417 | T96: 37.76766569 | U96: 52.86663229 | V96: 121.0946701 | W96: 61.43662404 | X96: 84.84968299
B97: -0.2322916667 | E97: 32 | F97: Russia | G97: Table3.ton | J97: Russia | L97: 0 | M97: 0 | N97: 0 | O97: 0 | P97: 7.9054 | Q97: 4.8 | R97: 3.685 | S97: 2.46375 | T97: 2.634825 | U97: 3.6550425 | V97: 4.99 | W97: 5.2725 | X97: 25
B98: 0.2959744151 | E98: 33 | F98: Americas | G98: Table3.ton | J98: Americas | L98: 113.2462494 | M98: 92.41861719 | N98: 61.62120071 | O98: 85.62019764 | P98: 56.09883734 | Q98: 78.217536 | R98: 99.01712177 | S98: 41.84364743 | T98: 31.22938841 | U98: 24.9623293 | V98: 79.13279195 | W98: 129.69632 | X98: 128.0015305
B99: 0.3173199226 | E99: 34 | F99: United States | G99: Table3.ton | J99: United States | L99: 104.3501579 | M99: 82.61390799 | N99: 53.13251411 | O99: 75.27301947 | P99: 48.18856997 | Q99: 71.05362192 | R99: 91.32077504 | S99: 35.20762567 | T99: 26.06625182 | U99: 19.69977751 | V99: 69.12063801 | W99: 115.8446355 | X99: 112.8631572
B100: 0.2496254473 | E100: 35 | F100: Canada | G100: Table3.ton | J100: Canada | L100: 3.697648917 | M100: 5.948027385 | N100: 4.395508049 | O100: 6.448383789 | P100: 4.403688824 | Q100: 3.36878855 | R100: 4.144646738 | S100: 2.89647062 | T100: 2.19112594 | U100: 2.957138203 | V100: 7.713937275 | W100: 10.81612567 | X100: 12.10509498
B101: -0.08836171366 | E101: 36 | F101: Mexico | G101: Table3.ton | J101: Mexico | L101: 4.702285236 | M101: 2.943089325 | N101: 3.094947303 | O101: 2.513507352 | P101: 2.207118552 | Q101: 2.377625527 | R101: 2.275949992 | S101: 2.709001138 | T101: 2.04451565 | U101: 1.424293342 | V101: 0.8679437877 | W101: 1.395558799 | X101: 1.454905202
B102: -0.1 | E102: 37 | F102: Brazil | G102: Table3.ton | J102: Brazil | L102: 0.4961573333 | M102: 0.9135925 | N102: 0.99823125 | O102: 1.385287031 | P102: 1.29946 | Q102: 1.4175 | R102: 1.27575 | S102: 1.03055 | T102: 0.927495 | U102: 0.88112025 | V102: 1.430272875 | W102: 1.64 | X102: 1.578373125
B103: -0.08698911776 | E103: 38 | F103: Europe ex CIS | G103: Table3.ton | J103: Europe ex CIS | L103: 288.2572847 | M103: 333.8223183 | N103: 239.9078862 | O103: 261.4162905 | P103: 196.403787 | Q103: 220.1846375 | R103: 201.9209105 | S103: 192.500958 | T103: 171.7942798 | U103: 152.9727287 | V103: 256.4132536 | W103: 276.2153496 | X103: 314.2231312
B104: 6.875 | E104: 39 | F104: France | G104: Table3.ton | J104: France | L104: 1.301269531 | M104: 6.456305721 | N104: 2.659360708 | O104: 1.9250625 | P104: 0.975 | Q104: -0.52 | R104: -4.215 | S104: -0.11 | T104: -1.19 | U104: 0.3 | V104: 3.54165 | W104: 4.65 | X104: 5.63
B105: -0.04451272415 | E105: 40 | F105: Germany | G105: Table3.ton | J105: Germany | L105: 122.9248008 | M105: 142.3912705 | N105: 108.1862434 | O105: 133.2883763 | P105: 101.2561931 | Q105: 115.9509667 | R105: 110.7896733 | S105: 106.5457736 | T105: 96.25795459 | U105: 85.6 | V105: 157 | W105: 162.5785852 | X105: 185.3136707
E106: 41 | F106: Italy | G106: Table3.ton | J106: Italy | L106: 0 | M106: 0 | N106: 0 | O106: 0 | P106: 0 | Q106: 0 | R106: 0 | S106: 0 | T106: 0 | U106: 0 | V106: 0 | W106: 0 | X106: 0
E107: 42 | F107: Spain | G107: Table3.ton | J107: Spain | L107: 0 | M107: 0 | N107: 0 | O107: 0 | P107: 0 | Q107: 0 | R107: 0 | S107: 0 | T107: 0 | U107: 0 | V107: 0 | W107: 0 | X107: 0
B108: 0.282071928 | E108: 43 | F108: United Kingdom | G108: Table3.ton | J108: United Kingdom | L108: 14.82288778 | M108: 17.35442369 | N108: 14.96865082 | O108: 11.46675612 | P108: 7.643535408 | Q108: 8.487365329 | R108: 11.92429611 | S108: 10.48177929 | T108: 12.09192277 | U108: 10.45117515 | V108: 13.89763857 | W108: 15.49769584 | X108: 16.29175342
B109: -0.09388472292 | E109: 44 | F109: Switzerland | G109: Table3.ton | J109: Switzerland | L109: 86.88024417 | M109: 96.75615064 | N109: 62.19218645 | O109: 61.73600103 | P109: 47.72736667 | Q109: 50.34767778 | R109: 45.6208 | S109: 42.48 | T109: 36.55 | U109: 29.82 | V109: 42.9 | W109: 43.8 | X109: 48.725
B110: -0.1117442879 | E110: 45 | F110: Austria | G110: Table3.ton | J110: Austria | L110: 13.73727168 | M110: 15.09940181 | N110: 10.41638626 | O110: 12.98697677 | P110: 10.23115284 | Q110: 12.20033113 | R110: 10.83701382 | S110: 9.682897072 | T110: 8.181240123 | U110: 6.239328838 | V110: 11.56719284 | W110: 12.24520347 | X110: 14.21912514
B111: -0.2003116998 | E111: 46 | F111: Other Europe | G111: Table3.ton | J111: Other Europe | L111: 48.59081072 | M111: 55.76476593 | N111: 41.48505865 | O111: 40.01311778 | P111: 28.57053908 | Q111: 33.71829652 | R111: 26.96412723 | S111: 23.42050808 | T111: 19.90316228 | U111: 20.56222472 | V111: 27.50677219 | W111: 37.44386508 | X111: 44.04358185
B112: -0.02634065336 | E112: 47 | F112: Total above | G112: Table3.ton | J112: Total above | L112: 1164.186182 | M112: 1417.810031 | N112: 1250.863618 | O112: 1655.391626 | P112: 1018.30728 | Q112: 1031.597464 | R112: 1009.870203 | S112: 979.6431179 | T112: 996.9669225 | U112: 770.825543 | V112: 845.0191534 | W112: 1155.942982 | X112: 1179.094206
B113: 0.05536913927 | E113: 48 | F113: Other & stock change | G113: Table3.ton | J113: Other & stock change | L113: 40.10813149 | M113: 84.16257354 | N113: 71.48668723 | O113: 74.3195229 | P113: 48.34116468 | Q113: 59.11908508 | R113: 63.01155578 | S113: 64.41614803 | T113: 93.48251119 | U113: 100.0472765 | V113: 58.81128409 | W113: 34.94079553 | X113: 38.02304176
B114: -0.02248959524 | E114: 49 | F114: World Total | G114: Table3.ton | J114: World Total | L114: 1204.294313 | M114: 1501.972605 | N114: 1322.350305 | O114: 1729.711149 | P114: 1066.648445 | Q114: 1090.71655 | R114: 1072.881759 | S114: 1044.059266 | T114: 1090.449434 | U114: 870.8728196 | V114: 903.8304375 | W114: 1190.883777 | X114: 1217.117248
B115: YoY | F115: Consumer
B116: -0.2229875676 | E116: 9 | F116: India | G116: Table4.ton | J116: India | L116: 1001.711972 | M116: 974.0223725 | N116: 914.1511689 | O116: 958.5812158 | P116: 833.453556 | Q116: 857.238536 | R116: 666.085 | S116: 771.2169387 | T116: 760.4125815 | U116: 690.4058354 | V116: 446.3695145 | W116: 797.3410398 | X116: 773.9568391
B117: 0.122315116 | E117: 10 | F117: Pakistan | G117: Table4.ton | J117: Pakistan | L117: 33.82950014 | M117: 39.94614149 | N117: 39.39017421 | O117: 44.24592315 | P117: 35.77977635 | Q117: 37.63976981 | R117: 42.24368263 | S117: 44.92961705 | T117: 40.17231503 | U117: 38.03819072 | V117: 28.75972318 | W117: 41.18896319 | X117: 44.28646854
B118: -0.02419093216 | E118: 11 | F118: Sri Lanka | G118: Table4.ton | J118: Sri Lanka | L118: 0 | M118: 0 | N118: 0 | O118: 0 | P118: 9.1225 | Q118: 10.66085 | R118: 10.4710973 | S118: 11.18141463 | T118: 9.604771861 | U118: 7.887048719 | V118: 4.272328951 | W118: 4.094454027 | X118: 3.912522067
B119: -0.07526910271 | E119: 12 | F119: Greater China | G119: Table4.ton | J119: Greater China | L119: 676.2614386 | M119: 873.0356778 | N119: 918.3416452 | O119: 1449.787242 | P119: 1083.67781 | Q119: 1062.154809 | R119: 985.0470731 | S119: 1029.705936 | T119: 1058.390947 | U119: 899.5199568 | V119: 641.3008283 | W119: 993.6971247 | X119: 824.9373543
B120: -0.06921646993 | E120: 13 | F120: China | G120: Table4.ton | J120: China | L120: 645.7418456 | M120: 816.2751933 | N120: 856.3219799 | O120: 1345.506307 | P120: 1005.285773 | Q120: 995.5497072 | R120: 929.371044 | S120: 971.5528261 | T120: 994.3479805 | U120: 849.127976 | V120: 612.6538283 | W120: 958.8331247 | X120: 789.1623543
B121: -0.1890705338 | E121: 14 | F121: Hong Kong | G121: Table4.ton | J121: Hong Kong | L121: 24.18955095 | M121: 43.80216767 | N121: 49.6512968 | O121: 85.521375 | P121: 61.432 | Q121: 52.847 | R121: 42.8551895 | S121: 45.98286081 | T121: 52.11695068 | U121: 39.57598085 | V121: 17.803 | W121: 24.649 | X121: 24.545
B122: -0.06981766751 | E122: 15 | F122: Taiwan | G122: Table4.ton | J122: Taiwan | L122: 6.330042051 | M122: 12.95831686 | N122: 12.3683685 | O122: 18.75955932 | P122: 16.96003681 | Q122: 13.75810165 | R122: 12.82083963 | S122: 12.17024888 | T122: 11.92601603 | U122: 10.816 | V122: 10.844 | W122: 10.215 | X122: 11.23
B123: 0.04408451748 | E123: 16 | F123: Japan | G123: Table4.ton | J123: Japan | L123: -19.05536489 | M123: -36.35780813 | N123: 5.139575595 | O123: 20.87338599 | P123: 13.70893256 | Q123: 32.67186962 | R123: 34.02687191 | S123: 13.32882678 | T123: 28.96558074 | U123: -3.115498115 | V123: 4.508298896 | W123: 15.58863947 | X123: 4.269325774
B124: 0.007749421258 | E124: 17 | F124: Indonesia | G124: Table4.ton | J124: Indonesia | L124: 50.56293862 | M124: 60.81650525 | N124: 61.66747791 | O124: 88.11230704 | P124: 63.38270485 | Q124: 59.01829807 | R124: 59.47565573 | S124: 58.78870506 | T124: 64.04834329 | U124: 54.54878259 | V124: 37.61934714 | W124: 46.77100747 | X124: 49.72320262
B125: -0.146590707 | E125: 18 | F125: Malaysia | G125: Table4.ton | J125: Malaysia | L125: 16.95607412 | M125: 20.3997477 | N125: 20.64815984 | O125: 28.59849414 | P125: 26.85659474 | Q125: 22.10993357 | R125: 19.36609175 | S125: 19.05826307 | T125: 18.917 | U125: 17.605 | V125: 13.0731 | W125: 14.86175 | X125: 18.5327905
B126: -0.05338295089 | E126: 19 | F126: Singapore | G126: Table4.ton | J126: Singapore | L126: 9.898271516 | M126: 13.0546822 | N126: 14.82201374 | O126: 20.85185692 | P126: 20.52296397 | Q126: 18.06140182 | R126: 17.09723089 | S126: 16.6320046 | T126: 16.38584891 | U126: 14.98 | V126: 9.438 | W126: 11.4527 | X126: 14.98602
B127: -0.130485409 | E127: 20 | F127: S Korea | G127: Table4.ton | J127: S Korea | L127: 19.1690731 | M127: 26.55821636 | N127: 27.96983518 | O127: 40.80474219 | P127: 39.669625 | Q127: 45.5405 | R127: 39.15 | S127: 41.197875 | T127: 40.982334 | U127: 38.941 | V127: 35.388 | W127: 39.63625 | X127: 32.3915
B128: -0.09620609469 | E128: 21 | F128: Thailand | G128: Table4.ton | J128: Thailand | L128: 71.2951064 | M128: 113.563123 | N128: 110.0162689 | O128: 153.8061875 | P128: 108.719 | Q128: 90.20639007 | R128: 81.52798557 | S128: 75.41695893 | T128: 80.55498336 | U128: 46.49871917 | V128: -81.49609764 | W128: 36.70540927 | X128: 37.92788083
B129: -0.08017116738 | E129: 22 | F129: Vietnam | G129: Table4.ton | J129: Vietnam | L129: 82.32724729 | M129: 103.4244542 | N129: 84.25225205 | O129: 99.64915761 | P129: 66.65 | Q129: 63.41177175 | R129: 58.32797598 | S129: 53.86988021 | T129: 59.48826373 | U129: 56.36930631 | V129: 39.80186433 | W129: 42.9892949 | X129: 59.10768528
E130: 23 | F130: Australia | G130: Table4.ton | J130: Australia | L130: 0 | M130: 0 | N130: 0 | O130: 0 | P130: 0 | Q130: 0 | R130: 0 | S130: 0 | T130: 0 | U130: 0 | V130: 0 | W130: 28.70234255 | X130: 30.88177843
B131: -0.2923934634 | E131: 24 | F131: Middle East | G131: Table4.ton | J131: Middle East | L131: 327.1943561 | M131: 301.438657 | N131: 300.2276251 | O131: 388.8971821 | P131: 328.8380903 | Q131: 302.8392214 | R131: 228.8837029 | S131: 241.6890065 | T131: 258.9926555 | U131: 231.1598371 | V131: 171.9711585 | W131: 219.8850285 | X131: 268.1623526
B132: -0.2867760562 | E132: 25 | F132: Saudi Arabia | G132: Table4.ton | J132: Saudi Arabia | L132: 84.46207431 | M132: 72.45252422 | N132: 65.9300285 | O132: 84.723778 | P132: 84.02447591 | Q132: 84.42744743 | R132: 60.21567702 | S132: 54.37602117 | T132: 49.5554823 | U132: 46.00312805 | V132: 31.09489848 | W132: 44.23536479 | X132: 50.09891477
B133: -0.1848064022 | E133: 26 | F133: UAE | G133: Table4.ton | J133: UAE | L133: 76.91104174 | M133: 68.22199772 | N133: 60.02681548 | O133: 78.4768045 | P133: 65.95450753 | Q133: 60.15843461 | R133: 51.22749205 | S133: 52.23112125 | T133: 41.94498412 | U133: 39.06132251 | V133: 26.73398979 | W133: 41.59596932 | X133: 55.26942125
B134: -0.05411826122 | E134: 27 | F134: Kuwait | G134: Table4.ton | J134: Kuwait | L134: 10.32504754 | M134: 9.658324041 | N134: 9.305317103 | O134: 15.49293661 | P134: 17.76424151 | Q134: 16.16566118 | R134: 15.02135855 | S134: 16.50670365 | T134: 17.00255109 | U134: 15.85331258 | V134: 13.03268597 | W134: 16.58696681 | X134: 18.8620261
B135: -0.34667764 | E135: 28 | F135: Egypt | G135: Table4.ton | J135: Egypt | L135: 55.33995226 | M135: 36.40047087 | N135: 44.2111402 | O135: 52.76604645 | P135: 51.13585055 | Q135: 43.14716185 | R135: 28.09044098 | S135: 24.48720803 | T135: 27.35163359 | U135: 29.14631849 | V135: 23.34061081 | W135: 34.12893651 | X135: 37.99414908
B136: -0.4555399785 | E136: 29 | F136: Iran | G136: Table4.ton | J136: Iran | L136: 84.98419091 | M136: 98.15213222 | N136: 102.1361202 | O136: 127.6919883 | P136: 75.35924213 | Q136: 67.31227158 | R136: 45.13909457 | S136: 64.53272548 | T136: 91.15119591 | U136: 69.63089586 | V136: 56.2611403 | W136: 51.78549655 | X136: 71.6869399
B137: -0.1547748639 | E137: 30 | F137: Other Middle East | G137: Table4.ton | J137: Other Middle East | L137: 15.17204933 | M137: 16.55320791 | N137: 18.61820369 | O137: 29.74562827 | P137: 34.59977267 | Q137: 31.62824475 | R137: 29.18963972 | S137: 29.55522696 | T137: 31.98680844 | U137: 31.46485962 | V137: 21.50783315 | W137: 31.55229454 | X137: 34.25090149
B138: -0.02773674407 | E138: 31 | F138: Turkey | G138: Table4.ton | J138: Turkey | L138: 108.7543677 | M138: 145.5272778 | N138: 113.9503238 | O138: 184.0842665 | P138: 116.6896302 | Q138: 72.12357135 | R138: 70.12309831 | S138: 93.57021631 | T138: 74.14001221 | U138: 89.32487835 | V138: 146.9924041 | W138: 95.30443059 | X138: 121.541572
B139: -0.1236308411 | E139: 32 | F139: Russia | G139: Table4.ton | J139: Russia | L139: 60.33114623 | M139: 64.35103555 | N139: 67.65610453 | O139: 79.70422219 | P139: 75.49502112 | Q139: 47.94804215 | R139: 41.99845652 | S139: 42.27222891 | T139: 45.60419617 | U139: 48.10579384 | V139: 34.81363273 | W139: 46.81433368 | X139: 60.68378423
B140: 0.08540332832 | E140: 33 | F140: Americas | G140: Table4.ton | J140: Americas | L140: 303.834853 | M140: 266.8471413 | N140: 224.1903966 | O140: 251.4314288 | P140: 224.616948 | Q140: 248.4886933 | R140: 266.4677407 | S140: 215.3836236 | T140: 209.9055011 | U140: 205.895873 | V140: 237.3404186 | W140: 321.2923888 | X140: 315.7770818
B141: 0.1150502798 | E141: 34 | F141: United States | G141: Table4.ton | J141: United States | L141: 226.68297 | M141: 198.4955155 | N141: 160.1863834 | O141: 187.7755473 | P141: 164.7460874 | Q141: 190.5501971 | R141: 210.0970184 | S141: 158.8651999 | T141: 154.4427641 | U141: 150.7997775 | V141: 187.320638 | W141: 264.9422355 | X141: 256.5581572
B142: 0.02041692947 | E142: 35 | F142: Canada | G142: Table4.ton | J142: Canada | L142: 20.43808854 | M142: 20.56001097 | N142: 17.5868204 | O142: 19.64659775 | P142: 18.36008882 | Q142: 17.53563855 | R142: 17.93407674 | S142: 17.01308062 | T142: 16.46512594 | U142: 17.4011382 | V142: 20.76993727 | W142: 25.98642567 | X142: 27.53509498
B143: 0.003053028579 | E143: 36 | F143: Mexico | G143: Table4.ton | J143: Mexico | L143: 27.46880909 | M143: 21.85981871 | N143: 18.35620093 | O143: 18.38561652 | P143: 17.98494084 | Q143: 19.01558572 | R143: 18.22755045 | S143: 19.31020411 | T143: 18.87973804 | U143: 18.06745712 | V143: 13.27183577 | W143: 14.12065959 | X143: 14.64395531
B144: -0.05508813915 | E144: 37 | F144: Brazil | G144: Table4.ton | J144: Brazil | L144: 29.24498534 | M144: 25.93179617 | N144: 28.06099186 | O144: 25.62366728 | P144: 23.52583095 | Q144: 21.38727198 | R144: 20.20909514 | S144: 20.195139 | T144: 20.11787295 | U144: 19.62750021 | V144: 15.97800751 | W144: 16.243068 | X144: 17.03987432
B145: -0.0682216259 | E145: 38 | F145: Europe ex CIS | G145: Table4.ton | J145: Europe ex CIS | L145: 394.4746645 | M145: 421.5893405 | N145: 317.3293865 | O145: 336.4718857 | P145: 274.4394357 | Q145: 297.5588014 | R145: 278.0460345 | S145: 266.5185985 | T145: 245.1862898 | U145: 225.0379134 | V145: 312.3548632 | W145: 344.022919 | X145: 384.773972
B146: -0.3028074413 | E146: 39 | F146: France | G146: Table4.ton | J146: France | L146: 22.02012829 | M146: 25.67058035 | N146: 18.37469271 | O146: 16.80605632 | P146: 15.1343 | Q146: 13.053345 | R146: 9.160695 | S146: 13.2015 | T146: 11.80735 | U146: 12.94985 | V146: 14.04165 | W146: 17.04925 | X146: 19.85625
B147: -0.03980718433 | E147: 40 | F147: Germany | G147: Table4.ton | J147: Germany | L147: 136.6292819 | M147: 154.4217017 | N147: 118.9250849 | O147: 143.3836229 | P147: 111.2562907 | Q147: 126.1363045 | R147: 121.1151733 | S147: 116.9712736 | T147: 106.8879546 | U147: 96.219 | V147: 166.0445 | W147: 173.6867352 | X147: 196.4056707
B148: -0.01404056162 | E148: 41 | F148: Italy | G148: Table4.ton | J148: Italy | L148: 34.2134187 | M148: 26.91994452 | N148: 22.5594382 | O148: 21.1140625 | P148: 19.89 | Q148: 19.23 | R148: 18.957 | S148: 18.825 | T148: 18.542 | U148: 18.16935 | V148: 13.79535 | W148: 17.284 | X148: 17.838
B149: 0.008627851478 | E149: 42 | F149: Spain | G149: Table4.ton | J149: Spain | L149: 11.57840666 | M149: 8.167565828 | N149: 8.378636356 | O149: 7.772076863 | P149: 8.30725923 | Q149: 8.491611201 | R149: 8.261297962 | S149: 8.386380676 | T149: 8.688232463 | U149: 8.848992847 | V149: 6.896450791 | W149: 7.754847123 | X149: 8.076963282
B150: 0.05021647198 | E150: 43 | F150: United Kingdom | G150: Table4.ton | J150: United Kingdom | L150: 40.82510239 | M150: 38.78922964 | N150: 34.99790298 | O150: 32.65997159 | P150: 33.32252721 | Q150: 34.38123528 | R150: 37.12992715 | S150: 33.55103909 | T150: 34.62635039 | U150: 32.22916697 | V150: 29.6029474 | W150: 34.75901813 | X150: 35.60938098
B151: -0.09388472292 | E151: 44 | F151: Switzerland | G151: Table4.ton | J151: Switzerland | L151: 86.88024417 | M151: 96.75615064 | N151: 62.19218645 | O151: 61.73600103 | P151: 47.72736667 | Q151: 50.34767778 | R151: 45.6208 | S151: 42.48 | T151: 36.55 | U151: 29.82 | V151: 42.9 | W151: 43.8 | X151: 48.725
B152: -0.1117442879 | E152: 45 | F152: Austria | G152: Table4.ton | J152: Austria | L152: 13.73727168 | M152: 15.09940181 | N152: 10.41638626 | O152: 12.98697677 | P152: 10.23115284 | Q152: 12.20033113 | R152: 10.83701382 | S152: 9.682897072 | T152: 8.181240123 | U152: 6.239328838 | V152: 11.56719284 | W152: 12.24520347 | X152: 14.21912514
B153: -0.2003116998 | E153: 46 | F153: Other Europe | G153: Table4.ton | J153: Other Europe | L153: 48.59081072 | M153: 55.76476593 | N153: 41.48505865 | O153: 40.01311778 | P153: 28.57053908 | Q153: 33.71829652 | R153: 26.96412723 | S153: 23.42050808 | T153: 19.90316228 | U153: 20.56222472 | V153: 27.50677219 | W153: 37.44386508 | X153: 44.04358185
B154: -0.1170570715 | E154: 47 | F154: Total above | G154: Table4.ton | J154: Total above | L154: 3137.545644 | M154: 3388.216564 | N154: 3219.752408 | O154: 4145.899497 | P154: 3321.622589 | Q154: 3267.672459 | R154: 2898.337698 | S154: 2994.760094 | T154: 3011.751624 | U154: 2661.202637 | V154: 2082.507385 | W154: 3100.348076 | X154: 3045.85213
B155: -0.03238583144 | E155: 48 | F155: Other & stock change | G155: Table4.ton | J155: Other & stock change | L155: 123.9962793 | M155: 218.2017337 | N155: 259.8028797 | O155: 311.7860119 | P155: 279.2443633 | Q155: 283.8853638 | R155: 279.7722528 | S155: 291.3099238 | T155: 328.9179462 | U155: 336.3903361 | V155: 219.3093921 | W155: 238.2740118 | X155: 257.4334911
B156: -0.1107672379 | E156: 49 | F156: World Total | G156: Table4.ton | J156: World Total | L156: 3261.541923 | M156: 3606.418298 | N156: 3479.555288 | O156: 4457.685509 | P156: 3600.866952 | Q156: 3551.557823 | R156: 3178.109951 | S156: 3286.070017 | T156: 3340.66957 | U156: 2997.592973 | V156: 2301.816777 | W156: 3338.622088 | X156: 3303.285621
B157: YoY | E157: Prices | G157: Prices | L157: 42 | M157: 43 | N157: 44 | O157: 45 | P157: 46 | Q157: 47 | R157: 48 | S157: 49 | T157: 50 | U157: 51 | V157: 52 | W157: 52 | X157: 53
B158: 0.07822009206 | E158: 5 | F158: USD | G158: Ann.Avg | J158: USD | K158: US$/oz | L158: 1224.52 | M158: 1571.52 | N158: 1668.98 | O158: 1411.23 | P158: 1266.4 | Q158: 1160.06 | R158: 1250.8 | S158: 1257.15 | T158: 1268.49 | U158: 1392.6 | V158: 1769.59 | W158: 1769.59 | X158: 1798.61
B159: 0.08050954203 | E159: 8 | F159: EUR | G159: Ann.Avg | J159: EUR | K159: €/oz | L159: 925.18936 | M159: 1129.92459 | N159: 1298.7161 | O159: 1063.76915 | P159: 952.82571 | Q159: 1045.29709 | R159: 1129.45348 | S159: 1114.05904 | T159: 1073.6977 | U159: 1244.87505 | V159: 1549.04471 | W159: 1549.04471 | X159: 1520.62257
B160: 0.2218237748 | E160: 26 | F160: GBP | G160: Ann.Avg | J160: GBP | K160: £/oz | L160: 792.40733 | M160: 980.75636 | N160: 1052.98003 | O160: 903.81239 | P160: 768.14916 | Q160: 758.98199 | R160: 927.34224 | S160: 976.05851 | T160: 949.60552 | U160: 1092.9256 | V160: 1378.98099 | W160: 1378.98099 | X160: 1307.53174
B161: 0.1035117668 | E161: 23 | F161: CHF | G161: Ann.Avg | J161: CHF | K161: CHF/kg | L161: 40954.23216 | M161: 44649.53237 | N161: 50323.66711 | O161: 42090.2638 | P161: 37205.89162 | Q161: 35863.23468 | R161: 39575.50147 | S161: 39771.87037 | T161: 39882.12645 | U161: 44476.97944 | V161: 53307.74318 | W161: 53307.74318 | X161: 52849.73749
B162: -0.03551312062 | E162: 13 | F162: JPY | G162: Ann.Avg | J162: JPY | K162: ¥/g | L162: 3443.633313 | M162: 4015.760152 | N162: 4278.172919 | O162: 4410.405069 | P162: 4297.453938 | Q162: 4513.800906 | R162: 4353.501751 | S162: 4531.701744 | T162: 4502.201719 | U162: 4876.84005 | V162: 6069.586806 | W162: 6069.586806 | X162: 6348.184522
B163: 0.1301211448 | E163: 11 | F163: INR | G163: Ann.Avg | J163: INR | K163: Rs/10g | L163: 17997.30757 | M163: 23624.08404 | N163: 28639.38277 | O163: 26440.15529 | P163: 24835.05724 | Q163: 23903.21472 | R163: 27013.52838 | S163: 26319.74604 | T163: 27861.26384 | U163: 31542.48975 | V163: 42181.7337 | W163: 42181.7337 | X163: 42750.13265
B164: 0.1400810232 | E164: 25 | F164: CNY | G164: Ann.Avg | J164: CNY | K164: RMB/g | L164: 266.3095301 | M164: 326.2787969 | N164: 338.5313582 | O164: 279.1918723 | P164: 250.8462581 | Q164: 234.2335605 | R164: 267.0452374 | S164: 273.1123713 | T164: 269.4147565 | U164: 309.7472783 | V164: 392.4150649 | W164: 392.4150649 | X164: 372.9665166
B165: 0.1966732022 | E165: 20 | F165: TRY | G165: Ann.Avg | J165: TRY | K165: TL/g | L165: 59.26029579 | M165: 85.36536274 | N165: 96.56585111 | O165: 85.98841256 | P165: 88.98276914 | Q165: 101.3543013 | R165: 121.2879763 | S165: 147.3374932 | T165: 196.2377896 | U165: 254.2702169 | V165: 402.0929702 | W165: 402.0929702 | X165: 513.6895417

Sheet ユーザーガイドと目次
B6: ゴールド・デマンド・トレンド データ表
B11: ユーザーガイド | F11: 目次
B12: 本資料には金の需給データを記載しており、4つに分けて表示しています。 GDTのサマリー図表：最新の「ゴールド・デマンド・トレンド」に掲載されている図表です。 グローバルデータ：供給、需要およびそれぞれの構成要素ごとに全世界で集計したデータです。需要の構成要素には宝飾品、金地金・金貨、ETF、中央銀行、テクノロジーがあり、供給の構成要素には鉱山生産、産金会社のネットヘッジ、リサイクル金があります。2010年以降のデータを四半期および年間ベースで掲載しています。 国別データ：宝飾品、金地金・金貨、消費者需要（宝飾品と金地金・金貨の需要合計）の国別データです。2010年以降のデータを四半期および年間ベースで掲載しています。 これらの需給データの集計方法に関する詳細は、集計方法の説明を参照してください。 https://www.gold.org/goldhub/research/creating-consistent-historical-demand-and-supply-data-series その他データ：価格、インドにおける推定供給量、中央銀行の金保有量、ETF保有残高に関するデータがあります。 需給の動きに影響を及ぼす要因の詳細については、「ゴールド・デマンド・トレンド」をご参照ください。 https://www.gold.org/goldhub/research/gold-demand-trends | F12: 名称 | G12: ワークシート | H12: 説明
F13: 免責事項 | G13: 免責事項 | H13: 著作権および利用に関する情報
F14: GDT表 >>
F15: 要約 | G15: エグゼクティブ・サマリー | H15: 最新の1年と四半期の金需要合計
F16: スナップショットサマリー | G16: スナップショット | H16: 最新四半期における需要部門の主たる変化
F17: グローバルデータ >>
F18: 金全体バランス | G18: 金需給 | H18: 金の需給バランス（トン／金額）
F19: 国別データ >>
F20: 国別宝飾品需要 | G20: 宝飾品 | H20: 宝飾品需要（トン／金額）
F21: 国別地金&通貨需要 | G21: 地金&金貨 | H21: 投資需要（トン／金額）
F22: 国別消費者需要 | G22: 消費者 | H22: 消費者需要（トン／金額）
F23: 国別消費者1人当り需要 | G23: 国民一人当たりの需要 | H23: 国別1人当り消費者需要
F24: その他データ>>
F25: 年間および四半期平均価格 | G25: 価格 | H25: 主要金需要通貨別LBMA金価格(PM)
F26: インド供給見積り | G26: インドにおける供給 | H26: インド供給内訳（トン）
F27: 金ETFおよび類似商品 | G27: ETFs | H27: グローバル金ETF保有上位10銘柄および地域別内訳

Sheet 免責事項
B6: 免責事項 © 2023 ワールド・ゴールド・カウンシル。著作権所有。 本資料に記載されている情報は一般的な情報提供および啓蒙のみを目的として提供しているものであり、金、金関連商品または有価証券、投資商品等その他の商品の売買提案または売買提案の勧誘と解釈されるものでも、解釈すべきものでもありません。また、本資料は金、金関連商品または有価証券、投資商品等その他の商品を後援、提唱、推奨または奨励するものでも、そう解釈すべきものでもありません。 本資料中の情報は、潜在的投資家の投資目的または財務状況に何らかの金関連取引が適切であるという趣旨の助言などに限らず、いかなるものであれ、金、金関連商品または有価証券、投資商品等のその他の商品の売買またはその他の処分に関して提案しているもの、あるいは投資等の助言を提供しているものではありません。本資料中の何らかの記述に依拠して、金、金関連商品または有価証券、投資商品等のその他の商品への投資判断を行うべきではありません。潜在的投資家は投資判断を行う前に、各自の財務アドバイザーに助言を求め、各自の財務的ニーズおよび状況を勘案し、かかる投資判断に付随するリスクを慎重に検討すべきです。 本レポート内の統計および情報は、ワールド ゴールド カウンシルまたはレポート内で明示したサードパーティーのコピーライトおよび/または知的財産である。それぞれの所有者のすべての権利は留保されています。本レポート内の統計および情報を転載、配布またはその他の方法で使用することを目的として、内容を複製、再発行または再配布することは、フレームリンクまたは類似の手法を含め、いかなる場合も明示的に禁じられています。ただし、ワールド ゴールド カウンシルまたは適切な著作権者から書面による事前許可を得、以下の方法に従う場合にはこの限りではありません。 本レポート内の分析を使用することは、公正な業界慣行に従って検討および解説（メディアの解説も含む）を目的とする場合に許可され、次の2つの前提条件に従うものとします。（i）データまたは分析の限定的部分を抜粋して使用する、かつ（ii）かかる統計を使用する際はいかなる場合においても、ワールド ゴールド カウンシルおよび適切な場合には、適切なサードパーティーを出典元として明記する。本レポートまたは本レポート内の統計のすべてあるいは相当部分を転載、配布またはその他の方法で使用することを禁じます。 本資料内に記載した情報の正確性については確認を行っていますが、ワールド ゴールド カウンシルおよびその関連会社はかかる情報の正確性について保証しません。ワールド ゴールド カウンシルまたはその関連会社は、本資料内の情報に依拠して下された判断や取られた行動、またはかかる情報に起因または関連する結果的、特例的、懲罰的、付随的、間接的、または類似的な損害のいずれについても、かかる損害の可能性を通知された場合であったとしても、一切責任を負いません。

Sheet エグゼクティブ・サマリー
A1: ▲
A2: ▼
B4: データハイライト | H4: データハイライト
C6: 2021 | D6: 2022 | F6: 前年同期比% | I6: 2021年第4四半期 | J6: 2022年第4四半期 | L6: 前年同期比%
B7: 金需要 | C7: 4012.817818 | D7: 4740.725053 | E7: ▲ | F7: 18.13955352 | H7: 金需要 | I7: 1143.436219 | J7: 1337.355922 | K7: ▲ | L7: 16.95938087
B8: 宝飾品 | C8: 2230.635783 | D8: 2189.758548 | E8: ▼ | F8: -1.832537395 | H8: 宝飾品 | I8: 719.8477454 | J8: 602.5123395 | K8: ▼ | L8: -16.30003104
B9: テクノロジー | C9: 330.1913754 | D9: 308.5244422 | E9: ▼ | F9: -6.561931879 | H9: テクノロジー | I9: 85.88972317 | J9: 72.04730417 | K9: ▼ | L9: -16.11650206
B10: 投資 | C10: 1001.878236 | D10: 1106.752741 | E10: ▲ | F10: 10.46778953 | H10: 投資 | I10: 303.4005216 | J10: 245.6989623 | K10: ▼ | L10: -19.01827954
B11: 地金&コイン合計 | C11: 1190.883777 | D11: 1217.117248 | E11: ▲ | F11: 2.202857336 | H11: 地金&コイン合計 | I11: 326.3913326 | J11: 335.2688153 | K11: ▲ | L11: 2.719889213
B12: 金ETFおよび類似商品 | C12: -189.005541 | D12: -110.3645065 | E12: ▲ | F12: - | H12: 金ETFおよび類似商品 | I12: -22.99081101 | J12: -89.56985297 | K12: ▲ | L12: -
B13: 中央銀行&その他機関 | C13: 450.1124237 | D13: 1135.689322 | E13: ▲ | F13: 152.3123696 | H13: 中央銀行&その他機関 | I13: 34.29822836 | J13: 417.0973159 | K13: ▲ | L13: >300
B14: 出所：Metals Focus, ワールド・ゴールド・カウンシル | H14: 出所：Metals Focus, ワールド・ゴールド・カウンシル

Sheet スナップショット
A1: ▲
A2: ▼
B4: 宝飾品 | H4: テクノロジー
B5: トン | C5: 2021 | D5: 2022 | F5: 前年同期比% | H5: トン | I5: 2021 | J5: 2022 | L5: 前年同期比%
B6: 世界合計 | C6: 2147.738311 | D6: 2086.168373 | E6: ▼ | F6: -2.866733665 | H6: テクノロジー | I6: 330.1913754 | J6: 308.5244422 | K6: ▼ | L6: -6.561931879
B7: インド | C7: 610.8635421 | D7: 600.3990775 | E7: ▼ | F7: -1.713060915 | H7: エレクトロニクス | I7: 272.0751979 | J7: 251.6954052 | K7: ▼ | L7: -7.490500013
B8: 中国 | C8: 673.3459297 | D8: 570.9356067 | E8: ▼ | F8: -15.20916938 | H8: その他工業用 | I8: 46.763114 | J8: 46.55057651 | K8: ▼ | L8: -0.45449814
H9: 歯科用 | I9: 11.35306347 | J9: 10.27846056 | K9: ▼ | L9: -9.465312238
B11: 投資 | H11: 供給
B12: トン | C12: 2021 | D12: 2022 | F12: 前年同期比% | H12: トン | I12: 2021 | J12: 2022 | L12: 前年同期比%
B13: 投資 | C13: 1001.878236 | D13: 1106.752741 | E13: ▲ | F13: 10.46778953 | H13: 供給合計 | I13: 4682.429704 | J13: 4754.507767 | K13: ▲ | L13: 1.539330377
B14: 地金&金貨 | C14: 1190.883777 | D14: 1217.117248 | E14: ▲ | F14: 2.202857336 | H14: 鉱山生産 | I14: 3568.924103 | J14: 3611.895698 | K14: ▲ | L14: 1.204049002
B15: インド | C15: 186.4774977 | D15: 173.5577616 | E15: ▼ | F15: -6.92830838 | H15: 正味生産者ヘッジ | I15: -22.65449946 | J15: -1.500945678 | K15: ▲ | L15: -
B16: 中国 | C16: 285.487195 | D16: 218.2267476 | E16: ▼ | F16: -23.5598824 | H16: リサイクル金 | I16: 1136.160101 | J16: 1144.113015 | K16: ▲ | L16: 0.6999818058
B17: 金ETF | C17: -189.005541 | D17: -110.3645065 | E17: ▲ | F17: -
B20: 中央銀行&その他機関
B21: トン | C21: 2021 | D21: 2022 | F21: 前年同期比%
B22: 中央銀行&その他機関 | C22: 450.1124237 | D22: 1135.689322 | E22: ▲ | F22: 152.3123696

Sheet 金需給
A1: ▲
A2: ▼ | B2: トン
B4: 金需給WGCまとめ
C5: =AppAn.Data!L$2 -> 2010 | D5: =AppAn.Data!M$2 -> 2011 | E5: =AppAn.Data!N$2 -> 2012 | F5: =AppAn.Data!O$2 -> 2013 | G5: =AppAn.Data!P$2 -> 2014 | H5: =AppAn.Data!Q$2 -> 2015 | I5: =AppAn.Data!R$2 -> 2016 | J5: =AppAn.Data!S$2 -> 2017 | K5: =AppAn.Data!T$2 -> 2018 | L5: =AppAn.Data!U$2 -> 2019 | M5: =AppAn.Data!V$2 -> 2020 | N5: =AppAn.Data!W$2 -> 2021 | O5: =AppAn.Data!X$2 -> 2022 | Q5: 前年同期比% | S5: 2010年第1四半期 | T5: 2010年第2四半期 | U5: 2010年第3四半期 | V5: 2010年第4四半期 | W5: 2011年第1四半期 | X5: 2011年第2四半期 | Y5: 2011年第3四半期 | Z5: 2011年第4四半期 | AA5: 2012年第1四半期 | AB5: 2012年第2四半期 | AC5: 2012年第3四半期 | AD5: 2012年第4四半期 | AE5: 2013年第1四半期 | AF5: 2013年第2四半期 | AG5: 2013年第3四半期 | AH5: 2013年第4四半期 | AI5: 2014年第1四半期 | AJ5: 2014年第2四半期 | AK5: 2014年第3四半期 | AL5: 2014年第4四半期 | AM5: 2015年第1四半期 | AN5: 2015年第2四半期 | AO5: 2015年第3四半期 | AP5: 2015年第4四半期 | AQ5: 2016年第1四半期 | AR5: 2016年第2四半期 | AS5: 2016年第3四半期 | AT5: 2016年第4四半期 | AU5: 2017年第1四半期 | AV5: 2017年第2四半期 | AW5: 2017年第3四半期 | AX5: 2017年第4四半期 | AY5: 2018年第1四半期 | AZ5: 2018年第2四半期 | BA5: 2018年第3四半期 | BB5: 2018年第4四半期 | BC5: 2019年第1四半期 | BD5: 2019年第2四半期 | BE5: 2019年第3四半期 | BF5: 2019年第4四半期 | BG5: 2020年第1四半期 | BH5: 2020年第2四半期 | BI5: 2020年第3四半期 | BJ5: 2020年第4四半期 | BK5: 2021年第1四半期 | BL5: 2021年第2四半期 | BM5: 2021年第3四半期 | BN5: 2021年第4四半期 | BO5: 2022年第1四半期 | BP5: 2022年第2四半期 | BQ5: 2022年第3四半期 | BR5: 2022年第4四半期 | BT5: 前年同期比%
B6: 供給
B7: 鉱山生産 | C7: =IF($B$2="トン",AppAn.Data!L10,(AppAn.Data!L10*ozton*AppAn.Data!L$6)/1000000) -> 2754.465101 | D7: =IF($B$2="トン",AppAn.Data!M10,(AppAn.Data!M10*ozton*AppAn.Data!M$6)/1000000) -> 2876.861923 | E7: =IF($B$2="トン",AppAn.Data!N10,(AppAn.Data!N10*ozton*AppAn.Data!N$6)/1000000) -> 2957.201294 | F7: =IF($B$2="トン",AppAn.Data!O10,(AppAn.Data!O10*ozton*AppAn.Data!O$6)/1000000) -> 3166.76697 | G7: =IF($B$2="トン",AppAn.Data!P10,(AppAn.Data!P10*ozton*AppAn.Data!P$6)/1000000) -> 3270.495064 | H7: =IF($B$2="トン",AppAn.Data!Q10,(AppAn.Data!Q10*ozton*AppAn.Data!Q$6)/1000000) -> 3361.310292 | I7: =IF($B$2="トン",AppAn.Data!R10,(AppAn.Data!R10*ozton*AppAn.Data!R$6)/1000000) -> 3509.560568 | J7: =IF($B$2="トン",AppAn.Data!S10,(AppAn.Data!S10*ozton*AppAn.Data!S$6)/1000000) -> 3573.139319 | K7: =IF($B$2="トン",AppAn.Data!T10,(AppAn.Data!T10*ozton*AppAn.Data!T$6)/1000000) -> 3655.278473 | L7: =IF($B$2="トン",AppAn.Data!U10,(AppAn.Data!U10*ozton*AppAn.Data!U$6)/1000000) -> 3594.526263 | M7: =IF($B$2="トン",AppAn.Data!V10,(AppAn.Data!V10*ozton*AppAn.Data!V$6)/1000000) -> 3472.395776 | N7: =IF($B$2="トン",AppAn.Data!W10,(AppAn.Data!W10*ozton*AppAn.Data!W$6)/1000000) -> 3568.924103 | O7: =IF($B$2="トン",AppAn.Data!X10,(AppAn.Data!X10*ozton*AppAn.Data!X$6)/1000000) -> 3611.895698 | P7: =IF(Q7<0,$A$2,IF(Q7>0,$A$1,"-")) -> ▲ | Q7: =IF(AND(O7>0,N7>0),(O7/N7-1)*100,"-") -> 1.204049002 | S7: =IF($B$2="トン",AppQt.Data!M11,(AppQt.Data!M11*ozton*AppQt.Data!M$7)/1000000) -> 631.9995309 | T7: =IF($B$2="トン",AppQt.Data!N11,(AppQt.Data!N11*ozton*AppQt.Data!N$7)/1000000) -> 674.5983056 | U7: =IF($B$2="トン",AppQt.Data!O11,(AppQt.Data!O11*ozton*AppQt.Data!O$7)/1000000) -> 729.7025334 | V7: =IF($B$2="トン",AppQt.Data!P11,(AppQt.Data!P11*ozton*AppQt.Data!P$7)/1000000) -> 718.1647316 | W7: =IF($B$2="トン",AppQt.Data!Q11,(AppQt.Data!Q11*ozton*AppQt.Data!Q$7)/1000000) -> 667.5529702 | X7: =IF($B$2="トン",AppQt.Data!R11,(AppQt.Data!R11*ozton*AppQt.Data!R$7)/1000000) -> 719.6800371 | Y7: =IF($B$2="トン",AppQt.Data!S11,(AppQt.Data!S11*ozton*AppQt.Data!S$7)/1000000) -> 752.6789246 | Z7: =IF($B$2="トン",AppQt.Data!T11,(AppQt.Data!T11*ozton*AppQt.Data!T$7)/1000000) -> 736.9499912 | AA7: =IF($B$2="トン",AppQt.Data!U11,(AppQt.Data!U11*ozton*AppQt.Data!U$7)/1000000) -> 685.8421402 | AB7: =IF($B$2="トン",AppQt.Data!V11,(AppQt.Data!V11*ozton*AppQt.Data!V$7)/1000000) -> 729.4583714 | AC7: =IF($B$2="トン",AppQt.Data!W11,(AppQt.Data!W11*ozton*AppQt.Data!W$7)/1000000) -> 769.4946995 | AD7: =IF($B$2="トン",AppQt.Data!X11,(AppQt.Data!X11*ozton*AppQt.Data!X$7)/1000000) -> 772.4060832 | AE7: =IF($B$2="トン",AppQt.Data!Y11,(AppQt.Data!Y11*ozton*AppQt.Data!Y$7)/1000000) -> 720.5543294 | AF7: =IF($B$2="トン",AppQt.Data!Z11,(AppQt.Data!Z11*ozton*AppQt.Data!Z$7)/1000000) -> 770.1035741 | AG7: =IF($B$2="トン",AppQt.Data!AA11,(AppQt.Data!AA11*ozton*AppQt.Data!AA$7)/1000000) -> 838.8175517 | AH7: =IF($B$2="トン",AppQt.Data!AB11,(AppQt.Data!AB11*ozton*AppQt.Data!AB$7)/1000000) -> 837.2915145 | AI7: =IF($B$2="トン",AppQt.Data!AC11,(AppQt.Data!AC11*ozton*AppQt.Data!AC$7)/1000000) -> 749.2325753 | AJ7: =IF($B$2="トン",AppQt.Data!AD11,(AppQt.Data!AD11*ozton*AppQt.Data!AD$7)/1000000) -> 792.2973963 | AK7: =IF($B$2="トン",AppQt.Data!AE11,(AppQt.Data!AE11*ozton*AppQt.Data!AE$7)/1000000) -> 862.359941 | AL7: =IF($B$2="トン",AppQt.Data!AF11,(AppQt.Data!AF11*ozton*AppQt.Data!AF$7)/1000000) -> 866.6051511 | AM7: =IF($B$2="トン",AppQt.Data!AG11,(AppQt.Data!AG11*ozton*AppQt.Data!AG$7)/1000000) -> 787.6707524 | AN7: =IF($B$2="トン",AppQt.Data!AH11,(AppQt.Data!AH11*ozton*AppQt.Data!AH$7)/1000000) -> 838.2291333 | AO7: =IF($B$2="トン",AppQt.Data!AI11,(AppQt.Data!AI11*ozton*AppQt.Data!AI$7)/1000000) -> 867.4561613 | AP7: =IF($B$2="トン",AppQt.Data!AJ11,(AppQt.Data!AJ11*ozton*AppQt.Data!AJ$7)/1000000) -> 867.9542451 | AQ7: =IF($B$2="トン",AppQt.Data!AK11,(AppQt.Data!AK11*ozton*AppQt.Data!AK$7)/1000000) -> 853.7671091 | AR7: =IF($B$2="トン",AppQt.Data!AL11,(AppQt.Data!AL11*ozton*AppQt.Data!AL$7)/1000000) -> 859.2153874 | AS7: =IF($B$2="トン",AppQt.Data!AM11,(AppQt.Data!AM11*ozton*AppQt.Data!AM$7)/1000000) -> 881.1584278 | AT7: =IF($B$2="トン",AppQt.Data!AN11,(AppQt.Data!AN11*ozton*AppQt.Data!AN$7)/1000000) -> 915.4196439 | AU7: =IF($B$2="トン",AppQt.Data!AO11,(AppQt.Data!AO11*ozton*AppQt.Data!AO$7)/1000000) -> 830.0629723 | AV7: =IF($B$2="トン",AppQt.Data!AP11,(AppQt.Data!AP11*ozton*AppQt.Data!AP$7)/1000000) -> 883.0335497 | AW7: =IF($B$2="トン",AppQt.Data!AQ11,(AppQt.Data!AQ11*ozton*AppQt.Data!AQ$7)/1000000) -> 924.3562619 | AX7: =IF($B$2="トン",AppQt.Data!AR11,(AppQt.Data!AR11*ozton*AppQt.Data!AR$7)/1000000) -> 935.686535 | AY7: =IF($B$2="トン",AppQt.Data!AS11,(AppQt.Data!AS11*ozton*AppQt.Data!AS$7)/1000000) -> 851.3320975 | AZ7: =IF($B$2="トン",AppQt.Data!AT11,(AppQt.Data!AT11*ozton*AppQt.Data!AT$7)/1000000) -> 898.819934 | BA7: =IF($B$2="トン",AppQt.Data!AU11,(AppQt.Data!AU11*ozton*AppQt.Data!AU$7)/1000000) -> 955.3895051 | BB7: =IF($B$2="トン",AppQt.Data!AV11,(AppQt.Data!AV11*ozton*AppQt.Data!AV$7)/1000000) -> 949.736937 | BC7: =IF($B$2="トン",AppQt.Data!AW11,(AppQt.Data!AW11*ozton*AppQt.Data!AW$7)/1000000) -> 845.0849474 | BD7: =IF($B$2="トン",AppQt.Data!AX11,(AppQt.Data!AX11*ozton*AppQt.Data!AX$7)/1000000) -> 878.093107 | BE7: =IF($B$2="トン",AppQt.Data!AY11,(AppQt.Data!AY11*ozton*AppQt.Data!AY$7)/1000000) -> 933.1392786 | BF7: =IF($B$2="トン",AppQt.Data!AZ11,(AppQt.Data!AZ11*ozton*AppQt.Data!AZ$7)/1000000) -> 938.2089305 | BG7: =IF($B$2="トン",AppQt.Data!BA11,(AppQt.Data!BA11*ozton*AppQt.Data!BA$7)/1000000) -> 838.1515647 | BH7: =IF($B$2="トン",AppQt.Data!BB11,(AppQt.Data!BB11*ozton*AppQt.Data!BB$7)/1000000) -> 787.8993505 | BI7: =IF($B$2="トン",AppQt.Data!BC11,(AppQt.Data!BC11*ozton*AppQt.Data!BC$7)/1000000) -> 920.9429063 | BJ7: =IF($B$2="トン",AppQt.Data!BD11,(AppQt.Data!BD11*ozton*AppQt.Data!BD$7)/1000000) -> 925.4019544 | BK7: =IF($B$2="トン",AppQt.Data!BE11,(AppQt.Data!BE11*ozton*AppQt.Data!BE$7)/1000000) -> 830.1708471 | BL7: =IF($B$2="トン",AppQt.Data!BF11,(AppQt.Data!BF11*ozton*AppQt.Data!BF$7)/1000000) -> 873.0335073 | BM7: =IF($B$2="トン",AppQt.Data!BG11,(AppQt.Data!BG11*ozton*AppQt.Data!BG$7)/1000000) -> 927.7195758 | BN7: =IF($B$2="トン",AppQt.Data!BH11,(AppQt.Data!BH11*ozton*AppQt.Data!BH$7)/1000000) -> 938.0001731 | BO7: =IF($B$2="トン",AppQt.Data!BI11,(AppQt.Data!BI11*ozton*AppQt.Data!BI$7)/1000000) -> 844.2347307 | BP7: =IF($B$2="トン",AppQt.Data!BJ11,(AppQt.Data!BJ11*ozton*AppQt.Data!BJ$7)/1000000) -> 892.0715368 | BQ7: =IF($B$2="トン",AppQt.Data!BK11,(AppQt.Data!BK11*ozton*AppQt.Data!BK$7)/1000000) -> 945.5653728 | BR7: =IF($B$2="トン",AppQt.Data!BL11,(AppQt.Data!BL11*ozton*AppQt.Data!BL$7)/1000000) -> 930.0240581 | BS7: =IF(BT7<0,$A$2,IF(BT7>0,$A$1,"-")) -> ▼ | BT7: =IF(AND(ISNUMBER(BR7),ISNUMBER(BN7),BR7>0,BN7>0,(BR7/BN7-1)*100<300),(BR7/BN7-1)*100,IF(AND(ISNUMBER(BR7),ISNUMBER(BN7),BR7>0,BN7>0,(BR7/BN7-1)*100>300),">300","-")) -> -0.8503319354
B8: 正味生産者ヘッジ | C8: =IF($B$2="トン",AppAn.Data!L11,(AppAn.Data!L11*ozton*AppAn.Data!L$6)/1000000) -> -108.8084092 | D8: =IF($B$2="トン",AppAn.Data!M11,(AppAn.Data!M11*ozton*AppAn.Data!M$6)/1000000) -> 22.52549661 | E8: =IF($B$2="トン",AppAn.Data!N11,(AppAn.Data!N11*ozton*AppAn.Data!N$6)/1000000) -> -45.31536391 | F8: =IF($B$2="トン",AppAn.Data!O11,(AppAn.Data!O11*ozton*AppAn.Data!O$6)/1000000) -> -27.93944234 | G8: =IF($B$2="トン",AppAn.Data!P11,(AppAn.Data!P11*ozton*AppAn.Data!P$6)/1000000) -> 104.9072982 | H8: =IF($B$2="トン",AppAn.Data!Q11,(AppAn.Data!Q11*ozton*AppAn.Data!Q$6)/1000000) -> 12.89194498 | I8: =IF($B$2="トン",AppAn.Data!R11,(AppAn.Data!R11*ozton*AppAn.Data!R$6)/1000000) -> 37.63430537 | J8: =IF($B$2="トン",AppAn.Data!S11,(AppAn.Data!S11*ozton*AppAn.Data!S$6)/1000000) -> -25.52005601 | K8: =IF($B$2="トン",AppAn.Data!T11,(AppAn.Data!T11*ozton*AppAn.Data!T$6)/1000000) -> -11.63759484 | L8: =IF($B$2="トン",AppAn.Data!U11,(AppAn.Data!U11*ozton*AppAn.Data!U$6)/1000000) -> 6.155989161 | M8: =IF($B$2="トン",AppAn.Data!V11,(AppAn.Data!V11*ozton*AppAn.Data!V$6)/1000000) -> -39.0744743 | N8: =IF($B$2="トン",AppAn.Data!W11,(AppAn.Data!W11*ozton*AppAn.Data!W$6)/1000000) -> -22.65449946 | O8: =IF($B$2="トン",AppAn.Data!X11,(AppAn.Data!X11*ozton*AppAn.Data!X$6)/1000000) -> -1.500945678 | P8: =IF(Q8<0,$A$2,IF(Q8>0,$A$1,"-")) -> ▲ | Q8: =IF(AND(O8>0,N8>0),(O8/N8-1)*100,"-") -> - | S8: =IF($B$2="トン",AppQt.Data!M12,(AppQt.Data!M12*ozton*AppQt.Data!M$7)/1000000) -> -11.73901626 | T8: =IF($B$2="トン",AppQt.Data!N12,(AppQt.Data!N12*ozton*AppQt.Data!N$7)/1000000) -> 14.82156442 | U8: =IF($B$2="トン",AppQt.Data!O12,(AppQt.Data!O12*ozton*AppQt.Data!O$7)/1000000) -> -55.95272859 | V8: =IF($B$2="トン",AppQt.Data!P12,(AppQt.Data!P12*ozton*AppQt.Data!P$7)/1000000) -> -55.93822875 | W8: =IF($B$2="トン",AppQt.Data!Q12,(AppQt.Data!Q12*ozton*AppQt.Data!Q$7)/1000000) -> 9.872867523 | X8: =IF($B$2="トン",AppQt.Data!R12,(AppQt.Data!R12*ozton*AppQt.Data!R$7)/1000000) -> 18.42860096 | Y8: =IF($B$2="トン",AppQt.Data!S12,(AppQt.Data!S12*ozton*AppQt.Data!S$7)/1000000) -> 5.019843173 | Z8: =IF($B$2="トン",AppQt.Data!T12,(AppQt.Data!T12*ozton*AppQt.Data!T$7)/1000000) -> -10.79581505 | AA8: =IF($B$2="トン",AppQt.Data!U12,(AppQt.Data!U12*ozton*AppQt.Data!U$7)/1000000) -> -0.3817194797 | AB8: =IF($B$2="トン",AppQt.Data!V12,(AppQt.Data!V12*ozton*AppQt.Data!V$7)/1000000) -> -10.45147582 | AC8: =IF($B$2="トン",AppQt.Data!W12,(AppQt.Data!W12*ozton*AppQt.Data!W$7)/1000000) -> 1.255354893 | AD8: =IF($B$2="トン",AppQt.Data!X12,(AppQt.Data!X12*ozton*AppQt.Data!X$7)/1000000) -> -35.7375235 | AE8: =IF($B$2="トン",AppQt.Data!Y12,(AppQt.Data!Y12*ozton*AppQt.Data!Y$7)/1000000) -> -5.420979316 | AF8: =IF($B$2="トン",AppQt.Data!Z12,(AppQt.Data!Z12*ozton*AppQt.Data!Z$7)/1000000) -> -5.818767442 | AG8: =IF($B$2="トン",AppQt.Data!AA12,(AppQt.Data!AA12*ozton*AppQt.Data!AA$7)/1000000) -> -2.108968158 | AH8: =IF($B$2="トン",AppQt.Data!AB12,(AppQt.Data!AB12*ozton*AppQt.Data!AB$7)/1000000) -> -14.59072743 | AI8: =IF($B$2="トン",AppQt.Data!AC12,(AppQt.Data!AC12*ozton*AppQt.Data!AC$7)/1000000) -> 12.36847941 | AJ8: =IF($B$2="トン",AppQt.Data!AD12,(AppQt.Data!AD12*ozton*AppQt.Data!AD$7)/1000000) -> 50.26501227 | AK8: =IF($B$2="トン",AppQt.Data!AE12,(AppQt.Data!AE12*ozton*AppQt.Data!AE$7)/1000000) -> -8.10679239 | AL8: =IF($B$2="トン",AppQt.Data!AF12,(AppQt.Data!AF12*ozton*AppQt.Data!AF$7)/1000000) -> 50.38059888 | AM8: =IF($B$2="トン",AppQt.Data!AG12,(AppQt.Data!AG12*ozton*AppQt.Data!AG$7)/1000000) -> -2.917822185 | AN8: =IF($B$2="トン",AppQt.Data!AH12,(AppQt.Data!AH12*ozton*AppQt.Data!AH$7)/1000000) -> -15.06639679 | AO8: =IF($B$2="トン",AppQt.Data!AI12,(AppQt.Data!AI12*ozton*AppQt.Data!AI$7)/1000000) -> 14.20321196 | AP8: =IF($B$2="トン",AppQt.Data!AJ12,(AppQt.Data!AJ12*ozton*AppQt.Data!AJ$7)/1000000) -> 16.672952 | AQ8: =IF($B$2="トン",AppQt.Data!AK12,(AppQt.Data!AK12*ozton*AppQt.Data!AK$7)/1000000) -> 56.06741962 | AR8: =IF($B$2="トン",AppQt.Data!AL12,(AppQt.Data!AL12*ozton*AppQt.Data!AL$7)/1000000) -> 23.81943492 | AS8: =IF($B$2="トン",AppQt.Data!AM12,(AppQt.Data!AM12*ozton*AppQt.Data!AM$7)/1000000) -> -17.82193841 | AT8: =IF($B$2="トン",AppQt.Data!AN12,(AppQt.Data!AN12*ozton*AppQt.Data!AN$7)/1000000) -> -24.43061076 | AU8: =IF($B$2="トン",AppQt.Data!AO12,(AppQt.Data!AO12*ozton*AppQt.Data!AO$7)/1000000) -> -15.57933 | AV8: =IF($B$2="トン",AppQt.Data!AP12,(AppQt.Data!AP12*ozton*AppQt.Data!AP$7)/1000000) -> -8.520134056 | AW8: =IF($B$2="トン",AppQt.Data!AQ12,(AppQt.Data!AQ12*ozton*AppQt.Data!AQ$7)/1000000) -> 7.914539723 | AX8: =IF($B$2="トン",AppQt.Data!AR12,(AppQt.Data!AR12*ozton*AppQt.Data!AR$7)/1000000) -> -9.335131682 | AY8: =IF($B$2="トン",AppQt.Data!AS12,(AppQt.Data!AS12*ozton*AppQt.Data!AS$7)/1000000) -> 37.5212084 | AZ8: =IF($B$2="トン",AppQt.Data!AT12,(AppQt.Data!AT12*ozton*AppQt.Data!AT$7)/1000000) -> -37.67940719 | BA8: =IF($B$2="トン",AppQt.Data!AU12,(AppQt.Data!AU12*ozton*AppQt.Data!AU$7)/1000000) -> -24.10221891 | BB8: =IF($B$2="トン",AppQt.Data!AV12,(AppQt.Data!AV12*ozton*AppQt.Data!AV$7)/1000000) -> 12.62282286 | BC8: =IF($B$2="トン",AppQt.Data!AW12,(AppQt.Data!AW12*ozton*AppQt.Data!AW$7)/1000000) -> -7.009812032 | BD8: =IF($B$2="トン",AppQt.Data!AX12,(AppQt.Data!AX12*ozton*AppQt.Data!AX$7)/1000000) -> 50.90594518 | BE8: =IF($B$2="トン",AppQt.Data!AY12,(AppQt.Data!AY12*ozton*AppQt.Data!AY$7)/1000000) -> -4.446010598 | BF8: =IF($B$2="トン",AppQt.Data!AZ12,(AppQt.Data!AZ12*ozton*AppQt.Data!AZ$7)/1000000) -> -33.29413339 | BG8: =IF($B$2="トン",AppQt.Data!BA12,(AppQt.Data!BA12*ozton*AppQt.Data!BA$7)/1000000) -> 40.41948551 | BH8: =IF($B$2="トン",AppQt.Data!BB12,(AppQt.Data!BB12*ozton*AppQt.Data!BB$7)/1000000) -> -35.39382963 | BI8: =IF($B$2="トン",AppQt.Data!BC12,(AppQt.Data!BC12*ozton*AppQt.Data!BC$7)/1000000) -> -21.87692441 | BJ8: =IF($B$2="トン",AppQt.Data!BD12,(AppQt.Data!BD12*ozton*AppQt.Data!BD$7)/1000000) -> -22.22320578 | BK8: =IF($B$2="トン",AppQt.Data!BE12,(AppQt.Data!BE12*ozton*AppQt.Data!BE$7)/1000000) -> 4.837887358 | BL8: =IF($B$2="トン",AppQt.Data!BF12,(AppQt.Data!BF12*ozton*AppQt.Data!BF$7)/1000000) -> -17.31827846 | BM8: =IF($B$2="トン",AppQt.Data!BG12,(AppQt.Data!BG12*ozton*AppQt.Data!BG$7)/1000000) -> -12.3759973 | BN8: =IF($B$2="トン",AppQt.Data!BH12,(AppQt.Data!BH12*ozton*AppQt.Data!BH$7)/1000000) -> 2.201888937 | BO8: =IF($B$2="トン",AppQt.Data!BI12,(AppQt.Data!BI12*ozton*AppQt.Data!BI$7)/1000000) -> 10.91283961 | BP8: =IF($B$2="トン",AppQt.Data!BJ12,(AppQt.Data!BJ12*ozton*AppQt.Data!BJ$7)/1000000) -> 3.690209471 | BQ8: =IF($B$2="トン",AppQt.Data!BK12,(AppQt.Data!BK12*ozton*AppQt.Data!BK$7)/1000000) -> -10.86559665 | BR8: =IF($B$2="トン",AppQt.Data!BL12,(AppQt.Data!BL12*ozton*AppQt.Data!BL$7)/1000000) -> -5.23839811 | BS8: =IF(BT8<0,$A$2,IF(BT8>0,$A$1,"-")) -> ▲ | BT8: =IF(AND(ISNUMBER(BR8),ISNUMBER(BN8),BR8>0,BN8>0,(BR8/BN8-1)*100<300),(BR8/BN8-1)*100,IF(AND(ISNUMBER(BR8),ISNUMBER(BN8),BR8>0,BN8>0,(BR8/BN8-1)*100>300),">300","-")) -> -
B9: リサイクル金 | C9: =IF($B$2="トン",AppAn.Data!L12,(AppAn.Data!L12*ozton*AppAn.Data!L$6)/1000000) -> 1671.163847 | D9: =IF($B$2="トン",AppAn.Data!M12,(AppAn.Data!M12*ozton*AppAn.Data!M$6)/1000000) -> 1626.33132 | E9: =IF($B$2="トン",AppAn.Data!N12,(AppAn.Data!N12*ozton*AppAn.Data!N$6)/1000000) -> 1636.762755 | F9: =IF($B$2="トン",AppAn.Data!O12,(AppAn.Data!O12*ozton*AppAn.Data!O$6)/1000000) -> 1195.308331 | G9: =IF($B$2="トン",AppAn.Data!P12,(AppAn.Data!P12*ozton*AppAn.Data!P$6)/1000000) -> 1129.58857 | H9: =IF($B$2="トン",AppAn.Data!Q12,(AppAn.Data!Q12*ozton*AppAn.Data!Q$6)/1000000) -> 1067.074981 | I9: =IF($B$2="トン",AppAn.Data!R12,(AppAn.Data!R12*ozton*AppAn.Data!R$6)/1000000) -> 1232.142588 | J9: =IF($B$2="トン",AppAn.Data!S12,(AppAn.Data!S12*ozton*AppAn.Data!S$6)/1000000) -> 1112.392781 | K9: =IF($B$2="トン",AppAn.Data!T12,(AppAn.Data!T12*ozton*AppAn.Data!T$6)/1000000) -> 1131.697574 | L9: =IF($B$2="トン",AppAn.Data!U12,(AppAn.Data!U12*ozton*AppAn.Data!U$6)/1000000) -> 1275.657508 | M9: =IF($B$2="トン",AppAn.Data!V12,(AppAn.Data!V12*ozton*AppAn.Data!V$6)/1000000) -> 1293.055421 | N9: =IF($B$2="トン",AppAn.Data!W12,(AppAn.Data!W12*ozton*AppAn.Data!W$6)/1000000) -> 1136.160101 | O9: =IF($B$2="トン",AppAn.Data!X12,(AppAn.Data!X12*ozton*AppAn.Data!X$6)/1000000) -> 1144.113015 | P9: =IF(Q9<0,$A$2,IF(Q9>0,$A$1,"-")) -> ▲ | Q9: =IF(AND(O9>0,N9>0),(O9/N9-1)*100,"-") -> 0.6999818058 | S9: =IF($B$2="トン",AppQt.Data!M13,(AppQt.Data!M13*ozton*AppQt.Data!M$7)/1000000) -> 376.2845824 | T9: =IF($B$2="トン",AppQt.Data!N13,(AppQt.Data!N13*ozton*AppQt.Data!N$7)/1000000) -> 455.2341927 | U9: =IF($B$2="トン",AppQt.Data!O13,(AppQt.Data!O13*ozton*AppQt.Data!O$7)/1000000) -> 382.2473897 | V9: =IF($B$2="トン",AppQt.Data!P13,(AppQt.Data!P13*ozton*AppQt.Data!P$7)/1000000) -> 457.3976824 | W9: =IF($B$2="トン",AppQt.Data!Q13,(AppQt.Data!Q13*ozton*AppQt.Data!Q$7)/1000000) -> 356.9758996 | X9: =IF($B$2="トン",AppQt.Data!R13,(AppQt.Data!R13*ozton*AppQt.Data!R$7)/1000000) -> 402.8233865 | Y9: =IF($B$2="トン",AppQt.Data!S13,(AppQt.Data!S13*ozton*AppQt.Data!S$7)/1000000) -> 454.3603743 | Z9: =IF($B$2="トン",AppQt.Data!T13,(AppQt.Data!T13*ozton*AppQt.Data!T$7)/1000000) -> 412.17166 | AA9: =IF($B$2="トン",AppQt.Data!U13,(AppQt.Data!U13*ozton*AppQt.Data!U$7)/1000000) -> 400.9522029 | AB9: =IF($B$2="トン",AppQt.Data!V13,(AppQt.Data!V13*ozton*AppQt.Data!V$7)/1000000) -> 400.7925327 | AC9: =IF($B$2="トン",AppQt.Data!W13,(AppQt.Data!W13*ozton*AppQt.Data!W$7)/1000000) -> 443.8556208 | AD9: =IF($B$2="トン",AppQt.Data!X13,(AppQt.Data!X13*ozton*AppQt.Data!X$7)/1000000) -> 391.1623989 | AE9: =IF($B$2="トン",AppQt.Data!Y13,(AppQt.Data!Y13*ozton*AppQt.Data!Y$7)/1000000) -> 341.7573447 | AF9: =IF($B$2="トン",AppQt.Data!Z13,(AppQt.Data!Z13*ozton*AppQt.Data!Z$7)/1000000) -> 271.3794002 | AG9: =IF($B$2="トン",AppQt.Data!AA13,(AppQt.Data!AA13*ozton*AppQt.Data!AA$7)/1000000) -> 299.738761 | AH9: =IF($B$2="トン",AppQt.Data!AB13,(AppQt.Data!AB13*ozton*AppQt.Data!AB$7)/1000000) -> 282.4328254 | AI9: =IF($B$2="トン",AppQt.Data!AC13,(AppQt.Data!AC13*ozton*AppQt.Data!AC$7)/1000000) -> 358.7249854 | AJ9: =IF($B$2="トン",AppQt.Data!AD13,(AppQt.Data!AD13*ozton*AppQt.Data!AD$7)/1000000) -> 260.6745902 | AK9: =IF($B$2="トン",AppQt.Data!AE13,(AppQt.Data!AE13*ozton*AppQt.Data!AE$7)/1000000) -> 254.1407833 | AL9: =IF($B$2="トン",AppQt.Data!AF13,(AppQt.Data!AF13*ozton*AppQt.Data!AF$7)/1000000) -> 256.0482111 | AM9: =IF($B$2="トン",AppQt.Data!AG13,(AppQt.Data!AG13*ozton*AppQt.Data!AG$7)/1000000) -> 337.5011512 | AN9: =IF($B$2="トン",AppQt.Data!AH13,(AppQt.Data!AH13*ozton*AppQt.Data!AH$7)/1000000) -> 253.6270061 | AO9: =IF($B$2="トン",AppQt.Data!AI13,(AppQt.Data!AI13*ozton*AppQt.Data!AI$7)/1000000) -> 248.8234295 | AP9: =IF($B$2="トン",AppQt.Data!AJ13,(AppQt.Data!AJ13*ozton*AppQt.Data!AJ$7)/1000000) -> 227.1233937 | AQ9: =IF($B$2="トン",AppQt.Data!AK13,(AppQt.Data!AK13*ozton*AppQt.Data!AK$7)/1000000) -> 341.5595184 | AR9: =IF($B$2="トン",AppQt.Data!AL13,(AppQt.Data!AL13*ozton*AppQt.Data!AL$7)/1000000) -> 328.2826246 | AS9: =IF($B$2="トン",AppQt.Data!AM13,(AppQt.Data!AM13*ozton*AppQt.Data!AM$7)/1000000) -> 318.4675097 | AT9: =IF($B$2="トン",AppQt.Data!AN13,(AppQt.Data!AN13*ozton*AppQt.Data!AN$7)/1000000) -> 243.8329355 | AU9: =IF($B$2="トン",AppQt.Data!AO13,(AppQt.Data!AO13*ozton*AppQt.Data!AO$7)/1000000) -> 273.2475737 | AV9: =IF($B$2="トン",AppQt.Data!AP13,(AppQt.Data!AP13*ozton*AppQt.Data!AP$7)/1000000) -> 270.2518386 | AW9: =IF($B$2="トン",AppQt.Data!AQ13,(AppQt.Data!AQ13*ozton*AppQt.Data!AQ$7)/1000000) -> 303.5078144 | AX9: =IF($B$2="トン",AppQt.Data!AR13,(AppQt.Data!AR13*ozton*AppQt.Data!AR$7)/1000000) -> 265.3855543 | AY9: =IF($B$2="トン",AppQt.Data!AS13,(AppQt.Data!AS13*ozton*AppQt.Data!AS$7)/1000000) -> 265.4683283 | AZ9: =IF($B$2="トン",AppQt.Data!AT13,(AppQt.Data!AT13*ozton*AppQt.Data!AT$7)/1000000) -> 280.0920037 | BA9: =IF($B$2="トン",AppQt.Data!AU13,(AppQt.Data!AU13*ozton*AppQt.Data!AU$7)/1000000) -> 309.0560003 | BB9: =IF($B$2="トン",AppQt.Data!AV13,(AppQt.Data!AV13*ozton*AppQt.Data!AV$7)/1000000) -> 277.0812419 | BC9: =IF($B$2="トン",AppQt.Data!AW13,(AppQt.Data!AW13*ozton*AppQt.Data!AW$7)/1000000) -> 281.876187 | BD9: =IF($B$2="トン",AppQt.Data!AX13,(AppQt.Data!AX13*ozton*AppQt.Data!AX$7)/1000000) -> 305.6634489 | BE9: =IF($B$2="トン",AppQt.Data!AY13,(AppQt.Data!AY13*ozton*AppQt.Data!AY$7)/1000000) -> 355.7605275 | BF9: =IF($B$2="トン",AppQt.Data!AZ13,(AppQt.Data!AZ13*ozton*AppQt.Data!AZ$7)/1000000) -> 332.3573447 | BG9: =IF($B$2="トン",AppQt.Data!BA13,(AppQt.Data!BA13*ozton*AppQt.Data!BA$7)/1000000) -> 301.0033979 | BH9: =IF($B$2="トン",AppQt.Data!BB13,(AppQt.Data!BB13*ozton*AppQt.Data!BB$7)/1000000) -> 285.1946041 | BI9: =IF($B$2="トン",AppQt.Data!BC13,(AppQt.Data!BC13*ozton*AppQt.Data!BC$7)/1000000) -> 377.9561964 | BJ9: =IF($B$2="トン",AppQt.Data!BD13,(AppQt.Data!BD13*ozton*AppQt.Data!BD$7)/1000000) -> 328.9012222 | BK9: =IF($B$2="トン",AppQt.Data!BE13,(AppQt.Data!BE13*ozton*AppQt.Data!BE$7)/1000000) -> 269.6774382 | BL9: =IF($B$2="トン",AppQt.Data!BF13,(AppQt.Data!BF13*ozton*AppQt.Data!BF$7)/1000000) -> 278.551693 | BM9: =IF($B$2="トン",AppQt.Data!BG13,(AppQt.Data!BG13*ozton*AppQt.Data!BG$7)/1000000) -> 292.8573244 | BN9: =IF($B$2="トン",AppQt.Data!BH13,(AppQt.Data!BH13*ozton*AppQt.Data!BH$7)/1000000) -> 295.0736449 | BO9: =IF($B$2="トン",AppQt.Data!BI13,(AppQt.Data!BI13*ozton*AppQt.Data!BI$7)/1000000) -> 295.9839286 | BP9: =IF($B$2="トン",AppQt.Data!BJ13,(AppQt.Data!BJ13*ozton*AppQt.Data!BJ$7)/1000000) -> 286.0561552 | BQ9: =IF($B$2="トン",AppQt.Data!BK13,(AppQt.Data!BK13*ozton*AppQt.Data!BK$7)/1000000) -> 269.8159976 | BR9: =IF($B$2="トン",AppQt.Data!BL13,(AppQt.Data!BL13*ozton*AppQt.Data!BL$7)/1000000) -> 292.2569332 | BS9: =IF(BT9<0,$A$2,IF(BT9>0,$A$1,"-")) -> ▼ | BT9: =IF(AND(ISNUMBER(BR9),ISNUMBER(BN9),BR9>0,BN9>0,(BR9/BN9-1)*100<300),(BR9/BN9-1)*100,IF(AND(ISNUMBER(BR9),ISNUMBER(BN9),BR9>0,BN9>0,(BR9/BN9-1)*100>300),">300","-")) -> -0.9545792298
B10: 供給合計 | C10: =IF($B$2="トン",AppAn.Data!L13,(AppAn.Data!L13*ozton*AppAn.Data!L$6)/1000000) -> 4316.82054 | D10: =IF($B$2="トン",AppAn.Data!M13,(AppAn.Data!M13*ozton*AppAn.Data!M$6)/1000000) -> 4525.71874 | E10: =IF($B$2="トン",AppAn.Data!N13,(AppAn.Data!N13*ozton*AppAn.Data!N$6)/1000000) -> 4548.648686 | F10: =IF($B$2="トン",AppAn.Data!O13,(AppAn.Data!O13*ozton*AppAn.Data!O$6)/1000000) -> 4334.135859 | G10: =IF($B$2="トン",AppAn.Data!P13,(AppAn.Data!P13*ozton*AppAn.Data!P$6)/1000000) -> 4504.990932 | H10: =IF($B$2="トン",AppAn.Data!Q13,(AppAn.Data!Q13*ozton*AppAn.Data!Q$6)/1000000) -> 4441.277218 | I10: =IF($B$2="トン",AppAn.Data!R13,(AppAn.Data!R13*ozton*AppAn.Data!R$6)/1000000) -> 4779.337462 | J10: =IF($B$2="トン",AppAn.Data!S13,(AppAn.Data!S13*ozton*AppAn.Data!S$6)/1000000) -> 4660.012044 | K10: =IF($B$2="トン",AppAn.Data!T13,(AppAn.Data!T13*ozton*AppAn.Data!T$6)/1000000) -> 4775.338453 | L10: =IF($B$2="トン",AppAn.Data!U13,(AppAn.Data!U13*ozton*AppAn.Data!U$6)/1000000) -> 4876.339761 | M10: =IF($B$2="トン",AppAn.Data!V13,(AppAn.Data!V13*ozton*AppAn.Data!V$6)/1000000) -> 4726.376722 | N10: =IF($B$2="トン",AppAn.Data!W13,(AppAn.Data!W13*ozton*AppAn.Data!W$6)/1000000) -> 4682.429704 | O10: =IF($B$2="トン",AppAn.Data!X13,(AppAn.Data!X13*ozton*AppAn.Data!X$6)/1000000) -> 4754.507767 | P10: =IF(Q10<0,$A$2,IF(Q10>0,$A$1,"-")) -> ▲ | Q10: =IF(AND(O10>0,N10>0),(O10/N10-1)*100,"-") -> 1.539330377 | S10: =IF($B$2="トン",AppQt.Data!M14,(AppQt.Data!M14*ozton*AppQt.Data!M$7)/1000000) -> 996.5450971 | T10: =IF($B$2="トン",AppQt.Data!N14,(AppQt.Data!N14*ozton*AppQt.Data!N$7)/1000000) -> 1144.654063 | U10: =IF($B$2="トン",AppQt.Data!O14,(AppQt.Data!O14*ozton*AppQt.Data!O$7)/1000000) -> 1055.997195 | V10: =IF($B$2="トン",AppQt.Data!P14,(AppQt.Data!P14*ozton*AppQt.Data!P$7)/1000000) -> 1119.624185 | W10: =IF($B$2="トン",AppQt.Data!Q14,(AppQt.Data!Q14*ozton*AppQt.Data!Q$7)/1000000) -> 1034.401737 | X10: =IF($B$2="トン",AppQt.Data!R14,(AppQt.Data!R14*ozton*AppQt.Data!R$7)/1000000) -> 1140.932025 | Y10: =IF($B$2="トン",AppQt.Data!S14,(AppQt.Data!S14*ozton*AppQt.Data!S$7)/1000000) -> 1212.059142 | Z10: =IF($B$2="トン",AppQt.Data!T14,(AppQt.Data!T14*ozton*AppQt.Data!T$7)/1000000) -> 1138.325836 | AA10: =IF($B$2="トン",AppQt.Data!U14,(AppQt.Data!U14*ozton*AppQt.Data!U$7)/1000000) -> 1086.412624 | AB10: =IF($B$2="トン",AppQt.Data!V14,(AppQt.Data!V14*ozton*AppQt.Data!V$7)/1000000) -> 1119.799428 | AC10: =IF($B$2="トン",AppQt.Data!W14,(AppQt.Data!W14*ozton*AppQt.Data!W$7)/1000000) -> 1214.605675 | AD10: =IF($B$2="トン",AppQt.Data!X14,(AppQt.Data!X14*ozton*AppQt.Data!X$7)/1000000) -> 1127.830959 | AE10: =IF($B$2="トン",AppQt.Data!Y14,(AppQt.Data!Y14*ozton*AppQt.Data!Y$7)/1000000) -> 1056.890695 | AF10: =IF($B$2="トン",AppQt.Data!Z14,(AppQt.Data!Z14*ozton*AppQt.Data!Z$7)/1000000) -> 1035.664207 | AG10: =IF($B$2="トン",AppQt.Data!AA14,(AppQt.Data!AA14*ozton*AppQt.Data!AA$7)/1000000) -> 1136.447345 | AH10: =IF($B$2="トン",AppQt.Data!AB14,(AppQt.Data!AB14*ozton*AppQt.Data!AB$7)/1000000) -> 1105.133612 | AI10: =IF($B$2="トン",AppQt.Data!AC14,(AppQt.Data!AC14*ozton*AppQt.Data!AC$7)/1000000) -> 1120.32604 | AJ10: =IF($B$2="トン",AppQt.Data!AD14,(AppQt.Data!AD14*ozton*AppQt.Data!AD$7)/1000000) -> 1103.236999 | AK10: =IF($B$2="トン",AppQt.Data!AE14,(AppQt.Data!AE14*ozton*AppQt.Data!AE$7)/1000000) -> 1108.393932 | AL10: =IF($B$2="トン",AppQt.Data!AF14,(AppQt.Data!AF14*ozton*AppQt.Data!AF$7)/1000000) -> 1173.033961 | AM10: =IF($B$2="トン",AppQt.Data!AG14,(AppQt.Data!AG14*ozton*AppQt.Data!AG$7)/1000000) -> 1122.254081 | AN10: =IF($B$2="トン",AppQt.Data!AH14,(AppQt.Data!AH14*ozton*AppQt.Data!AH$7)/1000000) -> 1076.789743 | AO10: =IF($B$2="トン",AppQt.Data!AI14,(AppQt.Data!AI14*ozton*AppQt.Data!AI$7)/1000000) -> 1130.482803 | AP10: =IF($B$2="トン",AppQt.Data!AJ14,(AppQt.Data!AJ14*ozton*AppQt.Data!AJ$7)/1000000) -> 1111.750591 | AQ10: =IF($B$2="トン",AppQt.Data!AK14,(AppQt.Data!AK14*ozton*AppQt.Data!AK$7)/1000000) -> 1251.394047 | AR10: =IF($B$2="トン",AppQt.Data!AL14,(AppQt.Data!AL14*ozton*AppQt.Data!AL$7)/1000000) -> 1211.317447 | AS10: =IF($B$2="トン",AppQt.Data!AM14,(AppQt.Data!AM14*ozton*AppQt.Data!AM$7)/1000000) -> 1181.803999 | AT10: =IF($B$2="トン",AppQt.Data!AN14,(AppQt.Data!AN14*ozton*AppQt.Data!AN$7)/1000000) -> 1134.821969 | AU10: =IF($B$2="トン",AppQt.Data!AO14,(AppQt.Data!AO14*ozton*AppQt.Data!AO$7)/1000000) -> 1087.731216 | AV10: =IF($B$2="トン",AppQt.Data!AP14,(AppQt.Data!AP14*ozton*AppQt.Data!AP$7)/1000000) -> 1144.765254 | AW10: =IF($B$2="トン",AppQt.Data!AQ14,(AppQt.Data!AQ14*ozton*AppQt.Data!AQ$7)/1000000) -> 1235.778616 | AX10: =IF($B$2="トン",AppQt.Data!AR14,(AppQt.Data!AR14*ozton*AppQt.Data!AR$7)/1000000) -> 1191.736958 | AY10: =IF($B$2="トン",AppQt.Data!AS14,(AppQt.Data!AS14*ozton*AppQt.Data!AS$7)/1000000) -> 1154.321634 | AZ10: =IF($B$2="トン",AppQt.Data!AT14,(AppQt.Data!AT14*ozton*AppQt.Data!AT$7)/1000000) -> 1141.232531 | BA10: =IF($B$2="トン",AppQt.Data!AU14,(AppQt.Data!AU14*ozton*AppQt.Data!AU$7)/1000000) -> 1240.343286 | BB10: =IF($B$2="トン",AppQt.Data!AV14,(AppQt.Data!AV14*ozton*AppQt.Data!AV$7)/1000000) -> 1239.441002 | BC10: =IF($B$2="トン",AppQt.Data!AW14,(AppQt.Data!AW14*ozton*AppQt.Data!AW$7)/1000000) -> 1119.951322 | BD10: =IF($B$2="トン",AppQt.Data!AX14,(AppQt.Data!AX14*ozton*AppQt.Data!AX$7)/1000000) -> 1234.662501 | BE10: =IF($B$2="トン",AppQt.Data!AY14,(AppQt.Data!AY14*ozton*AppQt.Data!AY$7)/1000000) -> 1284.453796 | BF10: =IF($B$2="トン",AppQt.Data!AZ14,(AppQt.Data!AZ14*ozton*AppQt.Data!AZ$7)/1000000) -> 1237.272142 | BG10: =IF($B$2="トン",AppQt.Data!BA14,(AppQt.Data!BA14*ozton*AppQt.Data!BA$7)/1000000) -> 1179.574448 | BH10: =IF($B$2="トン",AppQt.Data!BB14,(AppQt.Data!BB14*ozton*AppQt.Data!BB$7)/1000000) -> 1037.700125 | BI10: =IF($B$2="トン",AppQt.Data!BC14,(AppQt.Data!BC14*ozton*AppQt.Data!BC$7)/1000000) -> 1277.022178 | BJ10: =IF($B$2="トン",AppQt.Data!BD14,(AppQt.Data!BD14*ozton*AppQt.Data!BD$7)/1000000) -> 1232.079971 | BK10: =IF($B$2="トン",AppQt.Data!BE14,(AppQt.Data!BE14*ozton*AppQt.Data!BE$7)/1000000) -> 1104.686173 | BL10: =IF($B$2="トン",AppQt.Data!BF14,(AppQt.Data!BF14*ozton*AppQt.Data!BF$7)/1000000) -> 1134.266922 | BM10: =IF($B$2="トン",AppQt.Data!BG14,(AppQt.Data!BG14*ozton*AppQt.Data!BG$7)/1000000) -> 1208.200903 | BN10: =IF($B$2="トン",AppQt.Data!BH14,(AppQt.Data!BH14*ozton*AppQt.Data!BH$7)/1000000) -> 1235.275707 | BO10: =IF($B$2="トン",AppQt.Data!BI14,(AppQt.Data!BI14*ozton*AppQt.Data!BI$7)/1000000) -> 1151.131499 | BP10: =IF($B$2="トン",AppQt.Data!BJ14,(AppQt.Data!BJ14*ozton*AppQt.Data!BJ$7)/1000000) -> 1181.817901 | BQ10: =IF($B$2="トン",AppQt.Data!BK14,(AppQt.Data!BK14*ozton*AppQt.Data!BK$7)/1000000) -> 1204.515774 | BR10: =IF($B$2="トン",AppQt.Data!BL14,(AppQt.Data!BL14*ozton*AppQt.Data!BL$7)/1000000) -> 1217.042593 | BS10: =IF(BT10<0,$A$2,IF(BT10>0,$A$1,"-")) -> ▼ | BT10: =IF(AND(ISNUMBER(BR10),ISNUMBER(BN10),BR10>0,BN10>0,(BR10/BN10-1)*100<300),(BR10/BN10-1)*100,IF(AND(ISNUMBER(BR10),ISNUMBER(BN10),BR10>0,BN10>0,(BR10/BN10-1)*100>300),">300","-")) -> -1.476035973
B12: 需要
B13: 宝石加工 | C13: =IF($B$2="トン",AppAn.Data!L14,(AppAn.Data!L14*ozton*AppAn.Data!L$6)/1000000) -> 2043.757318 | D13: =IF($B$2="トン",AppAn.Data!M14,(AppAn.Data!M14*ozton*AppAn.Data!M$6)/1000000) -> 2092.126334 | E13: =IF($B$2="トン",AppAn.Data!N14,(AppAn.Data!N14*ozton*AppAn.Data!N$6)/1000000) -> 2140.866261 | F13: =IF($B$2="トン",AppAn.Data!O14,(AppAn.Data!O14*ozton*AppAn.Data!O$6)/1000000) -> 2735.296181 | G13: =IF($B$2="トン",AppAn.Data!P14,(AppAn.Data!P14*ozton*AppAn.Data!P$6)/1000000) -> 2544.380585 | H13: =IF($B$2="トン",AppAn.Data!Q14,(AppAn.Data!Q14*ozton*AppAn.Data!Q$6)/1000000) -> 2479.239936 | I13: =IF($B$2="トン",AppAn.Data!R14,(AppAn.Data!R14*ozton*AppAn.Data!R$6)/1000000) -> 2018.769985 | J13: =IF($B$2="トン",AppAn.Data!S14,(AppAn.Data!S14*ozton*AppAn.Data!S$6)/1000000) -> 2257.470103 | K13: =IF($B$2="トン",AppAn.Data!T14,(AppAn.Data!T14*ozton*AppAn.Data!T$6)/1000000) -> 2290.01592 | L13: =IF($B$2="トン",AppAn.Data!U14,(AppAn.Data!U14*ozton*AppAn.Data!U$6)/1000000) -> 2152.076652 | M13: =IF($B$2="トン",AppAn.Data!V14,(AppAn.Data!V14*ozton*AppAn.Data!V$6)/1000000) -> 1323.96461 | N13: =IF($B$2="トン",AppAn.Data!W14,(AppAn.Data!W14*ozton*AppAn.Data!W$6)/1000000) -> 2230.635783 | O13: =IF($B$2="トン",AppAn.Data!X14,(AppAn.Data!X14*ozton*AppAn.Data!X$6)/1000000) -> 2189.758548 | P13: =IF(Q13<0,$A$2,IF(Q13>0,$A$1,"-")) -> ▼ | Q13: =IF(AND(O13>0,N13>0),(O13/N13-1)*100,"-") -> -1.832537395 | S13: =IF($B$2="トン",AppQt.Data!M15,(AppQt.Data!M15*ozton*AppQt.Data!M$7)/1000000) -> 550.6065719 | T13: =IF($B$2="トン",AppQt.Data!N15,(AppQt.Data!N15*ozton*AppQt.Data!N$7)/1000000) -> 423.122472 | U13: =IF($B$2="トン",AppQt.Data!O15,(AppQt.Data!O15*ozton*AppQt.Data!O$7)/1000000) -> 548.8440309 | V13: =IF($B$2="トン",AppQt.Data!P15,(AppQt.Data!P15*ozton*AppQt.Data!P$7)/1000000) -> 521.1842432 | W13: =IF($B$2="トン",AppQt.Data!Q15,(AppQt.Data!Q15*ozton*AppQt.Data!Q$7)/1000000) -> 596.4666985 | X13: =IF($B$2="トン",AppQt.Data!R15,(AppQt.Data!R15*ozton*AppQt.Data!R$7)/1000000) -> 528.1916142 | Y13: =IF($B$2="トン",AppQt.Data!S15,(AppQt.Data!S15*ozton*AppQt.Data!S$7)/1000000) -> 501.1970074 | Z13: =IF($B$2="トン",AppQt.Data!T15,(AppQt.Data!T15*ozton*AppQt.Data!T$7)/1000000) -> 466.2710139 | AA13: =IF($B$2="トン",AppQt.Data!U15,(AppQt.Data!U15*ozton*AppQt.Data!U$7)/1000000) -> 553.0292457 | AB13: =IF($B$2="トン",AppQt.Data!V15,(AppQt.Data!V15*ozton*AppQt.Data!V$7)/1000000) -> 491.7597644 | AC13: =IF($B$2="トン",AppQt.Data!W15,(AppQt.Data!W15*ozton*AppQt.Data!W$7)/1000000) -> 546.5024662 | AD13: =IF($B$2="トン",AppQt.Data!X15,(AppQt.Data!X15*ozton*AppQt.Data!X$7)/1000000) -> 549.5747849 | AE13: =IF($B$2="トン",AppQt.Data!Y15,(AppQt.Data!Y15*ozton*AppQt.Data!Y$7)/1000000) -> 598.740098 | AF13: =IF($B$2="トン",AppQt.Data!Z15,(AppQt.Data!Z15*ozton*AppQt.Data!Z$7)/1000000) -> 803.817076 | AG13: =IF($B$2="トン",AppQt.Data!AA15,(AppQt.Data!AA15*ozton*AppQt.Data!AA$7)/1000000) -> 692.3415771 | AH13: =IF($B$2="トン",AppQt.Data!AB15,(AppQt.Data!AB15*ozton*AppQt.Data!AB$7)/1000000) -> 640.3974297 | AI13: =IF($B$2="トン",AppQt.Data!AC15,(AppQt.Data!AC15*ozton*AppQt.Data!AC$7)/1000000) -> 615.9472486 | AJ13: =IF($B$2="トン",AppQt.Data!AD15,(AppQt.Data!AD15*ozton*AppQt.Data!AD$7)/1000000) -> 620.3369529 | AK13: =IF($B$2="トン",AppQt.Data!AE15,(AppQt.Data!AE15*ozton*AppQt.Data!AE$7)/1000000) -> 651.2942435 | AL13: =IF($B$2="トン",AppQt.Data!AF15,(AppQt.Data!AF15*ozton*AppQt.Data!AF$7)/1000000) -> 656.8021396 | AM13: =IF($B$2="トン",AppQt.Data!AG15,(AppQt.Data!AG15*ozton*AppQt.Data!AG$7)/1000000) -> 623.4942018 | AN13: =IF($B$2="トン",AppQt.Data!AH15,(AppQt.Data!AH15*ozton*AppQt.Data!AH$7)/1000000) -> 552.3717473 | AO13: =IF($B$2="トン",AppQt.Data!AI15,(AppQt.Data!AI15*ozton*AppQt.Data!AI$7)/1000000) -> 673.1031077 | AP13: =IF($B$2="トン",AppQt.Data!AJ15,(AppQt.Data!AJ15*ozton*AppQt.Data!AJ$7)/1000000) -> 630.2708797 | AQ13: =IF($B$2="トン",AppQt.Data!AK15,(AppQt.Data!AK15*ozton*AppQt.Data!AK$7)/1000000) -> 482.9100342 | AR13: =IF($B$2="トン",AppQt.Data!AL15,(AppQt.Data!AL15*ozton*AppQt.Data!AL$7)/1000000) -> 454.2614083 | AS13: =IF($B$2="トン",AppQt.Data!AM15,(AppQt.Data!AM15*ozton*AppQt.Data!AM$7)/1000000) -> 515.3823947 | AT13: =IF($B$2="トン",AppQt.Data!AN15,(AppQt.Data!AN15*ozton*AppQt.Data!AN$7)/1000000) -> 566.2161478 | AU13: =IF($B$2="トン",AppQt.Data!AO15,(AppQt.Data!AO15*ozton*AppQt.Data!AO$7)/1000000) -> 548.6025678 | AV13: =IF($B$2="トン",AppQt.Data!AP15,(AppQt.Data!AP15*ozton*AppQt.Data!AP$7)/1000000) -> 546.6763024 | AW13: =IF($B$2="トン",AppQt.Data!AQ15,(AppQt.Data!AQ15*ozton*AppQt.Data!AQ$7)/1000000) -> 539.7805674 | AX13: =IF($B$2="トン",AppQt.Data!AR15,(AppQt.Data!AR15*ozton*AppQt.Data!AR$7)/1000000) -> 622.4106655 | AY13: =IF($B$2="トン",AppQt.Data!AS15,(AppQt.Data!AS15*ozton*AppQt.Data!AS$7)/1000000) -> 530.6026831 | AZ13: =IF($B$2="トン",AppQt.Data!AT15,(AppQt.Data!AT15*ozton*AppQt.Data!AT$7)/1000000) -> 532.9499432 | BA13: =IF($B$2="トン",AppQt.Data!AU15,(AppQt.Data!AU15*ozton*AppQt.Data!AU$7)/1000000) -> 590.6129497 | BB13: =IF($B$2="トン",AppQt.Data!AV15,(AppQt.Data!AV15*ozton*AppQt.Data!AV$7)/1000000) -> 635.8503439 | BC13: =IF($B$2="トン",AppQt.Data!AW15,(AppQt.Data!AW15*ozton*AppQt.Data!AW$7)/1000000) -> 543.3608851 | BD13: =IF($B$2="トン",AppQt.Data!AX15,(AppQt.Data!AX15*ozton*AppQt.Data!AX$7)/1000000) -> 557.2059805 | BE13: =IF($B$2="トン",AppQt.Data!AY15,(AppQt.Data!AY15*ozton*AppQt.Data!AY$7)/1000000) -> 486.0096928 | BF13: =IF($B$2="トン",AppQt.Data!AZ15,(AppQt.Data!AZ15*ozton*AppQt.Data!AZ$7)/1000000) -> 565.500094 | BG13: =IF($B$2="トン",AppQt.Data!BA15,(AppQt.Data!BA15*ozton*AppQt.Data!BA$7)/1000000) -> 329.3997598 | BH13: =IF($B$2="トン",AppQt.Data!BB15,(AppQt.Data!BB15*ozton*AppQt.Data!BB$7)/1000000) -> 196.1715097 | BI13: =IF($B$2="トン",AppQt.Data!BC15,(AppQt.Data!BC15*ozton*AppQt.Data!BC$7)/1000000) -> 314.6987552 | BJ13: =IF($B$2="トン",AppQt.Data!BD15,(AppQt.Data!BD15*ozton*AppQt.Data!BD$7)/1000000) -> 483.6945852 | BK13: =IF($B$2="トン",AppQt.Data!BE15,(AppQt.Data!BE15*ozton*AppQt.Data!BE$7)/1000000) -> 538.9580382 | BL13: =IF($B$2="トン",AppQt.Data!BF15,(AppQt.Data!BF15*ozton*AppQt.Data!BF$7)/1000000) -> 456.5826381 | BM13: =IF($B$2="トン",AppQt.Data!BG15,(AppQt.Data!BG15*ozton*AppQt.Data!BG$7)/1000000) -> 515.2473608 | BN13: =IF($B$2="トン",AppQt.Data!BH15,(AppQt.Data!BH15*ozton*AppQt.Data!BH$7)/1000000) -> 719.8477454 | BO13: =IF($B$2="トン",AppQt.Data!BI15,(AppQt.Data!BI15*ozton*AppQt.Data!BI$7)/1000000) -> 515.4690035 | BP13: =IF($B$2="トン",AppQt.Data!BJ15,(AppQt.Data!BJ15*ozton*AppQt.Data!BJ$7)/1000000) -> 491.5721686 | BQ13: =IF($B$2="トン",AppQt.Data!BK15,(AppQt.Data!BK15*ozton*AppQt.Data!BK$7)/1000000) -> 580.2050361 | BR13: =IF($B$2="トン",AppQt.Data!BL15,(AppQt.Data!BL15*ozton*AppQt.Data!BL$7)/1000000) -> 602.5123395 | BS13: =IF(BT13<0,$A$2,IF(BT13>0,$A$1,"-")) -> ▼ | BT13: =IF(AND(ISNUMBER(BR13),ISNUMBER(BN13),BR13>0,BN13>0,(BR13/BN13-1)*100<300),(BR13/BN13-1)*100,IF(AND(ISNUMBER(BR13),ISNUMBER(BN13),BR13>0,BN13>0,(BR13/BN13-1)*100>300),">300","-")) -> -16.30003104
B14: 宝石消費 | C14: =IF($B$2="トン",AppAn.Data!L15,(AppAn.Data!L15*ozton*AppAn.Data!L$6)/1000000) -> 2057.24761 | D14: =IF($B$2="トン",AppAn.Data!M15,(AppAn.Data!M15*ozton*AppAn.Data!M$6)/1000000) -> 2104.445694 | E14: =IF($B$2="トン",AppAn.Data!N15,(AppAn.Data!N15*ozton*AppAn.Data!N$6)/1000000) -> 2157.204982 | F14: =IF($B$2="トン",AppAn.Data!O15,(AppAn.Data!O15*ozton*AppAn.Data!O$6)/1000000) -> 2727.974361 | G14: =IF($B$2="トン",AppAn.Data!P15,(AppAn.Data!P15*ozton*AppAn.Data!P$6)/1000000) -> 2534.218507 | H14: =IF($B$2="トン",AppAn.Data!Q15,(AppAn.Data!Q15*ozton*AppAn.Data!Q$6)/1000000) -> 2460.841273 | I14: =IF($B$2="トン",AppAn.Data!R15,(AppAn.Data!R15*ozton*AppAn.Data!R$6)/1000000) -> 2105.228192 | J14: =IF($B$2="トン",AppAn.Data!S15,(AppAn.Data!S15*ozton*AppAn.Data!S$6)/1000000) -> 2242.010751 | K14: =IF($B$2="トン",AppAn.Data!T15,(AppAn.Data!T15*ozton*AppAn.Data!T$6)/1000000) -> 2250.220137 | L14: =IF($B$2="トン",AppAn.Data!U15,(AppAn.Data!U15*ozton*AppAn.Data!U$6)/1000000) -> 2126.720154 | M14: =IF($B$2="トン",AppAn.Data!V15,(AppAn.Data!V15*ozton*AppAn.Data!V$6)/1000000) -> 1397.986339 | N14: =IF($B$2="トン",AppAn.Data!W15,(AppAn.Data!W15*ozton*AppAn.Data!W$6)/1000000) -> 2147.738311 | O14: =IF($B$2="トン",AppAn.Data!X15,(AppAn.Data!X15*ozton*AppAn.Data!X$6)/1000000) -> 2086.168373 | P14: =IF(Q14<0,$A$2,IF(Q14>0,$A$1,"-")) -> ▼ | Q14: -2.866733665 | S14: =IF($B$2="トン",AppQt.Data!M16,(AppQt.Data!M16*ozton*AppQt.Data!M$7)/1000000) -> 534.9943697 | T14: =IF($B$2="トン",AppQt.Data!N16,(AppQt.Data!N16*ozton*AppQt.Data!N$7)/1000000) -> 422.8172164 | U14: =IF($B$2="トン",AppQt.Data!O16,(AppQt.Data!O16*ozton*AppQt.Data!O$7)/1000000) -> 523.1510808 | V14: =IF($B$2="トン",AppQt.Data!P16,(AppQt.Data!P16*ozton*AppQt.Data!P$7)/1000000) -> 576.2849431 | W14: =IF($B$2="トン",AppQt.Data!Q16,(AppQt.Data!Q16*ozton*AppQt.Data!Q$7)/1000000) -> 580.0592542 | X14: =IF($B$2="トン",AppQt.Data!R16,(AppQt.Data!R16*ozton*AppQt.Data!R$7)/1000000) -> 522.947297 | Y14: =IF($B$2="トン",AppQt.Data!S16,(AppQt.Data!S16*ozton*AppQt.Data!S$7)/1000000) -> 484.0945815 | Z14: =IF($B$2="トン",AppQt.Data!T16,(AppQt.Data!T16*ozton*AppQt.Data!T$7)/1000000) -> 517.3445609 | AA14: =IF($B$2="トン",AppQt.Data!U16,(AppQt.Data!U16*ozton*AppQt.Data!U$7)/1000000) -> 540.7493488 | AB14: =IF($B$2="トン",AppQt.Data!V16,(AppQt.Data!V16*ozton*AppQt.Data!V$7)/1000000) -> 499.8028891 | AC14: =IF($B$2="トン",AppQt.Data!W16,(AppQt.Data!W16*ozton*AppQt.Data!W$7)/1000000) -> 519.1721406 | AD14: =IF($B$2="トン",AppQt.Data!X16,(AppQt.Data!X16*ozton*AppQt.Data!X$7)/1000000) -> 597.4806038 | AE14: =IF($B$2="トン",AppQt.Data!Y16,(AppQt.Data!Y16*ozton*AppQt.Data!Y$7)/1000000) -> 616.1412165 | AF14: =IF($B$2="トン",AppQt.Data!Z16,(AppQt.Data!Z16*ozton*AppQt.Data!Z$7)/1000000) -> 834.2615901 | AG14: =IF($B$2="トン",AppQt.Data!AA16,(AppQt.Data!AA16*ozton*AppQt.Data!AA$7)/1000000) -> 648.936614 | AH14: =IF($B$2="トン",AppQt.Data!AB16,(AppQt.Data!AB16*ozton*AppQt.Data!AB$7)/1000000) -> 628.6349399 | AI14: =IF($B$2="トン",AppQt.Data!AC16,(AppQt.Data!AC16*ozton*AppQt.Data!AC$7)/1000000) -> 627.0372323 | AJ14: =IF($B$2="トン",AppQt.Data!AD16,(AppQt.Data!AD16*ozton*AppQt.Data!AD$7)/1000000) -> 603.0903361 | AK14: =IF($B$2="トン",AppQt.Data!AE16,(AppQt.Data!AE16*ozton*AppQt.Data!AE$7)/1000000) -> 610.233681 | AL14: =IF($B$2="トン",AppQt.Data!AF16,(AppQt.Data!AF16*ozton*AppQt.Data!AF$7)/1000000) -> 693.8572579 | AM14: =IF($B$2="トン",AppQt.Data!AG16,(AppQt.Data!AG16*ozton*AppQt.Data!AG$7)/1000000) -> 615.9677452 | AN14: =IF($B$2="トン",AppQt.Data!AH16,(AppQt.Data!AH16*ozton*AppQt.Data!AH$7)/1000000) -> 533.1343238 | AO14: =IF($B$2="トン",AppQt.Data!AI16,(AppQt.Data!AI16*ozton*AppQt.Data!AI$7)/1000000) -> 641.4396404 | AP14: =IF($B$2="トン",AppQt.Data!AJ16,(AppQt.Data!AJ16*ozton*AppQt.Data!AJ$7)/1000000) -> 670.2995641 | AQ14: =IF($B$2="トン",AppQt.Data!AK16,(AppQt.Data!AK16*ozton*AppQt.Data!AK$7)/1000000) -> 491.6803224 | AR14: =IF($B$2="トン",AppQt.Data!AL16,(AppQt.Data!AL16*ozton*AppQt.Data!AL$7)/1000000) -> 461.9641442 | AS14: =IF($B$2="トン",AppQt.Data!AM16,(AppQt.Data!AM16*ozton*AppQt.Data!AM$7)/1000000) -> 508.1649283 | AT14: =IF($B$2="トン",AppQt.Data!AN16,(AppQt.Data!AN16*ozton*AppQt.Data!AN$7)/1000000) -> 643.4187973 | AU14: =IF($B$2="トン",AppQt.Data!AO16,(AppQt.Data!AO16*ozton*AppQt.Data!AO$7)/1000000) -> 529.0854547 | AV14: =IF($B$2="トン",AppQt.Data!AP16,(AppQt.Data!AP16*ozton*AppQt.Data!AP$7)/1000000) -> 532.490513 | AW14: =IF($B$2="トン",AppQt.Data!AQ16,(AppQt.Data!AQ16*ozton*AppQt.Data!AQ$7)/1000000) -> 514.7938535 | AX14: =IF($B$2="トン",AppQt.Data!AR16,(AppQt.Data!AR16*ozton*AppQt.Data!AR$7)/1000000) -> 665.6409302 | AY14: =IF($B$2="トン",AppQt.Data!AS16,(AppQt.Data!AS16*ozton*AppQt.Data!AS$7)/1000000) -> 529.5108308 | AZ14: =IF($B$2="トン",AppQt.Data!AT16,(AppQt.Data!AT16*ozton*AppQt.Data!AT$7)/1000000) -> 522.5966223 | BA14: =IF($B$2="トン",AppQt.Data!AU16,(AppQt.Data!AU16*ozton*AppQt.Data!AU$7)/1000000) -> 548.3755977 | BB14: =IF($B$2="トン",AppQt.Data!AV16,(AppQt.Data!AV16*ozton*AppQt.Data!AV$7)/1000000) -> 649.737086 | BC14: =IF($B$2="トン",AppQt.Data!AW16,(AppQt.Data!AW16*ozton*AppQt.Data!AW$7)/1000000) -> 536.1250146 | BD14: =IF($B$2="トン",AppQt.Data!AX16,(AppQt.Data!AX16*ozton*AppQt.Data!AX$7)/1000000) -> 530.5782996 | BE14: =IF($B$2="トン",AppQt.Data!AY16,(AppQt.Data!AY16*ozton*AppQt.Data!AY$7)/1000000) -> 469.7727449 | BF14: =IF($B$2="トン",AppQt.Data!AZ16,(AppQt.Data!AZ16*ozton*AppQt.Data!AZ$7)/1000000) -> 590.2440947 | BG14: =IF($B$2="トン",AppQt.Data!BA16,(AppQt.Data!BA16*ozton*AppQt.Data!BA$7)/1000000) -> 311.6118418 | BH14: =IF($B$2="トン",AppQt.Data!BB16,(AppQt.Data!BB16*ozton*AppQt.Data!BB$7)/1000000) -> 243.0878023 | BI14: =IF($B$2="トン",AppQt.Data!BC16,(AppQt.Data!BC16*ozton*AppQt.Data!BC$7)/1000000) -> 333.0436927 | BJ14: =IF($B$2="トン",AppQt.Data!BD16,(AppQt.Data!BD16*ozton*AppQt.Data!BD$7)/1000000) -> 510.2430027 | BK14: =IF($B$2="トン",AppQt.Data!BE16,(AppQt.Data!BE16*ozton*AppQt.Data!BE$7)/1000000) -> 512.1968863 | BL14: =IF($B$2="トン",AppQt.Data!BF16,(AppQt.Data!BF16*ozton*AppQt.Data!BF$7)/1000000) -> 437.5579732 | BM14: =IF($B$2="トン",AppQt.Data!BG16,(AppQt.Data!BG16*ozton*AppQt.Data!BG$7)/1000000) -> 477.1037405 | BN14: =IF($B$2="トン",AppQt.Data!BH16,(AppQt.Data!BH16*ozton*AppQt.Data!BH$7)/1000000) -> 720.8797106 | BO14: =IF($B$2="トン",AppQt.Data!BI16,(AppQt.Data!BI16*ozton*AppQt.Data!BI$7)/1000000) -> 474.6612783 | BP14: =IF($B$2="トン",AppQt.Data!BJ16,(AppQt.Data!BJ16*ozton*AppQt.Data!BJ$7)/1000000) -> 457.8027112 | BQ14: =IF($B$2="トン",AppQt.Data!BK16,(AppQt.Data!BK16*ozton*AppQt.Data!BK$7)/1000000) -> 524.9492502 | BR14: =IF($B$2="トン",AppQt.Data!BL16,(AppQt.Data!BL16*ozton*AppQt.Data!BL$7)/1000000) -> 628.7551336 | BS14: =IF(BT14<0,$A$2,IF(BT14>0,$A$1,"-")) -> ▼ | BT14: -12.77946592
B15: 宝石在庫 | C15: =IF($B$2="トン",AppAn.Data!L16,(AppAn.Data!L16*ozton*AppAn.Data!L$6)/1000000) -> -13.49029207 | D15: =IF($B$2="トン",AppAn.Data!M16,(AppAn.Data!M16*ozton*AppAn.Data!M$6)/1000000) -> -12.31935962 | E15: =IF($B$2="トン",AppAn.Data!N16,(AppAn.Data!N16*ozton*AppAn.Data!N$6)/1000000) -> -16.33872118 | F15: =IF($B$2="トン",AppAn.Data!O16,(AppAn.Data!O16*ozton*AppAn.Data!O$6)/1000000) -> 7.321820259 | G15: =IF($B$2="トン",AppAn.Data!P16,(AppAn.Data!P16*ozton*AppAn.Data!P$6)/1000000) -> 10.1620773 | H15: =IF($B$2="トン",AppAn.Data!Q16,(AppAn.Data!Q16*ozton*AppAn.Data!Q$6)/1000000) -> 18.39866306 | I15: =IF($B$2="トン",AppAn.Data!R16,(AppAn.Data!R16*ozton*AppAn.Data!R$6)/1000000) -> -86.45820712 | J15: =IF($B$2="トン",AppAn.Data!S16,(AppAn.Data!S16*ozton*AppAn.Data!S$6)/1000000) -> 15.45935184 | K15: =IF($B$2="トン",AppAn.Data!T16,(AppAn.Data!T16*ozton*AppAn.Data!T$6)/1000000) -> 39.79578309 | L15: =IF($B$2="トン",AppAn.Data!U16,(AppAn.Data!U16*ozton*AppAn.Data!U$6)/1000000) -> 25.3564985 | M15: =IF($B$2="トン",AppAn.Data!V16,(AppAn.Data!V16*ozton*AppAn.Data!V$6)/1000000) -> -74.02172959 | N15: =IF($B$2="トン",AppAn.Data!W16,(AppAn.Data!W16*ozton*AppAn.Data!W$6)/1000000) -> 82.89747194 | O15: =IF($B$2="トン",AppAn.Data!X16,(AppAn.Data!X16*ozton*AppAn.Data!X$6)/1000000) -> 103.5901743 | P15: ▲ | Q15: 24.96180142 | S15: =IF($B$2="トン",AppQt.Data!M17,(AppQt.Data!M17*ozton*AppQt.Data!M$7)/1000000) -> 15.61220221 | T15: =IF($B$2="トン",AppQt.Data!N17,(AppQt.Data!N17*ozton*AppQt.Data!N$7)/1000000) -> 0.3052555664 | U15: =IF($B$2="トン",AppQt.Data!O17,(AppQt.Data!O17*ozton*AppQt.Data!O$7)/1000000) -> 25.69295011 | V15: =IF($B$2="トン",AppQt.Data!P17,(AppQt.Data!P17*ozton*AppQt.Data!P$7)/1000000) -> -55.10069995 | W15: =IF($B$2="トン",AppQt.Data!Q17,(AppQt.Data!Q17*ozton*AppQt.Data!Q$7)/1000000) -> 16.40744424 | X15: =IF($B$2="トン",AppQt.Data!R17,(AppQt.Data!R17*ozton*AppQt.Data!R$7)/1000000) -> 5.244317211 | Y15: =IF($B$2="トン",AppQt.Data!S17,(AppQt.Data!S17*ozton*AppQt.Data!S$7)/1000000) -> 17.10242586 | Z15: =IF($B$2="トン",AppQt.Data!T17,(AppQt.Data!T17*ozton*AppQt.Data!T$7)/1000000) -> -51.07354693 | AA15: =IF($B$2="トン",AppQt.Data!U17,(AppQt.Data!U17*ozton*AppQt.Data!U$7)/1000000) -> 12.27989692 | AB15: =IF($B$2="トン",AppQt.Data!V17,(AppQt.Data!V17*ozton*AppQt.Data!V$7)/1000000) -> -8.043124727 | AC15: =IF($B$2="トン",AppQt.Data!W17,(AppQt.Data!W17*ozton*AppQt.Data!W$7)/1000000) -> 27.33032552 | AD15: =IF($B$2="トン",AppQt.Data!X17,(AppQt.Data!X17*ozton*AppQt.Data!X$7)/1000000) -> -47.90581889 | AE15: =IF($B$2="トン",AppQt.Data!Y17,(AppQt.Data!Y17*ozton*AppQt.Data!Y$7)/1000000) -> -17.40111851 | AF15: =IF($B$2="トン",AppQt.Data!Z17,(AppQt.Data!Z17*ozton*AppQt.Data!Z$7)/1000000) -> -30.44451406 | AG15: =IF($B$2="トン",AppQt.Data!AA17,(AppQt.Data!AA17*ozton*AppQt.Data!AA$7)/1000000) -> 43.40496303 | AH15: =IF($B$2="トン",AppQt.Data!AB17,(AppQt.Data!AB17*ozton*AppQt.Data!AB$7)/1000000) -> 11.7624898 | AI15: =IF($B$2="トン",AppQt.Data!AC17,(AppQt.Data!AC17*ozton*AppQt.Data!AC$7)/1000000) -> -11.08998369 | AJ15: =IF($B$2="トン",AppQt.Data!AD17,(AppQt.Data!AD17*ozton*AppQt.Data!AD$7)/1000000) -> 17.2466168 | AK15: =IF($B$2="トン",AppQt.Data!AE17,(AppQt.Data!AE17*ozton*AppQt.Data!AE$7)/1000000) -> 41.06056251 | AL15: =IF($B$2="トン",AppQt.Data!AF17,(AppQt.Data!AF17*ozton*AppQt.Data!AF$7)/1000000) -> -37.0551183 | AM15: =IF($B$2="トン",AppQt.Data!AG17,(AppQt.Data!AG17*ozton*AppQt.Data!AG$7)/1000000) -> 7.526456649 | AN15: =IF($B$2="トン",AppQt.Data!AH17,(AppQt.Data!AH17*ozton*AppQt.Data!AH$7)/1000000) -> 19.23742347 | AO15: =IF($B$2="トン",AppQt.Data!AI17,(AppQt.Data!AI17*ozton*AppQt.Data!AI$7)/1000000) -> 31.66346732 | AP15: =IF($B$2="トン",AppQt.Data!AJ17,(AppQt.Data!AJ17*ozton*AppQt.Data!AJ$7)/1000000) -> -40.02868438 | AQ15: =IF($B$2="トン",AppQt.Data!AK17,(AppQt.Data!AK17*ozton*AppQt.Data!AK$7)/1000000) -> -8.770288119 | AR15: =IF($B$2="トン",AppQt.Data!AL17,(AppQt.Data!AL17*ozton*AppQt.Data!AL$7)/1000000) -> -7.702735871 | AS15: =IF($B$2="トン",AppQt.Data!AM17,(AppQt.Data!AM17*ozton*AppQt.Data!AM$7)/1000000) -> 7.217466387 | AT15: =IF($B$2="トン",AppQt.Data!AN17,(AppQt.Data!AN17*ozton*AppQt.Data!AN$7)/1000000) -> -77.20264951 | AU15: =IF($B$2="トン",AppQt.Data!AO17,(AppQt.Data!AO17*ozton*AppQt.Data!AO$7)/1000000) -> 19.51711311 | AV15: =IF($B$2="トン",AppQt.Data!AP17,(AppQt.Data!AP17*ozton*AppQt.Data!AP$7)/1000000) -> 14.18578947 | AW15: =IF($B$2="トン",AppQt.Data!AQ17,(AppQt.Data!AQ17*ozton*AppQt.Data!AQ$7)/1000000) -> 24.98671394 | AX15: =IF($B$2="トン",AppQt.Data!AR17,(AppQt.Data!AR17*ozton*AppQt.Data!AR$7)/1000000) -> -43.23026468 | AY15: =IF($B$2="トン",AppQt.Data!AS17,(AppQt.Data!AS17*ozton*AppQt.Data!AS$7)/1000000) -> 1.091852319 | AZ15: =IF($B$2="トン",AppQt.Data!AT17,(AppQt.Data!AT17*ozton*AppQt.Data!AT$7)/1000000) -> 10.35332088 | BA15: =IF($B$2="トン",AppQt.Data!AU17,(AppQt.Data!AU17*ozton*AppQt.Data!AU$7)/1000000) -> 42.23735199 | BB15: =IF($B$2="トン",AppQt.Data!AV17,(AppQt.Data!AV17*ozton*AppQt.Data!AV$7)/1000000) -> -13.8867421 | BC15: =IF($B$2="トン",AppQt.Data!AW17,(AppQt.Data!AW17*ozton*AppQt.Data!AW$7)/1000000) -> 7.235870474 | BD15: =IF($B$2="トン",AppQt.Data!AX17,(AppQt.Data!AX17*ozton*AppQt.Data!AX$7)/1000000) -> 26.62768083 | BE15: =IF($B$2="トン",AppQt.Data!AY17,(AppQt.Data!AY17*ozton*AppQt.Data!AY$7)/1000000) -> 16.2369479 | BF15: =IF($B$2="トン",AppQt.Data!AZ17,(AppQt.Data!AZ17*ozton*AppQt.Data!AZ$7)/1000000) -> -24.74400071 | BG15: =IF($B$2="トン",AppQt.Data!BA17,(AppQt.Data!BA17*ozton*AppQt.Data!BA$7)/1000000) -> 17.78791799 | BH15: =IF($B$2="トン",AppQt.Data!BB17,(AppQt.Data!BB17*ozton*AppQt.Data!BB$7)/1000000) -> -46.9162926 | BI15: =IF($B$2="トン",AppQt.Data!BC17,(AppQt.Data!BC17*ozton*AppQt.Data!BC$7)/1000000) -> -18.34493748 | BJ15: =IF($B$2="トン",AppQt.Data!BD17,(AppQt.Data!BD17*ozton*AppQt.Data!BD$7)/1000000) -> -26.54841749 | BK15: =IF($B$2="トン",AppQt.Data!BE17,(AppQt.Data!BE17*ozton*AppQt.Data!BE$7)/1000000) -> 26.76115194 | BL15: =IF($B$2="トン",AppQt.Data!BF17,(AppQt.Data!BF17*ozton*AppQt.Data!BF$7)/1000000) -> 19.0246649 | BM15: =IF($B$2="トン",AppQt.Data!BG17,(AppQt.Data!BG17*ozton*AppQt.Data!BG$7)/1000000) -> 38.14362025 | BN15: =IF($B$2="トン",AppQt.Data!BH17,(AppQt.Data!BH17*ozton*AppQt.Data!BH$7)/1000000) -> -1.031965148 | BO15: =IF($B$2="トン",AppQt.Data!BI17,(AppQt.Data!BI17*ozton*AppQt.Data!BI$7)/1000000) -> 40.80772515 | BP15: =IF($B$2="トン",AppQt.Data!BJ17,(AppQt.Data!BJ17*ozton*AppQt.Data!BJ$7)/1000000) -> 33.76945737 | BQ15: =IF($B$2="トン",AppQt.Data!BK17,(AppQt.Data!BK17*ozton*AppQt.Data!BK$7)/1000000) -> 55.2557859 | BR15: =IF($B$2="トン",AppQt.Data!BL17,(AppQt.Data!BL17*ozton*AppQt.Data!BL$7)/1000000) -> -26.24279415 | BS15: ▲ | BT15: -
B16: テクノロジー | C16: =IF($B$2="トン",AppAn.Data!L17,(AppAn.Data!L17*ozton*AppAn.Data!L$6)/1000000) -> 460.6657369 | D16: =IF($B$2="トン",AppAn.Data!M17,(AppAn.Data!M17*ozton*AppAn.Data!M$6)/1000000) -> 429.1374963 | E16: =IF($B$2="トン",AppAn.Data!N17,(AppAn.Data!N17*ozton*AppAn.Data!N$6)/1000000) -> 382.2740742 | F16: =IF($B$2="トン",AppAn.Data!O17,(AppAn.Data!O17*ozton*AppAn.Data!O$6)/1000000) -> 355.767648 | G16: =IF($B$2="トン",AppAn.Data!P17,(AppAn.Data!P17*ozton*AppAn.Data!P$6)/1000000) -> 348.3868677 | H16: =IF($B$2="トン",AppAn.Data!Q17,(AppAn.Data!Q17*ozton*AppAn.Data!Q$6)/1000000) -> 331.6737462 | I16: =IF($B$2="トン",AppAn.Data!R17,(AppAn.Data!R17*ozton*AppAn.Data!R$6)/1000000) -> 322.9935677 | J16: =IF($B$2="トン",AppAn.Data!S17,(AppAn.Data!S17*ozton*AppAn.Data!S$6)/1000000) -> 332.584966 | K16: =IF($B$2="トン",AppAn.Data!T17,(AppAn.Data!T17*ozton*AppAn.Data!T$6)/1000000) -> 334.7942193 | L16: =IF($B$2="トン",AppAn.Data!U17,(AppAn.Data!U17*ozton*AppAn.Data!U$6)/1000000) -> 325.9641968 | M16: =IF($B$2="トン",AppAn.Data!V17,(AppAn.Data!V17*ozton*AppAn.Data!V$6)/1000000) -> 302.7563109 | N16: =IF($B$2="トン",AppAn.Data!W17,(AppAn.Data!W17*ozton*AppAn.Data!W$6)/1000000) -> 330.1913754 | O16: =IF($B$2="トン",AppAn.Data!X17,(AppAn.Data!X17*ozton*AppAn.Data!X$6)/1000000) -> 308.5244422 | P16: ▼ | Q16: -6.561931879 | S16: =IF($B$2="トン",AppQt.Data!M18,(AppQt.Data!M18*ozton*AppQt.Data!M$7)/1000000) -> 114.3553116 | T16: =IF($B$2="トン",AppQt.Data!N18,(AppQt.Data!N18*ozton*AppQt.Data!N$7)/1000000) -> 115.01673 | U16: =IF($B$2="トン",AppQt.Data!O18,(AppQt.Data!O18*ozton*AppQt.Data!O$7)/1000000) -> 118.1482361 | V16: =IF($B$2="トン",AppQt.Data!P18,(AppQt.Data!P18*ozton*AppQt.Data!P$7)/1000000) -> 113.1454592 | W16: =IF($B$2="トン",AppQt.Data!Q18,(AppQt.Data!Q18*ozton*AppQt.Data!Q$7)/1000000) -> 110.6110539 | X16: =IF($B$2="トン",AppQt.Data!R18,(AppQt.Data!R18*ozton*AppQt.Data!R$7)/1000000) -> 112.4850751 | Y16: =IF($B$2="トン",AppQt.Data!S18,(AppQt.Data!S18*ozton*AppQt.Data!S$7)/1000000) -> 109.34356 | Z16: =IF($B$2="トン",AppQt.Data!T18,(AppQt.Data!T18*ozton*AppQt.Data!T$7)/1000000) -> 96.69780716 | AA16: =IF($B$2="トン",AppQt.Data!U18,(AppQt.Data!U18*ozton*AppQt.Data!U$7)/1000000) -> 100.7741159 | AB16: =IF($B$2="トン",AppQt.Data!V18,(AppQt.Data!V18*ozton*AppQt.Data!V$7)/1000000) -> 97.36544113 | AC16: =IF($B$2="トン",AppQt.Data!W18,(AppQt.Data!W18*ozton*AppQt.Data!W$7)/1000000) -> 95.42756568 | AD16: =IF($B$2="トン",AppQt.Data!X18,(AppQt.Data!X18*ozton*AppQt.Data!X$7)/1000000) -> 88.70695153 | AE16: =IF($B$2="トン",AppQt.Data!Y18,(AppQt.Data!Y18*ozton*AppQt.Data!Y$7)/1000000) -> 89.85782165 | AF16: =IF($B$2="トン",AppQt.Data!Z18,(AppQt.Data!Z18*ozton*AppQt.Data!Z$7)/1000000) -> 92.88357407 | AG16: =IF($B$2="トン",AppQt.Data!AA18,(AppQt.Data!AA18*ozton*AppQt.Data!AA$7)/1000000) -> 89.55025326 | AH16: =IF($B$2="トン",AppQt.Data!AB18,(AppQt.Data!AB18*ozton*AppQt.Data!AB$7)/1000000) -> 83.47599898 | AI16: =IF($B$2="トン",AppQt.Data!AC18,(AppQt.Data!AC18*ozton*AppQt.Data!AC$7)/1000000) -> 83.29070957 | AJ16: =IF($B$2="トン",AppQt.Data!AD18,(AppQt.Data!AD18*ozton*AppQt.Data!AD$7)/1000000) -> 86.46635248 | AK16: =IF($B$2="トン",AppQt.Data!AE18,(AppQt.Data!AE18*ozton*AppQt.Data!AE$7)/1000000) -> 89.44834851 | AL16: =IF($B$2="トン",AppQt.Data!AF18,(AppQt.Data!AF18*ozton*AppQt.Data!AF$7)/1000000) -> 89.18145713 | AM16: =IF($B$2="トン",AppQt.Data!AG18,(AppQt.Data!AG18*ozton*AppQt.Data!AG$7)/1000000) -> 83.60708127 | AN16: =IF($B$2="トン",AppQt.Data!AH18,(AppQt.Data!AH18*ozton*AppQt.Data!AH$7)/1000000) -> 83.67693119 | AO16: =IF($B$2="トン",AppQt.Data!AI18,(AppQt.Data!AI18*ozton*AppQt.Data!AI$7)/1000000) -> 82.86578255 | AP16: =IF($B$2="トン",AppQt.Data!AJ18,(AppQt.Data!AJ18*ozton*AppQt.Data!AJ$7)/1000000) -> 81.52395124 | AQ16: =IF($B$2="トン",AppQt.Data!AK18,(AppQt.Data!AK18*ozton*AppQt.Data!AK$7)/1000000) -> 76.29001234 | AR16: =IF($B$2="トン",AppQt.Data!AL18,(AppQt.Data!AL18*ozton*AppQt.Data!AL$7)/1000000) -> 79.96859358 | AS16: =IF($B$2="トン",AppQt.Data!AM18,(AppQt.Data!AM18*ozton*AppQt.Data!AM$7)/1000000) -> 82.43494518 | AT16: =IF($B$2="トン",AppQt.Data!AN18,(AppQt.Data!AN18*ozton*AppQt.Data!AN$7)/1000000) -> 84.30001662 | AU16: =IF($B$2="トン",AppQt.Data!AO18,(AppQt.Data!AO18*ozton*AppQt.Data!AO$7)/1000000) -> 78.76887973 | AV16: =IF($B$2="トン",AppQt.Data!AP18,(AppQt.Data!AP18*ozton*AppQt.Data!AP$7)/1000000) -> 81.3564869 | AW16: =IF($B$2="トン",AppQt.Data!AQ18,(AppQt.Data!AQ18*ozton*AppQt.Data!AQ$7)/1000000) -> 84.15714542 | AX16: =IF($B$2="トン",AppQt.Data!AR18,(AppQt.Data!AR18*ozton*AppQt.Data!AR$7)/1000000) -> 88.30245392 | AY16: =IF($B$2="トン",AppQt.Data!AS18,(AppQt.Data!AS18*ozton*AppQt.Data!AS$7)/1000000) -> 81.79780341 | AZ16: =IF($B$2="トン",AppQt.Data!AT18,(AppQt.Data!AT18*ozton*AppQt.Data!AT$7)/1000000) -> 83.29820355 | BA16: =IF($B$2="トン",AppQt.Data!AU18,(AppQt.Data!AU18*ozton*AppQt.Data!AU$7)/1000000) -> 85.38372895 | BB16: =IF($B$2="トン",AppQt.Data!AV18,(AppQt.Data!AV18*ozton*AppQt.Data!AV$7)/1000000) -> 84.31448343 | BC16: =IF($B$2="トン",AppQt.Data!AW18,(AppQt.Data!AW18*ozton*AppQt.Data!AW$7)/1000000) -> 79.90615995 | BD16: =IF($B$2="トン",AppQt.Data!AX18,(AppQt.Data!AX18*ozton*AppQt.Data!AX$7)/1000000) -> 80.69681693 | BE16: =IF($B$2="トン",AppQt.Data!AY18,(AppQt.Data!AY18*ozton*AppQt.Data!AY$7)/1000000) -> 82.01487621 | BF16: =IF($B$2="トン",AppQt.Data!AZ18,(AppQt.Data!AZ18*ozton*AppQt.Data!AZ$7)/1000000) -> 83.34634369 | BG16: =IF($B$2="トン",AppQt.Data!BA18,(AppQt.Data!BA18*ozton*AppQt.Data!BA$7)/1000000) -> 72.84021863 | BH16: =IF($B$2="トン",AppQt.Data!BB18,(AppQt.Data!BB18*ozton*AppQt.Data!BB$7)/1000000) -> 68.71910536 | BI16: =IF($B$2="トン",AppQt.Data!BC18,(AppQt.Data!BC18*ozton*AppQt.Data!BC$7)/1000000) -> 77.17467662 | BJ16: =IF($B$2="トン",AppQt.Data!BD18,(AppQt.Data!BD18*ozton*AppQt.Data!BD$7)/1000000) -> 84.02231032 | BK16: =IF($B$2="トン",AppQt.Data!BE18,(AppQt.Data!BE18*ozton*AppQt.Data!BE$7)/1000000) -> 81.03618207 | BL16: =IF($B$2="トン",AppQt.Data!BF18,(AppQt.Data!BF18*ozton*AppQt.Data!BF$7)/1000000) -> 79.84524967 | BM16: =IF($B$2="トン",AppQt.Data!BG18,(AppQt.Data!BG18*ozton*AppQt.Data!BG$7)/1000000) -> 83.42022044 | BN16: =IF($B$2="トン",AppQt.Data!BH18,(AppQt.Data!BH18*ozton*AppQt.Data!BH$7)/1000000) -> 85.88972317 | BO16: =IF($B$2="トン",AppQt.Data!BI18,(AppQt.Data!BI18*ozton*AppQt.Data!BI$7)/1000000) -> 80.95597086 | BP16: =IF($B$2="トン",AppQt.Data!BJ18,(AppQt.Data!BJ18*ozton*AppQt.Data!BJ$7)/1000000) -> 78.52648231 | BQ16: =IF($B$2="トン",AppQt.Data!BK18,(AppQt.Data!BK18*ozton*AppQt.Data!BK$7)/1000000) -> 76.99468489 | BR16: =IF($B$2="トン",AppQt.Data!BL18,(AppQt.Data!BL18*ozton*AppQt.Data!BL$7)/1000000) -> 72.04730417 | BS16: ▼ | BT16: -16.11650206
B17: エレクトロニクス | C17: =IF($B$2="トン",AppAn.Data!L18,(AppAn.Data!L18*ozton*AppAn.Data!L$6)/1000000) -> 326.7279825 | D17: =IF($B$2="トン",AppAn.Data!M18,(AppAn.Data!M18*ozton*AppAn.Data!M$6)/1000000) -> 316.5714993 | E17: =IF($B$2="トン",AppAn.Data!N18,(AppAn.Data!N18*ozton*AppAn.Data!N$6)/1000000) -> 289.1255116 | F17: =IF($B$2="トン",AppAn.Data!O18,(AppAn.Data!O18*ozton*AppAn.Data!O$6)/1000000) -> 279.23616 | G17: =IF($B$2="トン",AppAn.Data!P18,(AppAn.Data!P18*ozton*AppAn.Data!P$6)/1000000) -> 277.5300667 | H17: =IF($B$2="トン",AppAn.Data!Q18,(AppAn.Data!Q18*ozton*AppAn.Data!Q$6)/1000000) -> 262.1409543 | I17: =IF($B$2="トン",AppAn.Data!R18,(AppAn.Data!R18*ozton*AppAn.Data!R$6)/1000000) -> 255.6136834 | J17: =IF($B$2="トン",AppAn.Data!S18,(AppAn.Data!S18*ozton*AppAn.Data!S$6)/1000000) -> 265.5819933 | K17: =IF($B$2="トン",AppAn.Data!T18,(AppAn.Data!T18*ozton*AppAn.Data!T$6)/1000000) -> 268.3629321 | L17: =IF($B$2="トン",AppAn.Data!U18,(AppAn.Data!U18*ozton*AppAn.Data!U$6)/1000000) -> 262.2563307 | M17: =IF($B$2="トン",AppAn.Data!V18,(AppAn.Data!V18*ozton*AppAn.Data!V$6)/1000000) -> 249.3299137 | N17: =IF($B$2="トン",AppAn.Data!W18,(AppAn.Data!W18*ozton*AppAn.Data!W$6)/1000000) -> 272.0751979 | O17: =IF($B$2="トン",AppAn.Data!X18,(AppAn.Data!X18*ozton*AppAn.Data!X$6)/1000000) -> 251.6954052 | P17: ▼ | Q17: -7.490500013 | S17: =IF($B$2="トン",AppQt.Data!M19,(AppQt.Data!M19*ozton*AppQt.Data!M$7)/1000000) -> 79.02997365 | T17: =IF($B$2="トン",AppQt.Data!N19,(AppQt.Data!N19*ozton*AppQt.Data!N$7)/1000000) -> 80.42565732 | U17: =IF($B$2="トン",AppQt.Data!O19,(AppQt.Data!O19*ozton*AppQt.Data!O$7)/1000000) -> 85.8495706 | V17: =IF($B$2="トン",AppQt.Data!P19,(AppQt.Data!P19*ozton*AppQt.Data!P$7)/1000000) -> 81.42278093 | W17: =IF($B$2="トン",AppQt.Data!Q19,(AppQt.Data!Q19*ozton*AppQt.Data!Q$7)/1000000) -> 80.09760067 | X17: =IF($B$2="トン",AppQt.Data!R19,(AppQt.Data!R19*ozton*AppQt.Data!R$7)/1000000) -> 83.17678499 | Y17: =IF($B$2="トン",AppQt.Data!S19,(AppQt.Data!S19*ozton*AppQt.Data!S$7)/1000000) -> 81.49612577 | Z17: =IF($B$2="トン",AppQt.Data!T19,(AppQt.Data!T19*ozton*AppQt.Data!T$7)/1000000) -> 71.80098786 | AA17: =IF($B$2="トン",AppQt.Data!U19,(AppQt.Data!U19*ozton*AppQt.Data!U$7)/1000000) -> 75.16651191 | AB17: =IF($B$2="トン",AppQt.Data!V19,(AppQt.Data!V19*ozton*AppQt.Data!V$7)/1000000) -> 73.0563143 | AC17: =IF($B$2="トン",AppQt.Data!W19,(AppQt.Data!W19*ozton*AppQt.Data!W$7)/1000000) -> 72.93488438 | AD17: =IF($B$2="トン",AppQt.Data!X19,(AppQt.Data!X19*ozton*AppQt.Data!X$7)/1000000) -> 67.96780098 | AE17: =IF($B$2="トン",AppQt.Data!Y19,(AppQt.Data!Y19*ozton*AppQt.Data!Y$7)/1000000) -> 69.0752003 | AF17: =IF($B$2="トン",AppQt.Data!Z19,(AppQt.Data!Z19*ozton*AppQt.Data!Z$7)/1000000) -> 71.6498486 | AG17: =IF($B$2="トン",AppQt.Data!AA19,(AppQt.Data!AA19*ozton*AppQt.Data!AA$7)/1000000) -> 71.76336557 | AH17: =IF($B$2="トン",AppQt.Data!AB19,(AppQt.Data!AB19*ozton*AppQt.Data!AB$7)/1000000) -> 66.7477455 | AI17: =IF($B$2="トン",AppQt.Data!AC19,(AppQt.Data!AC19*ozton*AppQt.Data!AC$7)/1000000) -> 65.76352322 | AJ17: =IF($B$2="トン",AppQt.Data!AD19,(AppQt.Data!AD19*ozton*AppQt.Data!AD$7)/1000000) -> 68.69307013 | AK17: =IF($B$2="トン",AppQt.Data!AE19,(AppQt.Data!AE19*ozton*AppQt.Data!AE$7)/1000000) -> 71.56889943 | AL17: =IF($B$2="トン",AppQt.Data!AF19,(AppQt.Data!AF19*ozton*AppQt.Data!AF$7)/1000000) -> 71.50457393 | AM17: =IF($B$2="トン",AppQt.Data!AG19,(AppQt.Data!AG19*ozton*AppQt.Data!AG$7)/1000000) -> 66.24384886 | AN17: =IF($B$2="トン",AppQt.Data!AH19,(AppQt.Data!AH19*ozton*AppQt.Data!AH$7)/1000000) -> 65.80887634 | AO17: =IF($B$2="トン",AppQt.Data!AI19,(AppQt.Data!AI19*ozton*AppQt.Data!AI$7)/1000000) -> 65.4581185 | AP17: =IF($B$2="トン",AppQt.Data!AJ19,(AppQt.Data!AJ19*ozton*AppQt.Data!AJ$7)/1000000) -> 64.63011057 | AQ17: =IF($B$2="トン",AppQt.Data!AK19,(AppQt.Data!AK19*ozton*AppQt.Data!AK$7)/1000000) -> 59.87109786 | AR17: =IF($B$2="トン",AppQt.Data!AL19,(AppQt.Data!AL19*ozton*AppQt.Data!AL$7)/1000000) -> 62.96315831 | AS17: =IF($B$2="トン",AppQt.Data!AM19,(AppQt.Data!AM19*ozton*AppQt.Data!AM$7)/1000000) -> 65.30199456 | AT17: =IF($B$2="トン",AppQt.Data!AN19,(AppQt.Data!AN19*ozton*AppQt.Data!AN$7)/1000000) -> 67.47743267 | AU17: =IF($B$2="トン",AppQt.Data!AO19,(AppQt.Data!AO19*ozton*AppQt.Data!AO$7)/1000000) -> 62.35641186 | AV17: =IF($B$2="トン",AppQt.Data!AP19,(AppQt.Data!AP19*ozton*AppQt.Data!AP$7)/1000000) -> 64.3633647 | AW17: =IF($B$2="トン",AppQt.Data!AQ19,(AppQt.Data!AQ19*ozton*AppQt.Data!AQ$7)/1000000) -> 67.35257957 | AX17: =IF($B$2="トン",AppQt.Data!AR19,(AppQt.Data!AR19*ozton*AppQt.Data!AR$7)/1000000) -> 71.50963721 | AY17: =IF($B$2="トン",AppQt.Data!AS19,(AppQt.Data!AS19*ozton*AppQt.Data!AS$7)/1000000) -> 65.33038193 | AZ17: =IF($B$2="トン",AppQt.Data!AT19,(AppQt.Data!AT19*ozton*AppQt.Data!AT$7)/1000000) -> 66.48645454 | BA17: =IF($B$2="トン",AppQt.Data!AU19,(AppQt.Data!AU19*ozton*AppQt.Data!AU$7)/1000000) -> 68.76714799 | BB17: =IF($B$2="トン",AppQt.Data!AV19,(AppQt.Data!AV19*ozton*AppQt.Data!AV$7)/1000000) -> 67.77894769 | BC17: =IF($B$2="トン",AppQt.Data!AW19,(AppQt.Data!AW19*ozton*AppQt.Data!AW$7)/1000000) -> 63.54281696 | BD17: =IF($B$2="トン",AppQt.Data!AX19,(AppQt.Data!AX19*ozton*AppQt.Data!AX$7)/1000000) -> 64.47381988 | BE17: =IF($B$2="トン",AppQt.Data!AY19,(AppQt.Data!AY19*ozton*AppQt.Data!AY$7)/1000000) -> 66.44184486 | BF17: =IF($B$2="トン",AppQt.Data!AZ19,(AppQt.Data!AZ19*ozton*AppQt.Data!AZ$7)/1000000) -> 67.79784896 | BG17: =IF($B$2="トン",AppQt.Data!BA19,(AppQt.Data!BA19*ozton*AppQt.Data!BA$7)/1000000) -> 58.78472141 | BH17: =IF($B$2="トン",AppQt.Data!BB19,(AppQt.Data!BB19*ozton*AppQt.Data!BB$7)/1000000) -> 58.02966704 | BI17: =IF($B$2="トン",AppQt.Data!BC19,(AppQt.Data!BC19*ozton*AppQt.Data!BC$7)/1000000) -> 63.27219491 | BJ17: =IF($B$2="トン",AppQt.Data!BD19,(AppQt.Data!BD19*ozton*AppQt.Data!BD$7)/1000000) -> 69.24333037 | BK17: =IF($B$2="トン",AppQt.Data!BE19,(AppQt.Data!BE19*ozton*AppQt.Data!BE$7)/1000000) -> 66.21394613 | BL17: =IF($B$2="トン",AppQt.Data!BF19,(AppQt.Data!BF19*ozton*AppQt.Data!BF$7)/1000000) -> 66.24046193 | BM17: =IF($B$2="トン",AppQt.Data!BG19,(AppQt.Data!BG19*ozton*AppQt.Data!BG$7)/1000000) -> 68.99578781 | BN17: =IF($B$2="トン",AppQt.Data!BH19,(AppQt.Data!BH19*ozton*AppQt.Data!BH$7)/1000000) -> 70.62500202 | BO17: =IF($B$2="トン",AppQt.Data!BI19,(AppQt.Data!BI19*ozton*AppQt.Data!BI$7)/1000000) -> 66.22569989 | BP17: =IF($B$2="トン",AppQt.Data!BJ19,(AppQt.Data!BJ19*ozton*AppQt.Data!BJ$7)/1000000) -> 64.55281161 | BQ17: =IF($B$2="トン",AppQt.Data!BK19,(AppQt.Data!BK19*ozton*AppQt.Data!BK$7)/1000000) -> 63.17944666 | BR17: =IF($B$2="トン",AppQt.Data!BL19,(AppQt.Data!BL19*ozton*AppQt.Data!BL$7)/1000000) -> 57.737447 | BS17: ▼ | BT17: -18.247865
